Workbook

Sheet Update register (hidden)
B3: Date | C3: User | D3: Details of changes | E3: Version change
B4: 2013-05-20 | C4: Nicole Kirkham | D4: Added in HydSc column (column BE and BT) in sheet Summary. This means that plants in the category HydSC are now included in the Hydro category shown in the chart - previously categorised as 'Other' . (edit to the sum formular to include HydSc in columns Summary!AY and BO | E4: v 2.0
B5: 2013-05-20 | C5: Nicole Kirkham | D5: Updated list of plants in column A sheet 'GEM new plant' | E5: No
B6: 2013-05-20 | C6: Nicole Kirkham | D6: Added Coal_CCS category to sheet 'GEM other" cell B10, and cell H51 and to sheet 'Other ass' B10 | E6: No
B7: 2013-05-20 | C7: Nicole Kirkham | D7: Other ass H43 - added HydSC | E7: No
B8: 2013-05-20 | C8: Nicole Kirkham | D8: GlenExp and CHPWood1 have name plate capacity of 0 in GenPlant_Inputs so messes up the calculations. - possibly exclude? | E8: to do
B9: 2013-05-20 | C9: Nicole Kirkham | D9: CCGTCHP1 has heat rate set to 3600 in the latest version of GenPlant_Inputs - I have made an alternative version of GenPlant_Inoputs called GenPlant_Inputs_v17_for LRMC which has the heat rate set at 7100 for CCGTCHP and ProposedCogen1 plant and linked LRMC tool to this file. | E9: No
B10: 2015-01-20 | C10: Zac | D10: Purpose of Zac updates: want to prepare for publishing with EDGS. Updated list of plants to current GenPlant updates to have wind cap costs update - by linking to GenPlantInputs_GS1. Kept cogen heat rate overides by hardcoding values in red (cogen built first if this change isnt made)
B11: 2015-01-20 | C11: Zac | D11: Removed todd peaker mckee, ngatamiriki, KauwerauMillNew
B12: 2015-01-20 | C12: Zac | D12: Updated exchange rates to Dec 2014
B13: 2015-01-20 | C13: Zac | D13: HVDC charges updates, updated formula in LRMC calc to refer to all years
B14: 2015-01-20 | C14: Zac | D14: Added PPI sheet, rebases to 2013 from 2011, Row 39 and 40 changed of LRMC calc to multiply by PPI scalar
C15: Zac | D15: Added explanation comments to: - GWAP/TWAP
B16: 2015-03-01 | C16: Zac | D16: ECY added, checks if ECY=2099, if so then exclude. Charts below show difference
C17: Zac | D17: ECY removed, instead plants removed from list. Simplified inputs, updated demand projections
B18: 2015-07-06 | C18: Zac | D18: Add regional tag
B20: 2016-04-13 | C20: Zac | D20: removed 3 plants and updated link | F20: 2016-04-13
B21: 2016-05-16 | C21: Zac | F21: Removed
B22: 2016-08-02 | C22: Zac | D22: base case plants updated, exchange rate updated | F22: GGeoNgawh1 | G22: Ngawha_generic1
B23: 2021-12-21 | C23: Louis Jarvis | D23: Re-entered some of the plant data and added a proposed OCGT Thermal plant in Waikato | F23: Now existing
F24: TeMihi | G24: Te_Mihi
F25: MillCreek | G25: Mill_Creek

Sheet Summary
B1: Interactive Levelised Cost of Electricity Comparison Tool - 2021
B3: Overview: | C3: This tool presents a comparison of the assumed costs of new generation projects, and the sensitivity of these costs to certain key assumptions. The results shown below are illustrative only.
C4: MBIE employs a more rigorous modelling approach when forming projections for the Electricity Demand and Generation Scenarios. | AI4: LRMC and CapX table | AQ4: Data - LRMC charts 1 | BJ4: Data - LRMC charts 1 | BX4: Extra Data LRMC chart - Thermal Compare | CC4: Min of LRMC | CD4: Fuel
C5: For those projections, MBIE uses the Electricity Authority's Generation Expansion Model (GEM) - an optimisation model. | AT5: Scenario 1 x technology | BM5: Scenario 1 x technology | CD5: CCGT | CE5: Coal | CF5: GasPkr | CG5: Lig | CH5: Solar | CI5: Coal_CCS | CJ5: HydSC | CK5: DSR | CL5: HydPD | CM5: IL | CN5: OCGT | CO5: V2G
B6: Data: | C6: Base capital and operating cost assumptions are sourced from the 2011 NZ Generation Data Update by Parsons Brinkerhoff (PB) and New Zealand generation stack updates (2020). | AI6: Output for single selected plant (drives table below) | AM6: LRMC | AN6: CapX | AT6: CCGT | AU6: Coal | AV6: Lig | AW6: Wind | AX6: Geo | AY6: Hydro | AZ6: CoGen | BA6: Other | BC6: HydRR | BD6: HydPk | BE6: HydSc | BF6: GasCog | BG6: OthCog | BM6: Wind | BN6: Geo | BO6: Hydro | BP6: CoGen | BQ6: Other | BS6: HydRR | BT6: HydPk | BU6: HydSc | BV6: GasCog | BW6: OthCog | BX6: CCGT | BY6: Coal | BZ6: Lig | CC6: Total | CD6: 81.677403 | CE6: 92.67719164 | CF6: 173.8216805 | CG6: 117.3776135 | CH6: 69.67136421 | CI6: 145.4719258 | CJ6: 26.34086676 | CL6: 17.81776218
B7: Technical Info: | C7: Information on MBIEs energy modelling techniques and methods can be found in the Energy Modelling Technical Guide. | AI7: Plant | AJ7: =INDEX($AJ$14:$AJ$237,$AM$9) -> CCGT1 | AL7: results | AM7: =IF($D$33="Haywards",$AJ$10,$AJ$9) -> 81.92571772 | AN7: =-SUM('LRMC calcs'!D32:'LRMC calcs'!CG32) -> 672.625 | AQ7: ="Cum "&D32 -> Cum MW | AT7: Gas baseload | AU7: =AU6 -> Coal | AV7: Lignite | AW7: =AW6 -> Wind | AX7: Geothermal | AY7: =AY6 -> Hydro | AZ7: Co-generation | BA7: =BA6 -> Other | BC7: =BC6 -> HydRR | BD7: =BD6 -> HydPk | BE7: =BE6 -> HydSc | BF7: =BF6 -> GasCog | BG7: =BG6 -> OthCog | BJ7: ="Cum "&Z35 -> Cum | BM7: =BM6 -> Wind | BN7: Geothermal | BO7: =BO6 -> Hydro | BP7: Co-generation | BQ7: =BQ6 -> Other | BS7: =BS6 -> HydRR | BT7: =BT6 -> HydPk | BU7: =BU6 -> HydSc | BV7: =BV6 -> GasCog | BW7: =BW6 -> OthCog | BX7: Gas baseload | BY7: Coal baseload | BZ7: Lignite | CA7: Gas Peaker | CB7: Solar | CJ7: =C38&$D$35 -> Applied for ConsentOther | CK7: =D38 -> yes
B8: Contacts: | C8: If you require further information please contact energyinfo@mbie.govt.nz | AI8: LRMC $MWh for selected plant & scenario | AQ8: 0 | AR8: =VLOOKUP($AQ8,'LRMC x Plant ranked'!$F$4:$G$500,2,TRUE) -> 53.94438517 | AT8: =IF(INDEX('LRMC x Plant ranked'!$C$5:$C$500,MATCH($AR8,'LRMC x Plant ranked'!$G$5:$G$500,FALSE),)=AT$6,VLOOKUP($AQ8,'LRMC x Plant ranked'!$F$4:$G$500,2,TRUE),0) -> 0 | AU8: =IF(INDEX('LRMC x Plant ranked'!$C$5:$C$500,MATCH($AR8,'LRMC x Plant ranked'!$G$5:$G$500,FALSE),)=AU$6,VLOOKUP($AQ8,'LRMC x Plant ranked'!$F$4:$G$500,2,TRUE),0) -> 0 | AV8: =IF(INDEX('LRMC x Plant ranked'!$C$5:$C$500,MATCH($AR8,'LRMC x Plant ranked'!$G$5:$G$500,FALSE),)=AV$6,VLOOKUP($AQ8,'LRMC x Plant ranked'!$F$4:$G$500,2,TRUE),0) -> 0 | AW8: =IF(INDEX('LRMC x Plant ranked'!$C$5:$C$500,MATCH($AR8,'LRMC x Plant ranked'!$G$5:$G$500,FALSE),)=AW$6,VLOOKUP($AQ8,'LRMC x Plant ranked'!$F$4:$G$500,2,TRUE),0) -> 53.94438517 | AX8: =IF(INDEX('LRMC x Plant ranked'!$C$5:$C$500,MATCH($AR8,'LRMC x Plant ranked'!$G$5:$G$500,FALSE),)=AX$6,VLOOKUP($AQ8,'LRMC x Plant ranked'!$F$4:$G$500,2,TRUE),0) -> 0 | AY8: =BC8+BD8+BE8 -> 0 | AZ8: =BF8+BG8 -> 0 | BA8: =IF(AR8="NA","NA",AR8-SUM(AT8:AZ8)) -> 0 | BC8: =IF(INDEX('LRMC x Plant ranked'!$C$5:$C$500,MATCH($AR8,'LRMC x Plant ranked'!$G$5:$G$500,FALSE),)=BC$6,VLOOKUP($AQ8,'LRMC x Plant ranked'!$F$4:$G$500,2,TRUE),0) -> 0 | BD8: =IF(INDEX('LRMC x Plant ranked'!$C$5:$C$500,MATCH($AR8,'LRMC x Plant ranked'!$G$5:$G$500,FALSE),)=BD$6,VLOOKUP($AQ8,'LRMC x Plant ranked'!$F$4:$G$500,2,TRUE),0) -> 0 | BE8: =IF(INDEX('LRMC x Plant ranked'!$C$5:$C$500,MATCH($AR8,'LRMC x Plant ranked'!$G$5:$G$500,FALSE),)=BE$6,VLOOKUP($AQ8,'LRMC x Plant ranked'!$F$4:$G$500,2,TRUE),0) -> 0 | BF8: =IF(INDEX('LRMC x Plant ranked'!$C$5:$C$500,MATCH($AR8,'LRMC x Plant ranked'!$G$5:$G$500,FALSE),)=BF$6,VLOOKUP($AQ8,'LRMC x Plant ranked'!$F$4:$G$500,2,TRUE),0) -> 0 | BG8: =IF(INDEX('LRMC x Plant ranked'!$C$5:$C$500,MATCH($AR8,'LRMC x Plant ranked'!$G$5:$G$500,FALSE),)=BG$6,VLOOKUP($AQ8,'LRMC x Plant ranked'!$F$4:$G$500,2,TRUE),0) -> 0 | BJ8: 0 | BK8: =VLOOKUP($BJ8,'LRMC x Plant ranked'!$P$4:$Q$500,2,TRUE) -> 53.94438517 | BM8: =IF(INDEX('LRMC x Plant ranked'!$M$5:$M$500,MATCH($BK8,'LRMC x Plant ranked'!$Q$5:$Q$500,FALSE),)=BM$6,VLOOKUP($BJ8,'LRMC x Plant ranked'!$P$4:$Q$500,2,TRUE),0) -> 53.94438517 | BN8: =IF(INDEX('LRMC x Plant ranked'!$M$5:$M$500,MATCH($BK8,'LRMC x Plant ranked'!$Q$5:$Q$500,FALSE),)=BN$6,VLOOKUP($BJ8,'LRMC x Plant ranked'!$P$4:$Q$500,2,TRUE),0) -> 0 | BO8: =BS8+BT8+BU8 -> 0 | BP8: =BV8+BW8 -> 0 | BQ8: =IF(BK8="NA","NA",BK8-SUM(BM8:BP8)) -> 0 | BS8: =IF(INDEX('LRMC x Plant ranked'!$M$5:$M$500,MATCH($BK8,'LRMC x Plant ranked'!$Q$5:$Q$500,FALSE),)=BS$6,VLOOKUP($BJ8,'LRMC x Plant ranked'!$P$4:$Q$500,2,TRUE),0) -> 0 | BT8: =IF(INDEX('LRMC x Plant ranked'!$M$5:$M$500,MATCH($BK8,'LRMC x Plant ranked'!$Q$5:$Q$500,FALSE),)=BT$6,VLOOKUP($BJ8,'LRMC x Plant ranked'!$P$4:$Q$500,2,TRUE),0) -> 0 | BU8: =IF(INDEX('LRMC x Plant ranked'!$M$5:$M$500,MATCH($BK8,'LRMC x Plant ranked'!$Q$5:$Q$500,FALSE),)=BU$6,VLOOKUP($BJ8,'LRMC x Plant ranked'!$P$4:$Q$500,2,TRUE),0) -> 0 | BV8: =IF(INDEX('LRMC x Plant ranked'!$M$5:$M$500,MATCH($BK8,'LRMC x Plant ranked'!$Q$5:$Q$500,FALSE),)=BV$6,VLOOKUP($BJ8,'LRMC x Plant ranked'!$P$4:$Q$500,2,TRUE),0) -> 0 | BW8: =IF(INDEX('LRMC x Plant ranked'!$M$5:$M$500,MATCH($BK8,'LRMC x Plant ranked'!$Q$5:$Q$500,FALSE),)=BW$6,VLOOKUP($BJ8,'LRMC x Plant ranked'!$P$4:$Q$500,2,TRUE),0) -> 0 | BX8: =GETPIVOTDATA("LRMC",$CC$4,"Fuel","CCGT") -> 81.677403 | BY8: =GETPIVOTDATA("LRMC",$CC$4,"Fuel","Coal") -> 92.67719164 | BZ8: =GETPIVOTDATA("LRMC",$CC$4,"Fuel","Lig") -> 117.3776135 | CA8: =GETPIVOTDATA("LRMC",$CC$4,"Fuel","GasPkr") -> 173.8216805 | CB8: =GETPIVOTDATA("LRMC",$CC$4,"Fuel","Solar") -> 69.67136421 | CJ8: =C39&$D$35 -> ProposedOther | CK8: =D39 -> yes
AI9: @ site | AJ9: =IF($D$28="yes",'LRMC calcs'!$C$62,'LRMC calcs'!$C$60) -> 81.92571772 | AL9: plant no. | AM9: 1 | AQ9: =IF(AQ8>MAX('LRMC x Plant ranked'!$F$5:$F$500),"",AQ8+IF($D$32="GWh",100,15)) -> 15 | AR9: =VLOOKUP($AQ9,'LRMC x Plant ranked'!$F$4:$G$500,2,TRUE) -> 53.94438517 | AT9: =IF(INDEX('LRMC x Plant ranked'!$C$5:$C$500,MATCH($AR9,'LRMC x Plant ranked'!$G$5:$G$500,FALSE),)=AT$6,VLOOKUP($AQ9,'LRMC x Plant ranked'!$F$4:$G$500,2,TRUE),0) -> 0 | AU9: =IF(INDEX('LRMC x Plant ranked'!$C$5:$C$500,MATCH($AR9,'LRMC x Plant ranked'!$G$5:$G$500,FALSE),)=AU$6,VLOOKUP($AQ9,'LRMC x Plant ranked'!$F$4:$G$500,2,TRUE),0) -> 0 | AV9: =IF(INDEX('LRMC x Plant ranked'!$C$5:$C$500,MATCH($AR9,'LRMC x Plant ranked'!$G$5:$G$500,FALSE),)=AV$6,VLOOKUP($AQ9,'LRMC x Plant ranked'!$F$4:$G$500,2,TRUE),0) -> 0 | AW9: =IF(INDEX('LRMC x Plant ranked'!$C$5:$C$500,MATCH($AR9,'LRMC x Plant ranked'!$G$5:$G$500,FALSE),)=AW$6,VLOOKUP($AQ9,'LRMC x Plant ranked'!$F$4:$G$500,2,TRUE),0) -> 53.94438517 | AX9: =IF(INDEX('LRMC x Plant ranked'!$C$5:$C$500,MATCH($AR9,'LRMC x Plant ranked'!$G$5:$G$500,FALSE),)=AX$6,VLOOKUP($AQ9,'LRMC x Plant ranked'!$F$4:$G$500,2,TRUE),0) -> 0 | AY9: =BC9+BD9+BE9 -> 0 | AZ9: 0 | BA9: 0 | BC9: =IF(INDEX('LRMC x Plant ranked'!$C$5:$C$500,MATCH($AR9,'LRMC x Plant ranked'!$G$5:$G$500,FALSE),)=BC$6,VLOOKUP($AQ9,'LRMC x Plant ranked'!$F$4:$G$500,2,TRUE),0) -> 0 | BD9: =IF(INDEX('LRMC x Plant ranked'!$C$5:$C$500,MATCH($AR9,'LRMC x Plant ranked'!$G$5:$G$500,FALSE),)=BD$6,VLOOKUP($AQ9,'LRMC x Plant ranked'!$F$4:$G$500,2,TRUE),0) -> 0 | BE9: =IF(INDEX('LRMC x Plant ranked'!$C$5:$C$500,MATCH($AR9,'LRMC x Plant ranked'!$G$5:$G$500,FALSE),)=BE$6,VLOOKUP($AQ9,'LRMC x Plant ranked'!$F$4:$G$500,2,TRUE),0) -> 0 | BF9: =IF(INDEX('LRMC x Plant ranked'!$C$5:$C$500,MATCH($AR9,'LRMC x Plant ranked'!$G$5:$G$500,FALSE),)=BF$6,VLOOKUP($AQ9,'LRMC x Plant ranked'!$F$4:$G$500,2,TRUE),0) -> 0 | BG9: =IF(INDEX('LRMC x Plant ranked'!$C$5:$C$500,MATCH($AR9,'LRMC x Plant ranked'!$G$5:$G$500,FALSE),)=BG$6,VLOOKUP($AQ9,'LRMC x Plant ranked'!$F$4:$G$500,2,TRUE),0) -> 0 | BJ9: =IF(BJ8>MAX('LRMC x Plant ranked'!$P$5:$P$500),"",BJ8+IF($D$32="GWh",100,15)) -> 15 | BK9: =VLOOKUP($BJ9,'LRMC x Plant ranked'!$P$4:$Q$500,2,TRUE) -> 53.94438517 | BM9: =IF(INDEX('LRMC x Plant ranked'!$M$5:$M$500,MATCH($BK9,'LRMC x Plant ranked'!$Q$5:$Q$500,FALSE),)=BM$6,VLOOKUP($BJ9,'LRMC x Plant ranked'!$P$4:$Q$500,2,TRUE),0) -> 53.94438517 | BN9: =IF(INDEX('LRMC x Plant ranked'!$M$5:$M$500,MATCH($BK9,'LRMC x Plant ranked'!$Q$5:$Q$500,FALSE),)=BN$6,VLOOKUP($BJ9,'LRMC x Plant ranked'!$P$4:$Q$500,2,TRUE),0) -> 0 | BO9: =BS9+BT9+BU9 -> 0 | BP9: =BV9+BW9 -> 0 | BQ9: 0 | BS9: =IF(INDEX('LRMC x Plant ranked'!$M$5:$M$500,MATCH($BK9,'LRMC x Plant ranked'!$Q$5:$Q$500,FALSE),)=BS$6,VLOOKUP($BJ9,'LRMC x Plant ranked'!$P$4:$Q$500,2,TRUE),0) -> 0 | BT9: =IF(INDEX('LRMC x Plant ranked'!$M$5:$M$500,MATCH($BK9,'LRMC x Plant ranked'!$Q$5:$Q$500,FALSE),)=BT$6,VLOOKUP($BJ9,'LRMC x Plant ranked'!$P$4:$Q$500,2,TRUE),0) -> 0 | BU9: =IF(INDEX('LRMC x Plant ranked'!$M$5:$M$500,MATCH($BK9,'LRMC x Plant ranked'!$Q$5:$Q$500,FALSE),)=BU$6,VLOOKUP($BJ9,'LRMC x Plant ranked'!$P$4:$Q$500,2,TRUE),0) -> 0 | BV9: =IF(INDEX('LRMC x Plant ranked'!$M$5:$M$500,MATCH($BK9,'LRMC x Plant ranked'!$Q$5:$Q$500,FALSE),)=BV$6,VLOOKUP($BJ9,'LRMC x Plant ranked'!$P$4:$Q$500,2,TRUE),0) -> 0 | BW9: =IF(INDEX('LRMC x Plant ranked'!$M$5:$M$500,MATCH($BK9,'LRMC x Plant ranked'!$Q$5:$Q$500,FALSE),)=BW$6,VLOOKUP($BJ9,'LRMC x Plant ranked'!$P$4:$Q$500,2,TRUE),0) -> 0 | BX9: =BX8 -> 81.677403 | BY9: =BY8 -> 92.67719164 | BZ9: =BZ8 -> 117.3776135 | CA9: =CA8 -> 173.8216805 | CB9: =GETPIVOTDATA("LRMC",$CC$4,"Fuel","Solar") -> 69.67136421 | CJ9: =C40&$D$35 -> GenericOther | CK9: =D40 -> yes
AI10: @ HAY | AJ10: =IF($D$28="yes",'LRMC calcs'!$C$63,'LRMC calcs'!$C$61) -> 81.92571772 | AL10: max plants | AM10: =COUNTA('GEM new plant'!A4:A896) -> 217 | AQ10: =IF(AQ9>MAX('LRMC x Plant ranked'!$F$5:$F$500),"",AQ9+IF($D$32="GWh",100,15)) -> 30 | AR10: =VLOOKUP($AQ10,'LRMC x Plant ranked'!$F$4:$G$500,2,TRUE) -> 53.94438517 | AT10: =IF(INDEX('LRMC x Plant ranked'!$C$5:$C$500,MATCH($AR10,'LRMC x Plant ranked'!$G$5:$G$500,FALSE),)=AT$6,VLOOKUP($AQ10,'LRMC x Plant ranked'!$F$4:$G$500,2,TRUE),0) -> 0 | AU10: =IF(INDEX('LRMC x Plant ranked'!$C$5:$C$500,MATCH($AR10,'LRMC x Plant ranked'!$G$5:$G$500,FALSE),)=AU$6,VLOOKUP($AQ10,'LRMC x Plant ranked'!$F$4:$G$500,2,TRUE),0) -> 0 | AV10: =IF(INDEX('LRMC x Plant ranked'!$C$5:$C$500,MATCH($AR10,'LRMC x Plant ranked'!$G$5:$G$500,FALSE),)=AV$6,VLOOKUP($AQ10,'LRMC x Plant ranked'!$F$4:$G$500,2,TRUE),0) -> 0 | AW10: =IF(INDEX('LRMC x Plant ranked'!$C$5:$C$500,MATCH($AR10,'LRMC x Plant ranked'!$G$5:$G$500,FALSE),)=AW$6,VLOOKUP($AQ10,'LRMC x Plant ranked'!$F$4:$G$500,2,TRUE),0) -> 53.94438517 | AX10: =IF(INDEX('LRMC x Plant ranked'!$C$5:$C$500,MATCH($AR10,'LRMC x Plant ranked'!$G$5:$G$500,FALSE),)=AX$6,VLOOKUP($AQ10,'LRMC x Plant ranked'!$F$4:$G$500,2,TRUE),0) -> 0 | AY10: 0 | AZ10: 0 | BA10: 0 | BC10: =IF(INDEX('LRMC x Plant ranked'!$C$5:$C$500,MATCH($AR10,'LRMC x Plant ranked'!$G$5:$G$500,FALSE),)=BC$6,VLOOKUP($AQ10,'LRMC x Plant ranked'!$F$4:$G$500,2,TRUE),0) -> 0 | BD10: =IF(INDEX('LRMC x Plant ranked'!$C$5:$C$500,MATCH($AR10,'LRMC x Plant ranked'!$G$5:$G$500,FALSE),)=BD$6,VLOOKUP($AQ10,'LRMC x Plant ranked'!$F$4:$G$500,2,TRUE),0) -> 0 | BE10: =IF(INDEX('LRMC x Plant ranked'!$C$5:$C$500,MATCH($AR10,'LRMC x Plant ranked'!$G$5:$G$500,FALSE),)=BE$6,VLOOKUP($AQ10,'LRMC x Plant ranked'!$F$4:$G$500,2,TRUE),0) -> 0 | BF10: =IF(INDEX('LRMC x Plant ranked'!$C$5:$C$500,MATCH($AR10,'LRMC x Plant ranked'!$G$5:$G$500,FALSE),)=BF$6,VLOOKUP($AQ10,'LRMC x Plant ranked'!$F$4:$G$500,2,TRUE),0) -> 0 | BG10: =IF(INDEX('LRMC x Plant ranked'!$C$5:$C$500,MATCH($AR10,'LRMC x Plant ranked'!$G$5:$G$500,FALSE),)=BG$6,VLOOKUP($AQ10,'LRMC x Plant ranked'!$F$4:$G$500,2,TRUE),0) -> 0 | BJ10: =IF(BJ9>MAX('LRMC x Plant ranked'!$P$5:$P$500),"",BJ9+IF($D$32="GWh",100,15)) -> 30 | BK10: =VLOOKUP($BJ10,'LRMC x Plant ranked'!$P$4:$Q$500,2,TRUE) -> 53.94438517 | BM10: =IF(INDEX('LRMC x Plant ranked'!$M$5:$M$500,MATCH($BK10,'LRMC x Plant ranked'!$Q$5:$Q$500,FALSE),)=BM$6,VLOOKUP($BJ10,'LRMC x Plant ranked'!$P$4:$Q$500,2,TRUE),0) -> 53.94438517 | BN10: =IF(INDEX('LRMC x Plant ranked'!$M$5:$M$500,MATCH($BK10,'LRMC x Plant ranked'!$Q$5:$Q$500,FALSE),)=BN$6,VLOOKUP($BJ10,'LRMC x Plant ranked'!$P$4:$Q$500,2,TRUE),0) -> 0 | BO10: =BS10+BT10+BU10 -> 0 | BP10: 0 | BQ10: 0 | BS10: =IF(INDEX('LRMC x Plant ranked'!$M$5:$M$500,MATCH($BK10,'LRMC x Plant ranked'!$Q$5:$Q$500,FALSE),)=BS$6,VLOOKUP($BJ10,'LRMC x Plant ranked'!$P$4:$Q$500,2,TRUE),0) -> 0 | BT10: =IF(INDEX('LRMC x Plant ranked'!$M$5:$M$500,MATCH($BK10,'LRMC x Plant ranked'!$Q$5:$Q$500,FALSE),)=BT$6,VLOOKUP($BJ10,'LRMC x Plant ranked'!$P$4:$Q$500,2,TRUE),0) -> 0 | BU10: =IF(INDEX('LRMC x Plant ranked'!$M$5:$M$500,MATCH($BK10,'LRMC x Plant ranked'!$Q$5:$Q$500,FALSE),)=BU$6,VLOOKUP($BJ10,'LRMC x Plant ranked'!$P$4:$Q$500,2,TRUE),0) -> 0 | BV10: =IF(INDEX('LRMC x Plant ranked'!$M$5:$M$500,MATCH($BK10,'LRMC x Plant ranked'!$Q$5:$Q$500,FALSE),)=BV$6,VLOOKUP($BJ10,'LRMC x Plant ranked'!$P$4:$Q$500,2,TRUE),0) -> 0 | BW10: =IF(INDEX('LRMC x Plant ranked'!$M$5:$M$500,MATCH($BK10,'LRMC x Plant ranked'!$Q$5:$Q$500,FALSE),)=BW$6,VLOOKUP($BJ10,'LRMC x Plant ranked'!$P$4:$Q$500,2,TRUE),0) -> 0 | BX10: =BX9 -> 81.677403 | BY10: =BY9 -> 92.67719164 | BZ10: =BZ9 -> 117.3776135 | CA10: 173.8216805 | CB10: 69.67136421 | CJ10: Generic - Lower ProbOther | CK10: no
AQ11: =IF(AQ10>MAX('LRMC x Plant ranked'!$F$5:$F$500),"",AQ10+IF($D$32="GWh",100,15)) -> 45 | AR11: =VLOOKUP($AQ11,'LRMC x Plant ranked'!$F$4:$G$500,2,TRUE) -> 53.94438517 | AT11: =IF(INDEX('LRMC x Plant ranked'!$C$5:$C$500,MATCH($AR11,'LRMC x Plant ranked'!$G$5:$G$500,FALSE),)=AT$6,VLOOKUP($AQ11,'LRMC x Plant ranked'!$F$4:$G$500,2,TRUE),0) -> 0 | AU11: =IF(INDEX('LRMC x Plant ranked'!$C$5:$C$500,MATCH($AR11,'LRMC x Plant ranked'!$G$5:$G$500,FALSE),)=AU$6,VLOOKUP($AQ11,'LRMC x Plant ranked'!$F$4:$G$500,2,TRUE),0) -> 0 | AV11: =IF(INDEX('LRMC x Plant ranked'!$C$5:$C$500,MATCH($AR11,'LRMC x Plant ranked'!$G$5:$G$500,FALSE),)=AV$6,VLOOKUP($AQ11,'LRMC x Plant ranked'!$F$4:$G$500,2,TRUE),0) -> 0 | AW11: =IF(INDEX('LRMC x Plant ranked'!$C$5:$C$500,MATCH($AR11,'LRMC x Plant ranked'!$G$5:$G$500,FALSE),)=AW$6,VLOOKUP($AQ11,'LRMC x Plant ranked'!$F$4:$G$500,2,TRUE),0) -> 53.94438517 | AX11: =IF(INDEX('LRMC x Plant ranked'!$C$5:$C$500,MATCH($AR11,'LRMC x Plant ranked'!$G$5:$G$500,FALSE),)=AX$6,VLOOKUP($AQ11,'LRMC x Plant ranked'!$F$4:$G$500,2,TRUE),0) -> 0 | AY11: 0 | AZ11: 0 | BA11: 0 | BC11: =IF(INDEX('LRMC x Plant ranked'!$C$5:$C$500,MATCH($AR11,'LRMC x Plant ranked'!$G$5:$G$500,FALSE),)=BC$6,VLOOKUP($AQ11,'LRMC x Plant ranked'!$F$4:$G$500,2,TRUE),0) -> 0 | BD11: =IF(INDEX('LRMC x Plant ranked'!$C$5:$C$500,MATCH($AR11,'LRMC x Plant ranked'!$G$5:$G$500,FALSE),)=BD$6,VLOOKUP($AQ11,'LRMC x Plant ranked'!$F$4:$G$500,2,TRUE),0) -> 0 | BE11: =IF(INDEX('LRMC x Plant ranked'!$C$5:$C$500,MATCH($AR11,'LRMC x Plant ranked'!$G$5:$G$500,FALSE),)=BE$6,VLOOKUP($AQ11,'LRMC x Plant ranked'!$F$4:$G$500,2,TRUE),0) -> 0 | BF11: =IF(INDEX('LRMC x Plant ranked'!$C$5:$C$500,MATCH($AR11,'LRMC x Plant ranked'!$G$5:$G$500,FALSE),)=BF$6,VLOOKUP($AQ11,'LRMC x Plant ranked'!$F$4:$G$500,2,TRUE),0) -> 0 | BG11: =IF(INDEX('LRMC x Plant ranked'!$C$5:$C$500,MATCH($AR11,'LRMC x Plant ranked'!$G$5:$G$500,FALSE),)=BG$6,VLOOKUP($AQ11,'LRMC x Plant ranked'!$F$4:$G$500,2,TRUE),0) -> 0 | BJ11: =IF(BJ10>MAX('LRMC x Plant ranked'!$P$5:$P$500),"",BJ10+IF($D$32="GWh",100,15)) -> 45 | BK11: =VLOOKUP($BJ11,'LRMC x Plant ranked'!$P$4:$Q$500,2,TRUE) -> 53.94438517 | BM11: =IF(INDEX('LRMC x Plant ranked'!$M$5:$M$500,MATCH($BK11,'LRMC x Plant ranked'!$Q$5:$Q$500,FALSE),)=BM$6,VLOOKUP($BJ11,'LRMC x Plant ranked'!$P$4:$Q$500,2,TRUE),0) -> 53.94438517 | BN11: =IF(INDEX('LRMC x Plant ranked'!$M$5:$M$500,MATCH($BK11,'LRMC x Plant ranked'!$Q$5:$Q$500,FALSE),)=BN$6,VLOOKUP($BJ11,'LRMC x Plant ranked'!$P$4:$Q$500,2,TRUE),0) -> 0 | BO11: 0 | BP11: 0 | BQ11: 0 | BS11: =IF(INDEX('LRMC x Plant ranked'!$M$5:$M$500,MATCH($BK11,'LRMC x Plant ranked'!$Q$5:$Q$500,FALSE),)=BS$6,VLOOKUP($BJ11,'LRMC x Plant ranked'!$P$4:$Q$500,2,TRUE),0) -> 0 | BT11: =IF(INDEX('LRMC x Plant ranked'!$M$5:$M$500,MATCH($BK11,'LRMC x Plant ranked'!$Q$5:$Q$500,FALSE),)=BT$6,VLOOKUP($BJ11,'LRMC x Plant ranked'!$P$4:$Q$500,2,TRUE),0) -> 0 | BU11: =IF(INDEX('LRMC x Plant ranked'!$M$5:$M$500,MATCH($BK11,'LRMC x Plant ranked'!$Q$5:$Q$500,FALSE),)=BU$6,VLOOKUP($BJ11,'LRMC x Plant ranked'!$P$4:$Q$500,2,TRUE),0) -> 0 | BV11: =IF(INDEX('LRMC x Plant ranked'!$M$5:$M$500,MATCH($BK11,'LRMC x Plant ranked'!$Q$5:$Q$500,FALSE),)=BV$6,VLOOKUP($BJ11,'LRMC x Plant ranked'!$P$4:$Q$500,2,TRUE),0) -> 0 | BW11: =IF(INDEX('LRMC x Plant ranked'!$M$5:$M$500,MATCH($BK11,'LRMC x Plant ranked'!$Q$5:$Q$500,FALSE),)=BW$6,VLOOKUP($BJ11,'LRMC x Plant ranked'!$P$4:$Q$500,2,TRUE),0) -> 0 | BX11: 81.677403 | BY11: 92.67719164 | BZ11: 117.3776135 | CA11: 173.8216805 | CB11: 69.67136421 | CJ11: Exclude - AbandonedOther | CK11: no
AI12: LRMC x Plant | AQ12: =IF(AQ11>MAX('LRMC x Plant ranked'!$F$5:$F$500),"",AQ11+IF($D$32="GWh",100,15)) -> 60 | AR12: =VLOOKUP($AQ12,'LRMC x Plant ranked'!$F$4:$G$500,2,TRUE) -> 56.14226936 | AT12: =IF(INDEX('LRMC x Plant ranked'!$C$5:$C$500,MATCH($AR12,'LRMC x Plant ranked'!$G$5:$G$500,FALSE),)=AT$6,VLOOKUP($AQ12,'LRMC x Plant ranked'!$F$4:$G$500,2,TRUE),0) -> 0 | AU12: =IF(INDEX('LRMC x Plant ranked'!$C$5:$C$500,MATCH($AR12,'LRMC x Plant ranked'!$G$5:$G$500,FALSE),)=AU$6,VLOOKUP($AQ12,'LRMC x Plant ranked'!$F$4:$G$500,2,TRUE),0) -> 0 | AV12: =IF(INDEX('LRMC x Plant ranked'!$C$5:$C$500,MATCH($AR12,'LRMC x Plant ranked'!$G$5:$G$500,FALSE),)=AV$6,VLOOKUP($AQ12,'LRMC x Plant ranked'!$F$4:$G$500,2,TRUE),0) -> 0 | AW12: =IF(INDEX('LRMC x Plant ranked'!$C$5:$C$500,MATCH($AR12,'LRMC x Plant ranked'!$G$5:$G$500,FALSE),)=AW$6,VLOOKUP($AQ12,'LRMC x Plant ranked'!$F$4:$G$500,2,TRUE),0) -> 0 | AX12: =IF(INDEX('LRMC x Plant ranked'!$C$5:$C$500,MATCH($AR12,'LRMC x Plant ranked'!$G$5:$G$500,FALSE),)=AX$6,VLOOKUP($AQ12,'LRMC x Plant ranked'!$F$4:$G$500,2,TRUE),0) -> 0 | AY12: 56.14226936 | AZ12: 0 | BA12: 0 | BC12: =IF(INDEX('LRMC x Plant ranked'!$C$5:$C$500,MATCH($AR12,'LRMC x Plant ranked'!$G$5:$G$500,FALSE),)=BC$6,VLOOKUP($AQ12,'LRMC x Plant ranked'!$F$4:$G$500,2,TRUE),0) -> 0 | BD12: =IF(INDEX('LRMC x Plant ranked'!$C$5:$C$500,MATCH($AR12,'LRMC x Plant ranked'!$G$5:$G$500,FALSE),)=BD$6,VLOOKUP($AQ12,'LRMC x Plant ranked'!$F$4:$G$500,2,TRUE),0) -> 56.14226936 | BE12: =IF(INDEX('LRMC x Plant ranked'!$C$5:$C$500,MATCH($AR12,'LRMC x Plant ranked'!$G$5:$G$500,FALSE),)=BE$6,VLOOKUP($AQ12,'LRMC x Plant ranked'!$F$4:$G$500,2,TRUE),0) -> 0 | BF12: =IF(INDEX('LRMC x Plant ranked'!$C$5:$C$500,MATCH($AR12,'LRMC x Plant ranked'!$G$5:$G$500,FALSE),)=BF$6,VLOOKUP($AQ12,'LRMC x Plant ranked'!$F$4:$G$500,2,TRUE),0) -> 0 | BG12: =IF(INDEX('LRMC x Plant ranked'!$C$5:$C$500,MATCH($AR12,'LRMC x Plant ranked'!$G$5:$G$500,FALSE),)=BG$6,VLOOKUP($AQ12,'LRMC x Plant ranked'!$F$4:$G$500,2,TRUE),0) -> 0 | BJ12: =IF(BJ11>MAX('LRMC x Plant ranked'!$P$5:$P$500),"",BJ11+IF($D$32="GWh",100,15)) -> 60 | BK12: =VLOOKUP($BJ12,'LRMC x Plant ranked'!$P$4:$Q$500,2,TRUE) -> 56.14226936 | BM12: =IF(INDEX('LRMC x Plant ranked'!$M$5:$M$500,MATCH($BK12,'LRMC x Plant ranked'!$Q$5:$Q$500,FALSE),)=BM$6,VLOOKUP($BJ12,'LRMC x Plant ranked'!$P$4:$Q$500,2,TRUE),0) -> 0 | BN12: =IF(INDEX('LRMC x Plant ranked'!$M$5:$M$500,MATCH($BK12,'LRMC x Plant ranked'!$Q$5:$Q$500,FALSE),)=BN$6,VLOOKUP($BJ12,'LRMC x Plant ranked'!$P$4:$Q$500,2,TRUE),0) -> 0 | BO12: 56.14226936 | BP12: 0 | BQ12: 0 | BS12: =IF(INDEX('LRMC x Plant ranked'!$M$5:$M$500,MATCH($BK12,'LRMC x Plant ranked'!$Q$5:$Q$500,FALSE),)=BS$6,VLOOKUP($BJ12,'LRMC x Plant ranked'!$P$4:$Q$500,2,TRUE),0) -> 0 | BT12: =IF(INDEX('LRMC x Plant ranked'!$M$5:$M$500,MATCH($BK12,'LRMC x Plant ranked'!$Q$5:$Q$500,FALSE),)=BT$6,VLOOKUP($BJ12,'LRMC x Plant ranked'!$P$4:$Q$500,2,TRUE),0) -> 56.14226936 | BU12: =IF(INDEX('LRMC x Plant ranked'!$M$5:$M$500,MATCH($BK12,'LRMC x Plant ranked'!$Q$5:$Q$500,FALSE),)=BU$6,VLOOKUP($BJ12,'LRMC x Plant ranked'!$P$4:$Q$500,2,TRUE),0) -> 0 | BV12: =IF(INDEX('LRMC x Plant ranked'!$M$5:$M$500,MATCH($BK12,'LRMC x Plant ranked'!$Q$5:$Q$500,FALSE),)=BV$6,VLOOKUP($BJ12,'LRMC x Plant ranked'!$P$4:$Q$500,2,TRUE),0) -> 0 | BW12: =IF(INDEX('LRMC x Plant ranked'!$M$5:$M$500,MATCH($BK12,'LRMC x Plant ranked'!$Q$5:$Q$500,FALSE),)=BW$6,VLOOKUP($BJ12,'LRMC x Plant ranked'!$P$4:$Q$500,2,TRUE),0) -> 0 | BX12: 81.677403 | BY12: 92.67719164 | BZ12: 117.3776135 | CA12: 173.8216805 | CB12: 69.67136421 | CJ12: Exclude - OtherOther | CK12: no
AI13: Fuel | AJ13: Name | AK13: LRMC | AL13: CapX | AQ13: =IF(AQ12>MAX('LRMC x Plant ranked'!$F$5:$F$500),"",AQ12+IF($D$32="GWh",100,15)) -> 75 | AR13: =VLOOKUP($AQ13,'LRMC x Plant ranked'!$F$4:$G$500,2,TRUE) -> 56.14226936 | AT13: =IF(INDEX('LRMC x Plant ranked'!$C$5:$C$500,MATCH($AR13,'LRMC x Plant ranked'!$G$5:$G$500,FALSE),)=AT$6,VLOOKUP($AQ13,'LRMC x Plant ranked'!$F$4:$G$500,2,TRUE),0) -> 0 | AU13: =IF(INDEX('LRMC x Plant ranked'!$C$5:$C$500,MATCH($AR13,'LRMC x Plant ranked'!$G$5:$G$500,FALSE),)=AU$6,VLOOKUP($AQ13,'LRMC x Plant ranked'!$F$4:$G$500,2,TRUE),0) -> 0 | AV13: =IF(INDEX('LRMC x Plant ranked'!$C$5:$C$500,MATCH($AR13,'LRMC x Plant ranked'!$G$5:$G$500,FALSE),)=AV$6,VLOOKUP($AQ13,'LRMC x Plant ranked'!$F$4:$G$500,2,TRUE),0) -> 0 | AW13: =IF(INDEX('LRMC x Plant ranked'!$C$5:$C$500,MATCH($AR13,'LRMC x Plant ranked'!$G$5:$G$500,FALSE),)=AW$6,VLOOKUP($AQ13,'LRMC x Plant ranked'!$F$4:$G$500,2,TRUE),0) -> 0 | AX13: =IF(INDEX('LRMC x Plant ranked'!$C$5:$C$500,MATCH($AR13,'LRMC x Plant ranked'!$G$5:$G$500,FALSE),)=AX$6,VLOOKUP($AQ13,'LRMC x Plant ranked'!$F$4:$G$500,2,TRUE),0) -> 0 | AY13: 56.14226936 | AZ13: 0 | BA13: 0 | BC13: =IF(INDEX('LRMC x Plant ranked'!$C$5:$C$500,MATCH($AR13,'LRMC x Plant ranked'!$G$5:$G$500,FALSE),)=BC$6,VLOOKUP($AQ13,'LRMC x Plant ranked'!$F$4:$G$500,2,TRUE),0) -> 0 | BD13: =IF(INDEX('LRMC x Plant ranked'!$C$5:$C$500,MATCH($AR13,'LRMC x Plant ranked'!$G$5:$G$500,FALSE),)=BD$6,VLOOKUP($AQ13,'LRMC x Plant ranked'!$F$4:$G$500,2,TRUE),0) -> 56.14226936 | BE13: =IF(INDEX('LRMC x Plant ranked'!$C$5:$C$500,MATCH($AR13,'LRMC x Plant ranked'!$G$5:$G$500,FALSE),)=BE$6,VLOOKUP($AQ13,'LRMC x Plant ranked'!$F$4:$G$500,2,TRUE),0) -> 0 | BF13: =IF(INDEX('LRMC x Plant ranked'!$C$5:$C$500,MATCH($AR13,'LRMC x Plant ranked'!$G$5:$G$500,FALSE),)=BF$6,VLOOKUP($AQ13,'LRMC x Plant ranked'!$F$4:$G$500,2,TRUE),0) -> 0 | BG13: =IF(INDEX('LRMC x Plant ranked'!$C$5:$C$500,MATCH($AR13,'LRMC x Plant ranked'!$G$5:$G$500,FALSE),)=BG$6,VLOOKUP($AQ13,'LRMC x Plant ranked'!$F$4:$G$500,2,TRUE),0) -> 0 | BJ13: =IF(BJ12>MAX('LRMC x Plant ranked'!$P$5:$P$500),"",BJ12+IF($D$32="GWh",100,15)) -> 75 | BK13: =VLOOKUP($BJ13,'LRMC x Plant ranked'!$P$4:$Q$500,2,TRUE) -> 56.14226936 | BM13: =IF(INDEX('LRMC x Plant ranked'!$M$5:$M$500,MATCH($BK13,'LRMC x Plant ranked'!$Q$5:$Q$500,FALSE),)=BM$6,VLOOKUP($BJ13,'LRMC x Plant ranked'!$P$4:$Q$500,2,TRUE),0) -> 0 | BN13: =IF(INDEX('LRMC x Plant ranked'!$M$5:$M$500,MATCH($BK13,'LRMC x Plant ranked'!$Q$5:$Q$500,FALSE),)=BN$6,VLOOKUP($BJ13,'LRMC x Plant ranked'!$P$4:$Q$500,2,TRUE),0) -> 0 | BO13: 56.14226936 | BP13: 0 | BQ13: 0 | BS13: =IF(INDEX('LRMC x Plant ranked'!$M$5:$M$500,MATCH($BK13,'LRMC x Plant ranked'!$Q$5:$Q$500,FALSE),)=BS$6,VLOOKUP($BJ13,'LRMC x Plant ranked'!$P$4:$Q$500,2,TRUE),0) -> 0 | BT13: =IF(INDEX('LRMC x Plant ranked'!$M$5:$M$500,MATCH($BK13,'LRMC x Plant ranked'!$Q$5:$Q$500,FALSE),)=BT$6,VLOOKUP($BJ13,'LRMC x Plant ranked'!$P$4:$Q$500,2,TRUE),0) -> 56.14226936 | BU13: =IF(INDEX('LRMC x Plant ranked'!$M$5:$M$500,MATCH($BK13,'LRMC x Plant ranked'!$Q$5:$Q$500,FALSE),)=BU$6,VLOOKUP($BJ13,'LRMC x Plant ranked'!$P$4:$Q$500,2,TRUE),0) -> 0 | BV13: =IF(INDEX('LRMC x Plant ranked'!$M$5:$M$500,MATCH($BK13,'LRMC x Plant ranked'!$Q$5:$Q$500,FALSE),)=BV$6,VLOOKUP($BJ13,'LRMC x Plant ranked'!$P$4:$Q$500,2,TRUE),0) -> 0 | BW13: =IF(INDEX('LRMC x Plant ranked'!$M$5:$M$500,MATCH($BK13,'LRMC x Plant ranked'!$Q$5:$Q$500,FALSE),)=BW$6,VLOOKUP($BJ13,'LRMC x Plant ranked'!$P$4:$Q$500,2,TRUE),0) -> 0 | BX13: 81.677403 | BY13: 92.67719164 | BZ13: 117.3776135 | CA13: 173.8216805 | CB13: 69.67136421 | CJ13: =C36&$E$35 -> Under ConstructionGeo | CK13: =E36 -> yes
C14: Core Settings | AI14: =IF(ISERROR(IF(OR(VLOOKUP(AJ14,'GEM new plant'!$A$4:$P$388,COLUMNS('GEM new plant'!A114:C114),FALSE)="HydRR",VLOOKUP(AJ14,'GEM new plant'!$A$4:$P$388,COLUMNS('GEM new plant'!A114:C114),FALSE)="HydPk"),"Hydro",VLOOKUP(AJ14,'GEM new plant'!$A$4:$P$388,COLUMNS('GEM new plant'!A114:C114),FALSE))),0,IF(OR(VLOOKUP(AJ14,'GEM new plant'!$A$4:$P$388,COLUMNS('GEM new plant'!A114:C114),FALSE)="HydRR",VLOOKUP(AJ14,'GEM new plant'!$A$4:$P$388,COLUMNS('GEM new plant'!A114:C114),FALSE)="HydPk"),"Hydro",VLOOKUP(AJ14,'GEM new plant'!$A$4:$P$388,COLUMNS('GEM new plant'!A114:C114),FALSE))) -> CCGT | AJ14: CCGT1 | AK14: 81.92571772 | AL14: 672.625 | AQ14: =IF(AQ13>MAX('LRMC x Plant ranked'!$F$5:$F$500),"",AQ13+IF($D$32="GWh",100,15)) -> 90 | AR14: =VLOOKUP($AQ14,'LRMC x Plant ranked'!$F$4:$G$500,2,TRUE) -> 57.51395516 | AT14: =IF(INDEX('LRMC x Plant ranked'!$C$5:$C$500,MATCH($AR14,'LRMC x Plant ranked'!$G$5:$G$500,FALSE),)=AT$6,VLOOKUP($AQ14,'LRMC x Plant ranked'!$F$4:$G$500,2,TRUE),0) -> 0 | AU14: =IF(INDEX('LRMC x Plant ranked'!$C$5:$C$500,MATCH($AR14,'LRMC x Plant ranked'!$G$5:$G$500,FALSE),)=AU$6,VLOOKUP($AQ14,'LRMC x Plant ranked'!$F$4:$G$500,2,TRUE),0) -> 0 | AV14: =IF(INDEX('LRMC x Plant ranked'!$C$5:$C$500,MATCH($AR14,'LRMC x Plant ranked'!$G$5:$G$500,FALSE),)=AV$6,VLOOKUP($AQ14,'LRMC x Plant ranked'!$F$4:$G$500,2,TRUE),0) -> 0 | AW14: =IF(INDEX('LRMC x Plant ranked'!$C$5:$C$500,MATCH($AR14,'LRMC x Plant ranked'!$G$5:$G$500,FALSE),)=AW$6,VLOOKUP($AQ14,'LRMC x Plant ranked'!$F$4:$G$500,2,TRUE),0) -> 57.51395516 | AX14: =IF(INDEX('LRMC x Plant ranked'!$C$5:$C$500,MATCH($AR14,'LRMC x Plant ranked'!$G$5:$G$500,FALSE),)=AX$6,VLOOKUP($AQ14,'LRMC x Plant ranked'!$F$4:$G$500,2,TRUE),0) -> 0 | AY14: 0 | AZ14: 0 | BA14: =IF(AR14="NA","NA",AR14-SUM(AT14:AZ14)) -> 0 | BC14: =IF(INDEX('LRMC x Plant ranked'!$C$5:$C$500,MATCH($AR14,'LRMC x Plant ranked'!$G$5:$G$500,FALSE),)=BC$6,VLOOKUP($AQ14,'LRMC x Plant ranked'!$F$4:$G$500,2,TRUE),0) -> 0 | BD14: =IF(INDEX('LRMC x Plant ranked'!$C$5:$C$500,MATCH($AR14,'LRMC x Plant ranked'!$G$5:$G$500,FALSE),)=BD$6,VLOOKUP($AQ14,'LRMC x Plant ranked'!$F$4:$G$500,2,TRUE),0) -> 0 | BE14: =IF(INDEX('LRMC x Plant ranked'!$C$5:$C$500,MATCH($AR14,'LRMC x Plant ranked'!$G$5:$G$500,FALSE),)=BE$6,VLOOKUP($AQ14,'LRMC x Plant ranked'!$F$4:$G$500,2,TRUE),0) -> 0 | BF14: =IF(INDEX('LRMC x Plant ranked'!$C$5:$C$500,MATCH($AR14,'LRMC x Plant ranked'!$G$5:$G$500,FALSE),)=BF$6,VLOOKUP($AQ14,'LRMC x Plant ranked'!$F$4:$G$500,2,TRUE),0) -> 0 | BG14: =IF(INDEX('LRMC x Plant ranked'!$C$5:$C$500,MATCH($AR14,'LRMC x Plant ranked'!$G$5:$G$500,FALSE),)=BG$6,VLOOKUP($AQ14,'LRMC x Plant ranked'!$F$4:$G$500,2,TRUE),0) -> 0 | BJ14: =IF(BJ13>MAX('LRMC x Plant ranked'!$P$5:$P$500),"",BJ13+IF($D$32="GWh",100,15)) -> 90 | BK14: =VLOOKUP($BJ14,'LRMC x Plant ranked'!$P$4:$Q$500,2,TRUE) -> 57.51395516 | BM14: =IF(INDEX('LRMC x Plant ranked'!$M$5:$M$500,MATCH($BK14,'LRMC x Plant ranked'!$Q$5:$Q$500,FALSE),)=BM$6,VLOOKUP($BJ14,'LRMC x Plant ranked'!$P$4:$Q$500,2,TRUE),0) -> 57.51395516 | BN14: =IF(INDEX('LRMC x Plant ranked'!$M$5:$M$500,MATCH($BK14,'LRMC x Plant ranked'!$Q$5:$Q$500,FALSE),)=BN$6,VLOOKUP($BJ14,'LRMC x Plant ranked'!$P$4:$Q$500,2,TRUE),0) -> 0 | BO14: 0 | BP14: 0 | BQ14: 0 | BS14: =IF(INDEX('LRMC x Plant ranked'!$M$5:$M$500,MATCH($BK14,'LRMC x Plant ranked'!$Q$5:$Q$500,FALSE),)=BS$6,VLOOKUP($BJ14,'LRMC x Plant ranked'!$P$4:$Q$500,2,TRUE),0) -> 0 | BT14: =IF(INDEX('LRMC x Plant ranked'!$M$5:$M$500,MATCH($BK14,'LRMC x Plant ranked'!$Q$5:$Q$500,FALSE),)=BT$6,VLOOKUP($BJ14,'LRMC x Plant ranked'!$P$4:$Q$500,2,TRUE),0) -> 0 | BU14: =IF(INDEX('LRMC x Plant ranked'!$M$5:$M$500,MATCH($BK14,'LRMC x Plant ranked'!$Q$5:$Q$500,FALSE),)=BU$6,VLOOKUP($BJ14,'LRMC x Plant ranked'!$P$4:$Q$500,2,TRUE),0) -> 0 | BV14: =IF(INDEX('LRMC x Plant ranked'!$M$5:$M$500,MATCH($BK14,'LRMC x Plant ranked'!$Q$5:$Q$500,FALSE),)=BV$6,VLOOKUP($BJ14,'LRMC x Plant ranked'!$P$4:$Q$500,2,TRUE),0) -> 0 | BW14: =IF(INDEX('LRMC x Plant ranked'!$M$5:$M$500,MATCH($BK14,'LRMC x Plant ranked'!$Q$5:$Q$500,FALSE),)=BW$6,VLOOKUP($BJ14,'LRMC x Plant ranked'!$P$4:$Q$500,2,TRUE),0) -> 0 | BX14: 81.677403 | BY14: 92.67719164 | BZ14: 117.3776135 | CA14: 173.8216805 | CB14: 69.67136421 | CJ14: =C37&$E$35 -> Fully ConsentedGeo | CK14: =E37 -> yes
AI15: =IF(ISERROR(IF(OR(VLOOKUP(AJ15,'GEM new plant'!$A$4:$P$388,COLUMNS('GEM new plant'!A146:C146),FALSE)="HydRR",VLOOKUP(AJ15,'GEM new plant'!$A$4:$P$388,COLUMNS('GEM new plant'!A146:C146),FALSE)="HydPk"),"Hydro",VLOOKUP(AJ15,'GEM new plant'!$A$4:$P$388,COLUMNS('GEM new plant'!A146:C146),FALSE))),0,IF(OR(VLOOKUP(AJ15,'GEM new plant'!$A$4:$P$388,COLUMNS('GEM new plant'!A146:C146),FALSE)="HydRR",VLOOKUP(AJ15,'GEM new plant'!$A$4:$P$388,COLUMNS('GEM new plant'!A146:C146),FALSE)="HydPk"),"Hydro",VLOOKUP(AJ15,'GEM new plant'!$A$4:$P$388,COLUMNS('GEM new plant'!A146:C146),FALSE))) -> CCGT | AJ15: CCGT2 | AK15: 82.17982886 | AL15: 684.5 | AQ15: =IF(AQ14>MAX('LRMC x Plant ranked'!$F$5:$F$500),"",AQ14+IF($D$32="GWh",100,15)) -> 105 | AR15: =VLOOKUP($AQ15,'LRMC x Plant ranked'!$F$4:$G$500,2,TRUE) -> 57.51395516 | AT15: =IF(INDEX('LRMC x Plant ranked'!$C$5:$C$500,MATCH($AR15,'LRMC x Plant ranked'!$G$5:$G$500,FALSE),)=AT$6,VLOOKUP($AQ15,'LRMC x Plant ranked'!$F$4:$G$500,2,TRUE),0) -> 0 | AU15: =IF(INDEX('LRMC x Plant ranked'!$C$5:$C$500,MATCH($AR15,'LRMC x Plant ranked'!$G$5:$G$500,FALSE),)=AU$6,VLOOKUP($AQ15,'LRMC x Plant ranked'!$F$4:$G$500,2,TRUE),0) -> 0 | AV15: =IF(INDEX('LRMC x Plant ranked'!$C$5:$C$500,MATCH($AR15,'LRMC x Plant ranked'!$G$5:$G$500,FALSE),)=AV$6,VLOOKUP($AQ15,'LRMC x Plant ranked'!$F$4:$G$500,2,TRUE),0) -> 0 | AW15: =IF(INDEX('LRMC x Plant ranked'!$C$5:$C$500,MATCH($AR15,'LRMC x Plant ranked'!$G$5:$G$500,FALSE),)=AW$6,VLOOKUP($AQ15,'LRMC x Plant ranked'!$F$4:$G$500,2,TRUE),0) -> 57.51395516 | AX15: =IF(INDEX('LRMC x Plant ranked'!$C$5:$C$500,MATCH($AR15,'LRMC x Plant ranked'!$G$5:$G$500,FALSE),)=AX$6,VLOOKUP($AQ15,'LRMC x Plant ranked'!$F$4:$G$500,2,TRUE),0) -> 0 | AY15: 0 | AZ15: 0 | BA15: 0 | BC15: =IF(INDEX('LRMC x Plant ranked'!$C$5:$C$500,MATCH($AR15,'LRMC x Plant ranked'!$G$5:$G$500,FALSE),)=BC$6,VLOOKUP($AQ15,'LRMC x Plant ranked'!$F$4:$G$500,2,TRUE),0) -> 0 | BD15: =IF(INDEX('LRMC x Plant ranked'!$C$5:$C$500,MATCH($AR15,'LRMC x Plant ranked'!$G$5:$G$500,FALSE),)=BD$6,VLOOKUP($AQ15,'LRMC x Plant ranked'!$F$4:$G$500,2,TRUE),0) -> 0 | BE15: =IF(INDEX('LRMC x Plant ranked'!$C$5:$C$500,MATCH($AR15,'LRMC x Plant ranked'!$G$5:$G$500,FALSE),)=BE$6,VLOOKUP($AQ15,'LRMC x Plant ranked'!$F$4:$G$500,2,TRUE),0) -> 0 | BF15: =IF(INDEX('LRMC x Plant ranked'!$C$5:$C$500,MATCH($AR15,'LRMC x Plant ranked'!$G$5:$G$500,FALSE),)=BF$6,VLOOKUP($AQ15,'LRMC x Plant ranked'!$F$4:$G$500,2,TRUE),0) -> 0 | BG15: =IF(INDEX('LRMC x Plant ranked'!$C$5:$C$500,MATCH($AR15,'LRMC x Plant ranked'!$G$5:$G$500,FALSE),)=BG$6,VLOOKUP($AQ15,'LRMC x Plant ranked'!$F$4:$G$500,2,TRUE),0) -> 0 | BJ15: =IF(BJ14>MAX('LRMC x Plant ranked'!$P$5:$P$500),"",BJ14+IF($D$32="GWh",100,15)) -> 105 | BK15: =VLOOKUP($BJ15,'LRMC x Plant ranked'!$P$4:$Q$500,2,TRUE) -> 57.51395516 | BM15: =IF(INDEX('LRMC x Plant ranked'!$M$5:$M$500,MATCH($BK15,'LRMC x Plant ranked'!$Q$5:$Q$500,FALSE),)=BM$6,VLOOKUP($BJ15,'LRMC x Plant ranked'!$P$4:$Q$500,2,TRUE),0) -> 57.51395516 | BN15: =IF(INDEX('LRMC x Plant ranked'!$M$5:$M$500,MATCH($BK15,'LRMC x Plant ranked'!$Q$5:$Q$500,FALSE),)=BN$6,VLOOKUP($BJ15,'LRMC x Plant ranked'!$P$4:$Q$500,2,TRUE),0) -> 0 | BO15: 0 | BP15: 0 | BQ15: 0 | BS15: =IF(INDEX('LRMC x Plant ranked'!$M$5:$M$500,MATCH($BK15,'LRMC x Plant ranked'!$Q$5:$Q$500,FALSE),)=BS$6,VLOOKUP($BJ15,'LRMC x Plant ranked'!$P$4:$Q$500,2,TRUE),0) -> 0 | BT15: =IF(INDEX('LRMC x Plant ranked'!$M$5:$M$500,MATCH($BK15,'LRMC x Plant ranked'!$Q$5:$Q$500,FALSE),)=BT$6,VLOOKUP($BJ15,'LRMC x Plant ranked'!$P$4:$Q$500,2,TRUE),0) -> 0 | BU15: =IF(INDEX('LRMC x Plant ranked'!$M$5:$M$500,MATCH($BK15,'LRMC x Plant ranked'!$Q$5:$Q$500,FALSE),)=BU$6,VLOOKUP($BJ15,'LRMC x Plant ranked'!$P$4:$Q$500,2,TRUE),0) -> 0 | BV15: =IF(INDEX('LRMC x Plant ranked'!$M$5:$M$500,MATCH($BK15,'LRMC x Plant ranked'!$Q$5:$Q$500,FALSE),)=BV$6,VLOOKUP($BJ15,'LRMC x Plant ranked'!$P$4:$Q$500,2,TRUE),0) -> 0 | BW15: =IF(INDEX('LRMC x Plant ranked'!$M$5:$M$500,MATCH($BK15,'LRMC x Plant ranked'!$Q$5:$Q$500,FALSE),)=BW$6,VLOOKUP($BJ15,'LRMC x Plant ranked'!$P$4:$Q$500,2,TRUE),0) -> 0 | BX15: 81.677403 | BY15: 92.67719164 | BZ15: 117.3776135 | CA15: 173.8216805 | CB15: 69.67136421 | CJ15: =C38&$E$35 -> Applied for ConsentGeo | CK15: =E38 -> yes
C16: Fuel & carbon cost assumptions | AI16: =IF(ISERROR(IF(OR(VLOOKUP(AJ16,'GEM new plant'!$A$4:$P$388,COLUMNS('GEM new plant'!A144:C144),FALSE)="HydRR",VLOOKUP(AJ16,'GEM new plant'!$A$4:$P$388,COLUMNS('GEM new plant'!A144:C144),FALSE)="HydPk"),"Hydro",VLOOKUP(AJ16,'GEM new plant'!$A$4:$P$388,COLUMNS('GEM new plant'!A144:C144),FALSE))),0,IF(OR(VLOOKUP(AJ16,'GEM new plant'!$A$4:$P$388,COLUMNS('GEM new plant'!A144:C144),FALSE)="HydRR",VLOOKUP(AJ16,'GEM new plant'!$A$4:$P$388,COLUMNS('GEM new plant'!A144:C144),FALSE)="HydPk"),"Hydro",VLOOKUP(AJ16,'GEM new plant'!$A$4:$P$388,COLUMNS('GEM new plant'!A144:C144),FALSE))) -> CCGT | AJ16: CCGT3 | AK16: 82.34553453 | AL16: 684.5 | AQ16: =IF(AQ15>MAX('LRMC x Plant ranked'!$F$5:$F$500),"",AQ15+IF($D$32="GWh",100,15)) -> 120 | AR16: =VLOOKUP($AQ16,'LRMC x Plant ranked'!$F$4:$G$500,2,TRUE) -> 57.51395516 | AT16: =IF(INDEX('LRMC x Plant ranked'!$C$5:$C$500,MATCH($AR16,'LRMC x Plant ranked'!$G$5:$G$500,FALSE),)=AT$6,VLOOKUP($AQ16,'LRMC x Plant ranked'!$F$4:$G$500,2,TRUE),0) -> 0 | AU16: =IF(INDEX('LRMC x Plant ranked'!$C$5:$C$500,MATCH($AR16,'LRMC x Plant ranked'!$G$5:$G$500,FALSE),)=AU$6,VLOOKUP($AQ16,'LRMC x Plant ranked'!$F$4:$G$500,2,TRUE),0) -> 0 | AV16: =IF(INDEX('LRMC x Plant ranked'!$C$5:$C$500,MATCH($AR16,'LRMC x Plant ranked'!$G$5:$G$500,FALSE),)=AV$6,VLOOKUP($AQ16,'LRMC x Plant ranked'!$F$4:$G$500,2,TRUE),0) -> 0 | AW16: =IF(INDEX('LRMC x Plant ranked'!$C$5:$C$500,MATCH($AR16,'LRMC x Plant ranked'!$G$5:$G$500,FALSE),)=AW$6,VLOOKUP($AQ16,'LRMC x Plant ranked'!$F$4:$G$500,2,TRUE),0) -> 57.51395516 | AX16: =IF(INDEX('LRMC x Plant ranked'!$C$5:$C$500,MATCH($AR16,'LRMC x Plant ranked'!$G$5:$G$500,FALSE),)=AX$6,VLOOKUP($AQ16,'LRMC x Plant ranked'!$F$4:$G$500,2,TRUE),0) -> 0 | AY16: 0 | AZ16: 0 | BA16: 0 | BC16: =IF(INDEX('LRMC x Plant ranked'!$C$5:$C$500,MATCH($AR16,'LRMC x Plant ranked'!$G$5:$G$500,FALSE),)=BC$6,VLOOKUP($AQ16,'LRMC x Plant ranked'!$F$4:$G$500,2,TRUE),0) -> 0 | BD16: =IF(INDEX('LRMC x Plant ranked'!$C$5:$C$500,MATCH($AR16,'LRMC x Plant ranked'!$G$5:$G$500,FALSE),)=BD$6,VLOOKUP($AQ16,'LRMC x Plant ranked'!$F$4:$G$500,2,TRUE),0) -> 0 | BE16: =IF(INDEX('LRMC x Plant ranked'!$C$5:$C$500,MATCH($AR16,'LRMC x Plant ranked'!$G$5:$G$500,FALSE),)=BE$6,VLOOKUP($AQ16,'LRMC x Plant ranked'!$F$4:$G$500,2,TRUE),0) -> 0 | BF16: =IF(INDEX('LRMC x Plant ranked'!$C$5:$C$500,MATCH($AR16,'LRMC x Plant ranked'!$G$5:$G$500,FALSE),)=BF$6,VLOOKUP($AQ16,'LRMC x Plant ranked'!$F$4:$G$500,2,TRUE),0) -> 0 | BG16: =IF(INDEX('LRMC x Plant ranked'!$C$5:$C$500,MATCH($AR16,'LRMC x Plant ranked'!$G$5:$G$500,FALSE),)=BG$6,VLOOKUP($AQ16,'LRMC x Plant ranked'!$F$4:$G$500,2,TRUE),0) -> 0 | BJ16: =IF(BJ15>MAX('LRMC x Plant ranked'!$P$5:$P$500),"",BJ15+IF($D$32="GWh",100,15)) -> 120 | BK16: =VLOOKUP($BJ16,'LRMC x Plant ranked'!$P$4:$Q$500,2,TRUE) -> 57.51395516 | BM16: =IF(INDEX('LRMC x Plant ranked'!$M$5:$M$500,MATCH($BK16,'LRMC x Plant ranked'!$Q$5:$Q$500,FALSE),)=BM$6,VLOOKUP($BJ16,'LRMC x Plant ranked'!$P$4:$Q$500,2,TRUE),0) -> 57.51395516 | BN16: =IF(INDEX('LRMC x Plant ranked'!$M$5:$M$500,MATCH($BK16,'LRMC x Plant ranked'!$Q$5:$Q$500,FALSE),)=BN$6,VLOOKUP($BJ16,'LRMC x Plant ranked'!$P$4:$Q$500,2,TRUE),0) -> 0 | BO16: 0 | BP16: 0 | BQ16: 0 | BS16: =IF(INDEX('LRMC x Plant ranked'!$M$5:$M$500,MATCH($BK16,'LRMC x Plant ranked'!$Q$5:$Q$500,FALSE),)=BS$6,VLOOKUP($BJ16,'LRMC x Plant ranked'!$P$4:$Q$500,2,TRUE),0) -> 0 | BT16: =IF(INDEX('LRMC x Plant ranked'!$M$5:$M$500,MATCH($BK16,'LRMC x Plant ranked'!$Q$5:$Q$500,FALSE),)=BT$6,VLOOKUP($BJ16,'LRMC x Plant ranked'!$P$4:$Q$500,2,TRUE),0) -> 0 | BU16: =IF(INDEX('LRMC x Plant ranked'!$M$5:$M$500,MATCH($BK16,'LRMC x Plant ranked'!$Q$5:$Q$500,FALSE),)=BU$6,VLOOKUP($BJ16,'LRMC x Plant ranked'!$P$4:$Q$500,2,TRUE),0) -> 0 | BV16: =IF(INDEX('LRMC x Plant ranked'!$M$5:$M$500,MATCH($BK16,'LRMC x Plant ranked'!$Q$5:$Q$500,FALSE),)=BV$6,VLOOKUP($BJ16,'LRMC x Plant ranked'!$P$4:$Q$500,2,TRUE),0) -> 0 | BW16: =IF(INDEX('LRMC x Plant ranked'!$M$5:$M$500,MATCH($BK16,'LRMC x Plant ranked'!$Q$5:$Q$500,FALSE),)=BW$6,VLOOKUP($BJ16,'LRMC x Plant ranked'!$P$4:$Q$500,2,TRUE),0) -> 0 | BX16: 81.677403 | BY16: 92.67719164 | BZ16: 117.3776135 | CA16: 173.8216805 | CB16: 69.67136421 | CJ16: =C39&$E$35 -> ProposedGeo | CK16: =E39 -> yes
C17: Gas ($/GJ excl CO2) | D17: 6.7 | AI17: =IF(ISERROR(IF(OR(VLOOKUP(AJ17,'GEM new plant'!$A$4:$P$388,COLUMNS('GEM new plant'!A141:C141),FALSE)="HydRR",VLOOKUP(AJ17,'GEM new plant'!$A$4:$P$388,COLUMNS('GEM new plant'!A141:C141),FALSE)="HydPk"),"Hydro",VLOOKUP(AJ17,'GEM new plant'!$A$4:$P$388,COLUMNS('GEM new plant'!A141:C141),FALSE))),0,IF(OR(VLOOKUP(AJ17,'GEM new plant'!$A$4:$P$388,COLUMNS('GEM new plant'!A141:C141),FALSE)="HydRR",VLOOKUP(AJ17,'GEM new plant'!$A$4:$P$388,COLUMNS('GEM new plant'!A141:C141),FALSE)="HydPk"),"Hydro",VLOOKUP(AJ17,'GEM new plant'!$A$4:$P$388,COLUMNS('GEM new plant'!A141:C141),FALSE))) -> CCGT | AJ17: CCGT4 | AK17: 82.23931294 | AL17: 684.5 | AQ17: =IF(AQ16>MAX('LRMC x Plant ranked'!$F$5:$F$500),"",AQ16+IF($D$32="GWh",100,15)) -> 135 | AR17: =VLOOKUP($AQ17,'LRMC x Plant ranked'!$F$4:$G$500,2,TRUE) -> 57.51395516 | AT17: =IF(INDEX('LRMC x Plant ranked'!$C$5:$C$500,MATCH($AR17,'LRMC x Plant ranked'!$G$5:$G$500,FALSE),)=AT$6,VLOOKUP($AQ17,'LRMC x Plant ranked'!$F$4:$G$500,2,TRUE),0) -> 0 | AU17: =IF(INDEX('LRMC x Plant ranked'!$C$5:$C$500,MATCH($AR17,'LRMC x Plant ranked'!$G$5:$G$500,FALSE),)=AU$6,VLOOKUP($AQ17,'LRMC x Plant ranked'!$F$4:$G$500,2,TRUE),0) -> 0 | AV17: =IF(INDEX('LRMC x Plant ranked'!$C$5:$C$500,MATCH($AR17,'LRMC x Plant ranked'!$G$5:$G$500,FALSE),)=AV$6,VLOOKUP($AQ17,'LRMC x Plant ranked'!$F$4:$G$500,2,TRUE),0) -> 0 | AW17: =IF(INDEX('LRMC x Plant ranked'!$C$5:$C$500,MATCH($AR17,'LRMC x Plant ranked'!$G$5:$G$500,FALSE),)=AW$6,VLOOKUP($AQ17,'LRMC x Plant ranked'!$F$4:$G$500,2,TRUE),0) -> 57.51395516 | AX17: =IF(INDEX('LRMC x Plant ranked'!$C$5:$C$500,MATCH($AR17,'LRMC x Plant ranked'!$G$5:$G$500,FALSE),)=AX$6,VLOOKUP($AQ17,'LRMC x Plant ranked'!$F$4:$G$500,2,TRUE),0) -> 0 | AY17: 0 | AZ17: 0 | BA17: 0 | BC17: =IF(INDEX('LRMC x Plant ranked'!$C$5:$C$500,MATCH($AR17,'LRMC x Plant ranked'!$G$5:$G$500,FALSE),)=BC$6,VLOOKUP($AQ17,'LRMC x Plant ranked'!$F$4:$G$500,2,TRUE),0) -> 0 | BD17: =IF(INDEX('LRMC x Plant ranked'!$C$5:$C$500,MATCH($AR17,'LRMC x Plant ranked'!$G$5:$G$500,FALSE),)=BD$6,VLOOKUP($AQ17,'LRMC x Plant ranked'!$F$4:$G$500,2,TRUE),0) -> 0 | BE17: =IF(INDEX('LRMC x Plant ranked'!$C$5:$C$500,MATCH($AR17,'LRMC x Plant ranked'!$G$5:$G$500,FALSE),)=BE$6,VLOOKUP($AQ17,'LRMC x Plant ranked'!$F$4:$G$500,2,TRUE),0) -> 0 | BF17: =IF(INDEX('LRMC x Plant ranked'!$C$5:$C$500,MATCH($AR17,'LRMC x Plant ranked'!$G$5:$G$500,FALSE),)=BF$6,VLOOKUP($AQ17,'LRMC x Plant ranked'!$F$4:$G$500,2,TRUE),0) -> 0 | BG17: =IF(INDEX('LRMC x Plant ranked'!$C$5:$C$500,MATCH($AR17,'LRMC x Plant ranked'!$G$5:$G$500,FALSE),)=BG$6,VLOOKUP($AQ17,'LRMC x Plant ranked'!$F$4:$G$500,2,TRUE),0) -> 0 | BJ17: =IF(BJ16>MAX('LRMC x Plant ranked'!$P$5:$P$500),"",BJ16+IF($D$32="GWh",100,15)) -> 135 | BK17: =VLOOKUP($BJ17,'LRMC x Plant ranked'!$P$4:$Q$500,2,TRUE) -> 57.51395516 | BM17: =IF(INDEX('LRMC x Plant ranked'!$M$5:$M$500,MATCH($BK17,'LRMC x Plant ranked'!$Q$5:$Q$500,FALSE),)=BM$6,VLOOKUP($BJ17,'LRMC x Plant ranked'!$P$4:$Q$500,2,TRUE),0) -> 57.51395516 | BN17: =IF(INDEX('LRMC x Plant ranked'!$M$5:$M$500,MATCH($BK17,'LRMC x Plant ranked'!$Q$5:$Q$500,FALSE),)=BN$6,VLOOKUP($BJ17,'LRMC x Plant ranked'!$P$4:$Q$500,2,TRUE),0) -> 0 | BO17: =BS17+BT17+BU17 -> 0 | BP17: 0 | BQ17: 0 | BS17: =IF(INDEX('LRMC x Plant ranked'!$M$5:$M$500,MATCH($BK17,'LRMC x Plant ranked'!$Q$5:$Q$500,FALSE),)=BS$6,VLOOKUP($BJ17,'LRMC x Plant ranked'!$P$4:$Q$500,2,TRUE),0) -> 0 | BT17: =IF(INDEX('LRMC x Plant ranked'!$M$5:$M$500,MATCH($BK17,'LRMC x Plant ranked'!$Q$5:$Q$500,FALSE),)=BT$6,VLOOKUP($BJ17,'LRMC x Plant ranked'!$P$4:$Q$500,2,TRUE),0) -> 0 | BU17: =IF(INDEX('LRMC x Plant ranked'!$M$5:$M$500,MATCH($BK17,'LRMC x Plant ranked'!$Q$5:$Q$500,FALSE),)=BU$6,VLOOKUP($BJ17,'LRMC x Plant ranked'!$P$4:$Q$500,2,TRUE),0) -> 0 | BV17: =IF(INDEX('LRMC x Plant ranked'!$M$5:$M$500,MATCH($BK17,'LRMC x Plant ranked'!$Q$5:$Q$500,FALSE),)=BV$6,VLOOKUP($BJ17,'LRMC x Plant ranked'!$P$4:$Q$500,2,TRUE),0) -> 0 | BW17: =IF(INDEX('LRMC x Plant ranked'!$M$5:$M$500,MATCH($BK17,'LRMC x Plant ranked'!$Q$5:$Q$500,FALSE),)=BW$6,VLOOKUP($BJ17,'LRMC x Plant ranked'!$P$4:$Q$500,2,TRUE),0) -> 0 | BX17: 81.677403 | BY17: 92.67719164 | BZ17: 117.3776135 | CA17: 173.8216805 | CB17: 69.67136421 | CJ17: =C40&$E$35 -> GenericGeo | CK17: =E40 -> yes
C18: Coal ($/GJ excl CO2) | D18: 5.6 | AI18: =IF(ISERROR(IF(OR(VLOOKUP(AJ18,'GEM new plant'!$A$4:$P$388,COLUMNS('GEM new plant'!A143:C143),FALSE)="HydRR",VLOOKUP(AJ18,'GEM new plant'!$A$4:$P$388,COLUMNS('GEM new plant'!A143:C143),FALSE)="HydPk"),"Hydro",VLOOKUP(AJ18,'GEM new plant'!$A$4:$P$388,COLUMNS('GEM new plant'!A143:C143),FALSE))),0,IF(OR(VLOOKUP(AJ18,'GEM new plant'!$A$4:$P$388,COLUMNS('GEM new plant'!A143:C143),FALSE)="HydRR",VLOOKUP(AJ18,'GEM new plant'!$A$4:$P$388,COLUMNS('GEM new plant'!A143:C143),FALSE)="HydPk"),"Hydro",VLOOKUP(AJ18,'GEM new plant'!$A$4:$P$388,COLUMNS('GEM new plant'!A143:C143),FALSE))) -> CCGT | AJ18: OtahuC | AK18: 81.677403 | AL18: 568 | AQ18: =IF(AQ17>MAX('LRMC x Plant ranked'!$F$5:$F$500),"",AQ17+IF($D$32="GWh",100,15)) -> 150 | AR18: =VLOOKUP($AQ18,'LRMC x Plant ranked'!$F$4:$G$500,2,TRUE) -> 57.51395516 | AT18: =IF(INDEX('LRMC x Plant ranked'!$C$5:$C$500,MATCH($AR18,'LRMC x Plant ranked'!$G$5:$G$500,FALSE),)=AT$6,VLOOKUP($AQ18,'LRMC x Plant ranked'!$F$4:$G$500,2,TRUE),0) -> 0 | AU18: =IF(INDEX('LRMC x Plant ranked'!$C$5:$C$500,MATCH($AR18,'LRMC x Plant ranked'!$G$5:$G$500,FALSE),)=AU$6,VLOOKUP($AQ18,'LRMC x Plant ranked'!$F$4:$G$500,2,TRUE),0) -> 0 | AV18: =IF(INDEX('LRMC x Plant ranked'!$C$5:$C$500,MATCH($AR18,'LRMC x Plant ranked'!$G$5:$G$500,FALSE),)=AV$6,VLOOKUP($AQ18,'LRMC x Plant ranked'!$F$4:$G$500,2,TRUE),0) -> 0 | AW18: =IF(INDEX('LRMC x Plant ranked'!$C$5:$C$500,MATCH($AR18,'LRMC x Plant ranked'!$G$5:$G$500,FALSE),)=AW$6,VLOOKUP($AQ18,'LRMC x Plant ranked'!$F$4:$G$500,2,TRUE),0) -> 57.51395516 | AX18: =IF(INDEX('LRMC x Plant ranked'!$C$5:$C$500,MATCH($AR18,'LRMC x Plant ranked'!$G$5:$G$500,FALSE),)=AX$6,VLOOKUP($AQ18,'LRMC x Plant ranked'!$F$4:$G$500,2,TRUE),0) -> 0 | AY18: 0 | AZ18: 0 | BA18: 0 | BC18: =IF(INDEX('LRMC x Plant ranked'!$C$5:$C$500,MATCH($AR18,'LRMC x Plant ranked'!$G$5:$G$500,FALSE),)=BC$6,VLOOKUP($AQ18,'LRMC x Plant ranked'!$F$4:$G$500,2,TRUE),0) -> 0 | BD18: =IF(INDEX('LRMC x Plant ranked'!$C$5:$C$500,MATCH($AR18,'LRMC x Plant ranked'!$G$5:$G$500,FALSE),)=BD$6,VLOOKUP($AQ18,'LRMC x Plant ranked'!$F$4:$G$500,2,TRUE),0) -> 0 | BE18: =IF(INDEX('LRMC x Plant ranked'!$C$5:$C$500,MATCH($AR18,'LRMC x Plant ranked'!$G$5:$G$500,FALSE),)=BE$6,VLOOKUP($AQ18,'LRMC x Plant ranked'!$F$4:$G$500,2,TRUE),0) -> 0 | BF18: =IF(INDEX('LRMC x Plant ranked'!$C$5:$C$500,MATCH($AR18,'LRMC x Plant ranked'!$G$5:$G$500,FALSE),)=BF$6,VLOOKUP($AQ18,'LRMC x Plant ranked'!$F$4:$G$500,2,TRUE),0) -> 0 | BG18: =IF(INDEX('LRMC x Plant ranked'!$C$5:$C$500,MATCH($AR18,'LRMC x Plant ranked'!$G$5:$G$500,FALSE),)=BG$6,VLOOKUP($AQ18,'LRMC x Plant ranked'!$F$4:$G$500,2,TRUE),0) -> 0 | BJ18: =IF(BJ17>MAX('LRMC x Plant ranked'!$P$5:$P$500),"",BJ17+IF($D$32="GWh",100,15)) -> 150 | BK18: =VLOOKUP($BJ18,'LRMC x Plant ranked'!$P$4:$Q$500,2,TRUE) -> 57.51395516 | BM18: =IF(INDEX('LRMC x Plant ranked'!$M$5:$M$500,MATCH($BK18,'LRMC x Plant ranked'!$Q$5:$Q$500,FALSE),)=BM$6,VLOOKUP($BJ18,'LRMC x Plant ranked'!$P$4:$Q$500,2,TRUE),0) -> 57.51395516 | BN18: =IF(INDEX('LRMC x Plant ranked'!$M$5:$M$500,MATCH($BK18,'LRMC x Plant ranked'!$Q$5:$Q$500,FALSE),)=BN$6,VLOOKUP($BJ18,'LRMC x Plant ranked'!$P$4:$Q$500,2,TRUE),0) -> 0 | BO18: 0 | BP18: 0 | BQ18: 0 | BS18: =IF(INDEX('LRMC x Plant ranked'!$M$5:$M$500,MATCH($BK18,'LRMC x Plant ranked'!$Q$5:$Q$500,FALSE),)=BS$6,VLOOKUP($BJ18,'LRMC x Plant ranked'!$P$4:$Q$500,2,TRUE),0) -> 0 | BT18: =IF(INDEX('LRMC x Plant ranked'!$M$5:$M$500,MATCH($BK18,'LRMC x Plant ranked'!$Q$5:$Q$500,FALSE),)=BT$6,VLOOKUP($BJ18,'LRMC x Plant ranked'!$P$4:$Q$500,2,TRUE),0) -> 0 | BU18: =IF(INDEX('LRMC x Plant ranked'!$M$5:$M$500,MATCH($BK18,'LRMC x Plant ranked'!$Q$5:$Q$500,FALSE),)=BU$6,VLOOKUP($BJ18,'LRMC x Plant ranked'!$P$4:$Q$500,2,TRUE),0) -> 0 | BV18: =IF(INDEX('LRMC x Plant ranked'!$M$5:$M$500,MATCH($BK18,'LRMC x Plant ranked'!$Q$5:$Q$500,FALSE),)=BV$6,VLOOKUP($BJ18,'LRMC x Plant ranked'!$P$4:$Q$500,2,TRUE),0) -> 0 | BW18: =IF(INDEX('LRMC x Plant ranked'!$M$5:$M$500,MATCH($BK18,'LRMC x Plant ranked'!$Q$5:$Q$500,FALSE),)=BW$6,VLOOKUP($BJ18,'LRMC x Plant ranked'!$P$4:$Q$500,2,TRUE),0) -> 0 | BX18: 81.677403 | BY18: 92.67719164 | BZ18: 117.3776135 | CA18: 173.8216805 | CB18: 69.67136421 | CJ18: Generic - Lower ProbGeo | CK18: no
C19: Lignite ($/GJ excl CO2) | D19: 3 | AI19: =IF(ISERROR(IF(OR(VLOOKUP(AJ19,'GEM new plant'!$A$4:$P$388,COLUMNS('GEM new plant'!A138:C138),FALSE)="HydRR",VLOOKUP(AJ19,'GEM new plant'!$A$4:$P$388,COLUMNS('GEM new plant'!A138:C138),FALSE)="HydPk"),"Hydro",VLOOKUP(AJ19,'GEM new plant'!$A$4:$P$388,COLUMNS('GEM new plant'!A138:C138),FALSE))),0,IF(OR(VLOOKUP(AJ19,'GEM new plant'!$A$4:$P$388,COLUMNS('GEM new plant'!A138:C138),FALSE)="HydRR",VLOOKUP(AJ19,'GEM new plant'!$A$4:$P$388,COLUMNS('GEM new plant'!A138:C138),FALSE)="HydPk"),"Hydro",VLOOKUP(AJ19,'GEM new plant'!$A$4:$P$388,COLUMNS('GEM new plant'!A138:C138),FALSE))) -> CCGT | AJ19: PropCCGT1 | AK19: 93.64630036 | AL19: 312.8111765 | AQ19: =IF(AQ18>MAX('LRMC x Plant ranked'!$F$5:$F$500),"",AQ18+IF($D$32="GWh",100,15)) -> 165 | AR19: =VLOOKUP($AQ19,'LRMC x Plant ranked'!$F$4:$G$500,2,TRUE) -> 57.51395516 | AT19: =IF(INDEX('LRMC x Plant ranked'!$C$5:$C$500,MATCH($AR19,'LRMC x Plant ranked'!$G$5:$G$500,FALSE),)=AT$6,VLOOKUP($AQ19,'LRMC x Plant ranked'!$F$4:$G$500,2,TRUE),0) -> 0 | AU19: =IF(INDEX('LRMC x Plant ranked'!$C$5:$C$500,MATCH($AR19,'LRMC x Plant ranked'!$G$5:$G$500,FALSE),)=AU$6,VLOOKUP($AQ19,'LRMC x Plant ranked'!$F$4:$G$500,2,TRUE),0) -> 0 | AV19: =IF(INDEX('LRMC x Plant ranked'!$C$5:$C$500,MATCH($AR19,'LRMC x Plant ranked'!$G$5:$G$500,FALSE),)=AV$6,VLOOKUP($AQ19,'LRMC x Plant ranked'!$F$4:$G$500,2,TRUE),0) -> 0 | AW19: =IF(INDEX('LRMC x Plant ranked'!$C$5:$C$500,MATCH($AR19,'LRMC x Plant ranked'!$G$5:$G$500,FALSE),)=AW$6,VLOOKUP($AQ19,'LRMC x Plant ranked'!$F$4:$G$500,2,TRUE),0) -> 57.51395516 | AX19: =IF(INDEX('LRMC x Plant ranked'!$C$5:$C$500,MATCH($AR19,'LRMC x Plant ranked'!$G$5:$G$500,FALSE),)=AX$6,VLOOKUP($AQ19,'LRMC x Plant ranked'!$F$4:$G$500,2,TRUE),0) -> 0 | AY19: 0 | AZ19: 0 | BA19: 0 | BC19: =IF(INDEX('LRMC x Plant ranked'!$C$5:$C$500,MATCH($AR19,'LRMC x Plant ranked'!$G$5:$G$500,FALSE),)=BC$6,VLOOKUP($AQ19,'LRMC x Plant ranked'!$F$4:$G$500,2,TRUE),0) -> 0 | BD19: =IF(INDEX('LRMC x Plant ranked'!$C$5:$C$500,MATCH($AR19,'LRMC x Plant ranked'!$G$5:$G$500,FALSE),)=BD$6,VLOOKUP($AQ19,'LRMC x Plant ranked'!$F$4:$G$500,2,TRUE),0) -> 0 | BE19: =IF(INDEX('LRMC x Plant ranked'!$C$5:$C$500,MATCH($AR19,'LRMC x Plant ranked'!$G$5:$G$500,FALSE),)=BE$6,VLOOKUP($AQ19,'LRMC x Plant ranked'!$F$4:$G$500,2,TRUE),0) -> 0 | BF19: =IF(INDEX('LRMC x Plant ranked'!$C$5:$C$500,MATCH($AR19,'LRMC x Plant ranked'!$G$5:$G$500,FALSE),)=BF$6,VLOOKUP($AQ19,'LRMC x Plant ranked'!$F$4:$G$500,2,TRUE),0) -> 0 | BG19: =IF(INDEX('LRMC x Plant ranked'!$C$5:$C$500,MATCH($AR19,'LRMC x Plant ranked'!$G$5:$G$500,FALSE),)=BG$6,VLOOKUP($AQ19,'LRMC x Plant ranked'!$F$4:$G$500,2,TRUE),0) -> 0 | BJ19: =IF(BJ18>MAX('LRMC x Plant ranked'!$P$5:$P$500),"",BJ18+IF($D$32="GWh",100,15)) -> 165 | BK19: =VLOOKUP($BJ19,'LRMC x Plant ranked'!$P$4:$Q$500,2,TRUE) -> 57.51395516 | BM19: =IF(INDEX('LRMC x Plant ranked'!$M$5:$M$500,MATCH($BK19,'LRMC x Plant ranked'!$Q$5:$Q$500,FALSE),)=BM$6,VLOOKUP($BJ19,'LRMC x Plant ranked'!$P$4:$Q$500,2,TRUE),0) -> 57.51395516 | BN19: =IF(INDEX('LRMC x Plant ranked'!$M$5:$M$500,MATCH($BK19,'LRMC x Plant ranked'!$Q$5:$Q$500,FALSE),)=BN$6,VLOOKUP($BJ19,'LRMC x Plant ranked'!$P$4:$Q$500,2,TRUE),0) -> 0 | BO19: 0 | BP19: 0 | BQ19: 0 | BS19: =IF(INDEX('LRMC x Plant ranked'!$M$5:$M$500,MATCH($BK19,'LRMC x Plant ranked'!$Q$5:$Q$500,FALSE),)=BS$6,VLOOKUP($BJ19,'LRMC x Plant ranked'!$P$4:$Q$500,2,TRUE),0) -> 0 | BT19: =IF(INDEX('LRMC x Plant ranked'!$M$5:$M$500,MATCH($BK19,'LRMC x Plant ranked'!$Q$5:$Q$500,FALSE),)=BT$6,VLOOKUP($BJ19,'LRMC x Plant ranked'!$P$4:$Q$500,2,TRUE),0) -> 0 | BU19: =IF(INDEX('LRMC x Plant ranked'!$M$5:$M$500,MATCH($BK19,'LRMC x Plant ranked'!$Q$5:$Q$500,FALSE),)=BU$6,VLOOKUP($BJ19,'LRMC x Plant ranked'!$P$4:$Q$500,2,TRUE),0) -> 0 | BV19: =IF(INDEX('LRMC x Plant ranked'!$M$5:$M$500,MATCH($BK19,'LRMC x Plant ranked'!$Q$5:$Q$500,FALSE),)=BV$6,VLOOKUP($BJ19,'LRMC x Plant ranked'!$P$4:$Q$500,2,TRUE),0) -> 0 | BW19: =IF(INDEX('LRMC x Plant ranked'!$M$5:$M$500,MATCH($BK19,'LRMC x Plant ranked'!$Q$5:$Q$500,FALSE),)=BW$6,VLOOKUP($BJ19,'LRMC x Plant ranked'!$P$4:$Q$500,2,TRUE),0) -> 0 | BX19: 81.677403 | BY19: 92.67719164 | BZ19: 117.3776135 | CA19: 173.8216805 | CB19: 69.67136421 | CJ19: Exclude - AbandonedGeo | CK19: no
C20: Diesel ($/GJ excl CO2) | D20: 24 | AI20: =IF(ISERROR(IF(OR(VLOOKUP(AJ20,'GEM new plant'!$A$4:$P$388,COLUMNS('GEM new plant'!A142:C142),FALSE)="HydRR",VLOOKUP(AJ20,'GEM new plant'!$A$4:$P$388,COLUMNS('GEM new plant'!A142:C142),FALSE)="HydPk"),"Hydro",VLOOKUP(AJ20,'GEM new plant'!$A$4:$P$388,COLUMNS('GEM new plant'!A142:C142),FALSE))),0,IF(OR(VLOOKUP(AJ20,'GEM new plant'!$A$4:$P$388,COLUMNS('GEM new plant'!A142:C142),FALSE)="HydRR",VLOOKUP(AJ20,'GEM new plant'!$A$4:$P$388,COLUMNS('GEM new plant'!A142:C142),FALSE)="HydPk"),"Hydro",VLOOKUP(AJ20,'GEM new plant'!$A$4:$P$388,COLUMNS('GEM new plant'!A142:C142),FALSE))) -> CCGT | AJ20: Rodney1 | AK20: 90.07772456 | AL20: 357.656 | AQ20: =IF(AQ19>MAX('LRMC x Plant ranked'!$F$5:$F$500),"",AQ19+IF($D$32="GWh",100,15)) -> 180 | AR20: =VLOOKUP($AQ20,'LRMC x Plant ranked'!$F$4:$G$500,2,TRUE) -> 57.51395516 | AT20: =IF(INDEX('LRMC x Plant ranked'!$C$5:$C$500,MATCH($AR20,'LRMC x Plant ranked'!$G$5:$G$500,FALSE),)=AT$6,VLOOKUP($AQ20,'LRMC x Plant ranked'!$F$4:$G$500,2,TRUE),0) -> 0 | AU20: =IF(INDEX('LRMC x Plant ranked'!$C$5:$C$500,MATCH($AR20,'LRMC x Plant ranked'!$G$5:$G$500,FALSE),)=AU$6,VLOOKUP($AQ20,'LRMC x Plant ranked'!$F$4:$G$500,2,TRUE),0) -> 0 | AV20: =IF(INDEX('LRMC x Plant ranked'!$C$5:$C$500,MATCH($AR20,'LRMC x Plant ranked'!$G$5:$G$500,FALSE),)=AV$6,VLOOKUP($AQ20,'LRMC x Plant ranked'!$F$4:$G$500,2,TRUE),0) -> 0 | AW20: =IF(INDEX('LRMC x Plant ranked'!$C$5:$C$500,MATCH($AR20,'LRMC x Plant ranked'!$G$5:$G$500,FALSE),)=AW$6,VLOOKUP($AQ20,'LRMC x Plant ranked'!$F$4:$G$500,2,TRUE),0) -> 57.51395516 | AX20: =IF(INDEX('LRMC x Plant ranked'!$C$5:$C$500,MATCH($AR20,'LRMC x Plant ranked'!$G$5:$G$500,FALSE),)=AX$6,VLOOKUP($AQ20,'LRMC x Plant ranked'!$F$4:$G$500,2,TRUE),0) -> 0 | AY20: 0 | AZ20: 0 | BA20: 0 | BC20: =IF(INDEX('LRMC x Plant ranked'!$C$5:$C$500,MATCH($AR20,'LRMC x Plant ranked'!$G$5:$G$500,FALSE),)=BC$6,VLOOKUP($AQ20,'LRMC x Plant ranked'!$F$4:$G$500,2,TRUE),0) -> 0 | BD20: =IF(INDEX('LRMC x Plant ranked'!$C$5:$C$500,MATCH($AR20,'LRMC x Plant ranked'!$G$5:$G$500,FALSE),)=BD$6,VLOOKUP($AQ20,'LRMC x Plant ranked'!$F$4:$G$500,2,TRUE),0) -> 0 | BE20: =IF(INDEX('LRMC x Plant ranked'!$C$5:$C$500,MATCH($AR20,'LRMC x Plant ranked'!$G$5:$G$500,FALSE),)=BE$6,VLOOKUP($AQ20,'LRMC x Plant ranked'!$F$4:$G$500,2,TRUE),0) -> 0 | BF20: =IF(INDEX('LRMC x Plant ranked'!$C$5:$C$500,MATCH($AR20,'LRMC x Plant ranked'!$G$5:$G$500,FALSE),)=BF$6,VLOOKUP($AQ20,'LRMC x Plant ranked'!$F$4:$G$500,2,TRUE),0) -> 0 | BG20: =IF(INDEX('LRMC x Plant ranked'!$C$5:$C$500,MATCH($AR20,'LRMC x Plant ranked'!$G$5:$G$500,FALSE),)=BG$6,VLOOKUP($AQ20,'LRMC x Plant ranked'!$F$4:$G$500,2,TRUE),0) -> 0 | BJ20: =IF(BJ19>MAX('LRMC x Plant ranked'!$P$5:$P$500),"",BJ19+IF($D$32="GWh",100,15)) -> 180 | BK20: =VLOOKUP($BJ20,'LRMC x Plant ranked'!$P$4:$Q$500,2,TRUE) -> 57.51395516 | BM20: =IF(INDEX('LRMC x Plant ranked'!$M$5:$M$500,MATCH($BK20,'LRMC x Plant ranked'!$Q$5:$Q$500,FALSE),)=BM$6,VLOOKUP($BJ20,'LRMC x Plant ranked'!$P$4:$Q$500,2,TRUE),0) -> 57.51395516 | BN20: =IF(INDEX('LRMC x Plant ranked'!$M$5:$M$500,MATCH($BK20,'LRMC x Plant ranked'!$Q$5:$Q$500,FALSE),)=BN$6,VLOOKUP($BJ20,'LRMC x Plant ranked'!$P$4:$Q$500,2,TRUE),0) -> 0 | BO20: 0 | BP20: 0 | BQ20: 0 | BS20: =IF(INDEX('LRMC x Plant ranked'!$M$5:$M$500,MATCH($BK20,'LRMC x Plant ranked'!$Q$5:$Q$500,FALSE),)=BS$6,VLOOKUP($BJ20,'LRMC x Plant ranked'!$P$4:$Q$500,2,TRUE),0) -> 0 | BT20: =IF(INDEX('LRMC x Plant ranked'!$M$5:$M$500,MATCH($BK20,'LRMC x Plant ranked'!$Q$5:$Q$500,FALSE),)=BT$6,VLOOKUP($BJ20,'LRMC x Plant ranked'!$P$4:$Q$500,2,TRUE),0) -> 0 | BU20: =IF(INDEX('LRMC x Plant ranked'!$M$5:$M$500,MATCH($BK20,'LRMC x Plant ranked'!$Q$5:$Q$500,FALSE),)=BU$6,VLOOKUP($BJ20,'LRMC x Plant ranked'!$P$4:$Q$500,2,TRUE),0) -> 0 | BV20: =IF(INDEX('LRMC x Plant ranked'!$M$5:$M$500,MATCH($BK20,'LRMC x Plant ranked'!$Q$5:$Q$500,FALSE),)=BV$6,VLOOKUP($BJ20,'LRMC x Plant ranked'!$P$4:$Q$500,2,TRUE),0) -> 0 | BW20: =IF(INDEX('LRMC x Plant ranked'!$M$5:$M$500,MATCH($BK20,'LRMC x Plant ranked'!$Q$5:$Q$500,FALSE),)=BW$6,VLOOKUP($BJ20,'LRMC x Plant ranked'!$P$4:$Q$500,2,TRUE),0) -> 0 | BX20: 81.677403 | BY20: 92.67719164 | BZ20: 117.3776135 | CA20: 173.8216805 | CB20: 69.67136421 | CJ20: Exclude - OtherGeo | CK20: no
C21: Carbon ($/tonne CO2) | D21: 35 | AI21: =IF(ISERROR(IF(OR(VLOOKUP(AJ21,'GEM new plant'!$A$4:$P$388,COLUMNS('GEM new plant'!A137:C137),FALSE)="HydRR",VLOOKUP(AJ21,'GEM new plant'!$A$4:$P$388,COLUMNS('GEM new plant'!A137:C137),FALSE)="HydPk"),"Hydro",VLOOKUP(AJ21,'GEM new plant'!$A$4:$P$388,COLUMNS('GEM new plant'!A137:C137),FALSE))),0,IF(OR(VLOOKUP(AJ21,'GEM new plant'!$A$4:$P$388,COLUMNS('GEM new plant'!A137:C137),FALSE)="HydRR",VLOOKUP(AJ21,'GEM new plant'!$A$4:$P$388,COLUMNS('GEM new plant'!A137:C137),FALSE)="HydPk"),"Hydro",VLOOKUP(AJ21,'GEM new plant'!$A$4:$P$388,COLUMNS('GEM new plant'!A137:C137),FALSE))) -> CCGT | AJ21: Rodney2 | AK21: 90.07772456 | AL21: 357.656 | AQ21: =IF(AQ20>MAX('LRMC x Plant ranked'!$F$5:$F$500),"",AQ20+IF($D$32="GWh",100,15)) -> 195 | AR21: =VLOOKUP($AQ21,'LRMC x Plant ranked'!$F$4:$G$500,2,TRUE) -> 57.51395516 | AT21: =IF(INDEX('LRMC x Plant ranked'!$C$5:$C$500,MATCH($AR21,'LRMC x Plant ranked'!$G$5:$G$500,FALSE),)=AT$6,VLOOKUP($AQ21,'LRMC x Plant ranked'!$F$4:$G$500,2,TRUE),0) -> 0 | AU21: =IF(INDEX('LRMC x Plant ranked'!$C$5:$C$500,MATCH($AR21,'LRMC x Plant ranked'!$G$5:$G$500,FALSE),)=AU$6,VLOOKUP($AQ21,'LRMC x Plant ranked'!$F$4:$G$500,2,TRUE),0) -> 0 | AV21: =IF(INDEX('LRMC x Plant ranked'!$C$5:$C$500,MATCH($AR21,'LRMC x Plant ranked'!$G$5:$G$500,FALSE),)=AV$6,VLOOKUP($AQ21,'LRMC x Plant ranked'!$F$4:$G$500,2,TRUE),0) -> 0 | AW21: =IF(INDEX('LRMC x Plant ranked'!$C$5:$C$500,MATCH($AR21,'LRMC x Plant ranked'!$G$5:$G$500,FALSE),)=AW$6,VLOOKUP($AQ21,'LRMC x Plant ranked'!$F$4:$G$500,2,TRUE),0) -> 57.51395516 | AX21: =IF(INDEX('LRMC x Plant ranked'!$C$5:$C$500,MATCH($AR21,'LRMC x Plant ranked'!$G$5:$G$500,FALSE),)=AX$6,VLOOKUP($AQ21,'LRMC x Plant ranked'!$F$4:$G$500,2,TRUE),0) -> 0 | AY21: 0 | AZ21: 0 | BA21: 0 | BC21: =IF(INDEX('LRMC x Plant ranked'!$C$5:$C$500,MATCH($AR21,'LRMC x Plant ranked'!$G$5:$G$500,FALSE),)=BC$6,VLOOKUP($AQ21,'LRMC x Plant ranked'!$F$4:$G$500,2,TRUE),0) -> 0 | BD21: =IF(INDEX('LRMC x Plant ranked'!$C$5:$C$500,MATCH($AR21,'LRMC x Plant ranked'!$G$5:$G$500,FALSE),)=BD$6,VLOOKUP($AQ21,'LRMC x Plant ranked'!$F$4:$G$500,2,TRUE),0) -> 0 | BE21: =IF(INDEX('LRMC x Plant ranked'!$C$5:$C$500,MATCH($AR21,'LRMC x Plant ranked'!$G$5:$G$500,FALSE),)=BE$6,VLOOKUP($AQ21,'LRMC x Plant ranked'!$F$4:$G$500,2,TRUE),0) -> 0 | BF21: =IF(INDEX('LRMC x Plant ranked'!$C$5:$C$500,MATCH($AR21,'LRMC x Plant ranked'!$G$5:$G$500,FALSE),)=BF$6,VLOOKUP($AQ21,'LRMC x Plant ranked'!$F$4:$G$500,2,TRUE),0) -> 0 | BG21: =IF(INDEX('LRMC x Plant ranked'!$C$5:$C$500,MATCH($AR21,'LRMC x Plant ranked'!$G$5:$G$500,FALSE),)=BG$6,VLOOKUP($AQ21,'LRMC x Plant ranked'!$F$4:$G$500,2,TRUE),0) -> 0 | BJ21: =IF(BJ20>MAX('LRMC x Plant ranked'!$P$5:$P$500),"",BJ20+IF($D$32="GWh",100,15)) -> 195 | BK21: =VLOOKUP($BJ21,'LRMC x Plant ranked'!$P$4:$Q$500,2,TRUE) -> 57.51395516 | BM21: =IF(INDEX('LRMC x Plant ranked'!$M$5:$M$500,MATCH($BK21,'LRMC x Plant ranked'!$Q$5:$Q$500,FALSE),)=BM$6,VLOOKUP($BJ21,'LRMC x Plant ranked'!$P$4:$Q$500,2,TRUE),0) -> 57.51395516 | BN21: =IF(INDEX('LRMC x Plant ranked'!$M$5:$M$500,MATCH($BK21,'LRMC x Plant ranked'!$Q$5:$Q$500,FALSE),)=BN$6,VLOOKUP($BJ21,'LRMC x Plant ranked'!$P$4:$Q$500,2,TRUE),0) -> 0 | BO21: 0 | BP21: 0 | BQ21: 0 | BS21: =IF(INDEX('LRMC x Plant ranked'!$M$5:$M$500,MATCH($BK21,'LRMC x Plant ranked'!$Q$5:$Q$500,FALSE),)=BS$6,VLOOKUP($BJ21,'LRMC x Plant ranked'!$P$4:$Q$500,2,TRUE),0) -> 0 | BT21: =IF(INDEX('LRMC x Plant ranked'!$M$5:$M$500,MATCH($BK21,'LRMC x Plant ranked'!$Q$5:$Q$500,FALSE),)=BT$6,VLOOKUP($BJ21,'LRMC x Plant ranked'!$P$4:$Q$500,2,TRUE),0) -> 0 | BU21: =IF(INDEX('LRMC x Plant ranked'!$M$5:$M$500,MATCH($BK21,'LRMC x Plant ranked'!$Q$5:$Q$500,FALSE),)=BU$6,VLOOKUP($BJ21,'LRMC x Plant ranked'!$P$4:$Q$500,2,TRUE),0) -> 0 | BV21: =IF(INDEX('LRMC x Plant ranked'!$M$5:$M$500,MATCH($BK21,'LRMC x Plant ranked'!$Q$5:$Q$500,FALSE),)=BV$6,VLOOKUP($BJ21,'LRMC x Plant ranked'!$P$4:$Q$500,2,TRUE),0) -> 0 | BW21: =IF(INDEX('LRMC x Plant ranked'!$M$5:$M$500,MATCH($BK21,'LRMC x Plant ranked'!$Q$5:$Q$500,FALSE),)=BW$6,VLOOKUP($BJ21,'LRMC x Plant ranked'!$P$4:$Q$500,2,TRUE),0) -> 0 | BX21: 81.677403 | BY21: 92.67719164 | BZ21: 117.3776135 | CA21: 173.8216805 | CB21: 69.67136421 | CJ21: =C36&$F$35 -> Under ConstructionWind | CK21: =F36 -> yes
AI22: =IF(ISERROR(IF(OR(VLOOKUP(AJ22,'GEM new plant'!$A$4:$P$388,COLUMNS('GEM new plant'!A140:C140),FALSE)="HydRR",VLOOKUP(AJ22,'GEM new plant'!$A$4:$P$388,COLUMNS('GEM new plant'!A140:C140),FALSE)="HydPk"),"Hydro",VLOOKUP(AJ22,'GEM new plant'!$A$4:$P$388,COLUMNS('GEM new plant'!A140:C140),FALSE))),0,IF(OR(VLOOKUP(AJ22,'GEM new plant'!$A$4:$P$388,COLUMNS('GEM new plant'!A140:C140),FALSE)="HydRR",VLOOKUP(AJ22,'GEM new plant'!$A$4:$P$388,COLUMNS('GEM new plant'!A140:C140),FALSE)="HydPk"),"Hydro",VLOOKUP(AJ22,'GEM new plant'!$A$4:$P$388,COLUMNS('GEM new plant'!A140:C140),FALSE))) -> Coal | AJ22: ASCG1 | AK22: 112.4950652 | AL22: 2056.30304 | AQ22: =IF(AQ21>MAX('LRMC x Plant ranked'!$F$5:$F$500),"",AQ21+IF($D$32="GWh",100,15)) -> 210 | AR22: =VLOOKUP($AQ22,'LRMC x Plant ranked'!$F$4:$G$500,2,TRUE) -> 57.51395516 | AT22: =IF(INDEX('LRMC x Plant ranked'!$C$5:$C$500,MATCH($AR22,'LRMC x Plant ranked'!$G$5:$G$500,FALSE),)=AT$6,VLOOKUP($AQ22,'LRMC x Plant ranked'!$F$4:$G$500,2,TRUE),0) -> 0 | AU22: =IF(INDEX('LRMC x Plant ranked'!$C$5:$C$500,MATCH($AR22,'LRMC x Plant ranked'!$G$5:$G$500,FALSE),)=AU$6,VLOOKUP($AQ22,'LRMC x Plant ranked'!$F$4:$G$500,2,TRUE),0) -> 0 | AV22: =IF(INDEX('LRMC x Plant ranked'!$C$5:$C$500,MATCH($AR22,'LRMC x Plant ranked'!$G$5:$G$500,FALSE),)=AV$6,VLOOKUP($AQ22,'LRMC x Plant ranked'!$F$4:$G$500,2,TRUE),0) -> 0 | AW22: =IF(INDEX('LRMC x Plant ranked'!$C$5:$C$500,MATCH($AR22,'LRMC x Plant ranked'!$G$5:$G$500,FALSE),)=AW$6,VLOOKUP($AQ22,'LRMC x Plant ranked'!$F$4:$G$500,2,TRUE),0) -> 57.51395516 | AX22: =IF(INDEX('LRMC x Plant ranked'!$C$5:$C$500,MATCH($AR22,'LRMC x Plant ranked'!$G$5:$G$500,FALSE),)=AX$6,VLOOKUP($AQ22,'LRMC x Plant ranked'!$F$4:$G$500,2,TRUE),0) -> 0 | AY22: 0 | AZ22: 0 | BA22: 0 | BC22: =IF(INDEX('LRMC x Plant ranked'!$C$5:$C$500,MATCH($AR22,'LRMC x Plant ranked'!$G$5:$G$500,FALSE),)=BC$6,VLOOKUP($AQ22,'LRMC x Plant ranked'!$F$4:$G$500,2,TRUE),0) -> 0 | BD22: =IF(INDEX('LRMC x Plant ranked'!$C$5:$C$500,MATCH($AR22,'LRMC x Plant ranked'!$G$5:$G$500,FALSE),)=BD$6,VLOOKUP($AQ22,'LRMC x Plant ranked'!$F$4:$G$500,2,TRUE),0) -> 0 | BE22: =IF(INDEX('LRMC x Plant ranked'!$C$5:$C$500,MATCH($AR22,'LRMC x Plant ranked'!$G$5:$G$500,FALSE),)=BE$6,VLOOKUP($AQ22,'LRMC x Plant ranked'!$F$4:$G$500,2,TRUE),0) -> 0 | BF22: =IF(INDEX('LRMC x Plant ranked'!$C$5:$C$500,MATCH($AR22,'LRMC x Plant ranked'!$G$5:$G$500,FALSE),)=BF$6,VLOOKUP($AQ22,'LRMC x Plant ranked'!$F$4:$G$500,2,TRUE),0) -> 0 | BG22: =IF(INDEX('LRMC x Plant ranked'!$C$5:$C$500,MATCH($AR22,'LRMC x Plant ranked'!$G$5:$G$500,FALSE),)=BG$6,VLOOKUP($AQ22,'LRMC x Plant ranked'!$F$4:$G$500,2,TRUE),0) -> 0 | BJ22: =IF(BJ21>MAX('LRMC x Plant ranked'!$P$5:$P$500),"",BJ21+IF($D$32="GWh",100,15)) -> 210 | BK22: =VLOOKUP($BJ22,'LRMC x Plant ranked'!$P$4:$Q$500,2,TRUE) -> 57.51395516 | BM22: =IF(INDEX('LRMC x Plant ranked'!$M$5:$M$500,MATCH($BK22,'LRMC x Plant ranked'!$Q$5:$Q$500,FALSE),)=BM$6,VLOOKUP($BJ22,'LRMC x Plant ranked'!$P$4:$Q$500,2,TRUE),0) -> 57.51395516 | BN22: =IF(INDEX('LRMC x Plant ranked'!$M$5:$M$500,MATCH($BK22,'LRMC x Plant ranked'!$Q$5:$Q$500,FALSE),)=BN$6,VLOOKUP($BJ22,'LRMC x Plant ranked'!$P$4:$Q$500,2,TRUE),0) -> 0 | BO22: 0 | BP22: 0 | BQ22: 0 | BS22: =IF(INDEX('LRMC x Plant ranked'!$M$5:$M$500,MATCH($BK22,'LRMC x Plant ranked'!$Q$5:$Q$500,FALSE),)=BS$6,VLOOKUP($BJ22,'LRMC x Plant ranked'!$P$4:$Q$500,2,TRUE),0) -> 0 | BT22: =IF(INDEX('LRMC x Plant ranked'!$M$5:$M$500,MATCH($BK22,'LRMC x Plant ranked'!$Q$5:$Q$500,FALSE),)=BT$6,VLOOKUP($BJ22,'LRMC x Plant ranked'!$P$4:$Q$500,2,TRUE),0) -> 0 | BU22: =IF(INDEX('LRMC x Plant ranked'!$M$5:$M$500,MATCH($BK22,'LRMC x Plant ranked'!$Q$5:$Q$500,FALSE),)=BU$6,VLOOKUP($BJ22,'LRMC x Plant ranked'!$P$4:$Q$500,2,TRUE),0) -> 0 | BV22: =IF(INDEX('LRMC x Plant ranked'!$M$5:$M$500,MATCH($BK22,'LRMC x Plant ranked'!$Q$5:$Q$500,FALSE),)=BV$6,VLOOKUP($BJ22,'LRMC x Plant ranked'!$P$4:$Q$500,2,TRUE),0) -> 0 | BW22: =IF(INDEX('LRMC x Plant ranked'!$M$5:$M$500,MATCH($BK22,'LRMC x Plant ranked'!$Q$5:$Q$500,FALSE),)=BW$6,VLOOKUP($BJ22,'LRMC x Plant ranked'!$P$4:$Q$500,2,TRUE),0) -> 0 | BX22: 81.677403 | BY22: 92.67719164 | BZ22: 117.3776135 | CA22: 173.8216805 | CB22: 69.67136421 | CJ22: =C37&$F$35 -> Fully ConsentedWind | CK22: =F37 -> yes
C23: Capital cost assumptions | G23: Region | AI23: =IF(ISERROR(IF(OR(VLOOKUP(AJ23,'GEM new plant'!$A$4:$P$388,COLUMNS('GEM new plant'!A115:C115),FALSE)="HydRR",VLOOKUP(AJ23,'GEM new plant'!$A$4:$P$388,COLUMNS('GEM new plant'!A115:C115),FALSE)="HydPk"),"Hydro",VLOOKUP(AJ23,'GEM new plant'!$A$4:$P$388,COLUMNS('GEM new plant'!A115:C115),FALSE))),0,IF(OR(VLOOKUP(AJ23,'GEM new plant'!$A$4:$P$388,COLUMNS('GEM new plant'!A115:C115),FALSE)="HydRR",VLOOKUP(AJ23,'GEM new plant'!$A$4:$P$388,COLUMNS('GEM new plant'!A115:C115),FALSE)="HydPk"),"Hydro",VLOOKUP(AJ23,'GEM new plant'!$A$4:$P$388,COLUMNS('GEM new plant'!A115:C115),FALSE))) -> Coal | AJ23: ASCG2 | AK23: 92.67719164 | AL23: 1258.00704 | AQ23: =IF(AQ22>MAX('LRMC x Plant ranked'!$F$5:$F$500),"",AQ22+IF($D$32="GWh",100,15)) -> 225 | AR23: =VLOOKUP($AQ23,'LRMC x Plant ranked'!$F$4:$G$500,2,TRUE) -> 57.51395516 | AT23: =IF(INDEX('LRMC x Plant ranked'!$C$5:$C$500,MATCH($AR23,'LRMC x Plant ranked'!$G$5:$G$500,FALSE),)=AT$6,VLOOKUP($AQ23,'LRMC x Plant ranked'!$F$4:$G$500,2,TRUE),0) -> 0 | AU23: =IF(INDEX('LRMC x Plant ranked'!$C$5:$C$500,MATCH($AR23,'LRMC x Plant ranked'!$G$5:$G$500,FALSE),)=AU$6,VLOOKUP($AQ23,'LRMC x Plant ranked'!$F$4:$G$500,2,TRUE),0) -> 0 | AV23: =IF(INDEX('LRMC x Plant ranked'!$C$5:$C$500,MATCH($AR23,'LRMC x Plant ranked'!$G$5:$G$500,FALSE),)=AV$6,VLOOKUP($AQ23,'LRMC x Plant ranked'!$F$4:$G$500,2,TRUE),0) -> 0 | AW23: =IF(INDEX('LRMC x Plant ranked'!$C$5:$C$500,MATCH($AR23,'LRMC x Plant ranked'!$G$5:$G$500,FALSE),)=AW$6,VLOOKUP($AQ23,'LRMC x Plant ranked'!$F$4:$G$500,2,TRUE),0) -> 57.51395516 | AX23: =IF(INDEX('LRMC x Plant ranked'!$C$5:$C$500,MATCH($AR23,'LRMC x Plant ranked'!$G$5:$G$500,FALSE),)=AX$6,VLOOKUP($AQ23,'LRMC x Plant ranked'!$F$4:$G$500,2,TRUE),0) -> 0 | AY23: 0 | AZ23: 0 | BA23: 0 | BC23: =IF(INDEX('LRMC x Plant ranked'!$C$5:$C$500,MATCH($AR23,'LRMC x Plant ranked'!$G$5:$G$500,FALSE),)=BC$6,VLOOKUP($AQ23,'LRMC x Plant ranked'!$F$4:$G$500,2,TRUE),0) -> 0 | BD23: =IF(INDEX('LRMC x Plant ranked'!$C$5:$C$500,MATCH($AR23,'LRMC x Plant ranked'!$G$5:$G$500,FALSE),)=BD$6,VLOOKUP($AQ23,'LRMC x Plant ranked'!$F$4:$G$500,2,TRUE),0) -> 0 | BE23: =IF(INDEX('LRMC x Plant ranked'!$C$5:$C$500,MATCH($AR23,'LRMC x Plant ranked'!$G$5:$G$500,FALSE),)=BE$6,VLOOKUP($AQ23,'LRMC x Plant ranked'!$F$4:$G$500,2,TRUE),0) -> 0 | BF23: =IF(INDEX('LRMC x Plant ranked'!$C$5:$C$500,MATCH($AR23,'LRMC x Plant ranked'!$G$5:$G$500,FALSE),)=BF$6,VLOOKUP($AQ23,'LRMC x Plant ranked'!$F$4:$G$500,2,TRUE),0) -> 0 | BG23: =IF(INDEX('LRMC x Plant ranked'!$C$5:$C$500,MATCH($AR23,'LRMC x Plant ranked'!$G$5:$G$500,FALSE),)=BG$6,VLOOKUP($AQ23,'LRMC x Plant ranked'!$F$4:$G$500,2,TRUE),0) -> 0 | BJ23: =IF(BJ22>MAX('LRMC x Plant ranked'!$P$5:$P$500),"",BJ22+IF($D$32="GWh",100,15)) -> 225 | BK23: =VLOOKUP($BJ23,'LRMC x Plant ranked'!$P$4:$Q$500,2,TRUE) -> 57.51395516 | BM23: =IF(INDEX('LRMC x Plant ranked'!$M$5:$M$500,MATCH($BK23,'LRMC x Plant ranked'!$Q$5:$Q$500,FALSE),)=BM$6,VLOOKUP($BJ23,'LRMC x Plant ranked'!$P$4:$Q$500,2,TRUE),0) -> 57.51395516 | BN23: =IF(INDEX('LRMC x Plant ranked'!$M$5:$M$500,MATCH($BK23,'LRMC x Plant ranked'!$Q$5:$Q$500,FALSE),)=BN$6,VLOOKUP($BJ23,'LRMC x Plant ranked'!$P$4:$Q$500,2,TRUE),0) -> 0 | BO23: 0 | BP23: 0 | BQ23: 0 | BS23: =IF(INDEX('LRMC x Plant ranked'!$M$5:$M$500,MATCH($BK23,'LRMC x Plant ranked'!$Q$5:$Q$500,FALSE),)=BS$6,VLOOKUP($BJ23,'LRMC x Plant ranked'!$P$4:$Q$500,2,TRUE),0) -> 0 | BT23: =IF(INDEX('LRMC x Plant ranked'!$M$5:$M$500,MATCH($BK23,'LRMC x Plant ranked'!$Q$5:$Q$500,FALSE),)=BT$6,VLOOKUP($BJ23,'LRMC x Plant ranked'!$P$4:$Q$500,2,TRUE),0) -> 0 | BU23: =IF(INDEX('LRMC x Plant ranked'!$M$5:$M$500,MATCH($BK23,'LRMC x Plant ranked'!$Q$5:$Q$500,FALSE),)=BU$6,VLOOKUP($BJ23,'LRMC x Plant ranked'!$P$4:$Q$500,2,TRUE),0) -> 0 | BV23: =IF(INDEX('LRMC x Plant ranked'!$M$5:$M$500,MATCH($BK23,'LRMC x Plant ranked'!$Q$5:$Q$500,FALSE),)=BV$6,VLOOKUP($BJ23,'LRMC x Plant ranked'!$P$4:$Q$500,2,TRUE),0) -> 0 | BW23: =IF(INDEX('LRMC x Plant ranked'!$M$5:$M$500,MATCH($BK23,'LRMC x Plant ranked'!$Q$5:$Q$500,FALSE),)=BW$6,VLOOKUP($BJ23,'LRMC x Plant ranked'!$P$4:$Q$500,2,TRUE),0) -> 0 | BX23: 81.677403 | BY23: 92.67719164 | BZ23: 117.3776135 | CA23: 173.8216805 | CB23: 69.67136421 | CJ23: =C38&$F$35 -> Applied for ConsentWind | CK23: =F38 -> yes
C24: Wind Cost Scalar | D24: 1 | G24: All | AI24: =IF(ISERROR(IF(OR(VLOOKUP(AJ24,'GEM new plant'!$A$4:$P$388,COLUMNS('GEM new plant'!A116:C116),FALSE)="HydRR",VLOOKUP(AJ24,'GEM new plant'!$A$4:$P$388,COLUMNS('GEM new plant'!A116:C116),FALSE)="HydPk"),"Hydro",VLOOKUP(AJ24,'GEM new plant'!$A$4:$P$388,COLUMNS('GEM new plant'!A116:C116),FALSE))),0,IF(OR(VLOOKUP(AJ24,'GEM new plant'!$A$4:$P$388,COLUMNS('GEM new plant'!A116:C116),FALSE)="HydRR",VLOOKUP(AJ24,'GEM new plant'!$A$4:$P$388,COLUMNS('GEM new plant'!A116:C116),FALSE)="HydPk"),"Hydro",VLOOKUP(AJ24,'GEM new plant'!$A$4:$P$388,COLUMNS('GEM new plant'!A116:C116),FALSE))) -> Coal | AJ24: ASCG3 | AK24: 103.7984546 | AL24: 1258.00704 | AQ24: =IF(AQ23>MAX('LRMC x Plant ranked'!$F$5:$F$500),"",AQ23+IF($D$32="GWh",100,15)) -> 240 | AR24: =VLOOKUP($AQ24,'LRMC x Plant ranked'!$F$4:$G$500,2,TRUE) -> 58.17844644 | AT24: =IF(INDEX('LRMC x Plant ranked'!$C$5:$C$500,MATCH($AR24,'LRMC x Plant ranked'!$G$5:$G$500,FALSE),)=AT$6,VLOOKUP($AQ24,'LRMC x Plant ranked'!$F$4:$G$500,2,TRUE),0) -> 0 | AU24: =IF(INDEX('LRMC x Plant ranked'!$C$5:$C$500,MATCH($AR24,'LRMC x Plant ranked'!$G$5:$G$500,FALSE),)=AU$6,VLOOKUP($AQ24,'LRMC x Plant ranked'!$F$4:$G$500,2,TRUE),0) -> 0 | AV24: =IF(INDEX('LRMC x Plant ranked'!$C$5:$C$500,MATCH($AR24,'LRMC x Plant ranked'!$G$5:$G$500,FALSE),)=AV$6,VLOOKUP($AQ24,'LRMC x Plant ranked'!$F$4:$G$500,2,TRUE),0) -> 0 | AW24: =IF(INDEX('LRMC x Plant ranked'!$C$5:$C$500,MATCH($AR24,'LRMC x Plant ranked'!$G$5:$G$500,FALSE),)=AW$6,VLOOKUP($AQ24,'LRMC x Plant ranked'!$F$4:$G$500,2,TRUE),0) -> 0 | AX24: =IF(INDEX('LRMC x Plant ranked'!$C$5:$C$500,MATCH($AR24,'LRMC x Plant ranked'!$G$5:$G$500,FALSE),)=AX$6,VLOOKUP($AQ24,'LRMC x Plant ranked'!$F$4:$G$500,2,TRUE),0) -> 0 | AY24: 58.17844644 | AZ24: 0 | BA24: 0 | BC24: =IF(INDEX('LRMC x Plant ranked'!$C$5:$C$500,MATCH($AR24,'LRMC x Plant ranked'!$G$5:$G$500,FALSE),)=BC$6,VLOOKUP($AQ24,'LRMC x Plant ranked'!$F$4:$G$500,2,TRUE),0) -> 0 | BD24: =IF(INDEX('LRMC x Plant ranked'!$C$5:$C$500,MATCH($AR24,'LRMC x Plant ranked'!$G$5:$G$500,FALSE),)=BD$6,VLOOKUP($AQ24,'LRMC x Plant ranked'!$F$4:$G$500,2,TRUE),0) -> 58.17844644 | BE24: =IF(INDEX('LRMC x Plant ranked'!$C$5:$C$500,MATCH($AR24,'LRMC x Plant ranked'!$G$5:$G$500,FALSE),)=BE$6,VLOOKUP($AQ24,'LRMC x Plant ranked'!$F$4:$G$500,2,TRUE),0) -> 0 | BF24: =IF(INDEX('LRMC x Plant ranked'!$C$5:$C$500,MATCH($AR24,'LRMC x Plant ranked'!$G$5:$G$500,FALSE),)=BF$6,VLOOKUP($AQ24,'LRMC x Plant ranked'!$F$4:$G$500,2,TRUE),0) -> 0 | BG24: =IF(INDEX('LRMC x Plant ranked'!$C$5:$C$500,MATCH($AR24,'LRMC x Plant ranked'!$G$5:$G$500,FALSE),)=BG$6,VLOOKUP($AQ24,'LRMC x Plant ranked'!$F$4:$G$500,2,TRUE),0) -> 0 | BJ24: =IF(BJ23>MAX('LRMC x Plant ranked'!$P$5:$P$500),"",BJ23+IF($D$32="GWh",100,15)) -> 240 | BK24: =VLOOKUP($BJ24,'LRMC x Plant ranked'!$P$4:$Q$500,2,TRUE) -> 58.17844644 | BM24: =IF(INDEX('LRMC x Plant ranked'!$M$5:$M$500,MATCH($BK24,'LRMC x Plant ranked'!$Q$5:$Q$500,FALSE),)=BM$6,VLOOKUP($BJ24,'LRMC x Plant ranked'!$P$4:$Q$500,2,TRUE),0) -> 0 | BN24: =IF(INDEX('LRMC x Plant ranked'!$M$5:$M$500,MATCH($BK24,'LRMC x Plant ranked'!$Q$5:$Q$500,FALSE),)=BN$6,VLOOKUP($BJ24,'LRMC x Plant ranked'!$P$4:$Q$500,2,TRUE),0) -> 0 | BO24: 58.17844644 | BP24: 0 | BQ24: 0 | BS24: =IF(INDEX('LRMC x Plant ranked'!$M$5:$M$500,MATCH($BK24,'LRMC x Plant ranked'!$Q$5:$Q$500,FALSE),)=BS$6,VLOOKUP($BJ24,'LRMC x Plant ranked'!$P$4:$Q$500,2,TRUE),0) -> 0 | BT24: =IF(INDEX('LRMC x Plant ranked'!$M$5:$M$500,MATCH($BK24,'LRMC x Plant ranked'!$Q$5:$Q$500,FALSE),)=BT$6,VLOOKUP($BJ24,'LRMC x Plant ranked'!$P$4:$Q$500,2,TRUE),0) -> 58.17844644 | BU24: =IF(INDEX('LRMC x Plant ranked'!$M$5:$M$500,MATCH($BK24,'LRMC x Plant ranked'!$Q$5:$Q$500,FALSE),)=BU$6,VLOOKUP($BJ24,'LRMC x Plant ranked'!$P$4:$Q$500,2,TRUE),0) -> 0 | BV24: =IF(INDEX('LRMC x Plant ranked'!$M$5:$M$500,MATCH($BK24,'LRMC x Plant ranked'!$Q$5:$Q$500,FALSE),)=BV$6,VLOOKUP($BJ24,'LRMC x Plant ranked'!$P$4:$Q$500,2,TRUE),0) -> 0 | BW24: =IF(INDEX('LRMC x Plant ranked'!$M$5:$M$500,MATCH($BK24,'LRMC x Plant ranked'!$Q$5:$Q$500,FALSE),)=BW$6,VLOOKUP($BJ24,'LRMC x Plant ranked'!$P$4:$Q$500,2,TRUE),0) -> 0 | BX24: 81.677403 | BY24: 92.67719164 | BZ24: 117.3776135 | CA24: 173.8216805 | CB24: 69.67136421 | CJ24: =C39&$F$35 -> ProposedWind | CK24: =F39 -> yes
C25: Geoth Cost Scalar | D25: 1 | AI25: =IF(ISERROR(IF(OR(VLOOKUP(AJ25,'GEM new plant'!$A$4:$P$388,COLUMNS('GEM new plant'!A74:C74),FALSE)="HydRR",VLOOKUP(AJ25,'GEM new plant'!$A$4:$P$388,COLUMNS('GEM new plant'!A74:C74),FALSE)="HydPk"),"Hydro",VLOOKUP(AJ25,'GEM new plant'!$A$4:$P$388,COLUMNS('GEM new plant'!A74:C74),FALSE))),0,IF(OR(VLOOKUP(AJ25,'GEM new plant'!$A$4:$P$388,COLUMNS('GEM new plant'!A74:C74),FALSE)="HydRR",VLOOKUP(AJ25,'GEM new plant'!$A$4:$P$388,COLUMNS('GEM new plant'!A74:C74),FALSE)="HydPk"),"Hydro",VLOOKUP(AJ25,'GEM new plant'!$A$4:$P$388,COLUMNS('GEM new plant'!A74:C74),FALSE))) -> Coal | AJ25: ASCG4 | AK25: 103.030092 | AL25: 1258.00704 | AQ25: =IF(AQ24>MAX('LRMC x Plant ranked'!$F$5:$F$500),"",AQ24+IF($D$32="GWh",100,15)) -> 255 | AR25: =VLOOKUP($AQ25,'LRMC x Plant ranked'!$F$4:$G$500,2,TRUE) -> 58.17844644 | AT25: =IF(INDEX('LRMC x Plant ranked'!$C$5:$C$500,MATCH($AR25,'LRMC x Plant ranked'!$G$5:$G$500,FALSE),)=AT$6,VLOOKUP($AQ25,'LRMC x Plant ranked'!$F$4:$G$500,2,TRUE),0) -> 0 | AU25: =IF(INDEX('LRMC x Plant ranked'!$C$5:$C$500,MATCH($AR25,'LRMC x Plant ranked'!$G$5:$G$500,FALSE),)=AU$6,VLOOKUP($AQ25,'LRMC x Plant ranked'!$F$4:$G$500,2,TRUE),0) -> 0 | AV25: =IF(INDEX('LRMC x Plant ranked'!$C$5:$C$500,MATCH($AR25,'LRMC x Plant ranked'!$G$5:$G$500,FALSE),)=AV$6,VLOOKUP($AQ25,'LRMC x Plant ranked'!$F$4:$G$500,2,TRUE),0) -> 0 | AW25: =IF(INDEX('LRMC x Plant ranked'!$C$5:$C$500,MATCH($AR25,'LRMC x Plant ranked'!$G$5:$G$500,FALSE),)=AW$6,VLOOKUP($AQ25,'LRMC x Plant ranked'!$F$4:$G$500,2,TRUE),0) -> 0 | AX25: =IF(INDEX('LRMC x Plant ranked'!$C$5:$C$500,MATCH($AR25,'LRMC x Plant ranked'!$G$5:$G$500,FALSE),)=AX$6,VLOOKUP($AQ25,'LRMC x Plant ranked'!$F$4:$G$500,2,TRUE),0) -> 0 | AY25: 58.17844644 | AZ25: 0 | BA25: 0 | BC25: =IF(INDEX('LRMC x Plant ranked'!$C$5:$C$500,MATCH($AR25,'LRMC x Plant ranked'!$G$5:$G$500,FALSE),)=BC$6,VLOOKUP($AQ25,'LRMC x Plant ranked'!$F$4:$G$500,2,TRUE),0) -> 0 | BD25: =IF(INDEX('LRMC x Plant ranked'!$C$5:$C$500,MATCH($AR25,'LRMC x Plant ranked'!$G$5:$G$500,FALSE),)=BD$6,VLOOKUP($AQ25,'LRMC x Plant ranked'!$F$4:$G$500,2,TRUE),0) -> 58.17844644 | BE25: =IF(INDEX('LRMC x Plant ranked'!$C$5:$C$500,MATCH($AR25,'LRMC x Plant ranked'!$G$5:$G$500,FALSE),)=BE$6,VLOOKUP($AQ25,'LRMC x Plant ranked'!$F$4:$G$500,2,TRUE),0) -> 0 | BF25: =IF(INDEX('LRMC x Plant ranked'!$C$5:$C$500,MATCH($AR25,'LRMC x Plant ranked'!$G$5:$G$500,FALSE),)=BF$6,VLOOKUP($AQ25,'LRMC x Plant ranked'!$F$4:$G$500,2,TRUE),0) -> 0 | BG25: =IF(INDEX('LRMC x Plant ranked'!$C$5:$C$500,MATCH($AR25,'LRMC x Plant ranked'!$G$5:$G$500,FALSE),)=BG$6,VLOOKUP($AQ25,'LRMC x Plant ranked'!$F$4:$G$500,2,TRUE),0) -> 0 | BJ25: =IF(BJ24>MAX('LRMC x Plant ranked'!$P$5:$P$500),"",BJ24+IF($D$32="GWh",100,15)) -> 255 | BK25: =VLOOKUP($BJ25,'LRMC x Plant ranked'!$P$4:$Q$500,2,TRUE) -> 58.17844644 | BM25: =IF(INDEX('LRMC x Plant ranked'!$M$5:$M$500,MATCH($BK25,'LRMC x Plant ranked'!$Q$5:$Q$500,FALSE),)=BM$6,VLOOKUP($BJ25,'LRMC x Plant ranked'!$P$4:$Q$500,2,TRUE),0) -> 0 | BN25: =IF(INDEX('LRMC x Plant ranked'!$M$5:$M$500,MATCH($BK25,'LRMC x Plant ranked'!$Q$5:$Q$500,FALSE),)=BN$6,VLOOKUP($BJ25,'LRMC x Plant ranked'!$P$4:$Q$500,2,TRUE),0) -> 0 | BO25: 58.17844644 | BP25: 0 | BQ25: 0 | BS25: =IF(INDEX('LRMC x Plant ranked'!$M$5:$M$500,MATCH($BK25,'LRMC x Plant ranked'!$Q$5:$Q$500,FALSE),)=BS$6,VLOOKUP($BJ25,'LRMC x Plant ranked'!$P$4:$Q$500,2,TRUE),0) -> 0 | BT25: =IF(INDEX('LRMC x Plant ranked'!$M$5:$M$500,MATCH($BK25,'LRMC x Plant ranked'!$Q$5:$Q$500,FALSE),)=BT$6,VLOOKUP($BJ25,'LRMC x Plant ranked'!$P$4:$Q$500,2,TRUE),0) -> 58.17844644 | BU25: =IF(INDEX('LRMC x Plant ranked'!$M$5:$M$500,MATCH($BK25,'LRMC x Plant ranked'!$Q$5:$Q$500,FALSE),)=BU$6,VLOOKUP($BJ25,'LRMC x Plant ranked'!$P$4:$Q$500,2,TRUE),0) -> 0 | BV25: =IF(INDEX('LRMC x Plant ranked'!$M$5:$M$500,MATCH($BK25,'LRMC x Plant ranked'!$Q$5:$Q$500,FALSE),)=BV$6,VLOOKUP($BJ25,'LRMC x Plant ranked'!$P$4:$Q$500,2,TRUE),0) -> 0 | BW25: =IF(INDEX('LRMC x Plant ranked'!$M$5:$M$500,MATCH($BK25,'LRMC x Plant ranked'!$Q$5:$Q$500,FALSE),)=BW$6,VLOOKUP($BJ25,'LRMC x Plant ranked'!$P$4:$Q$500,2,TRUE),0) -> 0 | BX25: 81.677403 | BY25: 92.67719164 | BZ25: 117.3776135 | CA25: 173.8216805 | CB25: 69.67136421 | CJ25: =C40&$F$35 -> GenericWind | CK25: =F40 -> yes
C26: Oth Tech Cost Scalar | D26: 1 | AI26: =IF(ISERROR(IF(OR(VLOOKUP(AJ26,'GEM new plant'!$A$4:$P$388,COLUMNS('GEM new plant'!A157:C157),FALSE)="HydRR",VLOOKUP(AJ26,'GEM new plant'!$A$4:$P$388,COLUMNS('GEM new plant'!A157:C157),FALSE)="HydPk"),"Hydro",VLOOKUP(AJ26,'GEM new plant'!$A$4:$P$388,COLUMNS('GEM new plant'!A157:C157),FALSE))),0,IF(OR(VLOOKUP(AJ26,'GEM new plant'!$A$4:$P$388,COLUMNS('GEM new plant'!A157:C157),FALSE)="HydRR",VLOOKUP(AJ26,'GEM new plant'!$A$4:$P$388,COLUMNS('GEM new plant'!A157:C157),FALSE)="HydPk"),"Hydro",VLOOKUP(AJ26,'GEM new plant'!$A$4:$P$388,COLUMNS('GEM new plant'!A157:C157),FALSE))) -> Coal | AJ26: ASCG5 | AK26: 92.67719164 | AL26: 1258.00704 | AQ26: =IF(AQ25>MAX('LRMC x Plant ranked'!$F$5:$F$500),"",AQ25+IF($D$32="GWh",100,15)) -> 270 | AR26: =VLOOKUP($AQ26,'LRMC x Plant ranked'!$F$4:$G$500,2,TRUE) -> 59.23720325 | AT26: =IF(INDEX('LRMC x Plant ranked'!$C$5:$C$500,MATCH($AR26,'LRMC x Plant ranked'!$G$5:$G$500,FALSE),)=AT$6,VLOOKUP($AQ26,'LRMC x Plant ranked'!$F$4:$G$500,2,TRUE),0) -> 0 | AU26: =IF(INDEX('LRMC x Plant ranked'!$C$5:$C$500,MATCH($AR26,'LRMC x Plant ranked'!$G$5:$G$500,FALSE),)=AU$6,VLOOKUP($AQ26,'LRMC x Plant ranked'!$F$4:$G$500,2,TRUE),0) -> 0 | AV26: =IF(INDEX('LRMC x Plant ranked'!$C$5:$C$500,MATCH($AR26,'LRMC x Plant ranked'!$G$5:$G$500,FALSE),)=AV$6,VLOOKUP($AQ26,'LRMC x Plant ranked'!$F$4:$G$500,2,TRUE),0) -> 0 | AW26: =IF(INDEX('LRMC x Plant ranked'!$C$5:$C$500,MATCH($AR26,'LRMC x Plant ranked'!$G$5:$G$500,FALSE),)=AW$6,VLOOKUP($AQ26,'LRMC x Plant ranked'!$F$4:$G$500,2,TRUE),0) -> 59.23720325 | AX26: =IF(INDEX('LRMC x Plant ranked'!$C$5:$C$500,MATCH($AR26,'LRMC x Plant ranked'!$G$5:$G$500,FALSE),)=AX$6,VLOOKUP($AQ26,'LRMC x Plant ranked'!$F$4:$G$500,2,TRUE),0) -> 0 | AY26: 0 | AZ26: 0 | BA26: 0 | BC26: =IF(INDEX('LRMC x Plant ranked'!$C$5:$C$500,MATCH($AR26,'LRMC x Plant ranked'!$G$5:$G$500,FALSE),)=BC$6,VLOOKUP($AQ26,'LRMC x Plant ranked'!$F$4:$G$500,2,TRUE),0) -> 0 | BD26: =IF(INDEX('LRMC x Plant ranked'!$C$5:$C$500,MATCH($AR26,'LRMC x Plant ranked'!$G$5:$G$500,FALSE),)=BD$6,VLOOKUP($AQ26,'LRMC x Plant ranked'!$F$4:$G$500,2,TRUE),0) -> 0 | BE26: =IF(INDEX('LRMC x Plant ranked'!$C$5:$C$500,MATCH($AR26,'LRMC x Plant ranked'!$G$5:$G$500,FALSE),)=BE$6,VLOOKUP($AQ26,'LRMC x Plant ranked'!$F$4:$G$500,2,TRUE),0) -> 0 | BF26: =IF(INDEX('LRMC x Plant ranked'!$C$5:$C$500,MATCH($AR26,'LRMC x Plant ranked'!$G$5:$G$500,FALSE),)=BF$6,VLOOKUP($AQ26,'LRMC x Plant ranked'!$F$4:$G$500,2,TRUE),0) -> 0 | BG26: =IF(INDEX('LRMC x Plant ranked'!$C$5:$C$500,MATCH($AR26,'LRMC x Plant ranked'!$G$5:$G$500,FALSE),)=BG$6,VLOOKUP($AQ26,'LRMC x Plant ranked'!$F$4:$G$500,2,TRUE),0) -> 0 | BJ26: =IF(BJ25>MAX('LRMC x Plant ranked'!$P$5:$P$500),"",BJ25+IF($D$32="GWh",100,15)) -> 270 | BK26: =VLOOKUP($BJ26,'LRMC x Plant ranked'!$P$4:$Q$500,2,TRUE) -> 59.23720325 | BM26: =IF(INDEX('LRMC x Plant ranked'!$M$5:$M$500,MATCH($BK26,'LRMC x Plant ranked'!$Q$5:$Q$500,FALSE),)=BM$6,VLOOKUP($BJ26,'LRMC x Plant ranked'!$P$4:$Q$500,2,TRUE),0) -> 59.23720325 | BN26: =IF(INDEX('LRMC x Plant ranked'!$M$5:$M$500,MATCH($BK26,'LRMC x Plant ranked'!$Q$5:$Q$500,FALSE),)=BN$6,VLOOKUP($BJ26,'LRMC x Plant ranked'!$P$4:$Q$500,2,TRUE),0) -> 0 | BO26: 0 | BP26: 0 | BQ26: 0 | BS26: =IF(INDEX('LRMC x Plant ranked'!$M$5:$M$500,MATCH($BK26,'LRMC x Plant ranked'!$Q$5:$Q$500,FALSE),)=BS$6,VLOOKUP($BJ26,'LRMC x Plant ranked'!$P$4:$Q$500,2,TRUE),0) -> 0 | BT26: =IF(INDEX('LRMC x Plant ranked'!$M$5:$M$500,MATCH($BK26,'LRMC x Plant ranked'!$Q$5:$Q$500,FALSE),)=BT$6,VLOOKUP($BJ26,'LRMC x Plant ranked'!$P$4:$Q$500,2,TRUE),0) -> 0 | BU26: =IF(INDEX('LRMC x Plant ranked'!$M$5:$M$500,MATCH($BK26,'LRMC x Plant ranked'!$Q$5:$Q$500,FALSE),)=BU$6,VLOOKUP($BJ26,'LRMC x Plant ranked'!$P$4:$Q$500,2,TRUE),0) -> 0 | BV26: =IF(INDEX('LRMC x Plant ranked'!$M$5:$M$500,MATCH($BK26,'LRMC x Plant ranked'!$Q$5:$Q$500,FALSE),)=BV$6,VLOOKUP($BJ26,'LRMC x Plant ranked'!$P$4:$Q$500,2,TRUE),0) -> 0 | BW26: =IF(INDEX('LRMC x Plant ranked'!$M$5:$M$500,MATCH($BK26,'LRMC x Plant ranked'!$Q$5:$Q$500,FALSE),)=BW$6,VLOOKUP($BJ26,'LRMC x Plant ranked'!$P$4:$Q$500,2,TRUE),0) -> 0 | BX26: 81.677403 | BY26: 92.67719164 | BZ26: 117.3776135 | CA26: 173.8216805 | CB26: 69.67136421 | CJ26: Generic - Lower ProbWind | CK26: no
C27: Post-tax real discount rate | D27: 0.045 | AI27: =IF(ISERROR(IF(OR(VLOOKUP(AJ27,'GEM new plant'!$A$4:$P$388,COLUMNS('GEM new plant'!A76:C76),FALSE)="HydRR",VLOOKUP(AJ27,'GEM new plant'!$A$4:$P$388,COLUMNS('GEM new plant'!A76:C76),FALSE)="HydPk"),"Hydro",VLOOKUP(AJ27,'GEM new plant'!$A$4:$P$388,COLUMNS('GEM new plant'!A76:C76),FALSE))),0,IF(OR(VLOOKUP(AJ27,'GEM new plant'!$A$4:$P$388,COLUMNS('GEM new plant'!A76:C76),FALSE)="HydRR",VLOOKUP(AJ27,'GEM new plant'!$A$4:$P$388,COLUMNS('GEM new plant'!A76:C76),FALSE)="HydPk"),"Hydro",VLOOKUP(AJ27,'GEM new plant'!$A$4:$P$388,COLUMNS('GEM new plant'!A76:C76),FALSE))) -> Coal | AJ27: ASCG6 | AK27: 115.0868049 | AL27: 1258.00704 | AQ27: =IF(AQ26>MAX('LRMC x Plant ranked'!$F$5:$F$500),"",AQ26+IF($D$32="GWh",100,15)) -> 285 | AR27: =VLOOKUP($AQ27,'LRMC x Plant ranked'!$F$4:$G$500,2,TRUE) -> 59.23720325 | AT27: =IF(INDEX('LRMC x Plant ranked'!$C$5:$C$500,MATCH($AR27,'LRMC x Plant ranked'!$G$5:$G$500,FALSE),)=AT$6,VLOOKUP($AQ27,'LRMC x Plant ranked'!$F$4:$G$500,2,TRUE),0) -> 0 | AU27: =IF(INDEX('LRMC x Plant ranked'!$C$5:$C$500,MATCH($AR27,'LRMC x Plant ranked'!$G$5:$G$500,FALSE),)=AU$6,VLOOKUP($AQ27,'LRMC x Plant ranked'!$F$4:$G$500,2,TRUE),0) -> 0 | AV27: =IF(INDEX('LRMC x Plant ranked'!$C$5:$C$500,MATCH($AR27,'LRMC x Plant ranked'!$G$5:$G$500,FALSE),)=AV$6,VLOOKUP($AQ27,'LRMC x Plant ranked'!$F$4:$G$500,2,TRUE),0) -> 0 | AW27: =IF(INDEX('LRMC x Plant ranked'!$C$5:$C$500,MATCH($AR27,'LRMC x Plant ranked'!$G$5:$G$500,FALSE),)=AW$6,VLOOKUP($AQ27,'LRMC x Plant ranked'!$F$4:$G$500,2,TRUE),0) -> 59.23720325 | AX27: =IF(INDEX('LRMC x Plant ranked'!$C$5:$C$500,MATCH($AR27,'LRMC x Plant ranked'!$G$5:$G$500,FALSE),)=AX$6,VLOOKUP($AQ27,'LRMC x Plant ranked'!$F$4:$G$500,2,TRUE),0) -> 0 | AY27: 0 | AZ27: 0 | BA27: 0 | BC27: =IF(INDEX('LRMC x Plant ranked'!$C$5:$C$500,MATCH($AR27,'LRMC x Plant ranked'!$G$5:$G$500,FALSE),)=BC$6,VLOOKUP($AQ27,'LRMC x Plant ranked'!$F$4:$G$500,2,TRUE),0) -> 0 | BD27: =IF(INDEX('LRMC x Plant ranked'!$C$5:$C$500,MATCH($AR27,'LRMC x Plant ranked'!$G$5:$G$500,FALSE),)=BD$6,VLOOKUP($AQ27,'LRMC x Plant ranked'!$F$4:$G$500,2,TRUE),0) -> 0 | BE27: =IF(INDEX('LRMC x Plant ranked'!$C$5:$C$500,MATCH($AR27,'LRMC x Plant ranked'!$G$5:$G$500,FALSE),)=BE$6,VLOOKUP($AQ27,'LRMC x Plant ranked'!$F$4:$G$500,2,TRUE),0) -> 0 | BF27: =IF(INDEX('LRMC x Plant ranked'!$C$5:$C$500,MATCH($AR27,'LRMC x Plant ranked'!$G$5:$G$500,FALSE),)=BF$6,VLOOKUP($AQ27,'LRMC x Plant ranked'!$F$4:$G$500,2,TRUE),0) -> 0 | BG27: =IF(INDEX('LRMC x Plant ranked'!$C$5:$C$500,MATCH($AR27,'LRMC x Plant ranked'!$G$5:$G$500,FALSE),)=BG$6,VLOOKUP($AQ27,'LRMC x Plant ranked'!$F$4:$G$500,2,TRUE),0) -> 0 | BJ27: =IF(BJ26>MAX('LRMC x Plant ranked'!$P$5:$P$500),"",BJ26+IF($D$32="GWh",100,15)) -> 285 | BK27: =VLOOKUP($BJ27,'LRMC x Plant ranked'!$P$4:$Q$500,2,TRUE) -> 59.23720325 | BM27: =IF(INDEX('LRMC x Plant ranked'!$M$5:$M$500,MATCH($BK27,'LRMC x Plant ranked'!$Q$5:$Q$500,FALSE),)=BM$6,VLOOKUP($BJ27,'LRMC x Plant ranked'!$P$4:$Q$500,2,TRUE),0) -> 59.23720325 | BN27: =IF(INDEX('LRMC x Plant ranked'!$M$5:$M$500,MATCH($BK27,'LRMC x Plant ranked'!$Q$5:$Q$500,FALSE),)=BN$6,VLOOKUP($BJ27,'LRMC x Plant ranked'!$P$4:$Q$500,2,TRUE),0) -> 0 | BO27: 0 | BP27: 0 | BQ27: 0 | BS27: =IF(INDEX('LRMC x Plant ranked'!$M$5:$M$500,MATCH($BK27,'LRMC x Plant ranked'!$Q$5:$Q$500,FALSE),)=BS$6,VLOOKUP($BJ27,'LRMC x Plant ranked'!$P$4:$Q$500,2,TRUE),0) -> 0 | BT27: =IF(INDEX('LRMC x Plant ranked'!$M$5:$M$500,MATCH($BK27,'LRMC x Plant ranked'!$Q$5:$Q$500,FALSE),)=BT$6,VLOOKUP($BJ27,'LRMC x Plant ranked'!$P$4:$Q$500,2,TRUE),0) -> 0 | BU27: =IF(INDEX('LRMC x Plant ranked'!$M$5:$M$500,MATCH($BK27,'LRMC x Plant ranked'!$Q$5:$Q$500,FALSE),)=BU$6,VLOOKUP($BJ27,'LRMC x Plant ranked'!$P$4:$Q$500,2,TRUE),0) -> 0 | BV27: =IF(INDEX('LRMC x Plant ranked'!$M$5:$M$500,MATCH($BK27,'LRMC x Plant ranked'!$Q$5:$Q$500,FALSE),)=BV$6,VLOOKUP($BJ27,'LRMC x Plant ranked'!$P$4:$Q$500,2,TRUE),0) -> 0 | BW27: =IF(INDEX('LRMC x Plant ranked'!$M$5:$M$500,MATCH($BK27,'LRMC x Plant ranked'!$Q$5:$Q$500,FALSE),)=BW$6,VLOOKUP($BJ27,'LRMC x Plant ranked'!$P$4:$Q$500,2,TRUE),0) -> 0 | BX27: 81.677403 | BY27: 92.67719164 | BZ27: 117.3776135 | CA27: 173.8216805 | CB27: 69.67136421 | CJ27: Exclude - AbandonedWind | CK27: no
C28: GWAP/TWAP Adjust | D28: yes | AI28: =IF(ISERROR(IF(OR(VLOOKUP(AJ28,'GEM new plant'!$A$4:$P$388,COLUMNS('GEM new plant'!A77:C77),FALSE)="HydRR",VLOOKUP(AJ28,'GEM new plant'!$A$4:$P$388,COLUMNS('GEM new plant'!A77:C77),FALSE)="HydPk"),"Hydro",VLOOKUP(AJ28,'GEM new plant'!$A$4:$P$388,COLUMNS('GEM new plant'!A77:C77),FALSE))),0,IF(OR(VLOOKUP(AJ28,'GEM new plant'!$A$4:$P$388,COLUMNS('GEM new plant'!A77:C77),FALSE)="HydRR",VLOOKUP(AJ28,'GEM new plant'!$A$4:$P$388,COLUMNS('GEM new plant'!A77:C77),FALSE)="HydPk"),"Hydro",VLOOKUP(AJ28,'GEM new plant'!$A$4:$P$388,COLUMNS('GEM new plant'!A77:C77),FALSE))) -> Coal | AJ28: HuntRs1 | AK28: 313.1158455 | AL28: 208.6027398 | AQ28: =IF(AQ27>MAX('LRMC x Plant ranked'!$F$5:$F$500),"",AQ27+IF($D$32="GWh",100,15)) -> 300 | AR28: =VLOOKUP($AQ28,'LRMC x Plant ranked'!$F$4:$G$500,2,TRUE) -> 59.23720325 | AT28: =IF(INDEX('LRMC x Plant ranked'!$C$5:$C$500,MATCH($AR28,'LRMC x Plant ranked'!$G$5:$G$500,FALSE),)=AT$6,VLOOKUP($AQ28,'LRMC x Plant ranked'!$F$4:$G$500,2,TRUE),0) -> 0 | AU28: =IF(INDEX('LRMC x Plant ranked'!$C$5:$C$500,MATCH($AR28,'LRMC x Plant ranked'!$G$5:$G$500,FALSE),)=AU$6,VLOOKUP($AQ28,'LRMC x Plant ranked'!$F$4:$G$500,2,TRUE),0) -> 0 | AV28: =IF(INDEX('LRMC x Plant ranked'!$C$5:$C$500,MATCH($AR28,'LRMC x Plant ranked'!$G$5:$G$500,FALSE),)=AV$6,VLOOKUP($AQ28,'LRMC x Plant ranked'!$F$4:$G$500,2,TRUE),0) -> 0 | AW28: =IF(INDEX('LRMC x Plant ranked'!$C$5:$C$500,MATCH($AR28,'LRMC x Plant ranked'!$G$5:$G$500,FALSE),)=AW$6,VLOOKUP($AQ28,'LRMC x Plant ranked'!$F$4:$G$500,2,TRUE),0) -> 59.23720325 | AX28: =IF(INDEX('LRMC x Plant ranked'!$C$5:$C$500,MATCH($AR28,'LRMC x Plant ranked'!$G$5:$G$500,FALSE),)=AX$6,VLOOKUP($AQ28,'LRMC x Plant ranked'!$F$4:$G$500,2,TRUE),0) -> 0 | AY28: 0 | AZ28: 0 | BA28: 0 | BC28: =IF(INDEX('LRMC x Plant ranked'!$C$5:$C$500,MATCH($AR28,'LRMC x Plant ranked'!$G$5:$G$500,FALSE),)=BC$6,VLOOKUP($AQ28,'LRMC x Plant ranked'!$F$4:$G$500,2,TRUE),0) -> 0 | BD28: =IF(INDEX('LRMC x Plant ranked'!$C$5:$C$500,MATCH($AR28,'LRMC x Plant ranked'!$G$5:$G$500,FALSE),)=BD$6,VLOOKUP($AQ28,'LRMC x Plant ranked'!$F$4:$G$500,2,TRUE),0) -> 0 | BE28: =IF(INDEX('LRMC x Plant ranked'!$C$5:$C$500,MATCH($AR28,'LRMC x Plant ranked'!$G$5:$G$500,FALSE),)=BE$6,VLOOKUP($AQ28,'LRMC x Plant ranked'!$F$4:$G$500,2,TRUE),0) -> 0 | BF28: =IF(INDEX('LRMC x Plant ranked'!$C$5:$C$500,MATCH($AR28,'LRMC x Plant ranked'!$G$5:$G$500,FALSE),)=BF$6,VLOOKUP($AQ28,'LRMC x Plant ranked'!$F$4:$G$500,2,TRUE),0) -> 0 | BG28: =IF(INDEX('LRMC x Plant ranked'!$C$5:$C$500,MATCH($AR28,'LRMC x Plant ranked'!$G$5:$G$500,FALSE),)=BG$6,VLOOKUP($AQ28,'LRMC x Plant ranked'!$F$4:$G$500,2,TRUE),0) -> 0 | BJ28: =IF(BJ27>MAX('LRMC x Plant ranked'!$P$5:$P$500),"",BJ27+IF($D$32="GWh",100,15)) -> 300 | BK28: =VLOOKUP($BJ28,'LRMC x Plant ranked'!$P$4:$Q$500,2,TRUE) -> 59.23720325 | BM28: =IF(INDEX('LRMC x Plant ranked'!$M$5:$M$500,MATCH($BK28,'LRMC x Plant ranked'!$Q$5:$Q$500,FALSE),)=BM$6,VLOOKUP($BJ28,'LRMC x Plant ranked'!$P$4:$Q$500,2,TRUE),0) -> 59.23720325 | BN28: =IF(INDEX('LRMC x Plant ranked'!$M$5:$M$500,MATCH($BK28,'LRMC x Plant ranked'!$Q$5:$Q$500,FALSE),)=BN$6,VLOOKUP($BJ28,'LRMC x Plant ranked'!$P$4:$Q$500,2,TRUE),0) -> 0 | BO28: 0 | BP28: 0 | BQ28: 0 | BS28: =IF(INDEX('LRMC x Plant ranked'!$M$5:$M$500,MATCH($BK28,'LRMC x Plant ranked'!$Q$5:$Q$500,FALSE),)=BS$6,VLOOKUP($BJ28,'LRMC x Plant ranked'!$P$4:$Q$500,2,TRUE),0) -> 0 | BT28: =IF(INDEX('LRMC x Plant ranked'!$M$5:$M$500,MATCH($BK28,'LRMC x Plant ranked'!$Q$5:$Q$500,FALSE),)=BT$6,VLOOKUP($BJ28,'LRMC x Plant ranked'!$P$4:$Q$500,2,TRUE),0) -> 0 | BU28: =IF(INDEX('LRMC x Plant ranked'!$M$5:$M$500,MATCH($BK28,'LRMC x Plant ranked'!$Q$5:$Q$500,FALSE),)=BU$6,VLOOKUP($BJ28,'LRMC x Plant ranked'!$P$4:$Q$500,2,TRUE),0) -> 0 | BV28: =IF(INDEX('LRMC x Plant ranked'!$M$5:$M$500,MATCH($BK28,'LRMC x Plant ranked'!$Q$5:$Q$500,FALSE),)=BV$6,VLOOKUP($BJ28,'LRMC x Plant ranked'!$P$4:$Q$500,2,TRUE),0) -> 0 | BW28: =IF(INDEX('LRMC x Plant ranked'!$M$5:$M$500,MATCH($BK28,'LRMC x Plant ranked'!$Q$5:$Q$500,FALSE),)=BW$6,VLOOKUP($BJ28,'LRMC x Plant ranked'!$P$4:$Q$500,2,TRUE),0) -> 0 | BX28: 81.677403 | BY28: 92.67719164 | BZ28: 117.3776135 | CA28: 173.8216805 | CB28: 69.67136421 | CJ28: Exclude - OtherWind | CK28: no
C29: HVDC Charge Scalar | D29: 1 | AI29: =IF(ISERROR(IF(OR(VLOOKUP(AJ29,'GEM new plant'!$A$4:$P$388,COLUMNS('GEM new plant'!A193:C193),FALSE)="HydRR",VLOOKUP(AJ29,'GEM new plant'!$A$4:$P$388,COLUMNS('GEM new plant'!A193:C193),FALSE)="HydPk"),"Hydro",VLOOKUP(AJ29,'GEM new plant'!$A$4:$P$388,COLUMNS('GEM new plant'!A193:C193),FALSE))),0,IF(OR(VLOOKUP(AJ29,'GEM new plant'!$A$4:$P$388,COLUMNS('GEM new plant'!A193:C193),FALSE)="HydRR",VLOOKUP(AJ29,'GEM new plant'!$A$4:$P$388,COLUMNS('GEM new plant'!A193:C193),FALSE)="HydPk"),"Hydro",VLOOKUP(AJ29,'GEM new plant'!$A$4:$P$388,COLUMNS('GEM new plant'!A193:C193),FALSE))) -> Coal | AJ29: HuntRs2 | AK29: 313.1158455 | AL29: 208.6027398 | AQ29: =IF(AQ28>MAX('LRMC x Plant ranked'!$F$5:$F$500),"",AQ28+IF($D$32="GWh",100,15)) -> 315 | AR29: =VLOOKUP($AQ29,'LRMC x Plant ranked'!$F$4:$G$500,2,TRUE) -> 59.23720325 | AT29: =IF(INDEX('LRMC x Plant ranked'!$C$5:$C$500,MATCH($AR29,'LRMC x Plant ranked'!$G$5:$G$500,FALSE),)=AT$6,VLOOKUP($AQ29,'LRMC x Plant ranked'!$F$4:$G$500,2,TRUE),0) -> 0 | AU29: =IF(INDEX('LRMC x Plant ranked'!$C$5:$C$500,MATCH($AR29,'LRMC x Plant ranked'!$G$5:$G$500,FALSE),)=AU$6,VLOOKUP($AQ29,'LRMC x Plant ranked'!$F$4:$G$500,2,TRUE),0) -> 0 | AV29: =IF(INDEX('LRMC x Plant ranked'!$C$5:$C$500,MATCH($AR29,'LRMC x Plant ranked'!$G$5:$G$500,FALSE),)=AV$6,VLOOKUP($AQ29,'LRMC x Plant ranked'!$F$4:$G$500,2,TRUE),0) -> 0 | AW29: =IF(INDEX('LRMC x Plant ranked'!$C$5:$C$500,MATCH($AR29,'LRMC x Plant ranked'!$G$5:$G$500,FALSE),)=AW$6,VLOOKUP($AQ29,'LRMC x Plant ranked'!$F$4:$G$500,2,TRUE),0) -> 59.23720325 | AX29: =IF(INDEX('LRMC x Plant ranked'!$C$5:$C$500,MATCH($AR29,'LRMC x Plant ranked'!$G$5:$G$500,FALSE),)=AX$6,VLOOKUP($AQ29,'LRMC x Plant ranked'!$F$4:$G$500,2,TRUE),0) -> 0 | AY29: 0 | AZ29: 0 | BA29: 0 | BC29: =IF(INDEX('LRMC x Plant ranked'!$C$5:$C$500,MATCH($AR29,'LRMC x Plant ranked'!$G$5:$G$500,FALSE),)=BC$6,VLOOKUP($AQ29,'LRMC x Plant ranked'!$F$4:$G$500,2,TRUE),0) -> 0 | BD29: =IF(INDEX('LRMC x Plant ranked'!$C$5:$C$500,MATCH($AR29,'LRMC x Plant ranked'!$G$5:$G$500,FALSE),)=BD$6,VLOOKUP($AQ29,'LRMC x Plant ranked'!$F$4:$G$500,2,TRUE),0) -> 0 | BE29: =IF(INDEX('LRMC x Plant ranked'!$C$5:$C$500,MATCH($AR29,'LRMC x Plant ranked'!$G$5:$G$500,FALSE),)=BE$6,VLOOKUP($AQ29,'LRMC x Plant ranked'!$F$4:$G$500,2,TRUE),0) -> 0 | BF29: =IF(INDEX('LRMC x Plant ranked'!$C$5:$C$500,MATCH($AR29,'LRMC x Plant ranked'!$G$5:$G$500,FALSE),)=BF$6,VLOOKUP($AQ29,'LRMC x Plant ranked'!$F$4:$G$500,2,TRUE),0) -> 0 | BG29: =IF(INDEX('LRMC x Plant ranked'!$C$5:$C$500,MATCH($AR29,'LRMC x Plant ranked'!$G$5:$G$500,FALSE),)=BG$6,VLOOKUP($AQ29,'LRMC x Plant ranked'!$F$4:$G$500,2,TRUE),0) -> 0 | BJ29: =IF(BJ28>MAX('LRMC x Plant ranked'!$P$5:$P$500),"",BJ28+IF($D$32="GWh",100,15)) -> 315 | BK29: =VLOOKUP($BJ29,'LRMC x Plant ranked'!$P$4:$Q$500,2,TRUE) -> 59.23720325 | BM29: =IF(INDEX('LRMC x Plant ranked'!$M$5:$M$500,MATCH($BK29,'LRMC x Plant ranked'!$Q$5:$Q$500,FALSE),)=BM$6,VLOOKUP($BJ29,'LRMC x Plant ranked'!$P$4:$Q$500,2,TRUE),0) -> 59.23720325 | BN29: =IF(INDEX('LRMC x Plant ranked'!$M$5:$M$500,MATCH($BK29,'LRMC x Plant ranked'!$Q$5:$Q$500,FALSE),)=BN$6,VLOOKUP($BJ29,'LRMC x Plant ranked'!$P$4:$Q$500,2,TRUE),0) -> 0 | BO29: 0 | BP29: 0 | BQ29: 0 | BS29: =IF(INDEX('LRMC x Plant ranked'!$M$5:$M$500,MATCH($BK29,'LRMC x Plant ranked'!$Q$5:$Q$500,FALSE),)=BS$6,VLOOKUP($BJ29,'LRMC x Plant ranked'!$P$4:$Q$500,2,TRUE),0) -> 0 | BT29: =IF(INDEX('LRMC x Plant ranked'!$M$5:$M$500,MATCH($BK29,'LRMC x Plant ranked'!$Q$5:$Q$500,FALSE),)=BT$6,VLOOKUP($BJ29,'LRMC x Plant ranked'!$P$4:$Q$500,2,TRUE),0) -> 0 | BU29: =IF(INDEX('LRMC x Plant ranked'!$M$5:$M$500,MATCH($BK29,'LRMC x Plant ranked'!$Q$5:$Q$500,FALSE),)=BU$6,VLOOKUP($BJ29,'LRMC x Plant ranked'!$P$4:$Q$500,2,TRUE),0) -> 0 | BV29: =IF(INDEX('LRMC x Plant ranked'!$M$5:$M$500,MATCH($BK29,'LRMC x Plant ranked'!$Q$5:$Q$500,FALSE),)=BV$6,VLOOKUP($BJ29,'LRMC x Plant ranked'!$P$4:$Q$500,2,TRUE),0) -> 0 | BW29: =IF(INDEX('LRMC x Plant ranked'!$M$5:$M$500,MATCH($BK29,'LRMC x Plant ranked'!$Q$5:$Q$500,FALSE),)=BW$6,VLOOKUP($BJ29,'LRMC x Plant ranked'!$P$4:$Q$500,2,TRUE),0) -> 0 | BX29: 81.677403 | BY29: 92.67719164 | BZ29: 117.3776135 | CA29: 173.8216805 | CB29: 69.67136421 | CJ29: Fully ConsentedOther | CK29: yes
AI30: =IF(ISERROR(IF(OR(VLOOKUP(AJ30,'GEM new plant'!$A$4:$P$388,COLUMNS('GEM new plant'!A78:C78),FALSE)="HydRR",VLOOKUP(AJ30,'GEM new plant'!$A$4:$P$388,COLUMNS('GEM new plant'!A78:C78),FALSE)="HydPk"),"Hydro",VLOOKUP(AJ30,'GEM new plant'!$A$4:$P$388,COLUMNS('GEM new plant'!A78:C78),FALSE))),0,IF(OR(VLOOKUP(AJ30,'GEM new plant'!$A$4:$P$388,COLUMNS('GEM new plant'!A78:C78),FALSE)="HydRR",VLOOKUP(AJ30,'GEM new plant'!$A$4:$P$388,COLUMNS('GEM new plant'!A78:C78),FALSE)="HydPk"),"Hydro",VLOOKUP(AJ30,'GEM new plant'!$A$4:$P$388,COLUMNS('GEM new plant'!A78:C78),FALSE))) -> Coal | AJ30: HuntRs3 | AK30: 294.7662581 | AL30: 0.235 | AQ30: =IF(AQ29>MAX('LRMC x Plant ranked'!$F$5:$F$500),"",AQ29+IF($D$32="GWh",100,15)) -> 330 | AR30: =VLOOKUP($AQ30,'LRMC x Plant ranked'!$F$4:$G$500,2,TRUE) -> 59.23720325 | AT30: =IF(INDEX('LRMC x Plant ranked'!$C$5:$C$500,MATCH($AR30,'LRMC x Plant ranked'!$G$5:$G$500,FALSE),)=AT$6,VLOOKUP($AQ30,'LRMC x Plant ranked'!$F$4:$G$500,2,TRUE),0) -> 0 | AU30: =IF(INDEX('LRMC x Plant ranked'!$C$5:$C$500,MATCH($AR30,'LRMC x Plant ranked'!$G$5:$G$500,FALSE),)=AU$6,VLOOKUP($AQ30,'LRMC x Plant ranked'!$F$4:$G$500,2,TRUE),0) -> 0 | AV30: =IF(INDEX('LRMC x Plant ranked'!$C$5:$C$500,MATCH($AR30,'LRMC x Plant ranked'!$G$5:$G$500,FALSE),)=AV$6,VLOOKUP($AQ30,'LRMC x Plant ranked'!$F$4:$G$500,2,TRUE),0) -> 0 | AW30: =IF(INDEX('LRMC x Plant ranked'!$C$5:$C$500,MATCH($AR30,'LRMC x Plant ranked'!$G$5:$G$500,FALSE),)=AW$6,VLOOKUP($AQ30,'LRMC x Plant ranked'!$F$4:$G$500,2,TRUE),0) -> 59.23720325 | AX30: =IF(INDEX('LRMC x Plant ranked'!$C$5:$C$500,MATCH($AR30,'LRMC x Plant ranked'!$G$5:$G$500,FALSE),)=AX$6,VLOOKUP($AQ30,'LRMC x Plant ranked'!$F$4:$G$500,2,TRUE),0) -> 0 | AY30: 0 | AZ30: 0 | BA30: 0 | BC30: =IF(INDEX('LRMC x Plant ranked'!$C$5:$C$500,MATCH($AR30,'LRMC x Plant ranked'!$G$5:$G$500,FALSE),)=BC$6,VLOOKUP($AQ30,'LRMC x Plant ranked'!$F$4:$G$500,2,TRUE),0) -> 0 | BD30: =IF(INDEX('LRMC x Plant ranked'!$C$5:$C$500,MATCH($AR30,'LRMC x Plant ranked'!$G$5:$G$500,FALSE),)=BD$6,VLOOKUP($AQ30,'LRMC x Plant ranked'!$F$4:$G$500,2,TRUE),0) -> 0 | BE30: =IF(INDEX('LRMC x Plant ranked'!$C$5:$C$500,MATCH($AR30,'LRMC x Plant ranked'!$G$5:$G$500,FALSE),)=BE$6,VLOOKUP($AQ30,'LRMC x Plant ranked'!$F$4:$G$500,2,TRUE),0) -> 0 | BF30: =IF(INDEX('LRMC x Plant ranked'!$C$5:$C$500,MATCH($AR30,'LRMC x Plant ranked'!$G$5:$G$500,FALSE),)=BF$6,VLOOKUP($AQ30,'LRMC x Plant ranked'!$F$4:$G$500,2,TRUE),0) -> 0 | BG30: =IF(INDEX('LRMC x Plant ranked'!$C$5:$C$500,MATCH($AR30,'LRMC x Plant ranked'!$G$5:$G$500,FALSE),)=BG$6,VLOOKUP($AQ30,'LRMC x Plant ranked'!$F$4:$G$500,2,TRUE),0) -> 0 | BJ30: =IF(BJ29>MAX('LRMC x Plant ranked'!$P$5:$P$500),"",BJ29+IF($D$32="GWh",100,15)) -> 330 | BK30: =VLOOKUP($BJ30,'LRMC x Plant ranked'!$P$4:$Q$500,2,TRUE) -> 59.23720325 | BM30: =IF(INDEX('LRMC x Plant ranked'!$M$5:$M$500,MATCH($BK30,'LRMC x Plant ranked'!$Q$5:$Q$500,FALSE),)=BM$6,VLOOKUP($BJ30,'LRMC x Plant ranked'!$P$4:$Q$500,2,TRUE),0) -> 59.23720325 | BN30: =IF(INDEX('LRMC x Plant ranked'!$M$5:$M$500,MATCH($BK30,'LRMC x Plant ranked'!$Q$5:$Q$500,FALSE),)=BN$6,VLOOKUP($BJ30,'LRMC x Plant ranked'!$P$4:$Q$500,2,TRUE),0) -> 0 | BO30: 0 | BP30: 0 | BQ30: 0 | BS30: =IF(INDEX('LRMC x Plant ranked'!$M$5:$M$500,MATCH($BK30,'LRMC x Plant ranked'!$Q$5:$Q$500,FALSE),)=BS$6,VLOOKUP($BJ30,'LRMC x Plant ranked'!$P$4:$Q$500,2,TRUE),0) -> 0 | BT30: =IF(INDEX('LRMC x Plant ranked'!$M$5:$M$500,MATCH($BK30,'LRMC x Plant ranked'!$Q$5:$Q$500,FALSE),)=BT$6,VLOOKUP($BJ30,'LRMC x Plant ranked'!$P$4:$Q$500,2,TRUE),0) -> 0 | BU30: =IF(INDEX('LRMC x Plant ranked'!$M$5:$M$500,MATCH($BK30,'LRMC x Plant ranked'!$Q$5:$Q$500,FALSE),)=BU$6,VLOOKUP($BJ30,'LRMC x Plant ranked'!$P$4:$Q$500,2,TRUE),0) -> 0 | BV30: =IF(INDEX('LRMC x Plant ranked'!$M$5:$M$500,MATCH($BK30,'LRMC x Plant ranked'!$Q$5:$Q$500,FALSE),)=BV$6,VLOOKUP($BJ30,'LRMC x Plant ranked'!$P$4:$Q$500,2,TRUE),0) -> 0 | BW30: =IF(INDEX('LRMC x Plant ranked'!$M$5:$M$500,MATCH($BK30,'LRMC x Plant ranked'!$Q$5:$Q$500,FALSE),)=BW$6,VLOOKUP($BJ30,'LRMC x Plant ranked'!$P$4:$Q$500,2,TRUE),0) -> 0 | BX30: 81.677403 | BY30: 92.67719164 | BZ30: 117.3776135 | CA30: 173.8216805 | CB30: 69.67136421
C31: Other chart viewing options | AI31: =IF(ISERROR(IF(OR(VLOOKUP(AJ31,'GEM new plant'!$A$4:$P$388,COLUMNS('GEM new plant'!A73:C73),FALSE)="HydRR",VLOOKUP(AJ31,'GEM new plant'!$A$4:$P$388,COLUMNS('GEM new plant'!A73:C73),FALSE)="HydPk"),"Hydro",VLOOKUP(AJ31,'GEM new plant'!$A$4:$P$388,COLUMNS('GEM new plant'!A73:C73),FALSE))),0,IF(OR(VLOOKUP(AJ31,'GEM new plant'!$A$4:$P$388,COLUMNS('GEM new plant'!A73:C73),FALSE)="HydRR",VLOOKUP(AJ31,'GEM new plant'!$A$4:$P$388,COLUMNS('GEM new plant'!A73:C73),FALSE)="HydPk"),"Hydro",VLOOKUP(AJ31,'GEM new plant'!$A$4:$P$388,COLUMNS('GEM new plant'!A73:C73),FALSE))) -> Coal | AJ31: HuntRs4 | AK31: 294.7662581 | AL31: 0.235 | AQ31: =IF(AQ30>MAX('LRMC x Plant ranked'!$F$5:$F$500),"",AQ30+IF($D$32="GWh",100,15)) -> 345 | AR31: =VLOOKUP($AQ31,'LRMC x Plant ranked'!$F$4:$G$500,2,TRUE) -> 59.23720325 | AT31: =IF(INDEX('LRMC x Plant ranked'!$C$5:$C$500,MATCH($AR31,'LRMC x Plant ranked'!$G$5:$G$500,FALSE),)=AT$6,VLOOKUP($AQ31,'LRMC x Plant ranked'!$F$4:$G$500,2,TRUE),0) -> 0 | AU31: =IF(INDEX('LRMC x Plant ranked'!$C$5:$C$500,MATCH($AR31,'LRMC x Plant ranked'!$G$5:$G$500,FALSE),)=AU$6,VLOOKUP($AQ31,'LRMC x Plant ranked'!$F$4:$G$500,2,TRUE),0) -> 0 | AV31: =IF(INDEX('LRMC x Plant ranked'!$C$5:$C$500,MATCH($AR31,'LRMC x Plant ranked'!$G$5:$G$500,FALSE),)=AV$6,VLOOKUP($AQ31,'LRMC x Plant ranked'!$F$4:$G$500,2,TRUE),0) -> 0 | AW31: =IF(INDEX('LRMC x Plant ranked'!$C$5:$C$500,MATCH($AR31,'LRMC x Plant ranked'!$G$5:$G$500,FALSE),)=AW$6,VLOOKUP($AQ31,'LRMC x Plant ranked'!$F$4:$G$500,2,TRUE),0) -> 59.23720325 | AX31: =IF(INDEX('LRMC x Plant ranked'!$C$5:$C$500,MATCH($AR31,'LRMC x Plant ranked'!$G$5:$G$500,FALSE),)=AX$6,VLOOKUP($AQ31,'LRMC x Plant ranked'!$F$4:$G$500,2,TRUE),0) -> 0 | AY31: 0 | AZ31: 0 | BA31: 0 | BC31: =IF(INDEX('LRMC x Plant ranked'!$C$5:$C$500,MATCH($AR31,'LRMC x Plant ranked'!$G$5:$G$500,FALSE),)=BC$6,VLOOKUP($AQ31,'LRMC x Plant ranked'!$F$4:$G$500,2,TRUE),0) -> 0 | BD31: =IF(INDEX('LRMC x Plant ranked'!$C$5:$C$500,MATCH($AR31,'LRMC x Plant ranked'!$G$5:$G$500,FALSE),)=BD$6,VLOOKUP($AQ31,'LRMC x Plant ranked'!$F$4:$G$500,2,TRUE),0) -> 0 | BE31: =IF(INDEX('LRMC x Plant ranked'!$C$5:$C$500,MATCH($AR31,'LRMC x Plant ranked'!$G$5:$G$500,FALSE),)=BE$6,VLOOKUP($AQ31,'LRMC x Plant ranked'!$F$4:$G$500,2,TRUE),0) -> 0 | BF31: =IF(INDEX('LRMC x Plant ranked'!$C$5:$C$500,MATCH($AR31,'LRMC x Plant ranked'!$G$5:$G$500,FALSE),)=BF$6,VLOOKUP($AQ31,'LRMC x Plant ranked'!$F$4:$G$500,2,TRUE),0) -> 0 | BG31: =IF(INDEX('LRMC x Plant ranked'!$C$5:$C$500,MATCH($AR31,'LRMC x Plant ranked'!$G$5:$G$500,FALSE),)=BG$6,VLOOKUP($AQ31,'LRMC x Plant ranked'!$F$4:$G$500,2,TRUE),0) -> 0 | BJ31: =IF(BJ30>MAX('LRMC x Plant ranked'!$P$5:$P$500),"",BJ30+IF($D$32="GWh",100,15)) -> 345 | BK31: =VLOOKUP($BJ31,'LRMC x Plant ranked'!$P$4:$Q$500,2,TRUE) -> 59.23720325 | BM31: =IF(INDEX('LRMC x Plant ranked'!$M$5:$M$500,MATCH($BK31,'LRMC x Plant ranked'!$Q$5:$Q$500,FALSE),)=BM$6,VLOOKUP($BJ31,'LRMC x Plant ranked'!$P$4:$Q$500,2,TRUE),0) -> 59.23720325 | BN31: =IF(INDEX('LRMC x Plant ranked'!$M$5:$M$500,MATCH($BK31,'LRMC x Plant ranked'!$Q$5:$Q$500,FALSE),)=BN$6,VLOOKUP($BJ31,'LRMC x Plant ranked'!$P$4:$Q$500,2,TRUE),0) -> 0 | BO31: 0 | BP31: 0 | BQ31: 0 | BS31: =IF(INDEX('LRMC x Plant ranked'!$M$5:$M$500,MATCH($BK31,'LRMC x Plant ranked'!$Q$5:$Q$500,FALSE),)=BS$6,VLOOKUP($BJ31,'LRMC x Plant ranked'!$P$4:$Q$500,2,TRUE),0) -> 0 | BT31: =IF(INDEX('LRMC x Plant ranked'!$M$5:$M$500,MATCH($BK31,'LRMC x Plant ranked'!$Q$5:$Q$500,FALSE),)=BT$6,VLOOKUP($BJ31,'LRMC x Plant ranked'!$P$4:$Q$500,2,TRUE),0) -> 0 | BU31: =IF(INDEX('LRMC x Plant ranked'!$M$5:$M$500,MATCH($BK31,'LRMC x Plant ranked'!$Q$5:$Q$500,FALSE),)=BU$6,VLOOKUP($BJ31,'LRMC x Plant ranked'!$P$4:$Q$500,2,TRUE),0) -> 0 | BV31: =IF(INDEX('LRMC x Plant ranked'!$M$5:$M$500,MATCH($BK31,'LRMC x Plant ranked'!$Q$5:$Q$500,FALSE),)=BV$6,VLOOKUP($BJ31,'LRMC x Plant ranked'!$P$4:$Q$500,2,TRUE),0) -> 0 | BW31: =IF(INDEX('LRMC x Plant ranked'!$M$5:$M$500,MATCH($BK31,'LRMC x Plant ranked'!$Q$5:$Q$500,FALSE),)=BW$6,VLOOKUP($BJ31,'LRMC x Plant ranked'!$P$4:$Q$500,2,TRUE),0) -> 0 | BX31: 81.677403 | BY31: 92.67719164 | BZ31: 117.3776135 | CA31: 173.8216805 | CB31: 69.67136421
C32: MW / net MW / GWh | D32: MW | AI32: =IF(ISERROR(IF(OR(VLOOKUP(AJ32,'GEM new plant'!$A$4:$P$388,COLUMNS('GEM new plant'!A75:C75),FALSE)="HydRR",VLOOKUP(AJ32,'GEM new plant'!$A$4:$P$388,COLUMNS('GEM new plant'!A75:C75),FALSE)="HydPk"),"Hydro",VLOOKUP(AJ32,'GEM new plant'!$A$4:$P$388,COLUMNS('GEM new plant'!A75:C75),FALSE))),0,IF(OR(VLOOKUP(AJ32,'GEM new plant'!$A$4:$P$388,COLUMNS('GEM new plant'!A75:C75),FALSE)="HydRR",VLOOKUP(AJ32,'GEM new plant'!$A$4:$P$388,COLUMNS('GEM new plant'!A75:C75),FALSE)="HydPk"),"Hydro",VLOOKUP(AJ32,'GEM new plant'!$A$4:$P$388,COLUMNS('GEM new plant'!A75:C75),FALSE))) -> Coal | AJ32: IGCCG1 | AK32: 137.519867 | AL32: 3416.957647 | AQ32: =IF(AQ31>MAX('LRMC x Plant ranked'!$F$5:$F$500),"",AQ31+IF($D$32="GWh",100,15)) -> 360 | AR32: =VLOOKUP($AQ32,'LRMC x Plant ranked'!$F$4:$G$500,2,TRUE) -> 59.23720325 | AT32: =IF(INDEX('LRMC x Plant ranked'!$C$5:$C$500,MATCH($AR32,'LRMC x Plant ranked'!$G$5:$G$500,FALSE),)=AT$6,VLOOKUP($AQ32,'LRMC x Plant ranked'!$F$4:$G$500,2,TRUE),0) -> 0 | AU32: =IF(INDEX('LRMC x Plant ranked'!$C$5:$C$500,MATCH($AR32,'LRMC x Plant ranked'!$G$5:$G$500,FALSE),)=AU$6,VLOOKUP($AQ32,'LRMC x Plant ranked'!$F$4:$G$500,2,TRUE),0) -> 0 | AV32: =IF(INDEX('LRMC x Plant ranked'!$C$5:$C$500,MATCH($AR32,'LRMC x Plant ranked'!$G$5:$G$500,FALSE),)=AV$6,VLOOKUP($AQ32,'LRMC x Plant ranked'!$F$4:$G$500,2,TRUE),0) -> 0 | AW32: =IF(INDEX('LRMC x Plant ranked'!$C$5:$C$500,MATCH($AR32,'LRMC x Plant ranked'!$G$5:$G$500,FALSE),)=AW$6,VLOOKUP($AQ32,'LRMC x Plant ranked'!$F$4:$G$500,2,TRUE),0) -> 59.23720325 | AX32: =IF(INDEX('LRMC x Plant ranked'!$C$5:$C$500,MATCH($AR32,'LRMC x Plant ranked'!$G$5:$G$500,FALSE),)=AX$6,VLOOKUP($AQ32,'LRMC x Plant ranked'!$F$4:$G$500,2,TRUE),0) -> 0 | AY32: 0 | AZ32: 0 | BA32: 0 | BC32: =IF(INDEX('LRMC x Plant ranked'!$C$5:$C$500,MATCH($AR32,'LRMC x Plant ranked'!$G$5:$G$500,FALSE),)=BC$6,VLOOKUP($AQ32,'LRMC x Plant ranked'!$F$4:$G$500,2,TRUE),0) -> 0 | BD32: =IF(INDEX('LRMC x Plant ranked'!$C$5:$C$500,MATCH($AR32,'LRMC x Plant ranked'!$G$5:$G$500,FALSE),)=BD$6,VLOOKUP($AQ32,'LRMC x Plant ranked'!$F$4:$G$500,2,TRUE),0) -> 0 | BE32: =IF(INDEX('LRMC x Plant ranked'!$C$5:$C$500,MATCH($AR32,'LRMC x Plant ranked'!$G$5:$G$500,FALSE),)=BE$6,VLOOKUP($AQ32,'LRMC x Plant ranked'!$F$4:$G$500,2,TRUE),0) -> 0 | BF32: =IF(INDEX('LRMC x Plant ranked'!$C$5:$C$500,MATCH($AR32,'LRMC x Plant ranked'!$G$5:$G$500,FALSE),)=BF$6,VLOOKUP($AQ32,'LRMC x Plant ranked'!$F$4:$G$500,2,TRUE),0) -> 0 | BG32: =IF(INDEX('LRMC x Plant ranked'!$C$5:$C$500,MATCH($AR32,'LRMC x Plant ranked'!$G$5:$G$500,FALSE),)=BG$6,VLOOKUP($AQ32,'LRMC x Plant ranked'!$F$4:$G$500,2,TRUE),0) -> 0 | BJ32: =IF(BJ31>MAX('LRMC x Plant ranked'!$P$5:$P$500),"",BJ31+IF($D$32="GWh",100,15)) -> 360 | BK32: =VLOOKUP($BJ32,'LRMC x Plant ranked'!$P$4:$Q$500,2,TRUE) -> 59.23720325 | BM32: =IF(INDEX('LRMC x Plant ranked'!$M$5:$M$500,MATCH($BK32,'LRMC x Plant ranked'!$Q$5:$Q$500,FALSE),)=BM$6,VLOOKUP($BJ32,'LRMC x Plant ranked'!$P$4:$Q$500,2,TRUE),0) -> 59.23720325 | BN32: =IF(INDEX('LRMC x Plant ranked'!$M$5:$M$500,MATCH($BK32,'LRMC x Plant ranked'!$Q$5:$Q$500,FALSE),)=BN$6,VLOOKUP($BJ32,'LRMC x Plant ranked'!$P$4:$Q$500,2,TRUE),0) -> 0 | BO32: 0 | BP32: 0 | BQ32: 0 | BS32: =IF(INDEX('LRMC x Plant ranked'!$M$5:$M$500,MATCH($BK32,'LRMC x Plant ranked'!$Q$5:$Q$500,FALSE),)=BS$6,VLOOKUP($BJ32,'LRMC x Plant ranked'!$P$4:$Q$500,2,TRUE),0) -> 0 | BT32: =IF(INDEX('LRMC x Plant ranked'!$M$5:$M$500,MATCH($BK32,'LRMC x Plant ranked'!$Q$5:$Q$500,FALSE),)=BT$6,VLOOKUP($BJ32,'LRMC x Plant ranked'!$P$4:$Q$500,2,TRUE),0) -> 0 | BU32: =IF(INDEX('LRMC x Plant ranked'!$M$5:$M$500,MATCH($BK32,'LRMC x Plant ranked'!$Q$5:$Q$500,FALSE),)=BU$6,VLOOKUP($BJ32,'LRMC x Plant ranked'!$P$4:$Q$500,2,TRUE),0) -> 0 | BV32: =IF(INDEX('LRMC x Plant ranked'!$M$5:$M$500,MATCH($BK32,'LRMC x Plant ranked'!$Q$5:$Q$500,FALSE),)=BV$6,VLOOKUP($BJ32,'LRMC x Plant ranked'!$P$4:$Q$500,2,TRUE),0) -> 0 | BW32: =IF(INDEX('LRMC x Plant ranked'!$M$5:$M$500,MATCH($BK32,'LRMC x Plant ranked'!$Q$5:$Q$500,FALSE),)=BW$6,VLOOKUP($BJ32,'LRMC x Plant ranked'!$P$4:$Q$500,2,TRUE),0) -> 0 | BX32: 81.677403 | BY32: 92.67719164 | BZ32: 117.3776135 | CA32: 173.8216805 | CB32: 69.67136421
C33: Site/Haywards price: | D33: Haywards | AI33: =IF(ISERROR(IF(OR(VLOOKUP(AJ33,'GEM new plant'!$A$4:$P$388,COLUMNS('GEM new plant'!A199:C199),FALSE)="HydRR",VLOOKUP(AJ33,'GEM new plant'!$A$4:$P$388,COLUMNS('GEM new plant'!A199:C199),FALSE)="HydPk"),"Hydro",VLOOKUP(AJ33,'GEM new plant'!$A$4:$P$388,COLUMNS('GEM new plant'!A199:C199),FALSE))),0,IF(OR(VLOOKUP(AJ33,'GEM new plant'!$A$4:$P$388,COLUMNS('GEM new plant'!A199:C199),FALSE)="HydRR",VLOOKUP(AJ33,'GEM new plant'!$A$4:$P$388,COLUMNS('GEM new plant'!A199:C199),FALSE)="HydPk"),"Hydro",VLOOKUP(AJ33,'GEM new plant'!$A$4:$P$388,COLUMNS('GEM new plant'!A199:C199),FALSE))) -> Coal | AJ33: IGCCG2 | AK33: 127.6970193 | AL33: 3416.957647 | AQ33: =IF(AQ32>MAX('LRMC x Plant ranked'!$F$5:$F$500),"",AQ32+IF($D$32="GWh",100,15)) -> 375 | AR33: =VLOOKUP($AQ33,'LRMC x Plant ranked'!$F$4:$G$500,2,TRUE) -> 59.23720325 | AT33: =IF(INDEX('LRMC x Plant ranked'!$C$5:$C$500,MATCH($AR33,'LRMC x Plant ranked'!$G$5:$G$500,FALSE),)=AT$6,VLOOKUP($AQ33,'LRMC x Plant ranked'!$F$4:$G$500,2,TRUE),0) -> 0 | AU33: =IF(INDEX('LRMC x Plant ranked'!$C$5:$C$500,MATCH($AR33,'LRMC x Plant ranked'!$G$5:$G$500,FALSE),)=AU$6,VLOOKUP($AQ33,'LRMC x Plant ranked'!$F$4:$G$500,2,TRUE),0) -> 0 | AV33: =IF(INDEX('LRMC x Plant ranked'!$C$5:$C$500,MATCH($AR33,'LRMC x Plant ranked'!$G$5:$G$500,FALSE),)=AV$6,VLOOKUP($AQ33,'LRMC x Plant ranked'!$F$4:$G$500,2,TRUE),0) -> 0 | AW33: =IF(INDEX('LRMC x Plant ranked'!$C$5:$C$500,MATCH($AR33,'LRMC x Plant ranked'!$G$5:$G$500,FALSE),)=AW$6,VLOOKUP($AQ33,'LRMC x Plant ranked'!$F$4:$G$500,2,TRUE),0) -> 59.23720325 | AX33: =IF(INDEX('LRMC x Plant ranked'!$C$5:$C$500,MATCH($AR33,'LRMC x Plant ranked'!$G$5:$G$500,FALSE),)=AX$6,VLOOKUP($AQ33,'LRMC x Plant ranked'!$F$4:$G$500,2,TRUE),0) -> 0 | AY33: 0 | AZ33: 0 | BA33: 0 | BC33: =IF(INDEX('LRMC x Plant ranked'!$C$5:$C$500,MATCH($AR33,'LRMC x Plant ranked'!$G$5:$G$500,FALSE),)=BC$6,VLOOKUP($AQ33,'LRMC x Plant ranked'!$F$4:$G$500,2,TRUE),0) -> 0 | BD33: =IF(INDEX('LRMC x Plant ranked'!$C$5:$C$500,MATCH($AR33,'LRMC x Plant ranked'!$G$5:$G$500,FALSE),)=BD$6,VLOOKUP($AQ33,'LRMC x Plant ranked'!$F$4:$G$500,2,TRUE),0) -> 0 | BE33: =IF(INDEX('LRMC x Plant ranked'!$C$5:$C$500,MATCH($AR33,'LRMC x Plant ranked'!$G$5:$G$500,FALSE),)=BE$6,VLOOKUP($AQ33,'LRMC x Plant ranked'!$F$4:$G$500,2,TRUE),0) -> 0 | BF33: =IF(INDEX('LRMC x Plant ranked'!$C$5:$C$500,MATCH($AR33,'LRMC x Plant ranked'!$G$5:$G$500,FALSE),)=BF$6,VLOOKUP($AQ33,'LRMC x Plant ranked'!$F$4:$G$500,2,TRUE),0) -> 0 | BG33: =IF(INDEX('LRMC x Plant ranked'!$C$5:$C$500,MATCH($AR33,'LRMC x Plant ranked'!$G$5:$G$500,FALSE),)=BG$6,VLOOKUP($AQ33,'LRMC x Plant ranked'!$F$4:$G$500,2,TRUE),0) -> 0 | BJ33: =IF(BJ32>MAX('LRMC x Plant ranked'!$P$5:$P$500),"",BJ32+IF($D$32="GWh",100,15)) -> 375 | BK33: =VLOOKUP($BJ33,'LRMC x Plant ranked'!$P$4:$Q$500,2,TRUE) -> 59.23720325 | BM33: =IF(INDEX('LRMC x Plant ranked'!$M$5:$M$500,MATCH($BK33,'LRMC x Plant ranked'!$Q$5:$Q$500,FALSE),)=BM$6,VLOOKUP($BJ33,'LRMC x Plant ranked'!$P$4:$Q$500,2,TRUE),0) -> 59.23720325 | BN33: =IF(INDEX('LRMC x Plant ranked'!$M$5:$M$500,MATCH($BK33,'LRMC x Plant ranked'!$Q$5:$Q$500,FALSE),)=BN$6,VLOOKUP($BJ33,'LRMC x Plant ranked'!$P$4:$Q$500,2,TRUE),0) -> 0 | BO33: 0 | BP33: 0 | BQ33: 0 | BS33: =IF(INDEX('LRMC x Plant ranked'!$M$5:$M$500,MATCH($BK33,'LRMC x Plant ranked'!$Q$5:$Q$500,FALSE),)=BS$6,VLOOKUP($BJ33,'LRMC x Plant ranked'!$P$4:$Q$500,2,TRUE),0) -> 0 | BT33: =IF(INDEX('LRMC x Plant ranked'!$M$5:$M$500,MATCH($BK33,'LRMC x Plant ranked'!$Q$5:$Q$500,FALSE),)=BT$6,VLOOKUP($BJ33,'LRMC x Plant ranked'!$P$4:$Q$500,2,TRUE),0) -> 0 | BU33: =IF(INDEX('LRMC x Plant ranked'!$M$5:$M$500,MATCH($BK33,'LRMC x Plant ranked'!$Q$5:$Q$500,FALSE),)=BU$6,VLOOKUP($BJ33,'LRMC x Plant ranked'!$P$4:$Q$500,2,TRUE),0) -> 0 | BV33: =IF(INDEX('LRMC x Plant ranked'!$M$5:$M$500,MATCH($BK33,'LRMC x Plant ranked'!$Q$5:$Q$500,FALSE),)=BV$6,VLOOKUP($BJ33,'LRMC x Plant ranked'!$P$4:$Q$500,2,TRUE),0) -> 0 | BW33: =IF(INDEX('LRMC x Plant ranked'!$M$5:$M$500,MATCH($BK33,'LRMC x Plant ranked'!$Q$5:$Q$500,FALSE),)=BW$6,VLOOKUP($BJ33,'LRMC x Plant ranked'!$P$4:$Q$500,2,TRUE),0) -> 0 | BX33: 81.677403 | BY33: 92.67719164 | BZ33: 117.3776135 | CA33: 173.8216805 | CB33: 69.67136421
AI34: =IF(ISERROR(IF(OR(VLOOKUP(AJ34,'GEM new plant'!$A$4:$P$388,COLUMNS('GEM new plant'!A132:C132),FALSE)="HydRR",VLOOKUP(AJ34,'GEM new plant'!$A$4:$P$388,COLUMNS('GEM new plant'!A132:C132),FALSE)="HydPk"),"Hydro",VLOOKUP(AJ34,'GEM new plant'!$A$4:$P$388,COLUMNS('GEM new plant'!A132:C132),FALSE))),0,IF(OR(VLOOKUP(AJ34,'GEM new plant'!$A$4:$P$388,COLUMNS('GEM new plant'!A132:C132),FALSE)="HydRR",VLOOKUP(AJ34,'GEM new plant'!$A$4:$P$388,COLUMNS('GEM new plant'!A132:C132),FALSE)="HydPk"),"Hydro",VLOOKUP(AJ34,'GEM new plant'!$A$4:$P$388,COLUMNS('GEM new plant'!A132:C132),FALSE))) -> Coal | AJ34: IGCCG3 | AK34: 143.0206617 | AL34: 3416.957647 | AQ34: =IF(AQ33>MAX('LRMC x Plant ranked'!$F$5:$F$500),"",AQ33+IF($D$32="GWh",100,15)) -> 390 | AR34: =VLOOKUP($AQ34,'LRMC x Plant ranked'!$F$4:$G$500,2,TRUE) -> 59.23720325 | AT34: =IF(INDEX('LRMC x Plant ranked'!$C$5:$C$500,MATCH($AR34,'LRMC x Plant ranked'!$G$5:$G$500,FALSE),)=AT$6,VLOOKUP($AQ34,'LRMC x Plant ranked'!$F$4:$G$500,2,TRUE),0) -> 0 | AU34: =IF(INDEX('LRMC x Plant ranked'!$C$5:$C$500,MATCH($AR34,'LRMC x Plant ranked'!$G$5:$G$500,FALSE),)=AU$6,VLOOKUP($AQ34,'LRMC x Plant ranked'!$F$4:$G$500,2,TRUE),0) -> 0 | AV34: =IF(INDEX('LRMC x Plant ranked'!$C$5:$C$500,MATCH($AR34,'LRMC x Plant ranked'!$G$5:$G$500,FALSE),)=AV$6,VLOOKUP($AQ34,'LRMC x Plant ranked'!$F$4:$G$500,2,TRUE),0) -> 0 | AW34: =IF(INDEX('LRMC x Plant ranked'!$C$5:$C$500,MATCH($AR34,'LRMC x Plant ranked'!$G$5:$G$500,FALSE),)=AW$6,VLOOKUP($AQ34,'LRMC x Plant ranked'!$F$4:$G$500,2,TRUE),0) -> 59.23720325 | AX34: =IF(INDEX('LRMC x Plant ranked'!$C$5:$C$500,MATCH($AR34,'LRMC x Plant ranked'!$G$5:$G$500,FALSE),)=AX$6,VLOOKUP($AQ34,'LRMC x Plant ranked'!$F$4:$G$500,2,TRUE),0) -> 0 | AY34: 0 | AZ34: 0 | BA34: 0 | BC34: =IF(INDEX('LRMC x Plant ranked'!$C$5:$C$500,MATCH($AR34,'LRMC x Plant ranked'!$G$5:$G$500,FALSE),)=BC$6,VLOOKUP($AQ34,'LRMC x Plant ranked'!$F$4:$G$500,2,TRUE),0) -> 0 | BD34: =IF(INDEX('LRMC x Plant ranked'!$C$5:$C$500,MATCH($AR34,'LRMC x Plant ranked'!$G$5:$G$500,FALSE),)=BD$6,VLOOKUP($AQ34,'LRMC x Plant ranked'!$F$4:$G$500,2,TRUE),0) -> 0 | BE34: =IF(INDEX('LRMC x Plant ranked'!$C$5:$C$500,MATCH($AR34,'LRMC x Plant ranked'!$G$5:$G$500,FALSE),)=BE$6,VLOOKUP($AQ34,'LRMC x Plant ranked'!$F$4:$G$500,2,TRUE),0) -> 0 | BF34: =IF(INDEX('LRMC x Plant ranked'!$C$5:$C$500,MATCH($AR34,'LRMC x Plant ranked'!$G$5:$G$500,FALSE),)=BF$6,VLOOKUP($AQ34,'LRMC x Plant ranked'!$F$4:$G$500,2,TRUE),0) -> 0 | BG34: =IF(INDEX('LRMC x Plant ranked'!$C$5:$C$500,MATCH($AR34,'LRMC x Plant ranked'!$G$5:$G$500,FALSE),)=BG$6,VLOOKUP($AQ34,'LRMC x Plant ranked'!$F$4:$G$500,2,TRUE),0) -> 0 | BJ34: =IF(BJ33>MAX('LRMC x Plant ranked'!$P$5:$P$500),"",BJ33+IF($D$32="GWh",100,15)) -> 390 | BK34: =VLOOKUP($BJ34,'LRMC x Plant ranked'!$P$4:$Q$500,2,TRUE) -> 59.23720325 | BM34: =IF(INDEX('LRMC x Plant ranked'!$M$5:$M$500,MATCH($BK34,'LRMC x Plant ranked'!$Q$5:$Q$500,FALSE),)=BM$6,VLOOKUP($BJ34,'LRMC x Plant ranked'!$P$4:$Q$500,2,TRUE),0) -> 59.23720325 | BN34: =IF(INDEX('LRMC x Plant ranked'!$M$5:$M$500,MATCH($BK34,'LRMC x Plant ranked'!$Q$5:$Q$500,FALSE),)=BN$6,VLOOKUP($BJ34,'LRMC x Plant ranked'!$P$4:$Q$500,2,TRUE),0) -> 0 | BO34: 0 | BP34: 0 | BQ34: 0 | BS34: =IF(INDEX('LRMC x Plant ranked'!$M$5:$M$500,MATCH($BK34,'LRMC x Plant ranked'!$Q$5:$Q$500,FALSE),)=BS$6,VLOOKUP($BJ34,'LRMC x Plant ranked'!$P$4:$Q$500,2,TRUE),0) -> 0 | BT34: =IF(INDEX('LRMC x Plant ranked'!$M$5:$M$500,MATCH($BK34,'LRMC x Plant ranked'!$Q$5:$Q$500,FALSE),)=BT$6,VLOOKUP($BJ34,'LRMC x Plant ranked'!$P$4:$Q$500,2,TRUE),0) -> 0 | BU34: =IF(INDEX('LRMC x Plant ranked'!$M$5:$M$500,MATCH($BK34,'LRMC x Plant ranked'!$Q$5:$Q$500,FALSE),)=BU$6,VLOOKUP($BJ34,'LRMC x Plant ranked'!$P$4:$Q$500,2,TRUE),0) -> 0 | BV34: =IF(INDEX('LRMC x Plant ranked'!$M$5:$M$500,MATCH($BK34,'LRMC x Plant ranked'!$Q$5:$Q$500,FALSE),)=BV$6,VLOOKUP($BJ34,'LRMC x Plant ranked'!$P$4:$Q$500,2,TRUE),0) -> 0 | BW34: =IF(INDEX('LRMC x Plant ranked'!$M$5:$M$500,MATCH($BK34,'LRMC x Plant ranked'!$Q$5:$Q$500,FALSE),)=BW$6,VLOOKUP($BJ34,'LRMC x Plant ranked'!$P$4:$Q$500,2,TRUE),0) -> 0 | BX34: 81.677403 | BY34: 92.67719164 | BZ34: 117.3776135 | CA34: 173.8216805 | CB34: 69.67136421
C35: Resource Selection | D35: Other | E35: Geo | F35: Wind | AI35: =IF(ISERROR(IF(OR(VLOOKUP(AJ35,'GEM new plant'!$A$4:$P$388,COLUMNS('GEM new plant'!A119:C119),FALSE)="HydRR",VLOOKUP(AJ35,'GEM new plant'!$A$4:$P$388,COLUMNS('GEM new plant'!A119:C119),FALSE)="HydPk"),"Hydro",VLOOKUP(AJ35,'GEM new plant'!$A$4:$P$388,COLUMNS('GEM new plant'!A119:C119),FALSE))),0,IF(OR(VLOOKUP(AJ35,'GEM new plant'!$A$4:$P$388,COLUMNS('GEM new plant'!A119:C119),FALSE)="HydRR",VLOOKUP(AJ35,'GEM new plant'!$A$4:$P$388,COLUMNS('GEM new plant'!A119:C119),FALSE)="HydPk"),"Hydro",VLOOKUP(AJ35,'GEM new plant'!$A$4:$P$388,COLUMNS('GEM new plant'!A119:C119),FALSE))) -> Coal | AJ35: IGCCG4 | AK35: 140.3845749 | AL35: 3416.957647 | AQ35: =IF(AQ34>MAX('LRMC x Plant ranked'!$F$5:$F$500),"",AQ34+IF($D$32="GWh",100,15)) -> 405 | AR35: =VLOOKUP($AQ35,'LRMC x Plant ranked'!$F$4:$G$500,2,TRUE) -> 59.23720325 | AT35: =IF(INDEX('LRMC x Plant ranked'!$C$5:$C$500,MATCH($AR35,'LRMC x Plant ranked'!$G$5:$G$500,FALSE),)=AT$6,VLOOKUP($AQ35,'LRMC x Plant ranked'!$F$4:$G$500,2,TRUE),0) -> 0 | AU35: =IF(INDEX('LRMC x Plant ranked'!$C$5:$C$500,MATCH($AR35,'LRMC x Plant ranked'!$G$5:$G$500,FALSE),)=AU$6,VLOOKUP($AQ35,'LRMC x Plant ranked'!$F$4:$G$500,2,TRUE),0) -> 0 | AV35: =IF(INDEX('LRMC x Plant ranked'!$C$5:$C$500,MATCH($AR35,'LRMC x Plant ranked'!$G$5:$G$500,FALSE),)=AV$6,VLOOKUP($AQ35,'LRMC x Plant ranked'!$F$4:$G$500,2,TRUE),0) -> 0 | AW35: =IF(INDEX('LRMC x Plant ranked'!$C$5:$C$500,MATCH($AR35,'LRMC x Plant ranked'!$G$5:$G$500,FALSE),)=AW$6,VLOOKUP($AQ35,'LRMC x Plant ranked'!$F$4:$G$500,2,TRUE),0) -> 59.23720325 | AX35: =IF(INDEX('LRMC x Plant ranked'!$C$5:$C$500,MATCH($AR35,'LRMC x Plant ranked'!$G$5:$G$500,FALSE),)=AX$6,VLOOKUP($AQ35,'LRMC x Plant ranked'!$F$4:$G$500,2,TRUE),0) -> 0 | AY35: 0 | AZ35: 0 | BA35: 0 | BC35: =IF(INDEX('LRMC x Plant ranked'!$C$5:$C$500,MATCH($AR35,'LRMC x Plant ranked'!$G$5:$G$500,FALSE),)=BC$6,VLOOKUP($AQ35,'LRMC x Plant ranked'!$F$4:$G$500,2,TRUE),0) -> 0 | BD35: =IF(INDEX('LRMC x Plant ranked'!$C$5:$C$500,MATCH($AR35,'LRMC x Plant ranked'!$G$5:$G$500,FALSE),)=BD$6,VLOOKUP($AQ35,'LRMC x Plant ranked'!$F$4:$G$500,2,TRUE),0) -> 0 | BE35: =IF(INDEX('LRMC x Plant ranked'!$C$5:$C$500,MATCH($AR35,'LRMC x Plant ranked'!$G$5:$G$500,FALSE),)=BE$6,VLOOKUP($AQ35,'LRMC x Plant ranked'!$F$4:$G$500,2,TRUE),0) -> 0 | BF35: =IF(INDEX('LRMC x Plant ranked'!$C$5:$C$500,MATCH($AR35,'LRMC x Plant ranked'!$G$5:$G$500,FALSE),)=BF$6,VLOOKUP($AQ35,'LRMC x Plant ranked'!$F$4:$G$500,2,TRUE),0) -> 0 | BG35: =IF(INDEX('LRMC x Plant ranked'!$C$5:$C$500,MATCH($AR35,'LRMC x Plant ranked'!$G$5:$G$500,FALSE),)=BG$6,VLOOKUP($AQ35,'LRMC x Plant ranked'!$F$4:$G$500,2,TRUE),0) -> 0 | BJ35: =IF(BJ34>MAX('LRMC x Plant ranked'!$P$5:$P$500),"",BJ34+IF($D$32="GWh",100,15)) -> 405 | BK35: =VLOOKUP($BJ35,'LRMC x Plant ranked'!$P$4:$Q$500,2,TRUE) -> 59.23720325 | BM35: =IF(INDEX('LRMC x Plant ranked'!$M$5:$M$500,MATCH($BK35,'LRMC x Plant ranked'!$Q$5:$Q$500,FALSE),)=BM$6,VLOOKUP($BJ35,'LRMC x Plant ranked'!$P$4:$Q$500,2,TRUE),0) -> 59.23720325 | BN35: =IF(INDEX('LRMC x Plant ranked'!$M$5:$M$500,MATCH($BK35,'LRMC x Plant ranked'!$Q$5:$Q$500,FALSE),)=BN$6,VLOOKUP($BJ35,'LRMC x Plant ranked'!$P$4:$Q$500,2,TRUE),0) -> 0 | BO35: 0 | BP35: 0 | BQ35: 0 | BS35: =IF(INDEX('LRMC x Plant ranked'!$M$5:$M$500,MATCH($BK35,'LRMC x Plant ranked'!$Q$5:$Q$500,FALSE),)=BS$6,VLOOKUP($BJ35,'LRMC x Plant ranked'!$P$4:$Q$500,2,TRUE),0) -> 0 | BT35: =IF(INDEX('LRMC x Plant ranked'!$M$5:$M$500,MATCH($BK35,'LRMC x Plant ranked'!$Q$5:$Q$500,FALSE),)=BT$6,VLOOKUP($BJ35,'LRMC x Plant ranked'!$P$4:$Q$500,2,TRUE),0) -> 0 | BU35: =IF(INDEX('LRMC x Plant ranked'!$M$5:$M$500,MATCH($BK35,'LRMC x Plant ranked'!$Q$5:$Q$500,FALSE),)=BU$6,VLOOKUP($BJ35,'LRMC x Plant ranked'!$P$4:$Q$500,2,TRUE),0) -> 0 | BV35: =IF(INDEX('LRMC x Plant ranked'!$M$5:$M$500,MATCH($BK35,'LRMC x Plant ranked'!$Q$5:$Q$500,FALSE),)=BV$6,VLOOKUP($BJ35,'LRMC x Plant ranked'!$P$4:$Q$500,2,TRUE),0) -> 0 | BW35: =IF(INDEX('LRMC x Plant ranked'!$M$5:$M$500,MATCH($BK35,'LRMC x Plant ranked'!$Q$5:$Q$500,FALSE),)=BW$6,VLOOKUP($BJ35,'LRMC x Plant ranked'!$P$4:$Q$500,2,TRUE),0) -> 0 | BX35: 81.677403 | BY35: 92.67719164 | BZ35: 117.3776135 | CA35: 173.8216805 | CB35: 69.67136421
C36: Under Construction | D36: yes | E36: yes | F36: yes | AI36: =IF(ISERROR(IF(OR(VLOOKUP(AJ36,'GEM new plant'!$A$4:$P$388,COLUMNS('GEM new plant'!A200:C200),FALSE)="HydRR",VLOOKUP(AJ36,'GEM new plant'!$A$4:$P$388,COLUMNS('GEM new plant'!A200:C200),FALSE)="HydPk"),"Hydro",VLOOKUP(AJ36,'GEM new plant'!$A$4:$P$388,COLUMNS('GEM new plant'!A200:C200),FALSE))),0,IF(OR(VLOOKUP(AJ36,'GEM new plant'!$A$4:$P$388,COLUMNS('GEM new plant'!A200:C200),FALSE)="HydRR",VLOOKUP(AJ36,'GEM new plant'!$A$4:$P$388,COLUMNS('GEM new plant'!A200:C200),FALSE)="HydPk"),"Hydro",VLOOKUP(AJ36,'GEM new plant'!$A$4:$P$388,COLUMNS('GEM new plant'!A200:C200),FALSE))) -> Coal | AJ36: IGCCG5 | AK36: 127.6970193 | AL36: 3416.957647 | AQ36: =IF(AQ35>MAX('LRMC x Plant ranked'!$F$5:$F$500),"",AQ35+IF($D$32="GWh",100,15)) -> 420 | AR36: =VLOOKUP($AQ36,'LRMC x Plant ranked'!$F$4:$G$500,2,TRUE) -> 59.23720325 | AT36: =IF(INDEX('LRMC x Plant ranked'!$C$5:$C$500,MATCH($AR36,'LRMC x Plant ranked'!$G$5:$G$500,FALSE),)=AT$6,VLOOKUP($AQ36,'LRMC x Plant ranked'!$F$4:$G$500,2,TRUE),0) -> 0 | AU36: =IF(INDEX('LRMC x Plant ranked'!$C$5:$C$500,MATCH($AR36,'LRMC x Plant ranked'!$G$5:$G$500,FALSE),)=AU$6,VLOOKUP($AQ36,'LRMC x Plant ranked'!$F$4:$G$500,2,TRUE),0) -> 0 | AV36: =IF(INDEX('LRMC x Plant ranked'!$C$5:$C$500,MATCH($AR36,'LRMC x Plant ranked'!$G$5:$G$500,FALSE),)=AV$6,VLOOKUP($AQ36,'LRMC x Plant ranked'!$F$4:$G$500,2,TRUE),0) -> 0 | AW36: =IF(INDEX('LRMC x Plant ranked'!$C$5:$C$500,MATCH($AR36,'LRMC x Plant ranked'!$G$5:$G$500,FALSE),)=AW$6,VLOOKUP($AQ36,'LRMC x Plant ranked'!$F$4:$G$500,2,TRUE),0) -> 59.23720325 | AX36: =IF(INDEX('LRMC x Plant ranked'!$C$5:$C$500,MATCH($AR36,'LRMC x Plant ranked'!$G$5:$G$500,FALSE),)=AX$6,VLOOKUP($AQ36,'LRMC x Plant ranked'!$F$4:$G$500,2,TRUE),0) -> 0 | AY36: 0 | AZ36: 0 | BA36: 0 | BC36: =IF(INDEX('LRMC x Plant ranked'!$C$5:$C$500,MATCH($AR36,'LRMC x Plant ranked'!$G$5:$G$500,FALSE),)=BC$6,VLOOKUP($AQ36,'LRMC x Plant ranked'!$F$4:$G$500,2,TRUE),0) -> 0 | BD36: =IF(INDEX('LRMC x Plant ranked'!$C$5:$C$500,MATCH($AR36,'LRMC x Plant ranked'!$G$5:$G$500,FALSE),)=BD$6,VLOOKUP($AQ36,'LRMC x Plant ranked'!$F$4:$G$500,2,TRUE),0) -> 0 | BE36: =IF(INDEX('LRMC x Plant ranked'!$C$5:$C$500,MATCH($AR36,'LRMC x Plant ranked'!$G$5:$G$500,FALSE),)=BE$6,VLOOKUP($AQ36,'LRMC x Plant ranked'!$F$4:$G$500,2,TRUE),0) -> 0 | BF36: =IF(INDEX('LRMC x Plant ranked'!$C$5:$C$500,MATCH($AR36,'LRMC x Plant ranked'!$G$5:$G$500,FALSE),)=BF$6,VLOOKUP($AQ36,'LRMC x Plant ranked'!$F$4:$G$500,2,TRUE),0) -> 0 | BG36: =IF(INDEX('LRMC x Plant ranked'!$C$5:$C$500,MATCH($AR36,'LRMC x Plant ranked'!$G$5:$G$500,FALSE),)=BG$6,VLOOKUP($AQ36,'LRMC x Plant ranked'!$F$4:$G$500,2,TRUE),0) -> 0 | BJ36: =IF(BJ35>MAX('LRMC x Plant ranked'!$P$5:$P$500),"",BJ35+IF($D$32="GWh",100,15)) -> 420 | BK36: =VLOOKUP($BJ36,'LRMC x Plant ranked'!$P$4:$Q$500,2,TRUE) -> 59.23720325 | BM36: =IF(INDEX('LRMC x Plant ranked'!$M$5:$M$500,MATCH($BK36,'LRMC x Plant ranked'!$Q$5:$Q$500,FALSE),)=BM$6,VLOOKUP($BJ36,'LRMC x Plant ranked'!$P$4:$Q$500,2,TRUE),0) -> 59.23720325 | BN36: =IF(INDEX('LRMC x Plant ranked'!$M$5:$M$500,MATCH($BK36,'LRMC x Plant ranked'!$Q$5:$Q$500,FALSE),)=BN$6,VLOOKUP($BJ36,'LRMC x Plant ranked'!$P$4:$Q$500,2,TRUE),0) -> 0 | BO36: 0 | BP36: 0 | BQ36: 0 | BS36: =IF(INDEX('LRMC x Plant ranked'!$M$5:$M$500,MATCH($BK36,'LRMC x Plant ranked'!$Q$5:$Q$500,FALSE),)=BS$6,VLOOKUP($BJ36,'LRMC x Plant ranked'!$P$4:$Q$500,2,TRUE),0) -> 0 | BT36: =IF(INDEX('LRMC x Plant ranked'!$M$5:$M$500,MATCH($BK36,'LRMC x Plant ranked'!$Q$5:$Q$500,FALSE),)=BT$6,VLOOKUP($BJ36,'LRMC x Plant ranked'!$P$4:$Q$500,2,TRUE),0) -> 0 | BU36: =IF(INDEX('LRMC x Plant ranked'!$M$5:$M$500,MATCH($BK36,'LRMC x Plant ranked'!$Q$5:$Q$500,FALSE),)=BU$6,VLOOKUP($BJ36,'LRMC x Plant ranked'!$P$4:$Q$500,2,TRUE),0) -> 0 | BV36: =IF(INDEX('LRMC x Plant ranked'!$M$5:$M$500,MATCH($BK36,'LRMC x Plant ranked'!$Q$5:$Q$500,FALSE),)=BV$6,VLOOKUP($BJ36,'LRMC x Plant ranked'!$P$4:$Q$500,2,TRUE),0) -> 0 | BW36: =IF(INDEX('LRMC x Plant ranked'!$M$5:$M$500,MATCH($BK36,'LRMC x Plant ranked'!$Q$5:$Q$500,FALSE),)=BW$6,VLOOKUP($BJ36,'LRMC x Plant ranked'!$P$4:$Q$500,2,TRUE),0) -> 0 | BX36: 81.677403 | BY36: 92.67719164 | BZ36: 117.3776135 | CA36: 173.8216805 | CB36: 69.67136421
C37: Fully Consented | D37: yes | E37: yes | F37: yes | AI37: =IF(ISERROR(IF(OR(VLOOKUP(AJ37,'GEM new plant'!$A$4:$P$388,COLUMNS('GEM new plant'!A189:C189),FALSE)="HydRR",VLOOKUP(AJ37,'GEM new plant'!$A$4:$P$388,COLUMNS('GEM new plant'!A189:C189),FALSE)="HydPk"),"Hydro",VLOOKUP(AJ37,'GEM new plant'!$A$4:$P$388,COLUMNS('GEM new plant'!A189:C189),FALSE))),0,IF(OR(VLOOKUP(AJ37,'GEM new plant'!$A$4:$P$388,COLUMNS('GEM new plant'!A189:C189),FALSE)="HydRR",VLOOKUP(AJ37,'GEM new plant'!$A$4:$P$388,COLUMNS('GEM new plant'!A189:C189),FALSE)="HydPk"),"Hydro",VLOOKUP(AJ37,'GEM new plant'!$A$4:$P$388,COLUMNS('GEM new plant'!A189:C189),FALSE))) -> Coal | AJ37: IGCCG6 | AK37: 156.8125571 | AL37: 3416.957647 | AQ37: =IF(AQ36>MAX('LRMC x Plant ranked'!$F$5:$F$500),"",AQ36+IF($D$32="GWh",100,15)) -> 435 | AR37: =VLOOKUP($AQ37,'LRMC x Plant ranked'!$F$4:$G$500,2,TRUE) -> 59.23720325 | AT37: =IF(INDEX('LRMC x Plant ranked'!$C$5:$C$500,MATCH($AR37,'LRMC x Plant ranked'!$G$5:$G$500,FALSE),)=AT$6,VLOOKUP($AQ37,'LRMC x Plant ranked'!$F$4:$G$500,2,TRUE),0) -> 0 | AU37: =IF(INDEX('LRMC x Plant ranked'!$C$5:$C$500,MATCH($AR37,'LRMC x Plant ranked'!$G$5:$G$500,FALSE),)=AU$6,VLOOKUP($AQ37,'LRMC x Plant ranked'!$F$4:$G$500,2,TRUE),0) -> 0 | AV37: =IF(INDEX('LRMC x Plant ranked'!$C$5:$C$500,MATCH($AR37,'LRMC x Plant ranked'!$G$5:$G$500,FALSE),)=AV$6,VLOOKUP($AQ37,'LRMC x Plant ranked'!$F$4:$G$500,2,TRUE),0) -> 0 | AW37: =IF(INDEX('LRMC x Plant ranked'!$C$5:$C$500,MATCH($AR37,'LRMC x Plant ranked'!$G$5:$G$500,FALSE),)=AW$6,VLOOKUP($AQ37,'LRMC x Plant ranked'!$F$4:$G$500,2,TRUE),0) -> 59.23720325 | AX37: =IF(INDEX('LRMC x Plant ranked'!$C$5:$C$500,MATCH($AR37,'LRMC x Plant ranked'!$G$5:$G$500,FALSE),)=AX$6,VLOOKUP($AQ37,'LRMC x Plant ranked'!$F$4:$G$500,2,TRUE),0) -> 0 | AY37: 0 | AZ37: 0 | BA37: 0 | BC37: =IF(INDEX('LRMC x Plant ranked'!$C$5:$C$500,MATCH($AR37,'LRMC x Plant ranked'!$G$5:$G$500,FALSE),)=BC$6,VLOOKUP($AQ37,'LRMC x Plant ranked'!$F$4:$G$500,2,TRUE),0) -> 0 | BD37: =IF(INDEX('LRMC x Plant ranked'!$C$5:$C$500,MATCH($AR37,'LRMC x Plant ranked'!$G$5:$G$500,FALSE),)=BD$6,VLOOKUP($AQ37,'LRMC x Plant ranked'!$F$4:$G$500,2,TRUE),0) -> 0 | BE37: =IF(INDEX('LRMC x Plant ranked'!$C$5:$C$500,MATCH($AR37,'LRMC x Plant ranked'!$G$5:$G$500,FALSE),)=BE$6,VLOOKUP($AQ37,'LRMC x Plant ranked'!$F$4:$G$500,2,TRUE),0) -> 0 | BF37: =IF(INDEX('LRMC x Plant ranked'!$C$5:$C$500,MATCH($AR37,'LRMC x Plant ranked'!$G$5:$G$500,FALSE),)=BF$6,VLOOKUP($AQ37,'LRMC x Plant ranked'!$F$4:$G$500,2,TRUE),0) -> 0 | BG37: =IF(INDEX('LRMC x Plant ranked'!$C$5:$C$500,MATCH($AR37,'LRMC x Plant ranked'!$G$5:$G$500,FALSE),)=BG$6,VLOOKUP($AQ37,'LRMC x Plant ranked'!$F$4:$G$500,2,TRUE),0) -> 0 | BJ37: =IF(BJ36>MAX('LRMC x Plant ranked'!$P$5:$P$500),"",BJ36+IF($D$32="GWh",100,15)) -> 435 | BK37: =VLOOKUP($BJ37,'LRMC x Plant ranked'!$P$4:$Q$500,2,TRUE) -> 59.23720325 | BM37: =IF(INDEX('LRMC x Plant ranked'!$M$5:$M$500,MATCH($BK37,'LRMC x Plant ranked'!$Q$5:$Q$500,FALSE),)=BM$6,VLOOKUP($BJ37,'LRMC x Plant ranked'!$P$4:$Q$500,2,TRUE),0) -> 59.23720325 | BN37: =IF(INDEX('LRMC x Plant ranked'!$M$5:$M$500,MATCH($BK37,'LRMC x Plant ranked'!$Q$5:$Q$500,FALSE),)=BN$6,VLOOKUP($BJ37,'LRMC x Plant ranked'!$P$4:$Q$500,2,TRUE),0) -> 0 | BO37: 0 | BP37: 0 | BQ37: 0 | BS37: =IF(INDEX('LRMC x Plant ranked'!$M$5:$M$500,MATCH($BK37,'LRMC x Plant ranked'!$Q$5:$Q$500,FALSE),)=BS$6,VLOOKUP($BJ37,'LRMC x Plant ranked'!$P$4:$Q$500,2,TRUE),0) -> 0 | BT37: =IF(INDEX('LRMC x Plant ranked'!$M$5:$M$500,MATCH($BK37,'LRMC x Plant ranked'!$Q$5:$Q$500,FALSE),)=BT$6,VLOOKUP($BJ37,'LRMC x Plant ranked'!$P$4:$Q$500,2,TRUE),0) -> 0 | BU37: =IF(INDEX('LRMC x Plant ranked'!$M$5:$M$500,MATCH($BK37,'LRMC x Plant ranked'!$Q$5:$Q$500,FALSE),)=BU$6,VLOOKUP($BJ37,'LRMC x Plant ranked'!$P$4:$Q$500,2,TRUE),0) -> 0 | BV37: =IF(INDEX('LRMC x Plant ranked'!$M$5:$M$500,MATCH($BK37,'LRMC x Plant ranked'!$Q$5:$Q$500,FALSE),)=BV$6,VLOOKUP($BJ37,'LRMC x Plant ranked'!$P$4:$Q$500,2,TRUE),0) -> 0 | BW37: =IF(INDEX('LRMC x Plant ranked'!$M$5:$M$500,MATCH($BK37,'LRMC x Plant ranked'!$Q$5:$Q$500,FALSE),)=BW$6,VLOOKUP($BJ37,'LRMC x Plant ranked'!$P$4:$Q$500,2,TRUE),0) -> 0 | BX37: 81.677403 | BY37: 92.67719164 | BZ37: 117.3776135 | CA37: 173.8216805 | CB37: 69.67136421
C38: Applied for Consent | D38: yes | E38: yes | F38: yes | AI38: =IF(ISERROR(IF(OR(VLOOKUP(AJ38,'GEM new plant'!$A$4:$P$388,COLUMNS('GEM new plant'!A206:C206),FALSE)="HydRR",VLOOKUP(AJ38,'GEM new plant'!$A$4:$P$388,COLUMNS('GEM new plant'!A206:C206),FALSE)="HydPk"),"Hydro",VLOOKUP(AJ38,'GEM new plant'!$A$4:$P$388,COLUMNS('GEM new plant'!A206:C206),FALSE))),0,IF(OR(VLOOKUP(AJ38,'GEM new plant'!$A$4:$P$388,COLUMNS('GEM new plant'!A206:C206),FALSE)="HydRR",VLOOKUP(AJ38,'GEM new plant'!$A$4:$P$388,COLUMNS('GEM new plant'!A206:C206),FALSE)="HydPk"),"Hydro",VLOOKUP(AJ38,'GEM new plant'!$A$4:$P$388,COLUMNS('GEM new plant'!A206:C206),FALSE))) -> Coal_CCS | AJ38: ASCCCSG1 | AK38: 151.9419543 | AL38: 160.4104 | AQ38: =IF(AQ37>MAX('LRMC x Plant ranked'!$F$5:$F$500),"",AQ37+IF($D$32="GWh",100,15)) -> 450 | AR38: =VLOOKUP($AQ38,'LRMC x Plant ranked'!$F$4:$G$500,2,TRUE) -> 59.23720325 | AT38: =IF(INDEX('LRMC x Plant ranked'!$C$5:$C$500,MATCH($AR38,'LRMC x Plant ranked'!$G$5:$G$500,FALSE),)=AT$6,VLOOKUP($AQ38,'LRMC x Plant ranked'!$F$4:$G$500,2,TRUE),0) -> 0 | AU38: =IF(INDEX('LRMC x Plant ranked'!$C$5:$C$500,MATCH($AR38,'LRMC x Plant ranked'!$G$5:$G$500,FALSE),)=AU$6,VLOOKUP($AQ38,'LRMC x Plant ranked'!$F$4:$G$500,2,TRUE),0) -> 0 | AV38: =IF(INDEX('LRMC x Plant ranked'!$C$5:$C$500,MATCH($AR38,'LRMC x Plant ranked'!$G$5:$G$500,FALSE),)=AV$6,VLOOKUP($AQ38,'LRMC x Plant ranked'!$F$4:$G$500,2,TRUE),0) -> 0 | AW38: =IF(INDEX('LRMC x Plant ranked'!$C$5:$C$500,MATCH($AR38,'LRMC x Plant ranked'!$G$5:$G$500,FALSE),)=AW$6,VLOOKUP($AQ38,'LRMC x Plant ranked'!$F$4:$G$500,2,TRUE),0) -> 59.23720325 | AX38: =IF(INDEX('LRMC x Plant ranked'!$C$5:$C$500,MATCH($AR38,'LRMC x Plant ranked'!$G$5:$G$500,FALSE),)=AX$6,VLOOKUP($AQ38,'LRMC x Plant ranked'!$F$4:$G$500,2,TRUE),0) -> 0 | AY38: 0 | AZ38: 0 | BA38: 0 | BC38: =IF(INDEX('LRMC x Plant ranked'!$C$5:$C$500,MATCH($AR38,'LRMC x Plant ranked'!$G$5:$G$500,FALSE),)=BC$6,VLOOKUP($AQ38,'LRMC x Plant ranked'!$F$4:$G$500,2,TRUE),0) -> 0 | BD38: =IF(INDEX('LRMC x Plant ranked'!$C$5:$C$500,MATCH($AR38,'LRMC x Plant ranked'!$G$5:$G$500,FALSE),)=BD$6,VLOOKUP($AQ38,'LRMC x Plant ranked'!$F$4:$G$500,2,TRUE),0) -> 0 | BE38: =IF(INDEX('LRMC x Plant ranked'!$C$5:$C$500,MATCH($AR38,'LRMC x Plant ranked'!$G$5:$G$500,FALSE),)=BE$6,VLOOKUP($AQ38,'LRMC x Plant ranked'!$F$4:$G$500,2,TRUE),0) -> 0 | BF38: =IF(INDEX('LRMC x Plant ranked'!$C$5:$C$500,MATCH($AR38,'LRMC x Plant ranked'!$G$5:$G$500,FALSE),)=BF$6,VLOOKUP($AQ38,'LRMC x Plant ranked'!$F$4:$G$500,2,TRUE),0) -> 0 | BG38: =IF(INDEX('LRMC x Plant ranked'!$C$5:$C$500,MATCH($AR38,'LRMC x Plant ranked'!$G$5:$G$500,FALSE),)=BG$6,VLOOKUP($AQ38,'LRMC x Plant ranked'!$F$4:$G$500,2,TRUE),0) -> 0 | BJ38: =IF(BJ37>MAX('LRMC x Plant ranked'!$P$5:$P$500),"",BJ37+IF($D$32="GWh",100,15)) -> 450 | BK38: =VLOOKUP($BJ38,'LRMC x Plant ranked'!$P$4:$Q$500,2,TRUE) -> 59.23720325 | BM38: =IF(INDEX('LRMC x Plant ranked'!$M$5:$M$500,MATCH($BK38,'LRMC x Plant ranked'!$Q$5:$Q$500,FALSE),)=BM$6,VLOOKUP($BJ38,'LRMC x Plant ranked'!$P$4:$Q$500,2,TRUE),0) -> 59.23720325 | BN38: =IF(INDEX('LRMC x Plant ranked'!$M$5:$M$500,MATCH($BK38,'LRMC x Plant ranked'!$Q$5:$Q$500,FALSE),)=BN$6,VLOOKUP($BJ38,'LRMC x Plant ranked'!$P$4:$Q$500,2,TRUE),0) -> 0 | BO38: 0 | BP38: 0 | BQ38: 0 | BS38: =IF(INDEX('LRMC x Plant ranked'!$M$5:$M$500,MATCH($BK38,'LRMC x Plant ranked'!$Q$5:$Q$500,FALSE),)=BS$6,VLOOKUP($BJ38,'LRMC x Plant ranked'!$P$4:$Q$500,2,TRUE),0) -> 0 | BT38: =IF(INDEX('LRMC x Plant ranked'!$M$5:$M$500,MATCH($BK38,'LRMC x Plant ranked'!$Q$5:$Q$500,FALSE),)=BT$6,VLOOKUP($BJ38,'LRMC x Plant ranked'!$P$4:$Q$500,2,TRUE),0) -> 0 | BU38: =IF(INDEX('LRMC x Plant ranked'!$M$5:$M$500,MATCH($BK38,'LRMC x Plant ranked'!$Q$5:$Q$500,FALSE),)=BU$6,VLOOKUP($BJ38,'LRMC x Plant ranked'!$P$4:$Q$500,2,TRUE),0) -> 0 | BV38: =IF(INDEX('LRMC x Plant ranked'!$M$5:$M$500,MATCH($BK38,'LRMC x Plant ranked'!$Q$5:$Q$500,FALSE),)=BV$6,VLOOKUP($BJ38,'LRMC x Plant ranked'!$P$4:$Q$500,2,TRUE),0) -> 0 | BW38: =IF(INDEX('LRMC x Plant ranked'!$M$5:$M$500,MATCH($BK38,'LRMC x Plant ranked'!$Q$5:$Q$500,FALSE),)=BW$6,VLOOKUP($BJ38,'LRMC x Plant ranked'!$P$4:$Q$500,2,TRUE),0) -> 0 | BX38: 81.677403 | BY38: 92.67719164 | BZ38: 117.3776135 | CA38: 173.8216805 | CB38: 69.67136421
C39: Proposed | D39: yes | E39: yes | F39: yes | AI39: =IF(ISERROR(IF(OR(VLOOKUP(AJ39,'GEM new plant'!$A$4:$P$388,COLUMNS('GEM new plant'!A183:C183),FALSE)="HydRR",VLOOKUP(AJ39,'GEM new plant'!$A$4:$P$388,COLUMNS('GEM new plant'!A183:C183),FALSE)="HydPk"),"Hydro",VLOOKUP(AJ39,'GEM new plant'!$A$4:$P$388,COLUMNS('GEM new plant'!A183:C183),FALSE))),0,IF(OR(VLOOKUP(AJ39,'GEM new plant'!$A$4:$P$388,COLUMNS('GEM new plant'!A183:C183),FALSE)="HydRR",VLOOKUP(AJ39,'GEM new plant'!$A$4:$P$388,COLUMNS('GEM new plant'!A183:C183),FALSE)="HydPk"),"Hydro",VLOOKUP(AJ39,'GEM new plant'!$A$4:$P$388,COLUMNS('GEM new plant'!A183:C183),FALSE))) -> Coal_CCS | AJ39: ASCCCSG2 | AK39: 159.3871745 | AL39: 1476.61152 | AQ39: =IF(AQ38>MAX('LRMC x Plant ranked'!$F$5:$F$500),"",AQ38+IF($D$32="GWh",100,15)) -> 465 | AR39: =VLOOKUP($AQ39,'LRMC x Plant ranked'!$F$4:$G$500,2,TRUE) -> 59.23720325 | AT39: =IF(INDEX('LRMC x Plant ranked'!$C$5:$C$500,MATCH($AR39,'LRMC x Plant ranked'!$G$5:$G$500,FALSE),)=AT$6,VLOOKUP($AQ39,'LRMC x Plant ranked'!$F$4:$G$500,2,TRUE),0) -> 0 | AU39: =IF(INDEX('LRMC x Plant ranked'!$C$5:$C$500,MATCH($AR39,'LRMC x Plant ranked'!$G$5:$G$500,FALSE),)=AU$6,VLOOKUP($AQ39,'LRMC x Plant ranked'!$F$4:$G$500,2,TRUE),0) -> 0 | AV39: =IF(INDEX('LRMC x Plant ranked'!$C$5:$C$500,MATCH($AR39,'LRMC x Plant ranked'!$G$5:$G$500,FALSE),)=AV$6,VLOOKUP($AQ39,'LRMC x Plant ranked'!$F$4:$G$500,2,TRUE),0) -> 0 | AW39: =IF(INDEX('LRMC x Plant ranked'!$C$5:$C$500,MATCH($AR39,'LRMC x Plant ranked'!$G$5:$G$500,FALSE),)=AW$6,VLOOKUP($AQ39,'LRMC x Plant ranked'!$F$4:$G$500,2,TRUE),0) -> 59.23720325 | AX39: =IF(INDEX('LRMC x Plant ranked'!$C$5:$C$500,MATCH($AR39,'LRMC x Plant ranked'!$G$5:$G$500,FALSE),)=AX$6,VLOOKUP($AQ39,'LRMC x Plant ranked'!$F$4:$G$500,2,TRUE),0) -> 0 | AY39: 0 | AZ39: 0 | BA39: 0 | BC39: =IF(INDEX('LRMC x Plant ranked'!$C$5:$C$500,MATCH($AR39,'LRMC x Plant ranked'!$G$5:$G$500,FALSE),)=BC$6,VLOOKUP($AQ39,'LRMC x Plant ranked'!$F$4:$G$500,2,TRUE),0) -> 0 | BD39: =IF(INDEX('LRMC x Plant ranked'!$C$5:$C$500,MATCH($AR39,'LRMC x Plant ranked'!$G$5:$G$500,FALSE),)=BD$6,VLOOKUP($AQ39,'LRMC x Plant ranked'!$F$4:$G$500,2,TRUE),0) -> 0 | BE39: =IF(INDEX('LRMC x Plant ranked'!$C$5:$C$500,MATCH($AR39,'LRMC x Plant ranked'!$G$5:$G$500,FALSE),)=BE$6,VLOOKUP($AQ39,'LRMC x Plant ranked'!$F$4:$G$500,2,TRUE),0) -> 0 | BF39: =IF(INDEX('LRMC x Plant ranked'!$C$5:$C$500,MATCH($AR39,'LRMC x Plant ranked'!$G$5:$G$500,FALSE),)=BF$6,VLOOKUP($AQ39,'LRMC x Plant ranked'!$F$4:$G$500,2,TRUE),0) -> 0 | BG39: =IF(INDEX('LRMC x Plant ranked'!$C$5:$C$500,MATCH($AR39,'LRMC x Plant ranked'!$G$5:$G$500,FALSE),)=BG$6,VLOOKUP($AQ39,'LRMC x Plant ranked'!$F$4:$G$500,2,TRUE),0) -> 0 | BJ39: =IF(BJ38>MAX('LRMC x Plant ranked'!$P$5:$P$500),"",BJ38+IF($D$32="GWh",100,15)) -> 465 | BK39: =VLOOKUP($BJ39,'LRMC x Plant ranked'!$P$4:$Q$500,2,TRUE) -> 59.23720325 | BM39: =IF(INDEX('LRMC x Plant ranked'!$M$5:$M$500,MATCH($BK39,'LRMC x Plant ranked'!$Q$5:$Q$500,FALSE),)=BM$6,VLOOKUP($BJ39,'LRMC x Plant ranked'!$P$4:$Q$500,2,TRUE),0) -> 59.23720325 | BN39: =IF(INDEX('LRMC x Plant ranked'!$M$5:$M$500,MATCH($BK39,'LRMC x Plant ranked'!$Q$5:$Q$500,FALSE),)=BN$6,VLOOKUP($BJ39,'LRMC x Plant ranked'!$P$4:$Q$500,2,TRUE),0) -> 0 | BO39: 0 | BP39: 0 | BQ39: 0 | BS39: =IF(INDEX('LRMC x Plant ranked'!$M$5:$M$500,MATCH($BK39,'LRMC x Plant ranked'!$Q$5:$Q$500,FALSE),)=BS$6,VLOOKUP($BJ39,'LRMC x Plant ranked'!$P$4:$Q$500,2,TRUE),0) -> 0 | BT39: =IF(INDEX('LRMC x Plant ranked'!$M$5:$M$500,MATCH($BK39,'LRMC x Plant ranked'!$Q$5:$Q$500,FALSE),)=BT$6,VLOOKUP($BJ39,'LRMC x Plant ranked'!$P$4:$Q$500,2,TRUE),0) -> 0 | BU39: =IF(INDEX('LRMC x Plant ranked'!$M$5:$M$500,MATCH($BK39,'LRMC x Plant ranked'!$Q$5:$Q$500,FALSE),)=BU$6,VLOOKUP($BJ39,'LRMC x Plant ranked'!$P$4:$Q$500,2,TRUE),0) -> 0 | BV39: =IF(INDEX('LRMC x Plant ranked'!$M$5:$M$500,MATCH($BK39,'LRMC x Plant ranked'!$Q$5:$Q$500,FALSE),)=BV$6,VLOOKUP($BJ39,'LRMC x Plant ranked'!$P$4:$Q$500,2,TRUE),0) -> 0 | BW39: =IF(INDEX('LRMC x Plant ranked'!$M$5:$M$500,MATCH($BK39,'LRMC x Plant ranked'!$Q$5:$Q$500,FALSE),)=BW$6,VLOOKUP($BJ39,'LRMC x Plant ranked'!$P$4:$Q$500,2,TRUE),0) -> 0 | BX39: 81.677403 | BY39: 92.67719164 | BZ39: 117.3776135 | CA39: 173.8216805 | CB39: 69.67136421
C40: Generic | D40: yes | E40: yes | F40: yes | AI40: =IF(ISERROR(IF(OR(VLOOKUP(AJ40,'GEM new plant'!$A$4:$P$388,COLUMNS('GEM new plant'!A120:C120),FALSE)="HydRR",VLOOKUP(AJ40,'GEM new plant'!$A$4:$P$388,COLUMNS('GEM new plant'!A120:C120),FALSE)="HydPk"),"Hydro",VLOOKUP(AJ40,'GEM new plant'!$A$4:$P$388,COLUMNS('GEM new plant'!A120:C120),FALSE))),0,IF(OR(VLOOKUP(AJ40,'GEM new plant'!$A$4:$P$388,COLUMNS('GEM new plant'!A120:C120),FALSE)="HydRR",VLOOKUP(AJ40,'GEM new plant'!$A$4:$P$388,COLUMNS('GEM new plant'!A120:C120),FALSE)="HydPk"),"Hydro",VLOOKUP(AJ40,'GEM new plant'!$A$4:$P$388,COLUMNS('GEM new plant'!A120:C120),FALSE))) -> Coal_CCS | AJ40: IGCCCCSG1 | AK40: 145.4719258 | AL40: 683.9411765 | AQ40: =IF(AQ39>MAX('LRMC x Plant ranked'!$F$5:$F$500),"",AQ39+IF($D$32="GWh",100,15)) -> 480 | AR40: =VLOOKUP($AQ40,'LRMC x Plant ranked'!$F$4:$G$500,2,TRUE) -> 59.23720325 | AT40: =IF(INDEX('LRMC x Plant ranked'!$C$5:$C$500,MATCH($AR40,'LRMC x Plant ranked'!$G$5:$G$500,FALSE),)=AT$6,VLOOKUP($AQ40,'LRMC x Plant ranked'!$F$4:$G$500,2,TRUE),0) -> 0 | AU40: =IF(INDEX('LRMC x Plant ranked'!$C$5:$C$500,MATCH($AR40,'LRMC x Plant ranked'!$G$5:$G$500,FALSE),)=AU$6,VLOOKUP($AQ40,'LRMC x Plant ranked'!$F$4:$G$500,2,TRUE),0) -> 0 | AV40: =IF(INDEX('LRMC x Plant ranked'!$C$5:$C$500,MATCH($AR40,'LRMC x Plant ranked'!$G$5:$G$500,FALSE),)=AV$6,VLOOKUP($AQ40,'LRMC x Plant ranked'!$F$4:$G$500,2,TRUE),0) -> 0 | AW40: =IF(INDEX('LRMC x Plant ranked'!$C$5:$C$500,MATCH($AR40,'LRMC x Plant ranked'!$G$5:$G$500,FALSE),)=AW$6,VLOOKUP($AQ40,'LRMC x Plant ranked'!$F$4:$G$500,2,TRUE),0) -> 59.23720325 | AX40: =IF(INDEX('LRMC x Plant ranked'!$C$5:$C$500,MATCH($AR40,'LRMC x Plant ranked'!$G$5:$G$500,FALSE),)=AX$6,VLOOKUP($AQ40,'LRMC x Plant ranked'!$F$4:$G$500,2,TRUE),0) -> 0 | AY40: 0 | AZ40: =BF40+BG40 -> 0 | BA40: 0 | BC40: =IF(INDEX('LRMC x Plant ranked'!$C$5:$C$500,MATCH($AR40,'LRMC x Plant ranked'!$G$5:$G$500,FALSE),)=BC$6,VLOOKUP($AQ40,'LRMC x Plant ranked'!$F$4:$G$500,2,TRUE),0) -> 0 | BD40: =IF(INDEX('LRMC x Plant ranked'!$C$5:$C$500,MATCH($AR40,'LRMC x Plant ranked'!$G$5:$G$500,FALSE),)=BD$6,VLOOKUP($AQ40,'LRMC x Plant ranked'!$F$4:$G$500,2,TRUE),0) -> 0 | BE40: =IF(INDEX('LRMC x Plant ranked'!$C$5:$C$500,MATCH($AR40,'LRMC x Plant ranked'!$G$5:$G$500,FALSE),)=BE$6,VLOOKUP($AQ40,'LRMC x Plant ranked'!$F$4:$G$500,2,TRUE),0) -> 0 | BF40: =IF(INDEX('LRMC x Plant ranked'!$C$5:$C$500,MATCH($AR40,'LRMC x Plant ranked'!$G$5:$G$500,FALSE),)=BF$6,VLOOKUP($AQ40,'LRMC x Plant ranked'!$F$4:$G$500,2,TRUE),0) -> 0 | BG40: =IF(INDEX('LRMC x Plant ranked'!$C$5:$C$500,MATCH($AR40,'LRMC x Plant ranked'!$G$5:$G$500,FALSE),)=BG$6,VLOOKUP($AQ40,'LRMC x Plant ranked'!$F$4:$G$500,2,TRUE),0) -> 0 | BJ40: =IF(BJ39>MAX('LRMC x Plant ranked'!$P$5:$P$500),"",BJ39+IF($D$32="GWh",100,15)) -> 480 | BK40: =VLOOKUP($BJ40,'LRMC x Plant ranked'!$P$4:$Q$500,2,TRUE) -> 59.23720325 | BM40: =IF(INDEX('LRMC x Plant ranked'!$M$5:$M$500,MATCH($BK40,'LRMC x Plant ranked'!$Q$5:$Q$500,FALSE),)=BM$6,VLOOKUP($BJ40,'LRMC x Plant ranked'!$P$4:$Q$500,2,TRUE),0) -> 59.23720325 | BN40: =IF(INDEX('LRMC x Plant ranked'!$M$5:$M$500,MATCH($BK40,'LRMC x Plant ranked'!$Q$5:$Q$500,FALSE),)=BN$6,VLOOKUP($BJ40,'LRMC x Plant ranked'!$P$4:$Q$500,2,TRUE),0) -> 0 | BO40: 0 | BP40: 0 | BQ40: 0 | BS40: =IF(INDEX('LRMC x Plant ranked'!$M$5:$M$500,MATCH($BK40,'LRMC x Plant ranked'!$Q$5:$Q$500,FALSE),)=BS$6,VLOOKUP($BJ40,'LRMC x Plant ranked'!$P$4:$Q$500,2,TRUE),0) -> 0 | BT40: =IF(INDEX('LRMC x Plant ranked'!$M$5:$M$500,MATCH($BK40,'LRMC x Plant ranked'!$Q$5:$Q$500,FALSE),)=BT$6,VLOOKUP($BJ40,'LRMC x Plant ranked'!$P$4:$Q$500,2,TRUE),0) -> 0 | BU40: =IF(INDEX('LRMC x Plant ranked'!$M$5:$M$500,MATCH($BK40,'LRMC x Plant ranked'!$Q$5:$Q$500,FALSE),)=BU$6,VLOOKUP($BJ40,'LRMC x Plant ranked'!$P$4:$Q$500,2,TRUE),0) -> 0 | BV40: =IF(INDEX('LRMC x Plant ranked'!$M$5:$M$500,MATCH($BK40,'LRMC x Plant ranked'!$Q$5:$Q$500,FALSE),)=BV$6,VLOOKUP($BJ40,'LRMC x Plant ranked'!$P$4:$Q$500,2,TRUE),0) -> 0 | BW40: =IF(INDEX('LRMC x Plant ranked'!$M$5:$M$500,MATCH($BK40,'LRMC x Plant ranked'!$Q$5:$Q$500,FALSE),)=BW$6,VLOOKUP($BJ40,'LRMC x Plant ranked'!$P$4:$Q$500,2,TRUE),0) -> 0 | BX40: 81.677403 | BY40: 92.67719164 | BZ40: 117.3776135 | CA40: 173.8216805 | CB40: 69.67136421
AI41: =IF(ISERROR(IF(OR(VLOOKUP(AJ41,'GEM new plant'!$A$4:$P$388,COLUMNS('GEM new plant'!A191:C191),FALSE)="HydRR",VLOOKUP(AJ41,'GEM new plant'!$A$4:$P$388,COLUMNS('GEM new plant'!A191:C191),FALSE)="HydPk"),"Hydro",VLOOKUP(AJ41,'GEM new plant'!$A$4:$P$388,COLUMNS('GEM new plant'!A191:C191),FALSE))),0,IF(OR(VLOOKUP(AJ41,'GEM new plant'!$A$4:$P$388,COLUMNS('GEM new plant'!A191:C191),FALSE)="HydRR",VLOOKUP(AJ41,'GEM new plant'!$A$4:$P$388,COLUMNS('GEM new plant'!A191:C191),FALSE)="HydPk"),"Hydro",VLOOKUP(AJ41,'GEM new plant'!$A$4:$P$388,COLUMNS('GEM new plant'!A191:C191),FALSE))) -> Coal_CCS | AJ41: IGCCCCSG2 | AK41: 202.0213174 | AL41: 3807.603971 | AQ41: =IF(AQ40>MAX('LRMC x Plant ranked'!$F$5:$F$500),"",AQ40+IF($D$32="GWh",100,15)) -> 495 | AR41: =VLOOKUP($AQ41,'LRMC x Plant ranked'!$F$4:$G$500,2,TRUE) -> 59.23720325 | AT41: =IF(INDEX('LRMC x Plant ranked'!$C$5:$C$500,MATCH($AR41,'LRMC x Plant ranked'!$G$5:$G$500,FALSE),)=AT$6,VLOOKUP($AQ41,'LRMC x Plant ranked'!$F$4:$G$500,2,TRUE),0) -> 0 | AU41: =IF(INDEX('LRMC x Plant ranked'!$C$5:$C$500,MATCH($AR41,'LRMC x Plant ranked'!$G$5:$G$500,FALSE),)=AU$6,VLOOKUP($AQ41,'LRMC x Plant ranked'!$F$4:$G$500,2,TRUE),0) -> 0 | AV41: =IF(INDEX('LRMC x Plant ranked'!$C$5:$C$500,MATCH($AR41,'LRMC x Plant ranked'!$G$5:$G$500,FALSE),)=AV$6,VLOOKUP($AQ41,'LRMC x Plant ranked'!$F$4:$G$500,2,TRUE),0) -> 0 | AW41: =IF(INDEX('LRMC x Plant ranked'!$C$5:$C$500,MATCH($AR41,'LRMC x Plant ranked'!$G$5:$G$500,FALSE),)=AW$6,VLOOKUP($AQ41,'LRMC x Plant ranked'!$F$4:$G$500,2,TRUE),0) -> 59.23720325 | AX41: =IF(INDEX('LRMC x Plant ranked'!$C$5:$C$500,MATCH($AR41,'LRMC x Plant ranked'!$G$5:$G$500,FALSE),)=AX$6,VLOOKUP($AQ41,'LRMC x Plant ranked'!$F$4:$G$500,2,TRUE),0) -> 0 | AY41: 0 | AZ41: 0 | BA41: 0 | BC41: =IF(INDEX('LRMC x Plant ranked'!$C$5:$C$500,MATCH($AR41,'LRMC x Plant ranked'!$G$5:$G$500,FALSE),)=BC$6,VLOOKUP($AQ41,'LRMC x Plant ranked'!$F$4:$G$500,2,TRUE),0) -> 0 | BD41: =IF(INDEX('LRMC x Plant ranked'!$C$5:$C$500,MATCH($AR41,'LRMC x Plant ranked'!$G$5:$G$500,FALSE),)=BD$6,VLOOKUP($AQ41,'LRMC x Plant ranked'!$F$4:$G$500,2,TRUE),0) -> 0 | BE41: =IF(INDEX('LRMC x Plant ranked'!$C$5:$C$500,MATCH($AR41,'LRMC x Plant ranked'!$G$5:$G$500,FALSE),)=BE$6,VLOOKUP($AQ41,'LRMC x Plant ranked'!$F$4:$G$500,2,TRUE),0) -> 0 | BF41: =IF(INDEX('LRMC x Plant ranked'!$C$5:$C$500,MATCH($AR41,'LRMC x Plant ranked'!$G$5:$G$500,FALSE),)=BF$6,VLOOKUP($AQ41,'LRMC x Plant ranked'!$F$4:$G$500,2,TRUE),0) -> 0 | BG41: =IF(INDEX('LRMC x Plant ranked'!$C$5:$C$500,MATCH($AR41,'LRMC x Plant ranked'!$G$5:$G$500,FALSE),)=BG$6,VLOOKUP($AQ41,'LRMC x Plant ranked'!$F$4:$G$500,2,TRUE),0) -> 0 | BJ41: =IF(BJ40>MAX('LRMC x Plant ranked'!$P$5:$P$500),"",BJ40+IF($D$32="GWh",100,15)) -> 495 | BK41: =VLOOKUP($BJ41,'LRMC x Plant ranked'!$P$4:$Q$500,2,TRUE) -> 59.23720325 | BM41: =IF(INDEX('LRMC x Plant ranked'!$M$5:$M$500,MATCH($BK41,'LRMC x Plant ranked'!$Q$5:$Q$500,FALSE),)=BM$6,VLOOKUP($BJ41,'LRMC x Plant ranked'!$P$4:$Q$500,2,TRUE),0) -> 59.23720325 | BN41: =IF(INDEX('LRMC x Plant ranked'!$M$5:$M$500,MATCH($BK41,'LRMC x Plant ranked'!$Q$5:$Q$500,FALSE),)=BN$6,VLOOKUP($BJ41,'LRMC x Plant ranked'!$P$4:$Q$500,2,TRUE),0) -> 0 | BO41: 0 | BP41: 0 | BQ41: 0 | BS41: =IF(INDEX('LRMC x Plant ranked'!$M$5:$M$500,MATCH($BK41,'LRMC x Plant ranked'!$Q$5:$Q$500,FALSE),)=BS$6,VLOOKUP($BJ41,'LRMC x Plant ranked'!$P$4:$Q$500,2,TRUE),0) -> 0 | BT41: =IF(INDEX('LRMC x Plant ranked'!$M$5:$M$500,MATCH($BK41,'LRMC x Plant ranked'!$Q$5:$Q$500,FALSE),)=BT$6,VLOOKUP($BJ41,'LRMC x Plant ranked'!$P$4:$Q$500,2,TRUE),0) -> 0 | BU41: =IF(INDEX('LRMC x Plant ranked'!$M$5:$M$500,MATCH($BK41,'LRMC x Plant ranked'!$Q$5:$Q$500,FALSE),)=BU$6,VLOOKUP($BJ41,'LRMC x Plant ranked'!$P$4:$Q$500,2,TRUE),0) -> 0 | BV41: =IF(INDEX('LRMC x Plant ranked'!$M$5:$M$500,MATCH($BK41,'LRMC x Plant ranked'!$Q$5:$Q$500,FALSE),)=BV$6,VLOOKUP($BJ41,'LRMC x Plant ranked'!$P$4:$Q$500,2,TRUE),0) -> 0 | BW41: =IF(INDEX('LRMC x Plant ranked'!$M$5:$M$500,MATCH($BK41,'LRMC x Plant ranked'!$Q$5:$Q$500,FALSE),)=BW$6,VLOOKUP($BJ41,'LRMC x Plant ranked'!$P$4:$Q$500,2,TRUE),0) -> 0 | BX41: 81.677403 | BY41: 92.67719164 | BZ41: 117.3776135 | CA41: 173.8216805 | CB41: 69.67136421
F42: Historic averages over last: | AI42: =IF(ISERROR(IF(OR(VLOOKUP(AJ42,'GEM new plant'!$A$4:$P$388,COLUMNS('GEM new plant'!A205:C205),FALSE)="HydRR",VLOOKUP(AJ42,'GEM new plant'!$A$4:$P$388,COLUMNS('GEM new plant'!A205:C205),FALSE)="HydPk"),"Hydro",VLOOKUP(AJ42,'GEM new plant'!$A$4:$P$388,COLUMNS('GEM new plant'!A205:C205),FALSE))),0,IF(OR(VLOOKUP(AJ42,'GEM new plant'!$A$4:$P$388,COLUMNS('GEM new plant'!A205:C205),FALSE)="HydRR",VLOOKUP(AJ42,'GEM new plant'!$A$4:$P$388,COLUMNS('GEM new plant'!A205:C205),FALSE)="HydPk"),"Hydro",VLOOKUP(AJ42,'GEM new plant'!$A$4:$P$388,COLUMNS('GEM new plant'!A205:C205),FALSE))) -> DslPkr | AJ42: OCGTDSL1 | AK42: 8036.131815 | AL42: 10079.39706 | AQ42: =IF(AQ41>MAX('LRMC x Plant ranked'!$F$5:$F$500),"",AQ41+IF($D$32="GWh",100,15)) -> 510 | AR42: =VLOOKUP($AQ42,'LRMC x Plant ranked'!$F$4:$G$500,2,TRUE) -> 59.23720325 | AT42: =IF(INDEX('LRMC x Plant ranked'!$C$5:$C$500,MATCH($AR42,'LRMC x Plant ranked'!$G$5:$G$500,FALSE),)=AT$6,VLOOKUP($AQ42,'LRMC x Plant ranked'!$F$4:$G$500,2,TRUE),0) -> 0 | AU42: =IF(INDEX('LRMC x Plant ranked'!$C$5:$C$500,MATCH($AR42,'LRMC x Plant ranked'!$G$5:$G$500,FALSE),)=AU$6,VLOOKUP($AQ42,'LRMC x Plant ranked'!$F$4:$G$500,2,TRUE),0) -> 0 | AV42: =IF(INDEX('LRMC x Plant ranked'!$C$5:$C$500,MATCH($AR42,'LRMC x Plant ranked'!$G$5:$G$500,FALSE),)=AV$6,VLOOKUP($AQ42,'LRMC x Plant ranked'!$F$4:$G$500,2,TRUE),0) -> 0 | AW42: =IF(INDEX('LRMC x Plant ranked'!$C$5:$C$500,MATCH($AR42,'LRMC x Plant ranked'!$G$5:$G$500,FALSE),)=AW$6,VLOOKUP($AQ42,'LRMC x Plant ranked'!$F$4:$G$500,2,TRUE),0) -> 59.23720325 | AX42: =IF(INDEX('LRMC x Plant ranked'!$C$5:$C$500,MATCH($AR42,'LRMC x Plant ranked'!$G$5:$G$500,FALSE),)=AX$6,VLOOKUP($AQ42,'LRMC x Plant ranked'!$F$4:$G$500,2,TRUE),0) -> 0 | AY42: 0 | AZ42: 0 | BA42: 0 | BC42: =IF(INDEX('LRMC x Plant ranked'!$C$5:$C$500,MATCH($AR42,'LRMC x Plant ranked'!$G$5:$G$500,FALSE),)=BC$6,VLOOKUP($AQ42,'LRMC x Plant ranked'!$F$4:$G$500,2,TRUE),0) -> 0 | BD42: =IF(INDEX('LRMC x Plant ranked'!$C$5:$C$500,MATCH($AR42,'LRMC x Plant ranked'!$G$5:$G$500,FALSE),)=BD$6,VLOOKUP($AQ42,'LRMC x Plant ranked'!$F$4:$G$500,2,TRUE),0) -> 0 | BE42: =IF(INDEX('LRMC x Plant ranked'!$C$5:$C$500,MATCH($AR42,'LRMC x Plant ranked'!$G$5:$G$500,FALSE),)=BE$6,VLOOKUP($AQ42,'LRMC x Plant ranked'!$F$4:$G$500,2,TRUE),0) -> 0 | BF42: =IF(INDEX('LRMC x Plant ranked'!$C$5:$C$500,MATCH($AR42,'LRMC x Plant ranked'!$G$5:$G$500,FALSE),)=BF$6,VLOOKUP($AQ42,'LRMC x Plant ranked'!$F$4:$G$500,2,TRUE),0) -> 0 | BG42: =IF(INDEX('LRMC x Plant ranked'!$C$5:$C$500,MATCH($AR42,'LRMC x Plant ranked'!$G$5:$G$500,FALSE),)=BG$6,VLOOKUP($AQ42,'LRMC x Plant ranked'!$F$4:$G$500,2,TRUE),0) -> 0 | BJ42: =IF(BJ41>MAX('LRMC x Plant ranked'!$P$5:$P$500),"",BJ41+IF($D$32="GWh",100,15)) -> 510 | BK42: =VLOOKUP($BJ42,'LRMC x Plant ranked'!$P$4:$Q$500,2,TRUE) -> 59.23720325 | BM42: =IF(INDEX('LRMC x Plant ranked'!$M$5:$M$500,MATCH($BK42,'LRMC x Plant ranked'!$Q$5:$Q$500,FALSE),)=BM$6,VLOOKUP($BJ42,'LRMC x Plant ranked'!$P$4:$Q$500,2,TRUE),0) -> 59.23720325 | BN42: =IF(INDEX('LRMC x Plant ranked'!$M$5:$M$500,MATCH($BK42,'LRMC x Plant ranked'!$Q$5:$Q$500,FALSE),)=BN$6,VLOOKUP($BJ42,'LRMC x Plant ranked'!$P$4:$Q$500,2,TRUE),0) -> 0 | BO42: 0 | BP42: 0 | BQ42: 0 | BS42: =IF(INDEX('LRMC x Plant ranked'!$M$5:$M$500,MATCH($BK42,'LRMC x Plant ranked'!$Q$5:$Q$500,FALSE),)=BS$6,VLOOKUP($BJ42,'LRMC x Plant ranked'!$P$4:$Q$500,2,TRUE),0) -> 0 | BT42: =IF(INDEX('LRMC x Plant ranked'!$M$5:$M$500,MATCH($BK42,'LRMC x Plant ranked'!$Q$5:$Q$500,FALSE),)=BT$6,VLOOKUP($BJ42,'LRMC x Plant ranked'!$P$4:$Q$500,2,TRUE),0) -> 0 | BU42: =IF(INDEX('LRMC x Plant ranked'!$M$5:$M$500,MATCH($BK42,'LRMC x Plant ranked'!$Q$5:$Q$500,FALSE),)=BU$6,VLOOKUP($BJ42,'LRMC x Plant ranked'!$P$4:$Q$500,2,TRUE),0) -> 0 | BV42: =IF(INDEX('LRMC x Plant ranked'!$M$5:$M$500,MATCH($BK42,'LRMC x Plant ranked'!$Q$5:$Q$500,FALSE),)=BV$6,VLOOKUP($BJ42,'LRMC x Plant ranked'!$P$4:$Q$500,2,TRUE),0) -> 0 | BW42: =IF(INDEX('LRMC x Plant ranked'!$M$5:$M$500,MATCH($BK42,'LRMC x Plant ranked'!$Q$5:$Q$500,FALSE),)=BW$6,VLOOKUP($BJ42,'LRMC x Plant ranked'!$P$4:$Q$500,2,TRUE),0) -> 0 | BX42: 81.677403 | BY42: 92.67719164 | BZ42: 117.3776135 | CA42: 173.8216805 | CB42: 69.67136421
C43: Exchange Rate | F43: 5 years | G43: 2 years | AI43: =IF(ISERROR(IF(OR(VLOOKUP(AJ43,'GEM new plant'!$A$4:$P$388,COLUMNS('GEM new plant'!A208:C208),FALSE)="HydRR",VLOOKUP(AJ43,'GEM new plant'!$A$4:$P$388,COLUMNS('GEM new plant'!A208:C208),FALSE)="HydPk"),"Hydro",VLOOKUP(AJ43,'GEM new plant'!$A$4:$P$388,COLUMNS('GEM new plant'!A208:C208),FALSE))),0,IF(OR(VLOOKUP(AJ43,'GEM new plant'!$A$4:$P$388,COLUMNS('GEM new plant'!A208:C208),FALSE)="HydRR",VLOOKUP(AJ43,'GEM new plant'!$A$4:$P$388,COLUMNS('GEM new plant'!A208:C208),FALSE)="HydPk"),"Hydro",VLOOKUP(AJ43,'GEM new plant'!$A$4:$P$388,COLUMNS('GEM new plant'!A208:C208),FALSE))) -> DslPkr | AJ43: OCGTDSL2 | AK43: 8407.624213 | AL43: 20148.79412 | AQ43: =IF(AQ42>MAX('LRMC x Plant ranked'!$F$5:$F$500),"",AQ42+IF($D$32="GWh",100,15)) -> 525 | AR43: =VLOOKUP($AQ43,'LRMC x Plant ranked'!$F$4:$G$500,2,TRUE) -> 59.23720325 | AT43: =IF(INDEX('LRMC x Plant ranked'!$C$5:$C$500,MATCH($AR43,'LRMC x Plant ranked'!$G$5:$G$500,FALSE),)=AT$6,VLOOKUP($AQ43,'LRMC x Plant ranked'!$F$4:$G$500,2,TRUE),0) -> 0 | AU43: =IF(INDEX('LRMC x Plant ranked'!$C$5:$C$500,MATCH($AR43,'LRMC x Plant ranked'!$G$5:$G$500,FALSE),)=AU$6,VLOOKUP($AQ43,'LRMC x Plant ranked'!$F$4:$G$500,2,TRUE),0) -> 0 | AV43: =IF(INDEX('LRMC x Plant ranked'!$C$5:$C$500,MATCH($AR43,'LRMC x Plant ranked'!$G$5:$G$500,FALSE),)=AV$6,VLOOKUP($AQ43,'LRMC x Plant ranked'!$F$4:$G$500,2,TRUE),0) -> 0 | AW43: =IF(INDEX('LRMC x Plant ranked'!$C$5:$C$500,MATCH($AR43,'LRMC x Plant ranked'!$G$5:$G$500,FALSE),)=AW$6,VLOOKUP($AQ43,'LRMC x Plant ranked'!$F$4:$G$500,2,TRUE),0) -> 59.23720325 | AX43: =IF(INDEX('LRMC x Plant ranked'!$C$5:$C$500,MATCH($AR43,'LRMC x Plant ranked'!$G$5:$G$500,FALSE),)=AX$6,VLOOKUP($AQ43,'LRMC x Plant ranked'!$F$4:$G$500,2,TRUE),0) -> 0 | AY43: 0 | AZ43: 0 | BA43: 0 | BC43: =IF(INDEX('LRMC x Plant ranked'!$C$5:$C$500,MATCH($AR43,'LRMC x Plant ranked'!$G$5:$G$500,FALSE),)=BC$6,VLOOKUP($AQ43,'LRMC x Plant ranked'!$F$4:$G$500,2,TRUE),0) -> 0 | BD43: =IF(INDEX('LRMC x Plant ranked'!$C$5:$C$500,MATCH($AR43,'LRMC x Plant ranked'!$G$5:$G$500,FALSE),)=BD$6,VLOOKUP($AQ43,'LRMC x Plant ranked'!$F$4:$G$500,2,TRUE),0) -> 0 | BE43: =IF(INDEX('LRMC x Plant ranked'!$C$5:$C$500,MATCH($AR43,'LRMC x Plant ranked'!$G$5:$G$500,FALSE),)=BE$6,VLOOKUP($AQ43,'LRMC x Plant ranked'!$F$4:$G$500,2,TRUE),0) -> 0 | BF43: =IF(INDEX('LRMC x Plant ranked'!$C$5:$C$500,MATCH($AR43,'LRMC x Plant ranked'!$G$5:$G$500,FALSE),)=BF$6,VLOOKUP($AQ43,'LRMC x Plant ranked'!$F$4:$G$500,2,TRUE),0) -> 0 | BG43: =IF(INDEX('LRMC x Plant ranked'!$C$5:$C$500,MATCH($AR43,'LRMC x Plant ranked'!$G$5:$G$500,FALSE),)=BG$6,VLOOKUP($AQ43,'LRMC x Plant ranked'!$F$4:$G$500,2,TRUE),0) -> 0 | BJ43: =IF(BJ42>MAX('LRMC x Plant ranked'!$P$5:$P$500),"",BJ42+IF($D$32="GWh",100,15)) -> 525 | BK43: =VLOOKUP($BJ43,'LRMC x Plant ranked'!$P$4:$Q$500,2,TRUE) -> 59.23720325 | BM43: =IF(INDEX('LRMC x Plant ranked'!$M$5:$M$500,MATCH($BK43,'LRMC x Plant ranked'!$Q$5:$Q$500,FALSE),)=BM$6,VLOOKUP($BJ43,'LRMC x Plant ranked'!$P$4:$Q$500,2,TRUE),0) -> 59.23720325 | BN43: =IF(INDEX('LRMC x Plant ranked'!$M$5:$M$500,MATCH($BK43,'LRMC x Plant ranked'!$Q$5:$Q$500,FALSE),)=BN$6,VLOOKUP($BJ43,'LRMC x Plant ranked'!$P$4:$Q$500,2,TRUE),0) -> 0 | BO43: 0 | BP43: 0 | BQ43: 0 | BS43: =IF(INDEX('LRMC x Plant ranked'!$M$5:$M$500,MATCH($BK43,'LRMC x Plant ranked'!$Q$5:$Q$500,FALSE),)=BS$6,VLOOKUP($BJ43,'LRMC x Plant ranked'!$P$4:$Q$500,2,TRUE),0) -> 0 | BT43: =IF(INDEX('LRMC x Plant ranked'!$M$5:$M$500,MATCH($BK43,'LRMC x Plant ranked'!$Q$5:$Q$500,FALSE),)=BT$6,VLOOKUP($BJ43,'LRMC x Plant ranked'!$P$4:$Q$500,2,TRUE),0) -> 0 | BU43: =IF(INDEX('LRMC x Plant ranked'!$M$5:$M$500,MATCH($BK43,'LRMC x Plant ranked'!$Q$5:$Q$500,FALSE),)=BU$6,VLOOKUP($BJ43,'LRMC x Plant ranked'!$P$4:$Q$500,2,TRUE),0) -> 0 | BV43: =IF(INDEX('LRMC x Plant ranked'!$M$5:$M$500,MATCH($BK43,'LRMC x Plant ranked'!$Q$5:$Q$500,FALSE),)=BV$6,VLOOKUP($BJ43,'LRMC x Plant ranked'!$P$4:$Q$500,2,TRUE),0) -> 0 | BW43: =IF(INDEX('LRMC x Plant ranked'!$M$5:$M$500,MATCH($BK43,'LRMC x Plant ranked'!$Q$5:$Q$500,FALSE),)=BW$6,VLOOKUP($BJ43,'LRMC x Plant ranked'!$P$4:$Q$500,2,TRUE),0) -> 0 | BX43: 81.677403 | BY43: 92.67719164 | BZ43: 117.3776135 | CA43: 173.8216805 | CB43: 69.67136421
C44: USA | D44: 0.68 | F44: 0.68 | G44: 0.65 | AI44: =IF(ISERROR(IF(OR(VLOOKUP(AJ44,'GEM new plant'!$A$4:$P$388,COLUMNS('GEM new plant'!A194:C194),FALSE)="HydRR",VLOOKUP(AJ44,'GEM new plant'!$A$4:$P$388,COLUMNS('GEM new plant'!A194:C194),FALSE)="HydPk"),"Hydro",VLOOKUP(AJ44,'GEM new plant'!$A$4:$P$388,COLUMNS('GEM new plant'!A194:C194),FALSE))),0,IF(OR(VLOOKUP(AJ44,'GEM new plant'!$A$4:$P$388,COLUMNS('GEM new plant'!A194:C194),FALSE)="HydRR",VLOOKUP(AJ44,'GEM new plant'!$A$4:$P$388,COLUMNS('GEM new plant'!A194:C194),FALSE)="HydPk"),"Hydro",VLOOKUP(AJ44,'GEM new plant'!$A$4:$P$388,COLUMNS('GEM new plant'!A194:C194),FALSE))) -> DslPkr | AJ44: OCGTDSL3 | AK44: 8996.157908 | AL44: 20148.79412 | AQ44: =IF(AQ43>MAX('LRMC x Plant ranked'!$F$5:$F$500),"",AQ43+IF($D$32="GWh",100,15)) -> 540 | AR44: =VLOOKUP($AQ44,'LRMC x Plant ranked'!$F$4:$G$500,2,TRUE) -> 59.23720325 | AT44: =IF(INDEX('LRMC x Plant ranked'!$C$5:$C$500,MATCH($AR44,'LRMC x Plant ranked'!$G$5:$G$500,FALSE),)=AT$6,VLOOKUP($AQ44,'LRMC x Plant ranked'!$F$4:$G$500,2,TRUE),0) -> 0 | AU44: =IF(INDEX('LRMC x Plant ranked'!$C$5:$C$500,MATCH($AR44,'LRMC x Plant ranked'!$G$5:$G$500,FALSE),)=AU$6,VLOOKUP($AQ44,'LRMC x Plant ranked'!$F$4:$G$500,2,TRUE),0) -> 0 | AV44: =IF(INDEX('LRMC x Plant ranked'!$C$5:$C$500,MATCH($AR44,'LRMC x Plant ranked'!$G$5:$G$500,FALSE),)=AV$6,VLOOKUP($AQ44,'LRMC x Plant ranked'!$F$4:$G$500,2,TRUE),0) -> 0 | AW44: =IF(INDEX('LRMC x Plant ranked'!$C$5:$C$500,MATCH($AR44,'LRMC x Plant ranked'!$G$5:$G$500,FALSE),)=AW$6,VLOOKUP($AQ44,'LRMC x Plant ranked'!$F$4:$G$500,2,TRUE),0) -> 59.23720325 | AX44: =IF(INDEX('LRMC x Plant ranked'!$C$5:$C$500,MATCH($AR44,'LRMC x Plant ranked'!$G$5:$G$500,FALSE),)=AX$6,VLOOKUP($AQ44,'LRMC x Plant ranked'!$F$4:$G$500,2,TRUE),0) -> 0 | AY44: 0 | AZ44: 0 | BA44: 0 | BC44: =IF(INDEX('LRMC x Plant ranked'!$C$5:$C$500,MATCH($AR44,'LRMC x Plant ranked'!$G$5:$G$500,FALSE),)=BC$6,VLOOKUP($AQ44,'LRMC x Plant ranked'!$F$4:$G$500,2,TRUE),0) -> 0 | BD44: =IF(INDEX('LRMC x Plant ranked'!$C$5:$C$500,MATCH($AR44,'LRMC x Plant ranked'!$G$5:$G$500,FALSE),)=BD$6,VLOOKUP($AQ44,'LRMC x Plant ranked'!$F$4:$G$500,2,TRUE),0) -> 0 | BE44: =IF(INDEX('LRMC x Plant ranked'!$C$5:$C$500,MATCH($AR44,'LRMC x Plant ranked'!$G$5:$G$500,FALSE),)=BE$6,VLOOKUP($AQ44,'LRMC x Plant ranked'!$F$4:$G$500,2,TRUE),0) -> 0 | BF44: =IF(INDEX('LRMC x Plant ranked'!$C$5:$C$500,MATCH($AR44,'LRMC x Plant ranked'!$G$5:$G$500,FALSE),)=BF$6,VLOOKUP($AQ44,'LRMC x Plant ranked'!$F$4:$G$500,2,TRUE),0) -> 0 | BG44: =IF(INDEX('LRMC x Plant ranked'!$C$5:$C$500,MATCH($AR44,'LRMC x Plant ranked'!$G$5:$G$500,FALSE),)=BG$6,VLOOKUP($AQ44,'LRMC x Plant ranked'!$F$4:$G$500,2,TRUE),0) -> 0 | BJ44: =IF(BJ43>MAX('LRMC x Plant ranked'!$P$5:$P$500),"",BJ43+IF($D$32="GWh",100,15)) -> 540 | BK44: =VLOOKUP($BJ44,'LRMC x Plant ranked'!$P$4:$Q$500,2,TRUE) -> 59.23720325 | BM44: =IF(INDEX('LRMC x Plant ranked'!$M$5:$M$500,MATCH($BK44,'LRMC x Plant ranked'!$Q$5:$Q$500,FALSE),)=BM$6,VLOOKUP($BJ44,'LRMC x Plant ranked'!$P$4:$Q$500,2,TRUE),0) -> 59.23720325 | BN44: =IF(INDEX('LRMC x Plant ranked'!$M$5:$M$500,MATCH($BK44,'LRMC x Plant ranked'!$Q$5:$Q$500,FALSE),)=BN$6,VLOOKUP($BJ44,'LRMC x Plant ranked'!$P$4:$Q$500,2,TRUE),0) -> 0 | BO44: 0 | BP44: 0 | BQ44: 0 | BS44: =IF(INDEX('LRMC x Plant ranked'!$M$5:$M$500,MATCH($BK44,'LRMC x Plant ranked'!$Q$5:$Q$500,FALSE),)=BS$6,VLOOKUP($BJ44,'LRMC x Plant ranked'!$P$4:$Q$500,2,TRUE),0) -> 0 | BT44: =IF(INDEX('LRMC x Plant ranked'!$M$5:$M$500,MATCH($BK44,'LRMC x Plant ranked'!$Q$5:$Q$500,FALSE),)=BT$6,VLOOKUP($BJ44,'LRMC x Plant ranked'!$P$4:$Q$500,2,TRUE),0) -> 0 | BU44: =IF(INDEX('LRMC x Plant ranked'!$M$5:$M$500,MATCH($BK44,'LRMC x Plant ranked'!$Q$5:$Q$500,FALSE),)=BU$6,VLOOKUP($BJ44,'LRMC x Plant ranked'!$P$4:$Q$500,2,TRUE),0) -> 0 | BV44: =IF(INDEX('LRMC x Plant ranked'!$M$5:$M$500,MATCH($BK44,'LRMC x Plant ranked'!$Q$5:$Q$500,FALSE),)=BV$6,VLOOKUP($BJ44,'LRMC x Plant ranked'!$P$4:$Q$500,2,TRUE),0) -> 0 | BW44: =IF(INDEX('LRMC x Plant ranked'!$M$5:$M$500,MATCH($BK44,'LRMC x Plant ranked'!$Q$5:$Q$500,FALSE),)=BW$6,VLOOKUP($BJ44,'LRMC x Plant ranked'!$P$4:$Q$500,2,TRUE),0) -> 0 | BX44: 81.677403 | BY44: 92.67719164 | BZ44: 117.3776135 | CA44: 173.8216805 | CB44: 69.67136421
C45: EURO | D45: 0.6 | F45: 0.6 | G45: 0.58 | AI45: =IF(ISERROR(IF(OR(VLOOKUP(AJ45,'GEM new plant'!$A$4:$P$388,COLUMNS('GEM new plant'!A177:C177),FALSE)="HydRR",VLOOKUP(AJ45,'GEM new plant'!$A$4:$P$388,COLUMNS('GEM new plant'!A177:C177),FALSE)="HydPk"),"Hydro",VLOOKUP(AJ45,'GEM new plant'!$A$4:$P$388,COLUMNS('GEM new plant'!A177:C177),FALSE))),0,IF(OR(VLOOKUP(AJ45,'GEM new plant'!$A$4:$P$388,COLUMNS('GEM new plant'!A177:C177),FALSE)="HydRR",VLOOKUP(AJ45,'GEM new plant'!$A$4:$P$388,COLUMNS('GEM new plant'!A177:C177),FALSE)="HydPk"),"Hydro",VLOOKUP(AJ45,'GEM new plant'!$A$4:$P$388,COLUMNS('GEM new plant'!A177:C177),FALSE))) -> DslPkr | AJ45: OCGTDSL4 | AK45: 8603.97818 | AL45: 20148.79412 | AQ45: =IF(AQ44>MAX('LRMC x Plant ranked'!$F$5:$F$500),"",AQ44+IF($D$32="GWh",100,15)) -> 555 | AR45: =VLOOKUP($AQ45,'LRMC x Plant ranked'!$F$4:$G$500,2,TRUE) -> 59.23720325 | AT45: =IF(INDEX('LRMC x Plant ranked'!$C$5:$C$500,MATCH($AR45,'LRMC x Plant ranked'!$G$5:$G$500,FALSE),)=AT$6,VLOOKUP($AQ45,'LRMC x Plant ranked'!$F$4:$G$500,2,TRUE),0) -> 0 | AU45: =IF(INDEX('LRMC x Plant ranked'!$C$5:$C$500,MATCH($AR45,'LRMC x Plant ranked'!$G$5:$G$500,FALSE),)=AU$6,VLOOKUP($AQ45,'LRMC x Plant ranked'!$F$4:$G$500,2,TRUE),0) -> 0 | AV45: =IF(INDEX('LRMC x Plant ranked'!$C$5:$C$500,MATCH($AR45,'LRMC x Plant ranked'!$G$5:$G$500,FALSE),)=AV$6,VLOOKUP($AQ45,'LRMC x Plant ranked'!$F$4:$G$500,2,TRUE),0) -> 0 | AW45: =IF(INDEX('LRMC x Plant ranked'!$C$5:$C$500,MATCH($AR45,'LRMC x Plant ranked'!$G$5:$G$500,FALSE),)=AW$6,VLOOKUP($AQ45,'LRMC x Plant ranked'!$F$4:$G$500,2,TRUE),0) -> 59.23720325 | AX45: =IF(INDEX('LRMC x Plant ranked'!$C$5:$C$500,MATCH($AR45,'LRMC x Plant ranked'!$G$5:$G$500,FALSE),)=AX$6,VLOOKUP($AQ45,'LRMC x Plant ranked'!$F$4:$G$500,2,TRUE),0) -> 0 | AY45: 0 | AZ45: 0 | BA45: 0 | BC45: =IF(INDEX('LRMC x Plant ranked'!$C$5:$C$500,MATCH($AR45,'LRMC x Plant ranked'!$G$5:$G$500,FALSE),)=BC$6,VLOOKUP($AQ45,'LRMC x Plant ranked'!$F$4:$G$500,2,TRUE),0) -> 0 | BD45: =IF(INDEX('LRMC x Plant ranked'!$C$5:$C$500,MATCH($AR45,'LRMC x Plant ranked'!$G$5:$G$500,FALSE),)=BD$6,VLOOKUP($AQ45,'LRMC x Plant ranked'!$F$4:$G$500,2,TRUE),0) -> 0 | BE45: =IF(INDEX('LRMC x Plant ranked'!$C$5:$C$500,MATCH($AR45,'LRMC x Plant ranked'!$G$5:$G$500,FALSE),)=BE$6,VLOOKUP($AQ45,'LRMC x Plant ranked'!$F$4:$G$500,2,TRUE),0) -> 0 | BF45: =IF(INDEX('LRMC x Plant ranked'!$C$5:$C$500,MATCH($AR45,'LRMC x Plant ranked'!$G$5:$G$500,FALSE),)=BF$6,VLOOKUP($AQ45,'LRMC x Plant ranked'!$F$4:$G$500,2,TRUE),0) -> 0 | BG45: =IF(INDEX('LRMC x Plant ranked'!$C$5:$C$500,MATCH($AR45,'LRMC x Plant ranked'!$G$5:$G$500,FALSE),)=BG$6,VLOOKUP($AQ45,'LRMC x Plant ranked'!$F$4:$G$500,2,TRUE),0) -> 0 | BJ45: =IF(BJ44>MAX('LRMC x Plant ranked'!$P$5:$P$500),"",BJ44+IF($D$32="GWh",100,15)) -> 555 | BK45: =VLOOKUP($BJ45,'LRMC x Plant ranked'!$P$4:$Q$500,2,TRUE) -> 59.23720325 | BM45: =IF(INDEX('LRMC x Plant ranked'!$M$5:$M$500,MATCH($BK45,'LRMC x Plant ranked'!$Q$5:$Q$500,FALSE),)=BM$6,VLOOKUP($BJ45,'LRMC x Plant ranked'!$P$4:$Q$500,2,TRUE),0) -> 59.23720325 | BN45: =IF(INDEX('LRMC x Plant ranked'!$M$5:$M$500,MATCH($BK45,'LRMC x Plant ranked'!$Q$5:$Q$500,FALSE),)=BN$6,VLOOKUP($BJ45,'LRMC x Plant ranked'!$P$4:$Q$500,2,TRUE),0) -> 0 | BO45: 0 | BP45: 0 | BQ45: 0 | BS45: =IF(INDEX('LRMC x Plant ranked'!$M$5:$M$500,MATCH($BK45,'LRMC x Plant ranked'!$Q$5:$Q$500,FALSE),)=BS$6,VLOOKUP($BJ45,'LRMC x Plant ranked'!$P$4:$Q$500,2,TRUE),0) -> 0 | BT45: =IF(INDEX('LRMC x Plant ranked'!$M$5:$M$500,MATCH($BK45,'LRMC x Plant ranked'!$Q$5:$Q$500,FALSE),)=BT$6,VLOOKUP($BJ45,'LRMC x Plant ranked'!$P$4:$Q$500,2,TRUE),0) -> 0 | BU45: =IF(INDEX('LRMC x Plant ranked'!$M$5:$M$500,MATCH($BK45,'LRMC x Plant ranked'!$Q$5:$Q$500,FALSE),)=BU$6,VLOOKUP($BJ45,'LRMC x Plant ranked'!$P$4:$Q$500,2,TRUE),0) -> 0 | BV45: =IF(INDEX('LRMC x Plant ranked'!$M$5:$M$500,MATCH($BK45,'LRMC x Plant ranked'!$Q$5:$Q$500,FALSE),)=BV$6,VLOOKUP($BJ45,'LRMC x Plant ranked'!$P$4:$Q$500,2,TRUE),0) -> 0 | BW45: =IF(INDEX('LRMC x Plant ranked'!$M$5:$M$500,MATCH($BK45,'LRMC x Plant ranked'!$Q$5:$Q$500,FALSE),)=BW$6,VLOOKUP($BJ45,'LRMC x Plant ranked'!$P$4:$Q$500,2,TRUE),0) -> 0 | BX45: 81.677403 | BY45: 92.67719164 | BZ45: 117.3776135 | CA45: 173.8216805 | CB45: 69.67136421
C46: YEN | D46: 75 | F46: 75 | G46: 71 | AI46: =IF(ISERROR(IF(OR(VLOOKUP(AJ46,'GEM new plant'!$A$4:$P$388,COLUMNS('GEM new plant'!A188:C188),FALSE)="HydRR",VLOOKUP(AJ46,'GEM new plant'!$A$4:$P$388,COLUMNS('GEM new plant'!A188:C188),FALSE)="HydPk"),"Hydro",VLOOKUP(AJ46,'GEM new plant'!$A$4:$P$388,COLUMNS('GEM new plant'!A188:C188),FALSE))),0,IF(OR(VLOOKUP(AJ46,'GEM new plant'!$A$4:$P$388,COLUMNS('GEM new plant'!A188:C188),FALSE)="HydRR",VLOOKUP(AJ46,'GEM new plant'!$A$4:$P$388,COLUMNS('GEM new plant'!A188:C188),FALSE)="HydPk"),"Hydro",VLOOKUP(AJ46,'GEM new plant'!$A$4:$P$388,COLUMNS('GEM new plant'!A188:C188),FALSE))) -> DslRecip | AJ46: Belfast | AK46: 473.6874739 | AL46: 26.007 | AQ46: =IF(AQ45>MAX('LRMC x Plant ranked'!$F$5:$F$500),"",AQ45+IF($D$32="GWh",100,15)) -> 570 | AR46: =VLOOKUP($AQ46,'LRMC x Plant ranked'!$F$4:$G$500,2,TRUE) -> 59.37246491 | AT46: =IF(INDEX('LRMC x Plant ranked'!$C$5:$C$500,MATCH($AR46,'LRMC x Plant ranked'!$G$5:$G$500,FALSE),)=AT$6,VLOOKUP($AQ46,'LRMC x Plant ranked'!$F$4:$G$500,2,TRUE),0) -> 0 | AU46: =IF(INDEX('LRMC x Plant ranked'!$C$5:$C$500,MATCH($AR46,'LRMC x Plant ranked'!$G$5:$G$500,FALSE),)=AU$6,VLOOKUP($AQ46,'LRMC x Plant ranked'!$F$4:$G$500,2,TRUE),0) -> 0 | AV46: =IF(INDEX('LRMC x Plant ranked'!$C$5:$C$500,MATCH($AR46,'LRMC x Plant ranked'!$G$5:$G$500,FALSE),)=AV$6,VLOOKUP($AQ46,'LRMC x Plant ranked'!$F$4:$G$500,2,TRUE),0) -> 0 | AW46: =IF(INDEX('LRMC x Plant ranked'!$C$5:$C$500,MATCH($AR46,'LRMC x Plant ranked'!$G$5:$G$500,FALSE),)=AW$6,VLOOKUP($AQ46,'LRMC x Plant ranked'!$F$4:$G$500,2,TRUE),0) -> 59.37246491 | AX46: =IF(INDEX('LRMC x Plant ranked'!$C$5:$C$500,MATCH($AR46,'LRMC x Plant ranked'!$G$5:$G$500,FALSE),)=AX$6,VLOOKUP($AQ46,'LRMC x Plant ranked'!$F$4:$G$500,2,TRUE),0) -> 0 | AY46: 0 | AZ46: 0 | BA46: 0 | BC46: =IF(INDEX('LRMC x Plant ranked'!$C$5:$C$500,MATCH($AR46,'LRMC x Plant ranked'!$G$5:$G$500,FALSE),)=BC$6,VLOOKUP($AQ46,'LRMC x Plant ranked'!$F$4:$G$500,2,TRUE),0) -> 0 | BD46: =IF(INDEX('LRMC x Plant ranked'!$C$5:$C$500,MATCH($AR46,'LRMC x Plant ranked'!$G$5:$G$500,FALSE),)=BD$6,VLOOKUP($AQ46,'LRMC x Plant ranked'!$F$4:$G$500,2,TRUE),0) -> 0 | BE46: =IF(INDEX('LRMC x Plant ranked'!$C$5:$C$500,MATCH($AR46,'LRMC x Plant ranked'!$G$5:$G$500,FALSE),)=BE$6,VLOOKUP($AQ46,'LRMC x Plant ranked'!$F$4:$G$500,2,TRUE),0) -> 0 | BF46: =IF(INDEX('LRMC x Plant ranked'!$C$5:$C$500,MATCH($AR46,'LRMC x Plant ranked'!$G$5:$G$500,FALSE),)=BF$6,VLOOKUP($AQ46,'LRMC x Plant ranked'!$F$4:$G$500,2,TRUE),0) -> 0 | BG46: =IF(INDEX('LRMC x Plant ranked'!$C$5:$C$500,MATCH($AR46,'LRMC x Plant ranked'!$G$5:$G$500,FALSE),)=BG$6,VLOOKUP($AQ46,'LRMC x Plant ranked'!$F$4:$G$500,2,TRUE),0) -> 0 | BJ46: =IF(BJ45>MAX('LRMC x Plant ranked'!$P$5:$P$500),"",BJ45+IF($D$32="GWh",100,15)) -> 570 | BK46: =VLOOKUP($BJ46,'LRMC x Plant ranked'!$P$4:$Q$500,2,TRUE) -> 59.37246491 | BM46: =IF(INDEX('LRMC x Plant ranked'!$M$5:$M$500,MATCH($BK46,'LRMC x Plant ranked'!$Q$5:$Q$500,FALSE),)=BM$6,VLOOKUP($BJ46,'LRMC x Plant ranked'!$P$4:$Q$500,2,TRUE),0) -> 59.37246491 | BN46: =IF(INDEX('LRMC x Plant ranked'!$M$5:$M$500,MATCH($BK46,'LRMC x Plant ranked'!$Q$5:$Q$500,FALSE),)=BN$6,VLOOKUP($BJ46,'LRMC x Plant ranked'!$P$4:$Q$500,2,TRUE),0) -> 0 | BO46: 0 | BP46: 0 | BQ46: 0 | BS46: =IF(INDEX('LRMC x Plant ranked'!$M$5:$M$500,MATCH($BK46,'LRMC x Plant ranked'!$Q$5:$Q$500,FALSE),)=BS$6,VLOOKUP($BJ46,'LRMC x Plant ranked'!$P$4:$Q$500,2,TRUE),0) -> 0 | BT46: =IF(INDEX('LRMC x Plant ranked'!$M$5:$M$500,MATCH($BK46,'LRMC x Plant ranked'!$Q$5:$Q$500,FALSE),)=BT$6,VLOOKUP($BJ46,'LRMC x Plant ranked'!$P$4:$Q$500,2,TRUE),0) -> 0 | BU46: =IF(INDEX('LRMC x Plant ranked'!$M$5:$M$500,MATCH($BK46,'LRMC x Plant ranked'!$Q$5:$Q$500,FALSE),)=BU$6,VLOOKUP($BJ46,'LRMC x Plant ranked'!$P$4:$Q$500,2,TRUE),0) -> 0 | BV46: =IF(INDEX('LRMC x Plant ranked'!$M$5:$M$500,MATCH($BK46,'LRMC x Plant ranked'!$Q$5:$Q$500,FALSE),)=BV$6,VLOOKUP($BJ46,'LRMC x Plant ranked'!$P$4:$Q$500,2,TRUE),0) -> 0 | BW46: =IF(INDEX('LRMC x Plant ranked'!$M$5:$M$500,MATCH($BK46,'LRMC x Plant ranked'!$Q$5:$Q$500,FALSE),)=BW$6,VLOOKUP($BJ46,'LRMC x Plant ranked'!$P$4:$Q$500,2,TRUE),0) -> 0 | BX46: 81.677403 | BY46: 92.67719164 | BZ46: 117.3776135 | CA46: 173.8216805 | CB46: 69.67136421
AI47: =IF(ISERROR(IF(OR(VLOOKUP(AJ47,'GEM new plant'!$A$4:$P$388,COLUMNS('GEM new plant'!A204:C204),FALSE)="HydRR",VLOOKUP(AJ47,'GEM new plant'!$A$4:$P$388,COLUMNS('GEM new plant'!A204:C204),FALSE)="HydPk"),"Hydro",VLOOKUP(AJ47,'GEM new plant'!$A$4:$P$388,COLUMNS('GEM new plant'!A204:C204),FALSE))),0,IF(OR(VLOOKUP(AJ47,'GEM new plant'!$A$4:$P$388,COLUMNS('GEM new plant'!A204:C204),FALSE)="HydRR",VLOOKUP(AJ47,'GEM new plant'!$A$4:$P$388,COLUMNS('GEM new plant'!A204:C204),FALSE)="HydPk"),"Hydro",VLOOKUP(AJ47,'GEM new plant'!$A$4:$P$388,COLUMNS('GEM new plant'!A204:C204),FALSE))) -> DslRecip | AJ47: Bromley | AK47: 473.6874739 | AL47: 26.007 | AQ47: =IF(AQ46>MAX('LRMC x Plant ranked'!$F$5:$F$500),"",AQ46+IF($D$32="GWh",100,15)) -> 585 | AR47: =VLOOKUP($AQ47,'LRMC x Plant ranked'!$F$4:$G$500,2,TRUE) -> 59.37246491 | AT47: =IF(INDEX('LRMC x Plant ranked'!$C$5:$C$500,MATCH($AR47,'LRMC x Plant ranked'!$G$5:$G$500,FALSE),)=AT$6,VLOOKUP($AQ47,'LRMC x Plant ranked'!$F$4:$G$500,2,TRUE),0) -> 0 | AU47: =IF(INDEX('LRMC x Plant ranked'!$C$5:$C$500,MATCH($AR47,'LRMC x Plant ranked'!$G$5:$G$500,FALSE),)=AU$6,VLOOKUP($AQ47,'LRMC x Plant ranked'!$F$4:$G$500,2,TRUE),0) -> 0 | AV47: =IF(INDEX('LRMC x Plant ranked'!$C$5:$C$500,MATCH($AR47,'LRMC x Plant ranked'!$G$5:$G$500,FALSE),)=AV$6,VLOOKUP($AQ47,'LRMC x Plant ranked'!$F$4:$G$500,2,TRUE),0) -> 0 | AW47: =IF(INDEX('LRMC x Plant ranked'!$C$5:$C$500,MATCH($AR47,'LRMC x Plant ranked'!$G$5:$G$500,FALSE),)=AW$6,VLOOKUP($AQ47,'LRMC x Plant ranked'!$F$4:$G$500,2,TRUE),0) -> 59.37246491 | AX47: =IF(INDEX('LRMC x Plant ranked'!$C$5:$C$500,MATCH($AR47,'LRMC x Plant ranked'!$G$5:$G$500,FALSE),)=AX$6,VLOOKUP($AQ47,'LRMC x Plant ranked'!$F$4:$G$500,2,TRUE),0) -> 0 | AY47: 0 | AZ47: 0 | BA47: 0 | BC47: =IF(INDEX('LRMC x Plant ranked'!$C$5:$C$500,MATCH($AR47,'LRMC x Plant ranked'!$G$5:$G$500,FALSE),)=BC$6,VLOOKUP($AQ47,'LRMC x Plant ranked'!$F$4:$G$500,2,TRUE),0) -> 0 | BD47: =IF(INDEX('LRMC x Plant ranked'!$C$5:$C$500,MATCH($AR47,'LRMC x Plant ranked'!$G$5:$G$500,FALSE),)=BD$6,VLOOKUP($AQ47,'LRMC x Plant ranked'!$F$4:$G$500,2,TRUE),0) -> 0 | BE47: =IF(INDEX('LRMC x Plant ranked'!$C$5:$C$500,MATCH($AR47,'LRMC x Plant ranked'!$G$5:$G$500,FALSE),)=BE$6,VLOOKUP($AQ47,'LRMC x Plant ranked'!$F$4:$G$500,2,TRUE),0) -> 0 | BF47: =IF(INDEX('LRMC x Plant ranked'!$C$5:$C$500,MATCH($AR47,'LRMC x Plant ranked'!$G$5:$G$500,FALSE),)=BF$6,VLOOKUP($AQ47,'LRMC x Plant ranked'!$F$4:$G$500,2,TRUE),0) -> 0 | BG47: =IF(INDEX('LRMC x Plant ranked'!$C$5:$C$500,MATCH($AR47,'LRMC x Plant ranked'!$G$5:$G$500,FALSE),)=BG$6,VLOOKUP($AQ47,'LRMC x Plant ranked'!$F$4:$G$500,2,TRUE),0) -> 0 | BJ47: =IF(BJ46>MAX('LRMC x Plant ranked'!$P$5:$P$500),"",BJ46+IF($D$32="GWh",100,15)) -> 585 | BK47: =VLOOKUP($BJ47,'LRMC x Plant ranked'!$P$4:$Q$500,2,TRUE) -> 59.37246491 | BM47: =IF(INDEX('LRMC x Plant ranked'!$M$5:$M$500,MATCH($BK47,'LRMC x Plant ranked'!$Q$5:$Q$500,FALSE),)=BM$6,VLOOKUP($BJ47,'LRMC x Plant ranked'!$P$4:$Q$500,2,TRUE),0) -> 59.37246491 | BN47: =IF(INDEX('LRMC x Plant ranked'!$M$5:$M$500,MATCH($BK47,'LRMC x Plant ranked'!$Q$5:$Q$500,FALSE),)=BN$6,VLOOKUP($BJ47,'LRMC x Plant ranked'!$P$4:$Q$500,2,TRUE),0) -> 0 | BO47: 0 | BP47: 0 | BQ47: 0 | BS47: =IF(INDEX('LRMC x Plant ranked'!$M$5:$M$500,MATCH($BK47,'LRMC x Plant ranked'!$Q$5:$Q$500,FALSE),)=BS$6,VLOOKUP($BJ47,'LRMC x Plant ranked'!$P$4:$Q$500,2,TRUE),0) -> 0 | BT47: =IF(INDEX('LRMC x Plant ranked'!$M$5:$M$500,MATCH($BK47,'LRMC x Plant ranked'!$Q$5:$Q$500,FALSE),)=BT$6,VLOOKUP($BJ47,'LRMC x Plant ranked'!$P$4:$Q$500,2,TRUE),0) -> 0 | BU47: =IF(INDEX('LRMC x Plant ranked'!$M$5:$M$500,MATCH($BK47,'LRMC x Plant ranked'!$Q$5:$Q$500,FALSE),)=BU$6,VLOOKUP($BJ47,'LRMC x Plant ranked'!$P$4:$Q$500,2,TRUE),0) -> 0 | BV47: =IF(INDEX('LRMC x Plant ranked'!$M$5:$M$500,MATCH($BK47,'LRMC x Plant ranked'!$Q$5:$Q$500,FALSE),)=BV$6,VLOOKUP($BJ47,'LRMC x Plant ranked'!$P$4:$Q$500,2,TRUE),0) -> 0 | BW47: =IF(INDEX('LRMC x Plant ranked'!$M$5:$M$500,MATCH($BK47,'LRMC x Plant ranked'!$Q$5:$Q$500,FALSE),)=BW$6,VLOOKUP($BJ47,'LRMC x Plant ranked'!$P$4:$Q$500,2,TRUE),0) -> 0 | BX47: 81.677403 | BY47: 92.67719164 | BZ47: 117.3776135 | CA47: 173.8216805 | CB47: 69.67136421
AI48: =IF(ISERROR(IF(OR(VLOOKUP(AJ48,'GEM new plant'!$A$4:$P$388,COLUMNS('GEM new plant'!A209:C209),FALSE)="HydRR",VLOOKUP(AJ48,'GEM new plant'!$A$4:$P$388,COLUMNS('GEM new plant'!A209:C209),FALSE)="HydPk"),"Hydro",VLOOKUP(AJ48,'GEM new plant'!$A$4:$P$388,COLUMNS('GEM new plant'!A209:C209),FALSE))),0,IF(OR(VLOOKUP(AJ48,'GEM new plant'!$A$4:$P$388,COLUMNS('GEM new plant'!A209:C209),FALSE)="HydRR",VLOOKUP(AJ48,'GEM new plant'!$A$4:$P$388,COLUMNS('GEM new plant'!A209:C209),FALSE)="HydPk"),"Hydro",VLOOKUP(AJ48,'GEM new plant'!$A$4:$P$388,COLUMNS('GEM new plant'!A209:C209),FALSE))) -> DslRecip | AJ48: RecDieselG1 | AK48: 504.180206 | AL48: 20.48 | AQ48: =IF(AQ47>MAX('LRMC x Plant ranked'!$F$5:$F$500),"",AQ47+IF($D$32="GWh",100,15)) -> 600 | AR48: =VLOOKUP($AQ48,'LRMC x Plant ranked'!$F$4:$G$500,2,TRUE) -> 59.37246491 | AT48: =IF(INDEX('LRMC x Plant ranked'!$C$5:$C$500,MATCH($AR48,'LRMC x Plant ranked'!$G$5:$G$500,FALSE),)=AT$6,VLOOKUP($AQ48,'LRMC x Plant ranked'!$F$4:$G$500,2,TRUE),0) -> 0 | AU48: =IF(INDEX('LRMC x Plant ranked'!$C$5:$C$500,MATCH($AR48,'LRMC x Plant ranked'!$G$5:$G$500,FALSE),)=AU$6,VLOOKUP($AQ48,'LRMC x Plant ranked'!$F$4:$G$500,2,TRUE),0) -> 0 | AV48: =IF(INDEX('LRMC x Plant ranked'!$C$5:$C$500,MATCH($AR48,'LRMC x Plant ranked'!$G$5:$G$500,FALSE),)=AV$6,VLOOKUP($AQ48,'LRMC x Plant ranked'!$F$4:$G$500,2,TRUE),0) -> 0 | AW48: =IF(INDEX('LRMC x Plant ranked'!$C$5:$C$500,MATCH($AR48,'LRMC x Plant ranked'!$G$5:$G$500,FALSE),)=AW$6,VLOOKUP($AQ48,'LRMC x Plant ranked'!$F$4:$G$500,2,TRUE),0) -> 59.37246491 | AX48: =IF(INDEX('LRMC x Plant ranked'!$C$5:$C$500,MATCH($AR48,'LRMC x Plant ranked'!$G$5:$G$500,FALSE),)=AX$6,VLOOKUP($AQ48,'LRMC x Plant ranked'!$F$4:$G$500,2,TRUE),0) -> 0 | AY48: 0 | AZ48: 0 | BA48: 0 | BC48: =IF(INDEX('LRMC x Plant ranked'!$C$5:$C$500,MATCH($AR48,'LRMC x Plant ranked'!$G$5:$G$500,FALSE),)=BC$6,VLOOKUP($AQ48,'LRMC x Plant ranked'!$F$4:$G$500,2,TRUE),0) -> 0 | BD48: =IF(INDEX('LRMC x Plant ranked'!$C$5:$C$500,MATCH($AR48,'LRMC x Plant ranked'!$G$5:$G$500,FALSE),)=BD$6,VLOOKUP($AQ48,'LRMC x Plant ranked'!$F$4:$G$500,2,TRUE),0) -> 0 | BE48: =IF(INDEX('LRMC x Plant ranked'!$C$5:$C$500,MATCH($AR48,'LRMC x Plant ranked'!$G$5:$G$500,FALSE),)=BE$6,VLOOKUP($AQ48,'LRMC x Plant ranked'!$F$4:$G$500,2,TRUE),0) -> 0 | BF48: =IF(INDEX('LRMC x Plant ranked'!$C$5:$C$500,MATCH($AR48,'LRMC x Plant ranked'!$G$5:$G$500,FALSE),)=BF$6,VLOOKUP($AQ48,'LRMC x Plant ranked'!$F$4:$G$500,2,TRUE),0) -> 0 | BG48: =IF(INDEX('LRMC x Plant ranked'!$C$5:$C$500,MATCH($AR48,'LRMC x Plant ranked'!$G$5:$G$500,FALSE),)=BG$6,VLOOKUP($AQ48,'LRMC x Plant ranked'!$F$4:$G$500,2,TRUE),0) -> 0 | BJ48: =IF(BJ47>MAX('LRMC x Plant ranked'!$P$5:$P$500),"",BJ47+IF($D$32="GWh",100,15)) -> 600 | BK48: =VLOOKUP($BJ48,'LRMC x Plant ranked'!$P$4:$Q$500,2,TRUE) -> 59.37246491 | BM48: =IF(INDEX('LRMC x Plant ranked'!$M$5:$M$500,MATCH($BK48,'LRMC x Plant ranked'!$Q$5:$Q$500,FALSE),)=BM$6,VLOOKUP($BJ48,'LRMC x Plant ranked'!$P$4:$Q$500,2,TRUE),0) -> 59.37246491 | BN48: =IF(INDEX('LRMC x Plant ranked'!$M$5:$M$500,MATCH($BK48,'LRMC x Plant ranked'!$Q$5:$Q$500,FALSE),)=BN$6,VLOOKUP($BJ48,'LRMC x Plant ranked'!$P$4:$Q$500,2,TRUE),0) -> 0 | BO48: 0 | BP48: 0 | BQ48: 0 | BS48: =IF(INDEX('LRMC x Plant ranked'!$M$5:$M$500,MATCH($BK48,'LRMC x Plant ranked'!$Q$5:$Q$500,FALSE),)=BS$6,VLOOKUP($BJ48,'LRMC x Plant ranked'!$P$4:$Q$500,2,TRUE),0) -> 0 | BT48: =IF(INDEX('LRMC x Plant ranked'!$M$5:$M$500,MATCH($BK48,'LRMC x Plant ranked'!$Q$5:$Q$500,FALSE),)=BT$6,VLOOKUP($BJ48,'LRMC x Plant ranked'!$P$4:$Q$500,2,TRUE),0) -> 0 | BU48: =IF(INDEX('LRMC x Plant ranked'!$M$5:$M$500,MATCH($BK48,'LRMC x Plant ranked'!$Q$5:$Q$500,FALSE),)=BU$6,VLOOKUP($BJ48,'LRMC x Plant ranked'!$P$4:$Q$500,2,TRUE),0) -> 0 | BV48: =IF(INDEX('LRMC x Plant ranked'!$M$5:$M$500,MATCH($BK48,'LRMC x Plant ranked'!$Q$5:$Q$500,FALSE),)=BV$6,VLOOKUP($BJ48,'LRMC x Plant ranked'!$P$4:$Q$500,2,TRUE),0) -> 0 | BW48: =IF(INDEX('LRMC x Plant ranked'!$M$5:$M$500,MATCH($BK48,'LRMC x Plant ranked'!$Q$5:$Q$500,FALSE),)=BW$6,VLOOKUP($BJ48,'LRMC x Plant ranked'!$P$4:$Q$500,2,TRUE),0) -> 0 | BX48: 81.677403 | BY48: 92.67719164 | BZ48: 117.3776135 | CA48: 173.8216805 | CB48: 69.67136421
AI49: =IF(ISERROR(IF(OR(VLOOKUP(AJ49,'GEM new plant'!$A$4:$P$388,COLUMNS('GEM new plant'!A192:C192),FALSE)="HydRR",VLOOKUP(AJ49,'GEM new plant'!$A$4:$P$388,COLUMNS('GEM new plant'!A192:C192),FALSE)="HydPk"),"Hydro",VLOOKUP(AJ49,'GEM new plant'!$A$4:$P$388,COLUMNS('GEM new plant'!A192:C192),FALSE))),0,IF(OR(VLOOKUP(AJ49,'GEM new plant'!$A$4:$P$388,COLUMNS('GEM new plant'!A192:C192),FALSE)="HydRR",VLOOKUP(AJ49,'GEM new plant'!$A$4:$P$388,COLUMNS('GEM new plant'!A192:C192),FALSE)="HydPk"),"Hydro",VLOOKUP(AJ49,'GEM new plant'!$A$4:$P$388,COLUMNS('GEM new plant'!A192:C192),FALSE))) -> DslRecip | AJ49: PropDiesel1 | AK49: 400.8214711 | AL49: 20.2802 | AQ49: =IF(AQ48>MAX('LRMC x Plant ranked'!$F$5:$F$500),"",AQ48+IF($D$32="GWh",100,15)) -> 615 | AR49: =VLOOKUP($AQ49,'LRMC x Plant ranked'!$F$4:$G$500,2,TRUE) -> 59.37246491 | AT49: =IF(INDEX('LRMC x Plant ranked'!$C$5:$C$500,MATCH($AR49,'LRMC x Plant ranked'!$G$5:$G$500,FALSE),)=AT$6,VLOOKUP($AQ49,'LRMC x Plant ranked'!$F$4:$G$500,2,TRUE),0) -> 0 | AU49: =IF(INDEX('LRMC x Plant ranked'!$C$5:$C$500,MATCH($AR49,'LRMC x Plant ranked'!$G$5:$G$500,FALSE),)=AU$6,VLOOKUP($AQ49,'LRMC x Plant ranked'!$F$4:$G$500,2,TRUE),0) -> 0 | AV49: =IF(INDEX('LRMC x Plant ranked'!$C$5:$C$500,MATCH($AR49,'LRMC x Plant ranked'!$G$5:$G$500,FALSE),)=AV$6,VLOOKUP($AQ49,'LRMC x Plant ranked'!$F$4:$G$500,2,TRUE),0) -> 0 | AW49: =IF(INDEX('LRMC x Plant ranked'!$C$5:$C$500,MATCH($AR49,'LRMC x Plant ranked'!$G$5:$G$500,FALSE),)=AW$6,VLOOKUP($AQ49,'LRMC x Plant ranked'!$F$4:$G$500,2,TRUE),0) -> 59.37246491 | AX49: =IF(INDEX('LRMC x Plant ranked'!$C$5:$C$500,MATCH($AR49,'LRMC x Plant ranked'!$G$5:$G$500,FALSE),)=AX$6,VLOOKUP($AQ49,'LRMC x Plant ranked'!$F$4:$G$500,2,TRUE),0) -> 0 | AY49: 0 | AZ49: 0 | BA49: 0 | BC49: =IF(INDEX('LRMC x Plant ranked'!$C$5:$C$500,MATCH($AR49,'LRMC x Plant ranked'!$G$5:$G$500,FALSE),)=BC$6,VLOOKUP($AQ49,'LRMC x Plant ranked'!$F$4:$G$500,2,TRUE),0) -> 0 | BD49: =IF(INDEX('LRMC x Plant ranked'!$C$5:$C$500,MATCH($AR49,'LRMC x Plant ranked'!$G$5:$G$500,FALSE),)=BD$6,VLOOKUP($AQ49,'LRMC x Plant ranked'!$F$4:$G$500,2,TRUE),0) -> 0 | BE49: =IF(INDEX('LRMC x Plant ranked'!$C$5:$C$500,MATCH($AR49,'LRMC x Plant ranked'!$G$5:$G$500,FALSE),)=BE$6,VLOOKUP($AQ49,'LRMC x Plant ranked'!$F$4:$G$500,2,TRUE),0) -> 0 | BF49: =IF(INDEX('LRMC x Plant ranked'!$C$5:$C$500,MATCH($AR49,'LRMC x Plant ranked'!$G$5:$G$500,FALSE),)=BF$6,VLOOKUP($AQ49,'LRMC x Plant ranked'!$F$4:$G$500,2,TRUE),0) -> 0 | BG49: =IF(INDEX('LRMC x Plant ranked'!$C$5:$C$500,MATCH($AR49,'LRMC x Plant ranked'!$G$5:$G$500,FALSE),)=BG$6,VLOOKUP($AQ49,'LRMC x Plant ranked'!$F$4:$G$500,2,TRUE),0) -> 0 | BJ49: =IF(BJ48>MAX('LRMC x Plant ranked'!$P$5:$P$500),"",BJ48+IF($D$32="GWh",100,15)) -> 615 | BK49: =VLOOKUP($BJ49,'LRMC x Plant ranked'!$P$4:$Q$500,2,TRUE) -> 59.37246491 | BM49: =IF(INDEX('LRMC x Plant ranked'!$M$5:$M$500,MATCH($BK49,'LRMC x Plant ranked'!$Q$5:$Q$500,FALSE),)=BM$6,VLOOKUP($BJ49,'LRMC x Plant ranked'!$P$4:$Q$500,2,TRUE),0) -> 59.37246491 | BN49: =IF(INDEX('LRMC x Plant ranked'!$M$5:$M$500,MATCH($BK49,'LRMC x Plant ranked'!$Q$5:$Q$500,FALSE),)=BN$6,VLOOKUP($BJ49,'LRMC x Plant ranked'!$P$4:$Q$500,2,TRUE),0) -> 0 | BO49: 0 | BP49: 0 | BQ49: 0 | BS49: =IF(INDEX('LRMC x Plant ranked'!$M$5:$M$500,MATCH($BK49,'LRMC x Plant ranked'!$Q$5:$Q$500,FALSE),)=BS$6,VLOOKUP($BJ49,'LRMC x Plant ranked'!$P$4:$Q$500,2,TRUE),0) -> 0 | BT49: =IF(INDEX('LRMC x Plant ranked'!$M$5:$M$500,MATCH($BK49,'LRMC x Plant ranked'!$Q$5:$Q$500,FALSE),)=BT$6,VLOOKUP($BJ49,'LRMC x Plant ranked'!$P$4:$Q$500,2,TRUE),0) -> 0 | BU49: =IF(INDEX('LRMC x Plant ranked'!$M$5:$M$500,MATCH($BK49,'LRMC x Plant ranked'!$Q$5:$Q$500,FALSE),)=BU$6,VLOOKUP($BJ49,'LRMC x Plant ranked'!$P$4:$Q$500,2,TRUE),0) -> 0 | BV49: =IF(INDEX('LRMC x Plant ranked'!$M$5:$M$500,MATCH($BK49,'LRMC x Plant ranked'!$Q$5:$Q$500,FALSE),)=BV$6,VLOOKUP($BJ49,'LRMC x Plant ranked'!$P$4:$Q$500,2,TRUE),0) -> 0 | BW49: =IF(INDEX('LRMC x Plant ranked'!$M$5:$M$500,MATCH($BK49,'LRMC x Plant ranked'!$Q$5:$Q$500,FALSE),)=BW$6,VLOOKUP($BJ49,'LRMC x Plant ranked'!$P$4:$Q$500,2,TRUE),0) -> 0 | BX49: 81.677403 | BY49: 92.67719164 | BZ49: 117.3776135 | CA49: 173.8216805 | CB49: 69.67136421
AI50: =IF(ISERROR(IF(OR(VLOOKUP(AJ50,'GEM new plant'!$A$4:$P$388,COLUMNS('GEM new plant'!A187:C187),FALSE)="HydRR",VLOOKUP(AJ50,'GEM new plant'!$A$4:$P$388,COLUMNS('GEM new plant'!A187:C187),FALSE)="HydPk"),"Hydro",VLOOKUP(AJ50,'GEM new plant'!$A$4:$P$388,COLUMNS('GEM new plant'!A187:C187),FALSE))),0,IF(OR(VLOOKUP(AJ50,'GEM new plant'!$A$4:$P$388,COLUMNS('GEM new plant'!A187:C187),FALSE)="HydRR",VLOOKUP(AJ50,'GEM new plant'!$A$4:$P$388,COLUMNS('GEM new plant'!A187:C187),FALSE)="HydPk"),"Hydro",VLOOKUP(AJ50,'GEM new plant'!$A$4:$P$388,COLUMNS('GEM new plant'!A187:C187),FALSE))) -> DslRecip | AJ50: RecDieselG2 | AK50: 423.9923221 | AL50: 20.48 | AQ50: =IF(AQ49>MAX('LRMC x Plant ranked'!$F$5:$F$500),"",AQ49+IF($D$32="GWh",100,15)) -> 630 | AR50: =VLOOKUP($AQ50,'LRMC x Plant ranked'!$F$4:$G$500,2,TRUE) -> 59.37246491 | AT50: =IF(INDEX('LRMC x Plant ranked'!$C$5:$C$500,MATCH($AR50,'LRMC x Plant ranked'!$G$5:$G$500,FALSE),)=AT$6,VLOOKUP($AQ50,'LRMC x Plant ranked'!$F$4:$G$500,2,TRUE),0) -> 0 | AU50: =IF(INDEX('LRMC x Plant ranked'!$C$5:$C$500,MATCH($AR50,'LRMC x Plant ranked'!$G$5:$G$500,FALSE),)=AU$6,VLOOKUP($AQ50,'LRMC x Plant ranked'!$F$4:$G$500,2,TRUE),0) -> 0 | AV50: =IF(INDEX('LRMC x Plant ranked'!$C$5:$C$500,MATCH($AR50,'LRMC x Plant ranked'!$G$5:$G$500,FALSE),)=AV$6,VLOOKUP($AQ50,'LRMC x Plant ranked'!$F$4:$G$500,2,TRUE),0) -> 0 | AW50: =IF(INDEX('LRMC x Plant ranked'!$C$5:$C$500,MATCH($AR50,'LRMC x Plant ranked'!$G$5:$G$500,FALSE),)=AW$6,VLOOKUP($AQ50,'LRMC x Plant ranked'!$F$4:$G$500,2,TRUE),0) -> 59.37246491 | AX50: =IF(INDEX('LRMC x Plant ranked'!$C$5:$C$500,MATCH($AR50,'LRMC x Plant ranked'!$G$5:$G$500,FALSE),)=AX$6,VLOOKUP($AQ50,'LRMC x Plant ranked'!$F$4:$G$500,2,TRUE),0) -> 0 | AY50: 0 | AZ50: 0 | BA50: 0 | BC50: =IF(INDEX('LRMC x Plant ranked'!$C$5:$C$500,MATCH($AR50,'LRMC x Plant ranked'!$G$5:$G$500,FALSE),)=BC$6,VLOOKUP($AQ50,'LRMC x Plant ranked'!$F$4:$G$500,2,TRUE),0) -> 0 | BD50: =IF(INDEX('LRMC x Plant ranked'!$C$5:$C$500,MATCH($AR50,'LRMC x Plant ranked'!$G$5:$G$500,FALSE),)=BD$6,VLOOKUP($AQ50,'LRMC x Plant ranked'!$F$4:$G$500,2,TRUE),0) -> 0 | BE50: =IF(INDEX('LRMC x Plant ranked'!$C$5:$C$500,MATCH($AR50,'LRMC x Plant ranked'!$G$5:$G$500,FALSE),)=BE$6,VLOOKUP($AQ50,'LRMC x Plant ranked'!$F$4:$G$500,2,TRUE),0) -> 0 | BF50: =IF(INDEX('LRMC x Plant ranked'!$C$5:$C$500,MATCH($AR50,'LRMC x Plant ranked'!$G$5:$G$500,FALSE),)=BF$6,VLOOKUP($AQ50,'LRMC x Plant ranked'!$F$4:$G$500,2,TRUE),0) -> 0 | BG50: =IF(INDEX('LRMC x Plant ranked'!$C$5:$C$500,MATCH($AR50,'LRMC x Plant ranked'!$G$5:$G$500,FALSE),)=BG$6,VLOOKUP($AQ50,'LRMC x Plant ranked'!$F$4:$G$500,2,TRUE),0) -> 0 | BJ50: =IF(BJ49>MAX('LRMC x Plant ranked'!$P$5:$P$500),"",BJ49+IF($D$32="GWh",100,15)) -> 630 | BK50: =VLOOKUP($BJ50,'LRMC x Plant ranked'!$P$4:$Q$500,2,TRUE) -> 59.37246491 | BM50: =IF(INDEX('LRMC x Plant ranked'!$M$5:$M$500,MATCH($BK50,'LRMC x Plant ranked'!$Q$5:$Q$500,FALSE),)=BM$6,VLOOKUP($BJ50,'LRMC x Plant ranked'!$P$4:$Q$500,2,TRUE),0) -> 59.37246491 | BN50: =IF(INDEX('LRMC x Plant ranked'!$M$5:$M$500,MATCH($BK50,'LRMC x Plant ranked'!$Q$5:$Q$500,FALSE),)=BN$6,VLOOKUP($BJ50,'LRMC x Plant ranked'!$P$4:$Q$500,2,TRUE),0) -> 0 | BO50: 0 | BP50: 0 | BQ50: 0 | BS50: =IF(INDEX('LRMC x Plant ranked'!$M$5:$M$500,MATCH($BK50,'LRMC x Plant ranked'!$Q$5:$Q$500,FALSE),)=BS$6,VLOOKUP($BJ50,'LRMC x Plant ranked'!$P$4:$Q$500,2,TRUE),0) -> 0 | BT50: =IF(INDEX('LRMC x Plant ranked'!$M$5:$M$500,MATCH($BK50,'LRMC x Plant ranked'!$Q$5:$Q$500,FALSE),)=BT$6,VLOOKUP($BJ50,'LRMC x Plant ranked'!$P$4:$Q$500,2,TRUE),0) -> 0 | BU50: =IF(INDEX('LRMC x Plant ranked'!$M$5:$M$500,MATCH($BK50,'LRMC x Plant ranked'!$Q$5:$Q$500,FALSE),)=BU$6,VLOOKUP($BJ50,'LRMC x Plant ranked'!$P$4:$Q$500,2,TRUE),0) -> 0 | BV50: =IF(INDEX('LRMC x Plant ranked'!$M$5:$M$500,MATCH($BK50,'LRMC x Plant ranked'!$Q$5:$Q$500,FALSE),)=BV$6,VLOOKUP($BJ50,'LRMC x Plant ranked'!$P$4:$Q$500,2,TRUE),0) -> 0 | BW50: =IF(INDEX('LRMC x Plant ranked'!$M$5:$M$500,MATCH($BK50,'LRMC x Plant ranked'!$Q$5:$Q$500,FALSE),)=BW$6,VLOOKUP($BJ50,'LRMC x Plant ranked'!$P$4:$Q$500,2,TRUE),0) -> 0 | BX50: 81.677403 | BY50: 92.67719164 | BZ50: 117.3776135 | CA50: 173.8216805 | CB50: 69.67136421
AI51: =IF(ISERROR(IF(OR(VLOOKUP(AJ51,'GEM new plant'!$A$4:$P$388,COLUMNS('GEM new plant'!A217:C217),FALSE)="HydRR",VLOOKUP(AJ51,'GEM new plant'!$A$4:$P$388,COLUMNS('GEM new plant'!A217:C217),FALSE)="HydPk"),"Hydro",VLOOKUP(AJ51,'GEM new plant'!$A$4:$P$388,COLUMNS('GEM new plant'!A217:C217),FALSE))),0,IF(OR(VLOOKUP(AJ51,'GEM new plant'!$A$4:$P$388,COLUMNS('GEM new plant'!A217:C217),FALSE)="HydRR",VLOOKUP(AJ51,'GEM new plant'!$A$4:$P$388,COLUMNS('GEM new plant'!A217:C217),FALSE)="HydPk"),"Hydro",VLOOKUP(AJ51,'GEM new plant'!$A$4:$P$388,COLUMNS('GEM new plant'!A217:C217),FALSE))) -> DslRecip | AJ51: RecBiogasG1 | AK51: 572.9486084 | AL51: 19.785 | AQ51: =IF(AQ50>MAX('LRMC x Plant ranked'!$F$5:$F$500),"",AQ50+IF($D$32="GWh",100,15)) -> 645 | AR51: =VLOOKUP($AQ51,'LRMC x Plant ranked'!$F$4:$G$500,2,TRUE) -> 59.37246491 | AT51: =IF(INDEX('LRMC x Plant ranked'!$C$5:$C$500,MATCH($AR51,'LRMC x Plant ranked'!$G$5:$G$500,FALSE),)=AT$6,VLOOKUP($AQ51,'LRMC x Plant ranked'!$F$4:$G$500,2,TRUE),0) -> 0 | AU51: =IF(INDEX('LRMC x Plant ranked'!$C$5:$C$500,MATCH($AR51,'LRMC x Plant ranked'!$G$5:$G$500,FALSE),)=AU$6,VLOOKUP($AQ51,'LRMC x Plant ranked'!$F$4:$G$500,2,TRUE),0) -> 0 | AV51: =IF(INDEX('LRMC x Plant ranked'!$C$5:$C$500,MATCH($AR51,'LRMC x Plant ranked'!$G$5:$G$500,FALSE),)=AV$6,VLOOKUP($AQ51,'LRMC x Plant ranked'!$F$4:$G$500,2,TRUE),0) -> 0 | AW51: =IF(INDEX('LRMC x Plant ranked'!$C$5:$C$500,MATCH($AR51,'LRMC x Plant ranked'!$G$5:$G$500,FALSE),)=AW$6,VLOOKUP($AQ51,'LRMC x Plant ranked'!$F$4:$G$500,2,TRUE),0) -> 59.37246491 | AX51: =IF(INDEX('LRMC x Plant ranked'!$C$5:$C$500,MATCH($AR51,'LRMC x Plant ranked'!$G$5:$G$500,FALSE),)=AX$6,VLOOKUP($AQ51,'LRMC x Plant ranked'!$F$4:$G$500,2,TRUE),0) -> 0 | AY51: 0 | AZ51: 0 | BA51: 0 | BC51: =IF(INDEX('LRMC x Plant ranked'!$C$5:$C$500,MATCH($AR51,'LRMC x Plant ranked'!$G$5:$G$500,FALSE),)=BC$6,VLOOKUP($AQ51,'LRMC x Plant ranked'!$F$4:$G$500,2,TRUE),0) -> 0 | BD51: =IF(INDEX('LRMC x Plant ranked'!$C$5:$C$500,MATCH($AR51,'LRMC x Plant ranked'!$G$5:$G$500,FALSE),)=BD$6,VLOOKUP($AQ51,'LRMC x Plant ranked'!$F$4:$G$500,2,TRUE),0) -> 0 | BE51: =IF(INDEX('LRMC x Plant ranked'!$C$5:$C$500,MATCH($AR51,'LRMC x Plant ranked'!$G$5:$G$500,FALSE),)=BE$6,VLOOKUP($AQ51,'LRMC x Plant ranked'!$F$4:$G$500,2,TRUE),0) -> 0 | BF51: =IF(INDEX('LRMC x Plant ranked'!$C$5:$C$500,MATCH($AR51,'LRMC x Plant ranked'!$G$5:$G$500,FALSE),)=BF$6,VLOOKUP($AQ51,'LRMC x Plant ranked'!$F$4:$G$500,2,TRUE),0) -> 0 | BG51: =IF(INDEX('LRMC x Plant ranked'!$C$5:$C$500,MATCH($AR51,'LRMC x Plant ranked'!$G$5:$G$500,FALSE),)=BG$6,VLOOKUP($AQ51,'LRMC x Plant ranked'!$F$4:$G$500,2,TRUE),0) -> 0 | BJ51: =IF(BJ50>MAX('LRMC x Plant ranked'!$P$5:$P$500),"",BJ50+IF($D$32="GWh",100,15)) -> 645 | BK51: =VLOOKUP($BJ51,'LRMC x Plant ranked'!$P$4:$Q$500,2,TRUE) -> 59.37246491 | BM51: =IF(INDEX('LRMC x Plant ranked'!$M$5:$M$500,MATCH($BK51,'LRMC x Plant ranked'!$Q$5:$Q$500,FALSE),)=BM$6,VLOOKUP($BJ51,'LRMC x Plant ranked'!$P$4:$Q$500,2,TRUE),0) -> 59.37246491 | BN51: =IF(INDEX('LRMC x Plant ranked'!$M$5:$M$500,MATCH($BK51,'LRMC x Plant ranked'!$Q$5:$Q$500,FALSE),)=BN$6,VLOOKUP($BJ51,'LRMC x Plant ranked'!$P$4:$Q$500,2,TRUE),0) -> 0 | BO51: 0 | BP51: 0 | BQ51: 0 | BS51: =IF(INDEX('LRMC x Plant ranked'!$M$5:$M$500,MATCH($BK51,'LRMC x Plant ranked'!$Q$5:$Q$500,FALSE),)=BS$6,VLOOKUP($BJ51,'LRMC x Plant ranked'!$P$4:$Q$500,2,TRUE),0) -> 0 | BT51: =IF(INDEX('LRMC x Plant ranked'!$M$5:$M$500,MATCH($BK51,'LRMC x Plant ranked'!$Q$5:$Q$500,FALSE),)=BT$6,VLOOKUP($BJ51,'LRMC x Plant ranked'!$P$4:$Q$500,2,TRUE),0) -> 0 | BU51: =IF(INDEX('LRMC x Plant ranked'!$M$5:$M$500,MATCH($BK51,'LRMC x Plant ranked'!$Q$5:$Q$500,FALSE),)=BU$6,VLOOKUP($BJ51,'LRMC x Plant ranked'!$P$4:$Q$500,2,TRUE),0) -> 0 | BV51: =IF(INDEX('LRMC x Plant ranked'!$M$5:$M$500,MATCH($BK51,'LRMC x Plant ranked'!$Q$5:$Q$500,FALSE),)=BV$6,VLOOKUP($BJ51,'LRMC x Plant ranked'!$P$4:$Q$500,2,TRUE),0) -> 0 | BW51: =IF(INDEX('LRMC x Plant ranked'!$M$5:$M$500,MATCH($BK51,'LRMC x Plant ranked'!$Q$5:$Q$500,FALSE),)=BW$6,VLOOKUP($BJ51,'LRMC x Plant ranked'!$P$4:$Q$500,2,TRUE),0) -> 0 | BX51: 81.677403 | BY51: 92.67719164 | BZ51: 117.3776135 | CA51: 173.8216805 | CB51: 69.67136421
AI52: =IF(ISERROR(IF(OR(VLOOKUP(AJ52,'GEM new plant'!$A$4:$P$388,COLUMNS('GEM new plant'!A175:C175),FALSE)="HydRR",VLOOKUP(AJ52,'GEM new plant'!$A$4:$P$388,COLUMNS('GEM new plant'!A175:C175),FALSE)="HydPk"),"Hydro",VLOOKUP(AJ52,'GEM new plant'!$A$4:$P$388,COLUMNS('GEM new plant'!A175:C175),FALSE))),0,IF(OR(VLOOKUP(AJ52,'GEM new plant'!$A$4:$P$388,COLUMNS('GEM new plant'!A175:C175),FALSE)="HydRR",VLOOKUP(AJ52,'GEM new plant'!$A$4:$P$388,COLUMNS('GEM new plant'!A175:C175),FALSE)="HydPk"),"Hydro",VLOOKUP(AJ52,'GEM new plant'!$A$4:$P$388,COLUMNS('GEM new plant'!A175:C175),FALSE))) -> DslRecip | AJ52: RecDieselG3 | AK52: 440.952015 | AL52: 20.48 | AQ52: =IF(AQ51>MAX('LRMC x Plant ranked'!$F$5:$F$500),"",AQ51+IF($D$32="GWh",100,15)) -> 660 | AR52: =VLOOKUP($AQ52,'LRMC x Plant ranked'!$F$4:$G$500,2,TRUE) -> 59.37246491 | AT52: =IF(INDEX('LRMC x Plant ranked'!$C$5:$C$500,MATCH($AR52,'LRMC x Plant ranked'!$G$5:$G$500,FALSE),)=AT$6,VLOOKUP($AQ52,'LRMC x Plant ranked'!$F$4:$G$500,2,TRUE),0) -> 0 | AU52: =IF(INDEX('LRMC x Plant ranked'!$C$5:$C$500,MATCH($AR52,'LRMC x Plant ranked'!$G$5:$G$500,FALSE),)=AU$6,VLOOKUP($AQ52,'LRMC x Plant ranked'!$F$4:$G$500,2,TRUE),0) -> 0 | AV52: =IF(INDEX('LRMC x Plant ranked'!$C$5:$C$500,MATCH($AR52,'LRMC x Plant ranked'!$G$5:$G$500,FALSE),)=AV$6,VLOOKUP($AQ52,'LRMC x Plant ranked'!$F$4:$G$500,2,TRUE),0) -> 0 | AW52: =IF(INDEX('LRMC x Plant ranked'!$C$5:$C$500,MATCH($AR52,'LRMC x Plant ranked'!$G$5:$G$500,FALSE),)=AW$6,VLOOKUP($AQ52,'LRMC x Plant ranked'!$F$4:$G$500,2,TRUE),0) -> 59.37246491 | AX52: =IF(INDEX('LRMC x Plant ranked'!$C$5:$C$500,MATCH($AR52,'LRMC x Plant ranked'!$G$5:$G$500,FALSE),)=AX$6,VLOOKUP($AQ52,'LRMC x Plant ranked'!$F$4:$G$500,2,TRUE),0) -> 0 | AY52: 0 | AZ52: 0 | BA52: 0 | BC52: =IF(INDEX('LRMC x Plant ranked'!$C$5:$C$500,MATCH($AR52,'LRMC x Plant ranked'!$G$5:$G$500,FALSE),)=BC$6,VLOOKUP($AQ52,'LRMC x Plant ranked'!$F$4:$G$500,2,TRUE),0) -> 0 | BD52: =IF(INDEX('LRMC x Plant ranked'!$C$5:$C$500,MATCH($AR52,'LRMC x Plant ranked'!$G$5:$G$500,FALSE),)=BD$6,VLOOKUP($AQ52,'LRMC x Plant ranked'!$F$4:$G$500,2,TRUE),0) -> 0 | BE52: =IF(INDEX('LRMC x Plant ranked'!$C$5:$C$500,MATCH($AR52,'LRMC x Plant ranked'!$G$5:$G$500,FALSE),)=BE$6,VLOOKUP($AQ52,'LRMC x Plant ranked'!$F$4:$G$500,2,TRUE),0) -> 0 | BF52: =IF(INDEX('LRMC x Plant ranked'!$C$5:$C$500,MATCH($AR52,'LRMC x Plant ranked'!$G$5:$G$500,FALSE),)=BF$6,VLOOKUP($AQ52,'LRMC x Plant ranked'!$F$4:$G$500,2,TRUE),0) -> 0 | BG52: =IF(INDEX('LRMC x Plant ranked'!$C$5:$C$500,MATCH($AR52,'LRMC x Plant ranked'!$G$5:$G$500,FALSE),)=BG$6,VLOOKUP($AQ52,'LRMC x Plant ranked'!$F$4:$G$500,2,TRUE),0) -> 0 | BJ52: =IF(BJ51>MAX('LRMC x Plant ranked'!$P$5:$P$500),"",BJ51+IF($D$32="GWh",100,15)) -> 660 | BK52: =VLOOKUP($BJ52,'LRMC x Plant ranked'!$P$4:$Q$500,2,TRUE) -> 59.37246491 | BM52: =IF(INDEX('LRMC x Plant ranked'!$M$5:$M$500,MATCH($BK52,'LRMC x Plant ranked'!$Q$5:$Q$500,FALSE),)=BM$6,VLOOKUP($BJ52,'LRMC x Plant ranked'!$P$4:$Q$500,2,TRUE),0) -> 59.37246491 | BN52: =IF(INDEX('LRMC x Plant ranked'!$M$5:$M$500,MATCH($BK52,'LRMC x Plant ranked'!$Q$5:$Q$500,FALSE),)=BN$6,VLOOKUP($BJ52,'LRMC x Plant ranked'!$P$4:$Q$500,2,TRUE),0) -> 0 | BO52: 0 | BP52: 0 | BQ52: 0 | BS52: =IF(INDEX('LRMC x Plant ranked'!$M$5:$M$500,MATCH($BK52,'LRMC x Plant ranked'!$Q$5:$Q$500,FALSE),)=BS$6,VLOOKUP($BJ52,'LRMC x Plant ranked'!$P$4:$Q$500,2,TRUE),0) -> 0 | BT52: =IF(INDEX('LRMC x Plant ranked'!$M$5:$M$500,MATCH($BK52,'LRMC x Plant ranked'!$Q$5:$Q$500,FALSE),)=BT$6,VLOOKUP($BJ52,'LRMC x Plant ranked'!$P$4:$Q$500,2,TRUE),0) -> 0 | BU52: =IF(INDEX('LRMC x Plant ranked'!$M$5:$M$500,MATCH($BK52,'LRMC x Plant ranked'!$Q$5:$Q$500,FALSE),)=BU$6,VLOOKUP($BJ52,'LRMC x Plant ranked'!$P$4:$Q$500,2,TRUE),0) -> 0 | BV52: =IF(INDEX('LRMC x Plant ranked'!$M$5:$M$500,MATCH($BK52,'LRMC x Plant ranked'!$Q$5:$Q$500,FALSE),)=BV$6,VLOOKUP($BJ52,'LRMC x Plant ranked'!$P$4:$Q$500,2,TRUE),0) -> 0 | BW52: =IF(INDEX('LRMC x Plant ranked'!$M$5:$M$500,MATCH($BK52,'LRMC x Plant ranked'!$Q$5:$Q$500,FALSE),)=BW$6,VLOOKUP($BJ52,'LRMC x Plant ranked'!$P$4:$Q$500,2,TRUE),0) -> 0 | BX52: 81.677403 | BY52: 92.67719164 | BZ52: 117.3776135 | CA52: 173.8216805 | CB52: 69.67136421
AI53: =IF(ISERROR(IF(OR(VLOOKUP(AJ53,'GEM new plant'!$A$4:$P$388,COLUMNS('GEM new plant'!A185:C185),FALSE)="HydRR",VLOOKUP(AJ53,'GEM new plant'!$A$4:$P$388,COLUMNS('GEM new plant'!A185:C185),FALSE)="HydPk"),"Hydro",VLOOKUP(AJ53,'GEM new plant'!$A$4:$P$388,COLUMNS('GEM new plant'!A185:C185),FALSE))),0,IF(OR(VLOOKUP(AJ53,'GEM new plant'!$A$4:$P$388,COLUMNS('GEM new plant'!A185:C185),FALSE)="HydRR",VLOOKUP(AJ53,'GEM new plant'!$A$4:$P$388,COLUMNS('GEM new plant'!A185:C185),FALSE)="HydPk"),"Hydro",VLOOKUP(AJ53,'GEM new plant'!$A$4:$P$388,COLUMNS('GEM new plant'!A185:C185),FALSE))) -> DslRecip | AJ53: RecBiogasG2 | AK53: 518.3820743 | AL53: 19.785 | AQ53: =IF(AQ52>MAX('LRMC x Plant ranked'!$F$5:$F$500),"",AQ52+IF($D$32="GWh",100,15)) -> 675 | AR53: =VLOOKUP($AQ53,'LRMC x Plant ranked'!$F$4:$G$500,2,TRUE) -> 59.37246491 | AT53: =IF(INDEX('LRMC x Plant ranked'!$C$5:$C$500,MATCH($AR53,'LRMC x Plant ranked'!$G$5:$G$500,FALSE),)=AT$6,VLOOKUP($AQ53,'LRMC x Plant ranked'!$F$4:$G$500,2,TRUE),0) -> 0 | AU53: =IF(INDEX('LRMC x Plant ranked'!$C$5:$C$500,MATCH($AR53,'LRMC x Plant ranked'!$G$5:$G$500,FALSE),)=AU$6,VLOOKUP($AQ53,'LRMC x Plant ranked'!$F$4:$G$500,2,TRUE),0) -> 0 | AV53: =IF(INDEX('LRMC x Plant ranked'!$C$5:$C$500,MATCH($AR53,'LRMC x Plant ranked'!$G$5:$G$500,FALSE),)=AV$6,VLOOKUP($AQ53,'LRMC x Plant ranked'!$F$4:$G$500,2,TRUE),0) -> 0 | AW53: =IF(INDEX('LRMC x Plant ranked'!$C$5:$C$500,MATCH($AR53,'LRMC x Plant ranked'!$G$5:$G$500,FALSE),)=AW$6,VLOOKUP($AQ53,'LRMC x Plant ranked'!$F$4:$G$500,2,TRUE),0) -> 59.37246491 | AX53: =IF(INDEX('LRMC x Plant ranked'!$C$5:$C$500,MATCH($AR53,'LRMC x Plant ranked'!$G$5:$G$500,FALSE),)=AX$6,VLOOKUP($AQ53,'LRMC x Plant ranked'!$F$4:$G$500,2,TRUE),0) -> 0 | AY53: 0 | AZ53: 0 | BA53: 0 | BC53: =IF(INDEX('LRMC x Plant ranked'!$C$5:$C$500,MATCH($AR53,'LRMC x Plant ranked'!$G$5:$G$500,FALSE),)=BC$6,VLOOKUP($AQ53,'LRMC x Plant ranked'!$F$4:$G$500,2,TRUE),0) -> 0 | BD53: =IF(INDEX('LRMC x Plant ranked'!$C$5:$C$500,MATCH($AR53,'LRMC x Plant ranked'!$G$5:$G$500,FALSE),)=BD$6,VLOOKUP($AQ53,'LRMC x Plant ranked'!$F$4:$G$500,2,TRUE),0) -> 0 | BE53: =IF(INDEX('LRMC x Plant ranked'!$C$5:$C$500,MATCH($AR53,'LRMC x Plant ranked'!$G$5:$G$500,FALSE),)=BE$6,VLOOKUP($AQ53,'LRMC x Plant ranked'!$F$4:$G$500,2,TRUE),0) -> 0 | BF53: =IF(INDEX('LRMC x Plant ranked'!$C$5:$C$500,MATCH($AR53,'LRMC x Plant ranked'!$G$5:$G$500,FALSE),)=BF$6,VLOOKUP($AQ53,'LRMC x Plant ranked'!$F$4:$G$500,2,TRUE),0) -> 0 | BG53: =IF(INDEX('LRMC x Plant ranked'!$C$5:$C$500,MATCH($AR53,'LRMC x Plant ranked'!$G$5:$G$500,FALSE),)=BG$6,VLOOKUP($AQ53,'LRMC x Plant ranked'!$F$4:$G$500,2,TRUE),0) -> 0 | BJ53: =IF(BJ52>MAX('LRMC x Plant ranked'!$P$5:$P$500),"",BJ52+IF($D$32="GWh",100,15)) -> 675 | BK53: =VLOOKUP($BJ53,'LRMC x Plant ranked'!$P$4:$Q$500,2,TRUE) -> 59.37246491 | BM53: =IF(INDEX('LRMC x Plant ranked'!$M$5:$M$500,MATCH($BK53,'LRMC x Plant ranked'!$Q$5:$Q$500,FALSE),)=BM$6,VLOOKUP($BJ53,'LRMC x Plant ranked'!$P$4:$Q$500,2,TRUE),0) -> 59.37246491 | BN53: =IF(INDEX('LRMC x Plant ranked'!$M$5:$M$500,MATCH($BK53,'LRMC x Plant ranked'!$Q$5:$Q$500,FALSE),)=BN$6,VLOOKUP($BJ53,'LRMC x Plant ranked'!$P$4:$Q$500,2,TRUE),0) -> 0 | BO53: 0 | BP53: 0 | BQ53: 0 | BS53: =IF(INDEX('LRMC x Plant ranked'!$M$5:$M$500,MATCH($BK53,'LRMC x Plant ranked'!$Q$5:$Q$500,FALSE),)=BS$6,VLOOKUP($BJ53,'LRMC x Plant ranked'!$P$4:$Q$500,2,TRUE),0) -> 0 | BT53: =IF(INDEX('LRMC x Plant ranked'!$M$5:$M$500,MATCH($BK53,'LRMC x Plant ranked'!$Q$5:$Q$500,FALSE),)=BT$6,VLOOKUP($BJ53,'LRMC x Plant ranked'!$P$4:$Q$500,2,TRUE),0) -> 0 | BU53: =IF(INDEX('LRMC x Plant ranked'!$M$5:$M$500,MATCH($BK53,'LRMC x Plant ranked'!$Q$5:$Q$500,FALSE),)=BU$6,VLOOKUP($BJ53,'LRMC x Plant ranked'!$P$4:$Q$500,2,TRUE),0) -> 0 | BV53: =IF(INDEX('LRMC x Plant ranked'!$M$5:$M$500,MATCH($BK53,'LRMC x Plant ranked'!$Q$5:$Q$500,FALSE),)=BV$6,VLOOKUP($BJ53,'LRMC x Plant ranked'!$P$4:$Q$500,2,TRUE),0) -> 0 | BW53: =IF(INDEX('LRMC x Plant ranked'!$M$5:$M$500,MATCH($BK53,'LRMC x Plant ranked'!$Q$5:$Q$500,FALSE),)=BW$6,VLOOKUP($BJ53,'LRMC x Plant ranked'!$P$4:$Q$500,2,TRUE),0) -> 0 | BX53: 81.677403 | BY53: 92.67719164 | BZ53: 117.3776135 | CA53: 173.8216805 | CB53: 69.67136421
AI54: =IF(ISERROR(IF(OR(VLOOKUP(AJ54,'GEM new plant'!$A$4:$P$388,COLUMNS('GEM new plant'!A3:C3),FALSE)="HydRR",VLOOKUP(AJ54,'GEM new plant'!$A$4:$P$388,COLUMNS('GEM new plant'!A3:C3),FALSE)="HydPk"),"Hydro",VLOOKUP(AJ54,'GEM new plant'!$A$4:$P$388,COLUMNS('GEM new plant'!A3:C3),FALSE))),0,IF(OR(VLOOKUP(AJ54,'GEM new plant'!$A$4:$P$388,COLUMNS('GEM new plant'!A3:C3),FALSE)="HydRR",VLOOKUP(AJ54,'GEM new plant'!$A$4:$P$388,COLUMNS('GEM new plant'!A3:C3),FALSE)="HydPk"),"Hydro",VLOOKUP(AJ54,'GEM new plant'!$A$4:$P$388,COLUMNS('GEM new plant'!A3:C3),FALSE))) -> DslRecip | AJ54: RecDieselG4 | AK54: 440.952015 | AL54: 20.48 | AQ54: =IF(AQ53>MAX('LRMC x Plant ranked'!$F$5:$F$500),"",AQ53+IF($D$32="GWh",100,15)) -> 690 | AR54: =VLOOKUP($AQ54,'LRMC x Plant ranked'!$F$4:$G$500,2,TRUE) -> 59.37246491 | AT54: =IF(INDEX('LRMC x Plant ranked'!$C$5:$C$500,MATCH($AR54,'LRMC x Plant ranked'!$G$5:$G$500,FALSE),)=AT$6,VLOOKUP($AQ54,'LRMC x Plant ranked'!$F$4:$G$500,2,TRUE),0) -> 0 | AU54: =IF(INDEX('LRMC x Plant ranked'!$C$5:$C$500,MATCH($AR54,'LRMC x Plant ranked'!$G$5:$G$500,FALSE),)=AU$6,VLOOKUP($AQ54,'LRMC x Plant ranked'!$F$4:$G$500,2,TRUE),0) -> 0 | AV54: =IF(INDEX('LRMC x Plant ranked'!$C$5:$C$500,MATCH($AR54,'LRMC x Plant ranked'!$G$5:$G$500,FALSE),)=AV$6,VLOOKUP($AQ54,'LRMC x Plant ranked'!$F$4:$G$500,2,TRUE),0) -> 0 | AW54: =IF(INDEX('LRMC x Plant ranked'!$C$5:$C$500,MATCH($AR54,'LRMC x Plant ranked'!$G$5:$G$500,FALSE),)=AW$6,VLOOKUP($AQ54,'LRMC x Plant ranked'!$F$4:$G$500,2,TRUE),0) -> 59.37246491 | AX54: =IF(INDEX('LRMC x Plant ranked'!$C$5:$C$500,MATCH($AR54,'LRMC x Plant ranked'!$G$5:$G$500,FALSE),)=AX$6,VLOOKUP($AQ54,'LRMC x Plant ranked'!$F$4:$G$500,2,TRUE),0) -> 0 | AY54: 0 | AZ54: 0 | BA54: 0 | BC54: =IF(INDEX('LRMC x Plant ranked'!$C$5:$C$500,MATCH($AR54,'LRMC x Plant ranked'!$G$5:$G$500,FALSE),)=BC$6,VLOOKUP($AQ54,'LRMC x Plant ranked'!$F$4:$G$500,2,TRUE),0) -> 0 | BD54: =IF(INDEX('LRMC x Plant ranked'!$C$5:$C$500,MATCH($AR54,'LRMC x Plant ranked'!$G$5:$G$500,FALSE),)=BD$6,VLOOKUP($AQ54,'LRMC x Plant ranked'!$F$4:$G$500,2,TRUE),0) -> 0 | BE54: =IF(INDEX('LRMC x Plant ranked'!$C$5:$C$500,MATCH($AR54,'LRMC x Plant ranked'!$G$5:$G$500,FALSE),)=BE$6,VLOOKUP($AQ54,'LRMC x Plant ranked'!$F$4:$G$500,2,TRUE),0) -> 0 | BF54: =IF(INDEX('LRMC x Plant ranked'!$C$5:$C$500,MATCH($AR54,'LRMC x Plant ranked'!$G$5:$G$500,FALSE),)=BF$6,VLOOKUP($AQ54,'LRMC x Plant ranked'!$F$4:$G$500,2,TRUE),0) -> 0 | BG54: =IF(INDEX('LRMC x Plant ranked'!$C$5:$C$500,MATCH($AR54,'LRMC x Plant ranked'!$G$5:$G$500,FALSE),)=BG$6,VLOOKUP($AQ54,'LRMC x Plant ranked'!$F$4:$G$500,2,TRUE),0) -> 0 | BJ54: =IF(BJ53>MAX('LRMC x Plant ranked'!$P$5:$P$500),"",BJ53+IF($D$32="GWh",100,15)) -> 690 | BK54: =VLOOKUP($BJ54,'LRMC x Plant ranked'!$P$4:$Q$500,2,TRUE) -> 59.37246491 | BM54: =IF(INDEX('LRMC x Plant ranked'!$M$5:$M$500,MATCH($BK54,'LRMC x Plant ranked'!$Q$5:$Q$500,FALSE),)=BM$6,VLOOKUP($BJ54,'LRMC x Plant ranked'!$P$4:$Q$500,2,TRUE),0) -> 59.37246491 | BN54: =IF(INDEX('LRMC x Plant ranked'!$M$5:$M$500,MATCH($BK54,'LRMC x Plant ranked'!$Q$5:$Q$500,FALSE),)=BN$6,VLOOKUP($BJ54,'LRMC x Plant ranked'!$P$4:$Q$500,2,TRUE),0) -> 0 | BO54: 0 | BP54: 0 | BQ54: 0 | BS54: =IF(INDEX('LRMC x Plant ranked'!$M$5:$M$500,MATCH($BK54,'LRMC x Plant ranked'!$Q$5:$Q$500,FALSE),)=BS$6,VLOOKUP($BJ54,'LRMC x Plant ranked'!$P$4:$Q$500,2,TRUE),0) -> 0 | BT54: =IF(INDEX('LRMC x Plant ranked'!$M$5:$M$500,MATCH($BK54,'LRMC x Plant ranked'!$Q$5:$Q$500,FALSE),)=BT$6,VLOOKUP($BJ54,'LRMC x Plant ranked'!$P$4:$Q$500,2,TRUE),0) -> 0 | BU54: =IF(INDEX('LRMC x Plant ranked'!$M$5:$M$500,MATCH($BK54,'LRMC x Plant ranked'!$Q$5:$Q$500,FALSE),)=BU$6,VLOOKUP($BJ54,'LRMC x Plant ranked'!$P$4:$Q$500,2,TRUE),0) -> 0 | BV54: =IF(INDEX('LRMC x Plant ranked'!$M$5:$M$500,MATCH($BK54,'LRMC x Plant ranked'!$Q$5:$Q$500,FALSE),)=BV$6,VLOOKUP($BJ54,'LRMC x Plant ranked'!$P$4:$Q$500,2,TRUE),0) -> 0 | BW54: =IF(INDEX('LRMC x Plant ranked'!$M$5:$M$500,MATCH($BK54,'LRMC x Plant ranked'!$Q$5:$Q$500,FALSE),)=BW$6,VLOOKUP($BJ54,'LRMC x Plant ranked'!$P$4:$Q$500,2,TRUE),0) -> 0 | BX54: 81.677403 | BY54: 92.67719164 | BZ54: 117.3776135 | CA54: 173.8216805 | CB54: 69.67136421
AI55: =IF(ISERROR(IF(OR(VLOOKUP(AJ55,'GEM new plant'!$A$4:$P$388,COLUMNS('GEM new plant'!A113:C113),FALSE)="HydRR",VLOOKUP(AJ55,'GEM new plant'!$A$4:$P$388,COLUMNS('GEM new plant'!A113:C113),FALSE)="HydPk"),"Hydro",VLOOKUP(AJ55,'GEM new plant'!$A$4:$P$388,COLUMNS('GEM new plant'!A113:C113),FALSE))),0,IF(OR(VLOOKUP(AJ55,'GEM new plant'!$A$4:$P$388,COLUMNS('GEM new plant'!A113:C113),FALSE)="HydRR",VLOOKUP(AJ55,'GEM new plant'!$A$4:$P$388,COLUMNS('GEM new plant'!A113:C113),FALSE)="HydPk"),"Hydro",VLOOKUP(AJ55,'GEM new plant'!$A$4:$P$388,COLUMNS('GEM new plant'!A113:C113),FALSE))) -> DslRecip | AJ55: RecDieselG5 | AK55: 393.7071563 | AL55: 20.48 | AQ55: =IF(AQ54>MAX('LRMC x Plant ranked'!$F$5:$F$500),"",AQ54+IF($D$32="GWh",100,15)) -> 705 | AR55: =VLOOKUP($AQ55,'LRMC x Plant ranked'!$F$4:$G$500,2,TRUE) -> 59.37246491 | AT55: =IF(INDEX('LRMC x Plant ranked'!$C$5:$C$500,MATCH($AR55,'LRMC x Plant ranked'!$G$5:$G$500,FALSE),)=AT$6,VLOOKUP($AQ55,'LRMC x Plant ranked'!$F$4:$G$500,2,TRUE),0) -> 0 | AU55: =IF(INDEX('LRMC x Plant ranked'!$C$5:$C$500,MATCH($AR55,'LRMC x Plant ranked'!$G$5:$G$500,FALSE),)=AU$6,VLOOKUP($AQ55,'LRMC x Plant ranked'!$F$4:$G$500,2,TRUE),0) -> 0 | AV55: =IF(INDEX('LRMC x Plant ranked'!$C$5:$C$500,MATCH($AR55,'LRMC x Plant ranked'!$G$5:$G$500,FALSE),)=AV$6,VLOOKUP($AQ55,'LRMC x Plant ranked'!$F$4:$G$500,2,TRUE),0) -> 0 | AW55: =IF(INDEX('LRMC x Plant ranked'!$C$5:$C$500,MATCH($AR55,'LRMC x Plant ranked'!$G$5:$G$500,FALSE),)=AW$6,VLOOKUP($AQ55,'LRMC x Plant ranked'!$F$4:$G$500,2,TRUE),0) -> 59.37246491 | AX55: =IF(INDEX('LRMC x Plant ranked'!$C$5:$C$500,MATCH($AR55,'LRMC x Plant ranked'!$G$5:$G$500,FALSE),)=AX$6,VLOOKUP($AQ55,'LRMC x Plant ranked'!$F$4:$G$500,2,TRUE),0) -> 0 | AY55: 0 | AZ55: 0 | BA55: 0 | BC55: =IF(INDEX('LRMC x Plant ranked'!$C$5:$C$500,MATCH($AR55,'LRMC x Plant ranked'!$G$5:$G$500,FALSE),)=BC$6,VLOOKUP($AQ55,'LRMC x Plant ranked'!$F$4:$G$500,2,TRUE),0) -> 0 | BD55: =IF(INDEX('LRMC x Plant ranked'!$C$5:$C$500,MATCH($AR55,'LRMC x Plant ranked'!$G$5:$G$500,FALSE),)=BD$6,VLOOKUP($AQ55,'LRMC x Plant ranked'!$F$4:$G$500,2,TRUE),0) -> 0 | BE55: =IF(INDEX('LRMC x Plant ranked'!$C$5:$C$500,MATCH($AR55,'LRMC x Plant ranked'!$G$5:$G$500,FALSE),)=BE$6,VLOOKUP($AQ55,'LRMC x Plant ranked'!$F$4:$G$500,2,TRUE),0) -> 0 | BF55: =IF(INDEX('LRMC x Plant ranked'!$C$5:$C$500,MATCH($AR55,'LRMC x Plant ranked'!$G$5:$G$500,FALSE),)=BF$6,VLOOKUP($AQ55,'LRMC x Plant ranked'!$F$4:$G$500,2,TRUE),0) -> 0 | BG55: =IF(INDEX('LRMC x Plant ranked'!$C$5:$C$500,MATCH($AR55,'LRMC x Plant ranked'!$G$5:$G$500,FALSE),)=BG$6,VLOOKUP($AQ55,'LRMC x Plant ranked'!$F$4:$G$500,2,TRUE),0) -> 0 | BJ55: =IF(BJ54>MAX('LRMC x Plant ranked'!$P$5:$P$500),"",BJ54+IF($D$32="GWh",100,15)) -> 705 | BK55: =VLOOKUP($BJ55,'LRMC x Plant ranked'!$P$4:$Q$500,2,TRUE) -> 59.37246491 | BM55: =IF(INDEX('LRMC x Plant ranked'!$M$5:$M$500,MATCH($BK55,'LRMC x Plant ranked'!$Q$5:$Q$500,FALSE),)=BM$6,VLOOKUP($BJ55,'LRMC x Plant ranked'!$P$4:$Q$500,2,TRUE),0) -> 59.37246491 | BN55: =IF(INDEX('LRMC x Plant ranked'!$M$5:$M$500,MATCH($BK55,'LRMC x Plant ranked'!$Q$5:$Q$500,FALSE),)=BN$6,VLOOKUP($BJ55,'LRMC x Plant ranked'!$P$4:$Q$500,2,TRUE),0) -> 0 | BO55: 0 | BP55: 0 | BQ55: 0 | BS55: =IF(INDEX('LRMC x Plant ranked'!$M$5:$M$500,MATCH($BK55,'LRMC x Plant ranked'!$Q$5:$Q$500,FALSE),)=BS$6,VLOOKUP($BJ55,'LRMC x Plant ranked'!$P$4:$Q$500,2,TRUE),0) -> 0 | BT55: =IF(INDEX('LRMC x Plant ranked'!$M$5:$M$500,MATCH($BK55,'LRMC x Plant ranked'!$Q$5:$Q$500,FALSE),)=BT$6,VLOOKUP($BJ55,'LRMC x Plant ranked'!$P$4:$Q$500,2,TRUE),0) -> 0 | BU55: =IF(INDEX('LRMC x Plant ranked'!$M$5:$M$500,MATCH($BK55,'LRMC x Plant ranked'!$Q$5:$Q$500,FALSE),)=BU$6,VLOOKUP($BJ55,'LRMC x Plant ranked'!$P$4:$Q$500,2,TRUE),0) -> 0 | BV55: =IF(INDEX('LRMC x Plant ranked'!$M$5:$M$500,MATCH($BK55,'LRMC x Plant ranked'!$Q$5:$Q$500,FALSE),)=BV$6,VLOOKUP($BJ55,'LRMC x Plant ranked'!$P$4:$Q$500,2,TRUE),0) -> 0 | BW55: =IF(INDEX('LRMC x Plant ranked'!$M$5:$M$500,MATCH($BK55,'LRMC x Plant ranked'!$Q$5:$Q$500,FALSE),)=BW$6,VLOOKUP($BJ55,'LRMC x Plant ranked'!$P$4:$Q$500,2,TRUE),0) -> 0 | BX55: 81.677403 | BY55: 92.67719164 | BZ55: 117.3776135 | CA55: 173.8216805 | CB55: 69.67136421
AI56: =IF(ISERROR(IF(OR(VLOOKUP(AJ56,'GEM new plant'!$A$4:$P$388,COLUMNS('GEM new plant'!A201:C201),FALSE)="HydRR",VLOOKUP(AJ56,'GEM new plant'!$A$4:$P$388,COLUMNS('GEM new plant'!A201:C201),FALSE)="HydPk"),"Hydro",VLOOKUP(AJ56,'GEM new plant'!$A$4:$P$388,COLUMNS('GEM new plant'!A201:C201),FALSE))),0,IF(OR(VLOOKUP(AJ56,'GEM new plant'!$A$4:$P$388,COLUMNS('GEM new plant'!A201:C201),FALSE)="HydRR",VLOOKUP(AJ56,'GEM new plant'!$A$4:$P$388,COLUMNS('GEM new plant'!A201:C201),FALSE)="HydPk"),"Hydro",VLOOKUP(AJ56,'GEM new plant'!$A$4:$P$388,COLUMNS('GEM new plant'!A201:C201),FALSE))) -> DslRecip | AJ56: RecDieselG6 | AK56: 504.180206 | AL56: 20.48 | AQ56: =IF(AQ55>MAX('LRMC x Plant ranked'!$F$5:$F$500),"",AQ55+IF($D$32="GWh",100,15)) -> 720 | AR56: =VLOOKUP($AQ56,'LRMC x Plant ranked'!$F$4:$G$500,2,TRUE) -> 59.37246491 | AT56: =IF(INDEX('LRMC x Plant ranked'!$C$5:$C$500,MATCH($AR56,'LRMC x Plant ranked'!$G$5:$G$500,FALSE),)=AT$6,VLOOKUP($AQ56,'LRMC x Plant ranked'!$F$4:$G$500,2,TRUE),0) -> 0 | AU56: =IF(INDEX('LRMC x Plant ranked'!$C$5:$C$500,MATCH($AR56,'LRMC x Plant ranked'!$G$5:$G$500,FALSE),)=AU$6,VLOOKUP($AQ56,'LRMC x Plant ranked'!$F$4:$G$500,2,TRUE),0) -> 0 | AV56: =IF(INDEX('LRMC x Plant ranked'!$C$5:$C$500,MATCH($AR56,'LRMC x Plant ranked'!$G$5:$G$500,FALSE),)=AV$6,VLOOKUP($AQ56,'LRMC x Plant ranked'!$F$4:$G$500,2,TRUE),0) -> 0 | AW56: =IF(INDEX('LRMC x Plant ranked'!$C$5:$C$500,MATCH($AR56,'LRMC x Plant ranked'!$G$5:$G$500,FALSE),)=AW$6,VLOOKUP($AQ56,'LRMC x Plant ranked'!$F$4:$G$500,2,TRUE),0) -> 59.37246491 | AX56: =IF(INDEX('LRMC x Plant ranked'!$C$5:$C$500,MATCH($AR56,'LRMC x Plant ranked'!$G$5:$G$500,FALSE),)=AX$6,VLOOKUP($AQ56,'LRMC x Plant ranked'!$F$4:$G$500,2,TRUE),0) -> 0 | AY56: 0 | AZ56: 0 | BA56: 0 | BC56: =IF(INDEX('LRMC x Plant ranked'!$C$5:$C$500,MATCH($AR56,'LRMC x Plant ranked'!$G$5:$G$500,FALSE),)=BC$6,VLOOKUP($AQ56,'LRMC x Plant ranked'!$F$4:$G$500,2,TRUE),0) -> 0 | BD56: =IF(INDEX('LRMC x Plant ranked'!$C$5:$C$500,MATCH($AR56,'LRMC x Plant ranked'!$G$5:$G$500,FALSE),)=BD$6,VLOOKUP($AQ56,'LRMC x Plant ranked'!$F$4:$G$500,2,TRUE),0) -> 0 | BE56: =IF(INDEX('LRMC x Plant ranked'!$C$5:$C$500,MATCH($AR56,'LRMC x Plant ranked'!$G$5:$G$500,FALSE),)=BE$6,VLOOKUP($AQ56,'LRMC x Plant ranked'!$F$4:$G$500,2,TRUE),0) -> 0 | BF56: =IF(INDEX('LRMC x Plant ranked'!$C$5:$C$500,MATCH($AR56,'LRMC x Plant ranked'!$G$5:$G$500,FALSE),)=BF$6,VLOOKUP($AQ56,'LRMC x Plant ranked'!$F$4:$G$500,2,TRUE),0) -> 0 | BG56: =IF(INDEX('LRMC x Plant ranked'!$C$5:$C$500,MATCH($AR56,'LRMC x Plant ranked'!$G$5:$G$500,FALSE),)=BG$6,VLOOKUP($AQ56,'LRMC x Plant ranked'!$F$4:$G$500,2,TRUE),0) -> 0 | BJ56: =IF(BJ55>MAX('LRMC x Plant ranked'!$P$5:$P$500),"",BJ55+IF($D$32="GWh",100,15)) -> 720 | BK56: =VLOOKUP($BJ56,'LRMC x Plant ranked'!$P$4:$Q$500,2,TRUE) -> 59.37246491 | BM56: =IF(INDEX('LRMC x Plant ranked'!$M$5:$M$500,MATCH($BK56,'LRMC x Plant ranked'!$Q$5:$Q$500,FALSE),)=BM$6,VLOOKUP($BJ56,'LRMC x Plant ranked'!$P$4:$Q$500,2,TRUE),0) -> 59.37246491 | BN56: =IF(INDEX('LRMC x Plant ranked'!$M$5:$M$500,MATCH($BK56,'LRMC x Plant ranked'!$Q$5:$Q$500,FALSE),)=BN$6,VLOOKUP($BJ56,'LRMC x Plant ranked'!$P$4:$Q$500,2,TRUE),0) -> 0 | BO56: 0 | BP56: 0 | BQ56: 0 | BS56: =IF(INDEX('LRMC x Plant ranked'!$M$5:$M$500,MATCH($BK56,'LRMC x Plant ranked'!$Q$5:$Q$500,FALSE),)=BS$6,VLOOKUP($BJ56,'LRMC x Plant ranked'!$P$4:$Q$500,2,TRUE),0) -> 0 | BT56: =IF(INDEX('LRMC x Plant ranked'!$M$5:$M$500,MATCH($BK56,'LRMC x Plant ranked'!$Q$5:$Q$500,FALSE),)=BT$6,VLOOKUP($BJ56,'LRMC x Plant ranked'!$P$4:$Q$500,2,TRUE),0) -> 0 | BU56: =IF(INDEX('LRMC x Plant ranked'!$M$5:$M$500,MATCH($BK56,'LRMC x Plant ranked'!$Q$5:$Q$500,FALSE),)=BU$6,VLOOKUP($BJ56,'LRMC x Plant ranked'!$P$4:$Q$500,2,TRUE),0) -> 0 | BV56: =IF(INDEX('LRMC x Plant ranked'!$M$5:$M$500,MATCH($BK56,'LRMC x Plant ranked'!$Q$5:$Q$500,FALSE),)=BV$6,VLOOKUP($BJ56,'LRMC x Plant ranked'!$P$4:$Q$500,2,TRUE),0) -> 0 | BW56: =IF(INDEX('LRMC x Plant ranked'!$M$5:$M$500,MATCH($BK56,'LRMC x Plant ranked'!$Q$5:$Q$500,FALSE),)=BW$6,VLOOKUP($BJ56,'LRMC x Plant ranked'!$P$4:$Q$500,2,TRUE),0) -> 0 | BX56: 81.677403 | BY56: 92.67719164 | BZ56: 117.3776135 | CA56: 173.8216805 | CB56: 69.67136421
AI57: =IF(ISERROR(IF(OR(VLOOKUP(AJ57,'GEM new plant'!$A$4:$P$388,COLUMNS('GEM new plant'!A7:C7),FALSE)="HydRR",VLOOKUP(AJ57,'GEM new plant'!$A$4:$P$388,COLUMNS('GEM new plant'!A7:C7),FALSE)="HydPk"),"Hydro",VLOOKUP(AJ57,'GEM new plant'!$A$4:$P$388,COLUMNS('GEM new plant'!A7:C7),FALSE))),0,IF(OR(VLOOKUP(AJ57,'GEM new plant'!$A$4:$P$388,COLUMNS('GEM new plant'!A7:C7),FALSE)="HydRR",VLOOKUP(AJ57,'GEM new plant'!$A$4:$P$388,COLUMNS('GEM new plant'!A7:C7),FALSE)="HydPk"),"Hydro",VLOOKUP(AJ57,'GEM new plant'!$A$4:$P$388,COLUMNS('GEM new plant'!A7:C7),FALSE))) -> DslRecip | AJ57: RecDieselG7 | AK57: 456.1630435 | AL57: 20.48 | AQ57: =IF(AQ56>MAX('LRMC x Plant ranked'!$F$5:$F$500),"",AQ56+IF($D$32="GWh",100,15)) -> 735 | AR57: =VLOOKUP($AQ57,'LRMC x Plant ranked'!$F$4:$G$500,2,TRUE) -> 59.37246491 | AT57: =IF(INDEX('LRMC x Plant ranked'!$C$5:$C$500,MATCH($AR57,'LRMC x Plant ranked'!$G$5:$G$500,FALSE),)=AT$6,VLOOKUP($AQ57,'LRMC x Plant ranked'!$F$4:$G$500,2,TRUE),0) -> 0 | AU57: =IF(INDEX('LRMC x Plant ranked'!$C$5:$C$500,MATCH($AR57,'LRMC x Plant ranked'!$G$5:$G$500,FALSE),)=AU$6,VLOOKUP($AQ57,'LRMC x Plant ranked'!$F$4:$G$500,2,TRUE),0) -> 0 | AV57: =IF(INDEX('LRMC x Plant ranked'!$C$5:$C$500,MATCH($AR57,'LRMC x Plant ranked'!$G$5:$G$500,FALSE),)=AV$6,VLOOKUP($AQ57,'LRMC x Plant ranked'!$F$4:$G$500,2,TRUE),0) -> 0 | AW57: =IF(INDEX('LRMC x Plant ranked'!$C$5:$C$500,MATCH($AR57,'LRMC x Plant ranked'!$G$5:$G$500,FALSE),)=AW$6,VLOOKUP($AQ57,'LRMC x Plant ranked'!$F$4:$G$500,2,TRUE),0) -> 59.37246491 | AX57: =IF(INDEX('LRMC x Plant ranked'!$C$5:$C$500,MATCH($AR57,'LRMC x Plant ranked'!$G$5:$G$500,FALSE),)=AX$6,VLOOKUP($AQ57,'LRMC x Plant ranked'!$F$4:$G$500,2,TRUE),0) -> 0 | AY57: 0 | AZ57: 0 | BA57: 0 | BC57: =IF(INDEX('LRMC x Plant ranked'!$C$5:$C$500,MATCH($AR57,'LRMC x Plant ranked'!$G$5:$G$500,FALSE),)=BC$6,VLOOKUP($AQ57,'LRMC x Plant ranked'!$F$4:$G$500,2,TRUE),0) -> 0 | BD57: =IF(INDEX('LRMC x Plant ranked'!$C$5:$C$500,MATCH($AR57,'LRMC x Plant ranked'!$G$5:$G$500,FALSE),)=BD$6,VLOOKUP($AQ57,'LRMC x Plant ranked'!$F$4:$G$500,2,TRUE),0) -> 0 | BE57: =IF(INDEX('LRMC x Plant ranked'!$C$5:$C$500,MATCH($AR57,'LRMC x Plant ranked'!$G$5:$G$500,FALSE),)=BE$6,VLOOKUP($AQ57,'LRMC x Plant ranked'!$F$4:$G$500,2,TRUE),0) -> 0 | BF57: =IF(INDEX('LRMC x Plant ranked'!$C$5:$C$500,MATCH($AR57,'LRMC x Plant ranked'!$G$5:$G$500,FALSE),)=BF$6,VLOOKUP($AQ57,'LRMC x Plant ranked'!$F$4:$G$500,2,TRUE),0) -> 0 | BG57: =IF(INDEX('LRMC x Plant ranked'!$C$5:$C$500,MATCH($AR57,'LRMC x Plant ranked'!$G$5:$G$500,FALSE),)=BG$6,VLOOKUP($AQ57,'LRMC x Plant ranked'!$F$4:$G$500,2,TRUE),0) -> 0 | BJ57: =IF(BJ56>MAX('LRMC x Plant ranked'!$P$5:$P$500),"",BJ56+IF($D$32="GWh",100,15)) -> 735 | BK57: =VLOOKUP($BJ57,'LRMC x Plant ranked'!$P$4:$Q$500,2,TRUE) -> 59.37246491 | BM57: =IF(INDEX('LRMC x Plant ranked'!$M$5:$M$500,MATCH($BK57,'LRMC x Plant ranked'!$Q$5:$Q$500,FALSE),)=BM$6,VLOOKUP($BJ57,'LRMC x Plant ranked'!$P$4:$Q$500,2,TRUE),0) -> 59.37246491 | BN57: =IF(INDEX('LRMC x Plant ranked'!$M$5:$M$500,MATCH($BK57,'LRMC x Plant ranked'!$Q$5:$Q$500,FALSE),)=BN$6,VLOOKUP($BJ57,'LRMC x Plant ranked'!$P$4:$Q$500,2,TRUE),0) -> 0 | BO57: 0 | BP57: 0 | BQ57: 0 | BS57: =IF(INDEX('LRMC x Plant ranked'!$M$5:$M$500,MATCH($BK57,'LRMC x Plant ranked'!$Q$5:$Q$500,FALSE),)=BS$6,VLOOKUP($BJ57,'LRMC x Plant ranked'!$P$4:$Q$500,2,TRUE),0) -> 0 | BT57: =IF(INDEX('LRMC x Plant ranked'!$M$5:$M$500,MATCH($BK57,'LRMC x Plant ranked'!$Q$5:$Q$500,FALSE),)=BT$6,VLOOKUP($BJ57,'LRMC x Plant ranked'!$P$4:$Q$500,2,TRUE),0) -> 0 | BU57: =IF(INDEX('LRMC x Plant ranked'!$M$5:$M$500,MATCH($BK57,'LRMC x Plant ranked'!$Q$5:$Q$500,FALSE),)=BU$6,VLOOKUP($BJ57,'LRMC x Plant ranked'!$P$4:$Q$500,2,TRUE),0) -> 0 | BV57: =IF(INDEX('LRMC x Plant ranked'!$M$5:$M$500,MATCH($BK57,'LRMC x Plant ranked'!$Q$5:$Q$500,FALSE),)=BV$6,VLOOKUP($BJ57,'LRMC x Plant ranked'!$P$4:$Q$500,2,TRUE),0) -> 0 | BW57: =IF(INDEX('LRMC x Plant ranked'!$M$5:$M$500,MATCH($BK57,'LRMC x Plant ranked'!$Q$5:$Q$500,FALSE),)=BW$6,VLOOKUP($BJ57,'LRMC x Plant ranked'!$P$4:$Q$500,2,TRUE),0) -> 0 | BX57: 81.677403 | BY57: 92.67719164 | BZ57: 117.3776135 | CA57: 173.8216805 | CB57: 69.67136421
AI58: =IF(ISERROR(IF(OR(VLOOKUP(AJ58,'GEM new plant'!$A$4:$P$388,COLUMNS('GEM new plant'!A4:C4),FALSE)="HydRR",VLOOKUP(AJ58,'GEM new plant'!$A$4:$P$388,COLUMNS('GEM new plant'!A4:C4),FALSE)="HydPk"),"Hydro",VLOOKUP(AJ58,'GEM new plant'!$A$4:$P$388,COLUMNS('GEM new plant'!A4:C4),FALSE))),0,IF(OR(VLOOKUP(AJ58,'GEM new plant'!$A$4:$P$388,COLUMNS('GEM new plant'!A4:C4),FALSE)="HydRR",VLOOKUP(AJ58,'GEM new plant'!$A$4:$P$388,COLUMNS('GEM new plant'!A4:C4),FALSE)="HydPk"),"Hydro",VLOOKUP(AJ58,'GEM new plant'!$A$4:$P$388,COLUMNS('GEM new plant'!A4:C4),FALSE))) -> DSR | AJ58: DSRakld1 | AQ58: =IF(AQ57>MAX('LRMC x Plant ranked'!$F$5:$F$500),"",AQ57+IF($D$32="GWh",100,15)) -> 750 | AR58: =VLOOKUP($AQ58,'LRMC x Plant ranked'!$F$4:$G$500,2,TRUE) -> 59.37246491 | AT58: =IF(INDEX('LRMC x Plant ranked'!$C$5:$C$500,MATCH($AR58,'LRMC x Plant ranked'!$G$5:$G$500,FALSE),)=AT$6,VLOOKUP($AQ58,'LRMC x Plant ranked'!$F$4:$G$500,2,TRUE),0) -> 0 | AU58: =IF(INDEX('LRMC x Plant ranked'!$C$5:$C$500,MATCH($AR58,'LRMC x Plant ranked'!$G$5:$G$500,FALSE),)=AU$6,VLOOKUP($AQ58,'LRMC x Plant ranked'!$F$4:$G$500,2,TRUE),0) -> 0 | AV58: =IF(INDEX('LRMC x Plant ranked'!$C$5:$C$500,MATCH($AR58,'LRMC x Plant ranked'!$G$5:$G$500,FALSE),)=AV$6,VLOOKUP($AQ58,'LRMC x Plant ranked'!$F$4:$G$500,2,TRUE),0) -> 0 | AW58: =IF(INDEX('LRMC x Plant ranked'!$C$5:$C$500,MATCH($AR58,'LRMC x Plant ranked'!$G$5:$G$500,FALSE),)=AW$6,VLOOKUP($AQ58,'LRMC x Plant ranked'!$F$4:$G$500,2,TRUE),0) -> 59.37246491 | AX58: =IF(INDEX('LRMC x Plant ranked'!$C$5:$C$500,MATCH($AR58,'LRMC x Plant ranked'!$G$5:$G$500,FALSE),)=AX$6,VLOOKUP($AQ58,'LRMC x Plant ranked'!$F$4:$G$500,2,TRUE),0) -> 0 | AY58: 0 | AZ58: 0 | BA58: 0 | BC58: =IF(INDEX('LRMC x Plant ranked'!$C$5:$C$500,MATCH($AR58,'LRMC x Plant ranked'!$G$5:$G$500,FALSE),)=BC$6,VLOOKUP($AQ58,'LRMC x Plant ranked'!$F$4:$G$500,2,TRUE),0) -> 0 | BD58: =IF(INDEX('LRMC x Plant ranked'!$C$5:$C$500,MATCH($AR58,'LRMC x Plant ranked'!$G$5:$G$500,FALSE),)=BD$6,VLOOKUP($AQ58,'LRMC x Plant ranked'!$F$4:$G$500,2,TRUE),0) -> 0 | BE58: =IF(INDEX('LRMC x Plant ranked'!$C$5:$C$500,MATCH($AR58,'LRMC x Plant ranked'!$G$5:$G$500,FALSE),)=BE$6,VLOOKUP($AQ58,'LRMC x Plant ranked'!$F$4:$G$500,2,TRUE),0) -> 0 | BF58: =IF(INDEX('LRMC x Plant ranked'!$C$5:$C$500,MATCH($AR58,'LRMC x Plant ranked'!$G$5:$G$500,FALSE),)=BF$6,VLOOKUP($AQ58,'LRMC x Plant ranked'!$F$4:$G$500,2,TRUE),0) -> 0 | BG58: =IF(INDEX('LRMC x Plant ranked'!$C$5:$C$500,MATCH($AR58,'LRMC x Plant ranked'!$G$5:$G$500,FALSE),)=BG$6,VLOOKUP($AQ58,'LRMC x Plant ranked'!$F$4:$G$500,2,TRUE),0) -> 0 | BJ58: =IF(BJ57>MAX('LRMC x Plant ranked'!$P$5:$P$500),"",BJ57+IF($D$32="GWh",100,15)) -> 750 | BK58: =VLOOKUP($BJ58,'LRMC x Plant ranked'!$P$4:$Q$500,2,TRUE) -> 59.37246491 | BM58: =IF(INDEX('LRMC x Plant ranked'!$M$5:$M$500,MATCH($BK58,'LRMC x Plant ranked'!$Q$5:$Q$500,FALSE),)=BM$6,VLOOKUP($BJ58,'LRMC x Plant ranked'!$P$4:$Q$500,2,TRUE),0) -> 59.37246491 | BN58: =IF(INDEX('LRMC x Plant ranked'!$M$5:$M$500,MATCH($BK58,'LRMC x Plant ranked'!$Q$5:$Q$500,FALSE),)=BN$6,VLOOKUP($BJ58,'LRMC x Plant ranked'!$P$4:$Q$500,2,TRUE),0) -> 0 | BO58: 0 | BP58: 0 | BQ58: 0 | BS58: =IF(INDEX('LRMC x Plant ranked'!$M$5:$M$500,MATCH($BK58,'LRMC x Plant ranked'!$Q$5:$Q$500,FALSE),)=BS$6,VLOOKUP($BJ58,'LRMC x Plant ranked'!$P$4:$Q$500,2,TRUE),0) -> 0 | BT58: =IF(INDEX('LRMC x Plant ranked'!$M$5:$M$500,MATCH($BK58,'LRMC x Plant ranked'!$Q$5:$Q$500,FALSE),)=BT$6,VLOOKUP($BJ58,'LRMC x Plant ranked'!$P$4:$Q$500,2,TRUE),0) -> 0 | BU58: =IF(INDEX('LRMC x Plant ranked'!$M$5:$M$500,MATCH($BK58,'LRMC x Plant ranked'!$Q$5:$Q$500,FALSE),)=BU$6,VLOOKUP($BJ58,'LRMC x Plant ranked'!$P$4:$Q$500,2,TRUE),0) -> 0 | BV58: =IF(INDEX('LRMC x Plant ranked'!$M$5:$M$500,MATCH($BK58,'LRMC x Plant ranked'!$Q$5:$Q$500,FALSE),)=BV$6,VLOOKUP($BJ58,'LRMC x Plant ranked'!$P$4:$Q$500,2,TRUE),0) -> 0 | BW58: =IF(INDEX('LRMC x Plant ranked'!$M$5:$M$500,MATCH($BK58,'LRMC x Plant ranked'!$Q$5:$Q$500,FALSE),)=BW$6,VLOOKUP($BJ58,'LRMC x Plant ranked'!$P$4:$Q$500,2,TRUE),0) -> 0 | BX58: 81.677403 | BY58: 92.67719164 | BZ58: 117.3776135 | CA58: 173.8216805 | CB58: 69.67136421
AI59: =IF(ISERROR(IF(OR(VLOOKUP(AJ59,'GEM new plant'!$A$4:$P$388,COLUMNS('GEM new plant'!A213:C213),FALSE)="HydRR",VLOOKUP(AJ59,'GEM new plant'!$A$4:$P$388,COLUMNS('GEM new plant'!A213:C213),FALSE)="HydPk"),"Hydro",VLOOKUP(AJ59,'GEM new plant'!$A$4:$P$388,COLUMNS('GEM new plant'!A213:C213),FALSE))),0,IF(OR(VLOOKUP(AJ59,'GEM new plant'!$A$4:$P$388,COLUMNS('GEM new plant'!A213:C213),FALSE)="HydRR",VLOOKUP(AJ59,'GEM new plant'!$A$4:$P$388,COLUMNS('GEM new plant'!A213:C213),FALSE)="HydPk"),"Hydro",VLOOKUP(AJ59,'GEM new plant'!$A$4:$P$388,COLUMNS('GEM new plant'!A213:C213),FALSE))) -> DSR | AJ59: DSRakld2 | AQ59: =IF(AQ58>MAX('LRMC x Plant ranked'!$F$5:$F$500),"",AQ58+IF($D$32="GWh",100,15)) -> 765 | AR59: =VLOOKUP($AQ59,'LRMC x Plant ranked'!$F$4:$G$500,2,TRUE) -> 59.37246491 | AT59: =IF(INDEX('LRMC x Plant ranked'!$C$5:$C$500,MATCH($AR59,'LRMC x Plant ranked'!$G$5:$G$500,FALSE),)=AT$6,VLOOKUP($AQ59,'LRMC x Plant ranked'!$F$4:$G$500,2,TRUE),0) -> 0 | AU59: =IF(INDEX('LRMC x Plant ranked'!$C$5:$C$500,MATCH($AR59,'LRMC x Plant ranked'!$G$5:$G$500,FALSE),)=AU$6,VLOOKUP($AQ59,'LRMC x Plant ranked'!$F$4:$G$500,2,TRUE),0) -> 0 | AV59: =IF(INDEX('LRMC x Plant ranked'!$C$5:$C$500,MATCH($AR59,'LRMC x Plant ranked'!$G$5:$G$500,FALSE),)=AV$6,VLOOKUP($AQ59,'LRMC x Plant ranked'!$F$4:$G$500,2,TRUE),0) -> 0 | AW59: =IF(INDEX('LRMC x Plant ranked'!$C$5:$C$500,MATCH($AR59,'LRMC x Plant ranked'!$G$5:$G$500,FALSE),)=AW$6,VLOOKUP($AQ59,'LRMC x Plant ranked'!$F$4:$G$500,2,TRUE),0) -> 59.37246491 | AX59: =IF(INDEX('LRMC x Plant ranked'!$C$5:$C$500,MATCH($AR59,'LRMC x Plant ranked'!$G$5:$G$500,FALSE),)=AX$6,VLOOKUP($AQ59,'LRMC x Plant ranked'!$F$4:$G$500,2,TRUE),0) -> 0 | AY59: 0 | AZ59: 0 | BA59: 0 | BC59: =IF(INDEX('LRMC x Plant ranked'!$C$5:$C$500,MATCH($AR59,'LRMC x Plant ranked'!$G$5:$G$500,FALSE),)=BC$6,VLOOKUP($AQ59,'LRMC x Plant ranked'!$F$4:$G$500,2,TRUE),0) -> 0 | BD59: =IF(INDEX('LRMC x Plant ranked'!$C$5:$C$500,MATCH($AR59,'LRMC x Plant ranked'!$G$5:$G$500,FALSE),)=BD$6,VLOOKUP($AQ59,'LRMC x Plant ranked'!$F$4:$G$500,2,TRUE),0) -> 0 | BE59: =IF(INDEX('LRMC x Plant ranked'!$C$5:$C$500,MATCH($AR59,'LRMC x Plant ranked'!$G$5:$G$500,FALSE),)=BE$6,VLOOKUP($AQ59,'LRMC x Plant ranked'!$F$4:$G$500,2,TRUE),0) -> 0 | BF59: =IF(INDEX('LRMC x Plant ranked'!$C$5:$C$500,MATCH($AR59,'LRMC x Plant ranked'!$G$5:$G$500,FALSE),)=BF$6,VLOOKUP($AQ59,'LRMC x Plant ranked'!$F$4:$G$500,2,TRUE),0) -> 0 | BG59: =IF(INDEX('LRMC x Plant ranked'!$C$5:$C$500,MATCH($AR59,'LRMC x Plant ranked'!$G$5:$G$500,FALSE),)=BG$6,VLOOKUP($AQ59,'LRMC x Plant ranked'!$F$4:$G$500,2,TRUE),0) -> 0 | BJ59: =IF(BJ58>MAX('LRMC x Plant ranked'!$P$5:$P$500),"",BJ58+IF($D$32="GWh",100,15)) -> 765 | BK59: =VLOOKUP($BJ59,'LRMC x Plant ranked'!$P$4:$Q$500,2,TRUE) -> 59.37246491 | BM59: =IF(INDEX('LRMC x Plant ranked'!$M$5:$M$500,MATCH($BK59,'LRMC x Plant ranked'!$Q$5:$Q$500,FALSE),)=BM$6,VLOOKUP($BJ59,'LRMC x Plant ranked'!$P$4:$Q$500,2,TRUE),0) -> 59.37246491 | BN59: =IF(INDEX('LRMC x Plant ranked'!$M$5:$M$500,MATCH($BK59,'LRMC x Plant ranked'!$Q$5:$Q$500,FALSE),)=BN$6,VLOOKUP($BJ59,'LRMC x Plant ranked'!$P$4:$Q$500,2,TRUE),0) -> 0 | BO59: 0 | BP59: 0 | BQ59: 0 | BS59: =IF(INDEX('LRMC x Plant ranked'!$M$5:$M$500,MATCH($BK59,'LRMC x Plant ranked'!$Q$5:$Q$500,FALSE),)=BS$6,VLOOKUP($BJ59,'LRMC x Plant ranked'!$P$4:$Q$500,2,TRUE),0) -> 0 | BT59: =IF(INDEX('LRMC x Plant ranked'!$M$5:$M$500,MATCH($BK59,'LRMC x Plant ranked'!$Q$5:$Q$500,FALSE),)=BT$6,VLOOKUP($BJ59,'LRMC x Plant ranked'!$P$4:$Q$500,2,TRUE),0) -> 0 | BU59: =IF(INDEX('LRMC x Plant ranked'!$M$5:$M$500,MATCH($BK59,'LRMC x Plant ranked'!$Q$5:$Q$500,FALSE),)=BU$6,VLOOKUP($BJ59,'LRMC x Plant ranked'!$P$4:$Q$500,2,TRUE),0) -> 0 | BV59: =IF(INDEX('LRMC x Plant ranked'!$M$5:$M$500,MATCH($BK59,'LRMC x Plant ranked'!$Q$5:$Q$500,FALSE),)=BV$6,VLOOKUP($BJ59,'LRMC x Plant ranked'!$P$4:$Q$500,2,TRUE),0) -> 0 | BW59: =IF(INDEX('LRMC x Plant ranked'!$M$5:$M$500,MATCH($BK59,'LRMC x Plant ranked'!$Q$5:$Q$500,FALSE),)=BW$6,VLOOKUP($BJ59,'LRMC x Plant ranked'!$P$4:$Q$500,2,TRUE),0) -> 0 | BX59: 81.677403 | BY59: 92.67719164 | BZ59: 117.3776135 | CA59: 173.8216805 | CB59: 69.67136421
AI60: =IF(ISERROR(IF(OR(VLOOKUP(AJ60,'GEM new plant'!$A$4:$P$388,COLUMNS('GEM new plant'!A176:C176),FALSE)="HydRR",VLOOKUP(AJ60,'GEM new plant'!$A$4:$P$388,COLUMNS('GEM new plant'!A176:C176),FALSE)="HydPk"),"Hydro",VLOOKUP(AJ60,'GEM new plant'!$A$4:$P$388,COLUMNS('GEM new plant'!A176:C176),FALSE))),0,IF(OR(VLOOKUP(AJ60,'GEM new plant'!$A$4:$P$388,COLUMNS('GEM new plant'!A176:C176),FALSE)="HydRR",VLOOKUP(AJ60,'GEM new plant'!$A$4:$P$388,COLUMNS('GEM new plant'!A176:C176),FALSE)="HydPk"),"Hydro",VLOOKUP(AJ60,'GEM new plant'!$A$4:$P$388,COLUMNS('GEM new plant'!A176:C176),FALSE))) -> DSR | AJ60: DSRbopy1 | AQ60: =IF(AQ59>MAX('LRMC x Plant ranked'!$F$5:$F$500),"",AQ59+IF($D$32="GWh",100,15)) -> 780 | AR60: =VLOOKUP($AQ60,'LRMC x Plant ranked'!$F$4:$G$500,2,TRUE) -> 59.37246491 | AT60: =IF(INDEX('LRMC x Plant ranked'!$C$5:$C$500,MATCH($AR60,'LRMC x Plant ranked'!$G$5:$G$500,FALSE),)=AT$6,VLOOKUP($AQ60,'LRMC x Plant ranked'!$F$4:$G$500,2,TRUE),0) -> 0 | AU60: =IF(INDEX('LRMC x Plant ranked'!$C$5:$C$500,MATCH($AR60,'LRMC x Plant ranked'!$G$5:$G$500,FALSE),)=AU$6,VLOOKUP($AQ60,'LRMC x Plant ranked'!$F$4:$G$500,2,TRUE),0) -> 0 | AV60: =IF(INDEX('LRMC x Plant ranked'!$C$5:$C$500,MATCH($AR60,'LRMC x Plant ranked'!$G$5:$G$500,FALSE),)=AV$6,VLOOKUP($AQ60,'LRMC x Plant ranked'!$F$4:$G$500,2,TRUE),0) -> 0 | AW60: =IF(INDEX('LRMC x Plant ranked'!$C$5:$C$500,MATCH($AR60,'LRMC x Plant ranked'!$G$5:$G$500,FALSE),)=AW$6,VLOOKUP($AQ60,'LRMC x Plant ranked'!$F$4:$G$500,2,TRUE),0) -> 59.37246491 | AX60: =IF(INDEX('LRMC x Plant ranked'!$C$5:$C$500,MATCH($AR60,'LRMC x Plant ranked'!$G$5:$G$500,FALSE),)=AX$6,VLOOKUP($AQ60,'LRMC x Plant ranked'!$F$4:$G$500,2,TRUE),0) -> 0 | AY60: 0 | AZ60: 0 | BA60: 0 | BC60: =IF(INDEX('LRMC x Plant ranked'!$C$5:$C$500,MATCH($AR60,'LRMC x Plant ranked'!$G$5:$G$500,FALSE),)=BC$6,VLOOKUP($AQ60,'LRMC x Plant ranked'!$F$4:$G$500,2,TRUE),0) -> 0 | BD60: =IF(INDEX('LRMC x Plant ranked'!$C$5:$C$500,MATCH($AR60,'LRMC x Plant ranked'!$G$5:$G$500,FALSE),)=BD$6,VLOOKUP($AQ60,'LRMC x Plant ranked'!$F$4:$G$500,2,TRUE),0) -> 0 | BE60: =IF(INDEX('LRMC x Plant ranked'!$C$5:$C$500,MATCH($AR60,'LRMC x Plant ranked'!$G$5:$G$500,FALSE),)=BE$6,VLOOKUP($AQ60,'LRMC x Plant ranked'!$F$4:$G$500,2,TRUE),0) -> 0 | BF60: =IF(INDEX('LRMC x Plant ranked'!$C$5:$C$500,MATCH($AR60,'LRMC x Plant ranked'!$G$5:$G$500,FALSE),)=BF$6,VLOOKUP($AQ60,'LRMC x Plant ranked'!$F$4:$G$500,2,TRUE),0) -> 0 | BG60: =IF(INDEX('LRMC x Plant ranked'!$C$5:$C$500,MATCH($AR60,'LRMC x Plant ranked'!$G$5:$G$500,FALSE),)=BG$6,VLOOKUP($AQ60,'LRMC x Plant ranked'!$F$4:$G$500,2,TRUE),0) -> 0 | BJ60: =IF(BJ59>MAX('LRMC x Plant ranked'!$P$5:$P$500),"",BJ59+IF($D$32="GWh",100,15)) -> 780 | BK60: =VLOOKUP($BJ60,'LRMC x Plant ranked'!$P$4:$Q$500,2,TRUE) -> 59.37246491 | BM60: =IF(INDEX('LRMC x Plant ranked'!$M$5:$M$500,MATCH($BK60,'LRMC x Plant ranked'!$Q$5:$Q$500,FALSE),)=BM$6,VLOOKUP($BJ60,'LRMC x Plant ranked'!$P$4:$Q$500,2,TRUE),0) -> 59.37246491 | BN60: =IF(INDEX('LRMC x Plant ranked'!$M$5:$M$500,MATCH($BK60,'LRMC x Plant ranked'!$Q$5:$Q$500,FALSE),)=BN$6,VLOOKUP($BJ60,'LRMC x Plant ranked'!$P$4:$Q$500,2,TRUE),0) -> 0 | BO60: 0 | BP60: 0 | BQ60: 0 | BS60: =IF(INDEX('LRMC x Plant ranked'!$M$5:$M$500,MATCH($BK60,'LRMC x Plant ranked'!$Q$5:$Q$500,FALSE),)=BS$6,VLOOKUP($BJ60,'LRMC x Plant ranked'!$P$4:$Q$500,2,TRUE),0) -> 0 | BT60: =IF(INDEX('LRMC x Plant ranked'!$M$5:$M$500,MATCH($BK60,'LRMC x Plant ranked'!$Q$5:$Q$500,FALSE),)=BT$6,VLOOKUP($BJ60,'LRMC x Plant ranked'!$P$4:$Q$500,2,TRUE),0) -> 0 | BU60: =IF(INDEX('LRMC x Plant ranked'!$M$5:$M$500,MATCH($BK60,'LRMC x Plant ranked'!$Q$5:$Q$500,FALSE),)=BU$6,VLOOKUP($BJ60,'LRMC x Plant ranked'!$P$4:$Q$500,2,TRUE),0) -> 0 | BV60: =IF(INDEX('LRMC x Plant ranked'!$M$5:$M$500,MATCH($BK60,'LRMC x Plant ranked'!$Q$5:$Q$500,FALSE),)=BV$6,VLOOKUP($BJ60,'LRMC x Plant ranked'!$P$4:$Q$500,2,TRUE),0) -> 0 | BW60: =IF(INDEX('LRMC x Plant ranked'!$M$5:$M$500,MATCH($BK60,'LRMC x Plant ranked'!$Q$5:$Q$500,FALSE),)=BW$6,VLOOKUP($BJ60,'LRMC x Plant ranked'!$P$4:$Q$500,2,TRUE),0) -> 0 | BX60: 81.677403 | BY60: 92.67719164 | BZ60: 117.3776135 | CA60: 173.8216805 | CB60: 69.67136421
AI61: =IF(ISERROR(IF(OR(VLOOKUP(AJ61,'GEM new plant'!$A$4:$P$388,COLUMNS('GEM new plant'!A6:C6),FALSE)="HydRR",VLOOKUP(AJ61,'GEM new plant'!$A$4:$P$388,COLUMNS('GEM new plant'!A6:C6),FALSE)="HydPk"),"Hydro",VLOOKUP(AJ61,'GEM new plant'!$A$4:$P$388,COLUMNS('GEM new plant'!A6:C6),FALSE))),0,IF(OR(VLOOKUP(AJ61,'GEM new plant'!$A$4:$P$388,COLUMNS('GEM new plant'!A6:C6),FALSE)="HydRR",VLOOKUP(AJ61,'GEM new plant'!$A$4:$P$388,COLUMNS('GEM new plant'!A6:C6),FALSE)="HydPk"),"Hydro",VLOOKUP(AJ61,'GEM new plant'!$A$4:$P$388,COLUMNS('GEM new plant'!A6:C6),FALSE))) -> DSR | AJ61: DSRbopy2 | AQ61: =IF(AQ60>MAX('LRMC x Plant ranked'!$F$5:$F$500),"",AQ60+IF($D$32="GWh",100,15)) -> 795 | AR61: =VLOOKUP($AQ61,'LRMC x Plant ranked'!$F$4:$G$500,2,TRUE) -> 59.37246491 | AT61: =IF(INDEX('LRMC x Plant ranked'!$C$5:$C$500,MATCH($AR61,'LRMC x Plant ranked'!$G$5:$G$500,FALSE),)=AT$6,VLOOKUP($AQ61,'LRMC x Plant ranked'!$F$4:$G$500,2,TRUE),0) -> 0 | AU61: =IF(INDEX('LRMC x Plant ranked'!$C$5:$C$500,MATCH($AR61,'LRMC x Plant ranked'!$G$5:$G$500,FALSE),)=AU$6,VLOOKUP($AQ61,'LRMC x Plant ranked'!$F$4:$G$500,2,TRUE),0) -> 0 | AV61: =IF(INDEX('LRMC x Plant ranked'!$C$5:$C$500,MATCH($AR61,'LRMC x Plant ranked'!$G$5:$G$500,FALSE),)=AV$6,VLOOKUP($AQ61,'LRMC x Plant ranked'!$F$4:$G$500,2,TRUE),0) -> 0 | AW61: =IF(INDEX('LRMC x Plant ranked'!$C$5:$C$500,MATCH($AR61,'LRMC x Plant ranked'!$G$5:$G$500,FALSE),)=AW$6,VLOOKUP($AQ61,'LRMC x Plant ranked'!$F$4:$G$500,2,TRUE),0) -> 59.37246491 | AX61: =IF(INDEX('LRMC x Plant ranked'!$C$5:$C$500,MATCH($AR61,'LRMC x Plant ranked'!$G$5:$G$500,FALSE),)=AX$6,VLOOKUP($AQ61,'LRMC x Plant ranked'!$F$4:$G$500,2,TRUE),0) -> 0 | AY61: 0 | AZ61: 0 | BA61: 0 | BC61: =IF(INDEX('LRMC x Plant ranked'!$C$5:$C$500,MATCH($AR61,'LRMC x Plant ranked'!$G$5:$G$500,FALSE),)=BC$6,VLOOKUP($AQ61,'LRMC x Plant ranked'!$F$4:$G$500,2,TRUE),0) -> 0 | BD61: =IF(INDEX('LRMC x Plant ranked'!$C$5:$C$500,MATCH($AR61,'LRMC x Plant ranked'!$G$5:$G$500,FALSE),)=BD$6,VLOOKUP($AQ61,'LRMC x Plant ranked'!$F$4:$G$500,2,TRUE),0) -> 0 | BE61: =IF(INDEX('LRMC x Plant ranked'!$C$5:$C$500,MATCH($AR61,'LRMC x Plant ranked'!$G$5:$G$500,FALSE),)=BE$6,VLOOKUP($AQ61,'LRMC x Plant ranked'!$F$4:$G$500,2,TRUE),0) -> 0 | BF61: =IF(INDEX('LRMC x Plant ranked'!$C$5:$C$500,MATCH($AR61,'LRMC x Plant ranked'!$G$5:$G$500,FALSE),)=BF$6,VLOOKUP($AQ61,'LRMC x Plant ranked'!$F$4:$G$500,2,TRUE),0) -> 0 | BG61: =IF(INDEX('LRMC x Plant ranked'!$C$5:$C$500,MATCH($AR61,'LRMC x Plant ranked'!$G$5:$G$500,FALSE),)=BG$6,VLOOKUP($AQ61,'LRMC x Plant ranked'!$F$4:$G$500,2,TRUE),0) -> 0 | BJ61: =IF(BJ60>MAX('LRMC x Plant ranked'!$P$5:$P$500),"",BJ60+IF($D$32="GWh",100,15)) -> 795 | BK61: =VLOOKUP($BJ61,'LRMC x Plant ranked'!$P$4:$Q$500,2,TRUE) -> 59.37246491 | BM61: =IF(INDEX('LRMC x Plant ranked'!$M$5:$M$500,MATCH($BK61,'LRMC x Plant ranked'!$Q$5:$Q$500,FALSE),)=BM$6,VLOOKUP($BJ61,'LRMC x Plant ranked'!$P$4:$Q$500,2,TRUE),0) -> 59.37246491 | BN61: =IF(INDEX('LRMC x Plant ranked'!$M$5:$M$500,MATCH($BK61,'LRMC x Plant ranked'!$Q$5:$Q$500,FALSE),)=BN$6,VLOOKUP($BJ61,'LRMC x Plant ranked'!$P$4:$Q$500,2,TRUE),0) -> 0 | BO61: 0 | BP61: 0 | BQ61: 0 | BS61: =IF(INDEX('LRMC x Plant ranked'!$M$5:$M$500,MATCH($BK61,'LRMC x Plant ranked'!$Q$5:$Q$500,FALSE),)=BS$6,VLOOKUP($BJ61,'LRMC x Plant ranked'!$P$4:$Q$500,2,TRUE),0) -> 0 | BT61: =IF(INDEX('LRMC x Plant ranked'!$M$5:$M$500,MATCH($BK61,'LRMC x Plant ranked'!$Q$5:$Q$500,FALSE),)=BT$6,VLOOKUP($BJ61,'LRMC x Plant ranked'!$P$4:$Q$500,2,TRUE),0) -> 0 | BU61: =IF(INDEX('LRMC x Plant ranked'!$M$5:$M$500,MATCH($BK61,'LRMC x Plant ranked'!$Q$5:$Q$500,FALSE),)=BU$6,VLOOKUP($BJ61,'LRMC x Plant ranked'!$P$4:$Q$500,2,TRUE),0) -> 0 | BV61: =IF(INDEX('LRMC x Plant ranked'!$M$5:$M$500,MATCH($BK61,'LRMC x Plant ranked'!$Q$5:$Q$500,FALSE),)=BV$6,VLOOKUP($BJ61,'LRMC x Plant ranked'!$P$4:$Q$500,2,TRUE),0) -> 0 | BW61: =IF(INDEX('LRMC x Plant ranked'!$M$5:$M$500,MATCH($BK61,'LRMC x Plant ranked'!$Q$5:$Q$500,FALSE),)=BW$6,VLOOKUP($BJ61,'LRMC x Plant ranked'!$P$4:$Q$500,2,TRUE),0) -> 0 | BX61: 81.677403 | BY61: 92.67719164 | BZ61: 117.3776135 | CA61: 173.8216805 | CB61: 69.67136421
AI62: =IF(ISERROR(IF(OR(VLOOKUP(AJ62,'GEM new plant'!$A$4:$P$388,COLUMNS('GEM new plant'!A117:C117),FALSE)="HydRR",VLOOKUP(AJ62,'GEM new plant'!$A$4:$P$388,COLUMNS('GEM new plant'!A117:C117),FALSE)="HydPk"),"Hydro",VLOOKUP(AJ62,'GEM new plant'!$A$4:$P$388,COLUMNS('GEM new plant'!A117:C117),FALSE))),0,IF(OR(VLOOKUP(AJ62,'GEM new plant'!$A$4:$P$388,COLUMNS('GEM new plant'!A117:C117),FALSE)="HydRR",VLOOKUP(AJ62,'GEM new plant'!$A$4:$P$388,COLUMNS('GEM new plant'!A117:C117),FALSE)="HydPk"),"Hydro",VLOOKUP(AJ62,'GEM new plant'!$A$4:$P$388,COLUMNS('GEM new plant'!A117:C117),FALSE))) -> DSR | AJ62: DSRbtpe1 | AQ62: =IF(AQ61>MAX('LRMC x Plant ranked'!$F$5:$F$500),"",AQ61+IF($D$32="GWh",100,15)) -> 810 | AR62: =VLOOKUP($AQ62,'LRMC x Plant ranked'!$F$4:$G$500,2,TRUE) -> 59.37246491 | AT62: =IF(INDEX('LRMC x Plant ranked'!$C$5:$C$500,MATCH($AR62,'LRMC x Plant ranked'!$G$5:$G$500,FALSE),)=AT$6,VLOOKUP($AQ62,'LRMC x Plant ranked'!$F$4:$G$500,2,TRUE),0) -> 0 | AU62: =IF(INDEX('LRMC x Plant ranked'!$C$5:$C$500,MATCH($AR62,'LRMC x Plant ranked'!$G$5:$G$500,FALSE),)=AU$6,VLOOKUP($AQ62,'LRMC x Plant ranked'!$F$4:$G$500,2,TRUE),0) -> 0 | AV62: =IF(INDEX('LRMC x Plant ranked'!$C$5:$C$500,MATCH($AR62,'LRMC x Plant ranked'!$G$5:$G$500,FALSE),)=AV$6,VLOOKUP($AQ62,'LRMC x Plant ranked'!$F$4:$G$500,2,TRUE),0) -> 0 | AW62: =IF(INDEX('LRMC x Plant ranked'!$C$5:$C$500,MATCH($AR62,'LRMC x Plant ranked'!$G$5:$G$500,FALSE),)=AW$6,VLOOKUP($AQ62,'LRMC x Plant ranked'!$F$4:$G$500,2,TRUE),0) -> 59.37246491 | AX62: =IF(INDEX('LRMC x Plant ranked'!$C$5:$C$500,MATCH($AR62,'LRMC x Plant ranked'!$G$5:$G$500,FALSE),)=AX$6,VLOOKUP($AQ62,'LRMC x Plant ranked'!$F$4:$G$500,2,TRUE),0) -> 0 | AY62: 0 | AZ62: 0 | BA62: 0 | BC62: =IF(INDEX('LRMC x Plant ranked'!$C$5:$C$500,MATCH($AR62,'LRMC x Plant ranked'!$G$5:$G$500,FALSE),)=BC$6,VLOOKUP($AQ62,'LRMC x Plant ranked'!$F$4:$G$500,2,TRUE),0) -> 0 | BD62: =IF(INDEX('LRMC x Plant ranked'!$C$5:$C$500,MATCH($AR62,'LRMC x Plant ranked'!$G$5:$G$500,FALSE),)=BD$6,VLOOKUP($AQ62,'LRMC x Plant ranked'!$F$4:$G$500,2,TRUE),0) -> 0 | BE62: =IF(INDEX('LRMC x Plant ranked'!$C$5:$C$500,MATCH($AR62,'LRMC x Plant ranked'!$G$5:$G$500,FALSE),)=BE$6,VLOOKUP($AQ62,'LRMC x Plant ranked'!$F$4:$G$500,2,TRUE),0) -> 0 | BF62: =IF(INDEX('LRMC x Plant ranked'!$C$5:$C$500,MATCH($AR62,'LRMC x Plant ranked'!$G$5:$G$500,FALSE),)=BF$6,VLOOKUP($AQ62,'LRMC x Plant ranked'!$F$4:$G$500,2,TRUE),0) -> 0 | BG62: =IF(INDEX('LRMC x Plant ranked'!$C$5:$C$500,MATCH($AR62,'LRMC x Plant ranked'!$G$5:$G$500,FALSE),)=BG$6,VLOOKUP($AQ62,'LRMC x Plant ranked'!$F$4:$G$500,2,TRUE),0) -> 0 | BJ62: =IF(BJ61>MAX('LRMC x Plant ranked'!$P$5:$P$500),"",BJ61+IF($D$32="GWh",100,15)) -> 810 | BK62: =VLOOKUP($BJ62,'LRMC x Plant ranked'!$P$4:$Q$500,2,TRUE) -> 59.37246491 | BM62: =IF(INDEX('LRMC x Plant ranked'!$M$5:$M$500,MATCH($BK62,'LRMC x Plant ranked'!$Q$5:$Q$500,FALSE),)=BM$6,VLOOKUP($BJ62,'LRMC x Plant ranked'!$P$4:$Q$500,2,TRUE),0) -> 59.37246491 | BN62: =IF(INDEX('LRMC x Plant ranked'!$M$5:$M$500,MATCH($BK62,'LRMC x Plant ranked'!$Q$5:$Q$500,FALSE),)=BN$6,VLOOKUP($BJ62,'LRMC x Plant ranked'!$P$4:$Q$500,2,TRUE),0) -> 0 | BO62: 0 | BP62: 0 | BQ62: 0 | BS62: =IF(INDEX('LRMC x Plant ranked'!$M$5:$M$500,MATCH($BK62,'LRMC x Plant ranked'!$Q$5:$Q$500,FALSE),)=BS$6,VLOOKUP($BJ62,'LRMC x Plant ranked'!$P$4:$Q$500,2,TRUE),0) -> 0 | BT62: =IF(INDEX('LRMC x Plant ranked'!$M$5:$M$500,MATCH($BK62,'LRMC x Plant ranked'!$Q$5:$Q$500,FALSE),)=BT$6,VLOOKUP($BJ62,'LRMC x Plant ranked'!$P$4:$Q$500,2,TRUE),0) -> 0 | BU62: =IF(INDEX('LRMC x Plant ranked'!$M$5:$M$500,MATCH($BK62,'LRMC x Plant ranked'!$Q$5:$Q$500,FALSE),)=BU$6,VLOOKUP($BJ62,'LRMC x Plant ranked'!$P$4:$Q$500,2,TRUE),0) -> 0 | BV62: =IF(INDEX('LRMC x Plant ranked'!$M$5:$M$500,MATCH($BK62,'LRMC x Plant ranked'!$Q$5:$Q$500,FALSE),)=BV$6,VLOOKUP($BJ62,'LRMC x Plant ranked'!$P$4:$Q$500,2,TRUE),0) -> 0 | BW62: =IF(INDEX('LRMC x Plant ranked'!$M$5:$M$500,MATCH($BK62,'LRMC x Plant ranked'!$Q$5:$Q$500,FALSE),)=BW$6,VLOOKUP($BJ62,'LRMC x Plant ranked'!$P$4:$Q$500,2,TRUE),0) -> 0 | BX62: 81.677403 | BY62: 92.67719164 | BZ62: 117.3776135 | CA62: 173.8216805 | CB62: 69.67136421
AI63: =IF(ISERROR(IF(OR(VLOOKUP(AJ63,'GEM new plant'!$A$4:$P$388,COLUMNS('GEM new plant'!A5:C5),FALSE)="HydRR",VLOOKUP(AJ63,'GEM new plant'!$A$4:$P$388,COLUMNS('GEM new plant'!A5:C5),FALSE)="HydPk"),"Hydro",VLOOKUP(AJ63,'GEM new plant'!$A$4:$P$388,COLUMNS('GEM new plant'!A5:C5),FALSE))),0,IF(OR(VLOOKUP(AJ63,'GEM new plant'!$A$4:$P$388,COLUMNS('GEM new plant'!A5:C5),FALSE)="HydRR",VLOOKUP(AJ63,'GEM new plant'!$A$4:$P$388,COLUMNS('GEM new plant'!A5:C5),FALSE)="HydPk"),"Hydro",VLOOKUP(AJ63,'GEM new plant'!$A$4:$P$388,COLUMNS('GEM new plant'!A5:C5),FALSE))) -> DSR | AJ63: DSRbtpe2 | AQ63: =IF(AQ62>MAX('LRMC x Plant ranked'!$F$5:$F$500),"",AQ62+IF($D$32="GWh",100,15)) -> 825 | AR63: =VLOOKUP($AQ63,'LRMC x Plant ranked'!$F$4:$G$500,2,TRUE) -> 59.37246491 | AT63: =IF(INDEX('LRMC x Plant ranked'!$C$5:$C$500,MATCH($AR63,'LRMC x Plant ranked'!$G$5:$G$500,FALSE),)=AT$6,VLOOKUP($AQ63,'LRMC x Plant ranked'!$F$4:$G$500,2,TRUE),0) -> 0 | AU63: =IF(INDEX('LRMC x Plant ranked'!$C$5:$C$500,MATCH($AR63,'LRMC x Plant ranked'!$G$5:$G$500,FALSE),)=AU$6,VLOOKUP($AQ63,'LRMC x Plant ranked'!$F$4:$G$500,2,TRUE),0) -> 0 | AV63: =IF(INDEX('LRMC x Plant ranked'!$C$5:$C$500,MATCH($AR63,'LRMC x Plant ranked'!$G$5:$G$500,FALSE),)=AV$6,VLOOKUP($AQ63,'LRMC x Plant ranked'!$F$4:$G$500,2,TRUE),0) -> 0 | AW63: =IF(INDEX('LRMC x Plant ranked'!$C$5:$C$500,MATCH($AR63,'LRMC x Plant ranked'!$G$5:$G$500,FALSE),)=AW$6,VLOOKUP($AQ63,'LRMC x Plant ranked'!$F$4:$G$500,2,TRUE),0) -> 59.37246491 | AX63: =IF(INDEX('LRMC x Plant ranked'!$C$5:$C$500,MATCH($AR63,'LRMC x Plant ranked'!$G$5:$G$500,FALSE),)=AX$6,VLOOKUP($AQ63,'LRMC x Plant ranked'!$F$4:$G$500,2,TRUE),0) -> 0 | AY63: 0 | AZ63: 0 | BA63: 0 | BC63: =IF(INDEX('LRMC x Plant ranked'!$C$5:$C$500,MATCH($AR63,'LRMC x Plant ranked'!$G$5:$G$500,FALSE),)=BC$6,VLOOKUP($AQ63,'LRMC x Plant ranked'!$F$4:$G$500,2,TRUE),0) -> 0 | BD63: =IF(INDEX('LRMC x Plant ranked'!$C$5:$C$500,MATCH($AR63,'LRMC x Plant ranked'!$G$5:$G$500,FALSE),)=BD$6,VLOOKUP($AQ63,'LRMC x Plant ranked'!$F$4:$G$500,2,TRUE),0) -> 0 | BE63: =IF(INDEX('LRMC x Plant ranked'!$C$5:$C$500,MATCH($AR63,'LRMC x Plant ranked'!$G$5:$G$500,FALSE),)=BE$6,VLOOKUP($AQ63,'LRMC x Plant ranked'!$F$4:$G$500,2,TRUE),0) -> 0 | BF63: =IF(INDEX('LRMC x Plant ranked'!$C$5:$C$500,MATCH($AR63,'LRMC x Plant ranked'!$G$5:$G$500,FALSE),)=BF$6,VLOOKUP($AQ63,'LRMC x Plant ranked'!$F$4:$G$500,2,TRUE),0) -> 0 | BG63: =IF(INDEX('LRMC x Plant ranked'!$C$5:$C$500,MATCH($AR63,'LRMC x Plant ranked'!$G$5:$G$500,FALSE),)=BG$6,VLOOKUP($AQ63,'LRMC x Plant ranked'!$F$4:$G$500,2,TRUE),0) -> 0 | BJ63: =IF(BJ62>MAX('LRMC x Plant ranked'!$P$5:$P$500),"",BJ62+IF($D$32="GWh",100,15)) -> 825 | BK63: =VLOOKUP($BJ63,'LRMC x Plant ranked'!$P$4:$Q$500,2,TRUE) -> 59.37246491 | BM63: =IF(INDEX('LRMC x Plant ranked'!$M$5:$M$500,MATCH($BK63,'LRMC x Plant ranked'!$Q$5:$Q$500,FALSE),)=BM$6,VLOOKUP($BJ63,'LRMC x Plant ranked'!$P$4:$Q$500,2,TRUE),0) -> 59.37246491 | BN63: =IF(INDEX('LRMC x Plant ranked'!$M$5:$M$500,MATCH($BK63,'LRMC x Plant ranked'!$Q$5:$Q$500,FALSE),)=BN$6,VLOOKUP($BJ63,'LRMC x Plant ranked'!$P$4:$Q$500,2,TRUE),0) -> 0 | BO63: 0 | BP63: 0 | BQ63: 0 | BS63: =IF(INDEX('LRMC x Plant ranked'!$M$5:$M$500,MATCH($BK63,'LRMC x Plant ranked'!$Q$5:$Q$500,FALSE),)=BS$6,VLOOKUP($BJ63,'LRMC x Plant ranked'!$P$4:$Q$500,2,TRUE),0) -> 0 | BT63: =IF(INDEX('LRMC x Plant ranked'!$M$5:$M$500,MATCH($BK63,'LRMC x Plant ranked'!$Q$5:$Q$500,FALSE),)=BT$6,VLOOKUP($BJ63,'LRMC x Plant ranked'!$P$4:$Q$500,2,TRUE),0) -> 0 | BU63: =IF(INDEX('LRMC x Plant ranked'!$M$5:$M$500,MATCH($BK63,'LRMC x Plant ranked'!$Q$5:$Q$500,FALSE),)=BU$6,VLOOKUP($BJ63,'LRMC x Plant ranked'!$P$4:$Q$500,2,TRUE),0) -> 0 | BV63: =IF(INDEX('LRMC x Plant ranked'!$M$5:$M$500,MATCH($BK63,'LRMC x Plant ranked'!$Q$5:$Q$500,FALSE),)=BV$6,VLOOKUP($BJ63,'LRMC x Plant ranked'!$P$4:$Q$500,2,TRUE),0) -> 0 | BW63: =IF(INDEX('LRMC x Plant ranked'!$M$5:$M$500,MATCH($BK63,'LRMC x Plant ranked'!$Q$5:$Q$500,FALSE),)=BW$6,VLOOKUP($BJ63,'LRMC x Plant ranked'!$P$4:$Q$500,2,TRUE),0) -> 0 | BX63: 81.677403 | BY63: 92.67719164 | BZ63: 117.3776135 | CA63: 173.8216805 | CB63: 69.67136421
AI64: =IF(ISERROR(IF(OR(VLOOKUP(AJ64,'GEM new plant'!$A$4:$P$388,COLUMNS('GEM new plant'!A165:C165),FALSE)="HydRR",VLOOKUP(AJ64,'GEM new plant'!$A$4:$P$388,COLUMNS('GEM new plant'!A165:C165),FALSE)="HydPk"),"Hydro",VLOOKUP(AJ64,'GEM new plant'!$A$4:$P$388,COLUMNS('GEM new plant'!A165:C165),FALSE))),0,IF(OR(VLOOKUP(AJ64,'GEM new plant'!$A$4:$P$388,COLUMNS('GEM new plant'!A165:C165),FALSE)="HydRR",VLOOKUP(AJ64,'GEM new plant'!$A$4:$P$388,COLUMNS('GEM new plant'!A165:C165),FALSE)="HydPk"),"Hydro",VLOOKUP(AJ64,'GEM new plant'!$A$4:$P$388,COLUMNS('GEM new plant'!A165:C165),FALSE))) -> DSR | AJ64: DSRchch1 | AQ64: =IF(AQ63>MAX('LRMC x Plant ranked'!$F$5:$F$500),"",AQ63+IF($D$32="GWh",100,15)) -> 840 | AR64: =VLOOKUP($AQ64,'LRMC x Plant ranked'!$F$4:$G$500,2,TRUE) -> 59.37246491 | AT64: =IF(INDEX('LRMC x Plant ranked'!$C$5:$C$500,MATCH($AR64,'LRMC x Plant ranked'!$G$5:$G$500,FALSE),)=AT$6,VLOOKUP($AQ64,'LRMC x Plant ranked'!$F$4:$G$500,2,TRUE),0) -> 0 | AU64: =IF(INDEX('LRMC x Plant ranked'!$C$5:$C$500,MATCH($AR64,'LRMC x Plant ranked'!$G$5:$G$500,FALSE),)=AU$6,VLOOKUP($AQ64,'LRMC x Plant ranked'!$F$4:$G$500,2,TRUE),0) -> 0 | AV64: =IF(INDEX('LRMC x Plant ranked'!$C$5:$C$500,MATCH($AR64,'LRMC x Plant ranked'!$G$5:$G$500,FALSE),)=AV$6,VLOOKUP($AQ64,'LRMC x Plant ranked'!$F$4:$G$500,2,TRUE),0) -> 0 | AW64: =IF(INDEX('LRMC x Plant ranked'!$C$5:$C$500,MATCH($AR64,'LRMC x Plant ranked'!$G$5:$G$500,FALSE),)=AW$6,VLOOKUP($AQ64,'LRMC x Plant ranked'!$F$4:$G$500,2,TRUE),0) -> 59.37246491 | AX64: =IF(INDEX('LRMC x Plant ranked'!$C$5:$C$500,MATCH($AR64,'LRMC x Plant ranked'!$G$5:$G$500,FALSE),)=AX$6,VLOOKUP($AQ64,'LRMC x Plant ranked'!$F$4:$G$500,2,TRUE),0) -> 0 | AY64: 0 | AZ64: 0 | BA64: 0 | BC64: =IF(INDEX('LRMC x Plant ranked'!$C$5:$C$500,MATCH($AR64,'LRMC x Plant ranked'!$G$5:$G$500,FALSE),)=BC$6,VLOOKUP($AQ64,'LRMC x Plant ranked'!$F$4:$G$500,2,TRUE),0) -> 0 | BD64: =IF(INDEX('LRMC x Plant ranked'!$C$5:$C$500,MATCH($AR64,'LRMC x Plant ranked'!$G$5:$G$500,FALSE),)=BD$6,VLOOKUP($AQ64,'LRMC x Plant ranked'!$F$4:$G$500,2,TRUE),0) -> 0 | BE64: =IF(INDEX('LRMC x Plant ranked'!$C$5:$C$500,MATCH($AR64,'LRMC x Plant ranked'!$G$5:$G$500,FALSE),)=BE$6,VLOOKUP($AQ64,'LRMC x Plant ranked'!$F$4:$G$500,2,TRUE),0) -> 0 | BF64: =IF(INDEX('LRMC x Plant ranked'!$C$5:$C$500,MATCH($AR64,'LRMC x Plant ranked'!$G$5:$G$500,FALSE),)=BF$6,VLOOKUP($AQ64,'LRMC x Plant ranked'!$F$4:$G$500,2,TRUE),0) -> 0 | BG64: =IF(INDEX('LRMC x Plant ranked'!$C$5:$C$500,MATCH($AR64,'LRMC x Plant ranked'!$G$5:$G$500,FALSE),)=BG$6,VLOOKUP($AQ64,'LRMC x Plant ranked'!$F$4:$G$500,2,TRUE),0) -> 0 | BJ64: =IF(BJ63>MAX('LRMC x Plant ranked'!$P$5:$P$500),"",BJ63+IF($D$32="GWh",100,15)) -> 840 | BK64: =VLOOKUP($BJ64,'LRMC x Plant ranked'!$P$4:$Q$500,2,TRUE) -> 59.37246491 | BM64: =IF(INDEX('LRMC x Plant ranked'!$M$5:$M$500,MATCH($BK64,'LRMC x Plant ranked'!$Q$5:$Q$500,FALSE),)=BM$6,VLOOKUP($BJ64,'LRMC x Plant ranked'!$P$4:$Q$500,2,TRUE),0) -> 59.37246491 | BN64: =IF(INDEX('LRMC x Plant ranked'!$M$5:$M$500,MATCH($BK64,'LRMC x Plant ranked'!$Q$5:$Q$500,FALSE),)=BN$6,VLOOKUP($BJ64,'LRMC x Plant ranked'!$P$4:$Q$500,2,TRUE),0) -> 0 | BO64: 0 | BP64: 0 | BQ64: 0 | BS64: =IF(INDEX('LRMC x Plant ranked'!$M$5:$M$500,MATCH($BK64,'LRMC x Plant ranked'!$Q$5:$Q$500,FALSE),)=BS$6,VLOOKUP($BJ64,'LRMC x Plant ranked'!$P$4:$Q$500,2,TRUE),0) -> 0 | BT64: =IF(INDEX('LRMC x Plant ranked'!$M$5:$M$500,MATCH($BK64,'LRMC x Plant ranked'!$Q$5:$Q$500,FALSE),)=BT$6,VLOOKUP($BJ64,'LRMC x Plant ranked'!$P$4:$Q$500,2,TRUE),0) -> 0 | BU64: =IF(INDEX('LRMC x Plant ranked'!$M$5:$M$500,MATCH($BK64,'LRMC x Plant ranked'!$Q$5:$Q$500,FALSE),)=BU$6,VLOOKUP($BJ64,'LRMC x Plant ranked'!$P$4:$Q$500,2,TRUE),0) -> 0 | BV64: =IF(INDEX('LRMC x Plant ranked'!$M$5:$M$500,MATCH($BK64,'LRMC x Plant ranked'!$Q$5:$Q$500,FALSE),)=BV$6,VLOOKUP($BJ64,'LRMC x Plant ranked'!$P$4:$Q$500,2,TRUE),0) -> 0 | BW64: =IF(INDEX('LRMC x Plant ranked'!$M$5:$M$500,MATCH($BK64,'LRMC x Plant ranked'!$Q$5:$Q$500,FALSE),)=BW$6,VLOOKUP($BJ64,'LRMC x Plant ranked'!$P$4:$Q$500,2,TRUE),0) -> 0 | BX64: 81.677403 | BY64: 92.67719164 | BZ64: 117.3776135 | CA64: 173.8216805 | CB64: 69.67136421
AI65: =IF(ISERROR(IF(OR(VLOOKUP(AJ65,'GEM new plant'!$A$4:$P$388,COLUMNS('GEM new plant'!A184:C184),FALSE)="HydRR",VLOOKUP(AJ65,'GEM new plant'!$A$4:$P$388,COLUMNS('GEM new plant'!A184:C184),FALSE)="HydPk"),"Hydro",VLOOKUP(AJ65,'GEM new plant'!$A$4:$P$388,COLUMNS('GEM new plant'!A184:C184),FALSE))),0,IF(OR(VLOOKUP(AJ65,'GEM new plant'!$A$4:$P$388,COLUMNS('GEM new plant'!A184:C184),FALSE)="HydRR",VLOOKUP(AJ65,'GEM new plant'!$A$4:$P$388,COLUMNS('GEM new plant'!A184:C184),FALSE)="HydPk"),"Hydro",VLOOKUP(AJ65,'GEM new plant'!$A$4:$P$388,COLUMNS('GEM new plant'!A184:C184),FALSE))) -> DSR | AJ65: DSRchch2 | AQ65: =IF(AQ64>MAX('LRMC x Plant ranked'!$F$5:$F$500),"",AQ64+IF($D$32="GWh",100,15)) -> 855 | AR65: =VLOOKUP($AQ65,'LRMC x Plant ranked'!$F$4:$G$500,2,TRUE) -> 59.37246491 | AT65: =IF(INDEX('LRMC x Plant ranked'!$C$5:$C$500,MATCH($AR65,'LRMC x Plant ranked'!$G$5:$G$500,FALSE),)=AT$6,VLOOKUP($AQ65,'LRMC x Plant ranked'!$F$4:$G$500,2,TRUE),0) -> 0 | AU65: =IF(INDEX('LRMC x Plant ranked'!$C$5:$C$500,MATCH($AR65,'LRMC x Plant ranked'!$G$5:$G$500,FALSE),)=AU$6,VLOOKUP($AQ65,'LRMC x Plant ranked'!$F$4:$G$500,2,TRUE),0) -> 0 | AV65: =IF(INDEX('LRMC x Plant ranked'!$C$5:$C$500,MATCH($AR65,'LRMC x Plant ranked'!$G$5:$G$500,FALSE),)=AV$6,VLOOKUP($AQ65,'LRMC x Plant ranked'!$F$4:$G$500,2,TRUE),0) -> 0 | AW65: =IF(INDEX('LRMC x Plant ranked'!$C$5:$C$500,MATCH($AR65,'LRMC x Plant ranked'!$G$5:$G$500,FALSE),)=AW$6,VLOOKUP($AQ65,'LRMC x Plant ranked'!$F$4:$G$500,2,TRUE),0) -> 59.37246491 | AX65: =IF(INDEX('LRMC x Plant ranked'!$C$5:$C$500,MATCH($AR65,'LRMC x Plant ranked'!$G$5:$G$500,FALSE),)=AX$6,VLOOKUP($AQ65,'LRMC x Plant ranked'!$F$4:$G$500,2,TRUE),0) -> 0 | AY65: 0 | AZ65: 0 | BA65: 0 | BC65: =IF(INDEX('LRMC x Plant ranked'!$C$5:$C$500,MATCH($AR65,'LRMC x Plant ranked'!$G$5:$G$500,FALSE),)=BC$6,VLOOKUP($AQ65,'LRMC x Plant ranked'!$F$4:$G$500,2,TRUE),0) -> 0 | BD65: =IF(INDEX('LRMC x Plant ranked'!$C$5:$C$500,MATCH($AR65,'LRMC x Plant ranked'!$G$5:$G$500,FALSE),)=BD$6,VLOOKUP($AQ65,'LRMC x Plant ranked'!$F$4:$G$500,2,TRUE),0) -> 0 | BE65: =IF(INDEX('LRMC x Plant ranked'!$C$5:$C$500,MATCH($AR65,'LRMC x Plant ranked'!$G$5:$G$500,FALSE),)=BE$6,VLOOKUP($AQ65,'LRMC x Plant ranked'!$F$4:$G$500,2,TRUE),0) -> 0 | BF65: =IF(INDEX('LRMC x Plant ranked'!$C$5:$C$500,MATCH($AR65,'LRMC x Plant ranked'!$G$5:$G$500,FALSE),)=BF$6,VLOOKUP($AQ65,'LRMC x Plant ranked'!$F$4:$G$500,2,TRUE),0) -> 0 | BG65: =IF(INDEX('LRMC x Plant ranked'!$C$5:$C$500,MATCH($AR65,'LRMC x Plant ranked'!$G$5:$G$500,FALSE),)=BG$6,VLOOKUP($AQ65,'LRMC x Plant ranked'!$F$4:$G$500,2,TRUE),0) -> 0 | BJ65: =IF(BJ64>MAX('LRMC x Plant ranked'!$P$5:$P$500),"",BJ64+IF($D$32="GWh",100,15)) -> 855 | BK65: =VLOOKUP($BJ65,'LRMC x Plant ranked'!$P$4:$Q$500,2,TRUE) -> 59.37246491 | BM65: =IF(INDEX('LRMC x Plant ranked'!$M$5:$M$500,MATCH($BK65,'LRMC x Plant ranked'!$Q$5:$Q$500,FALSE),)=BM$6,VLOOKUP($BJ65,'LRMC x Plant ranked'!$P$4:$Q$500,2,TRUE),0) -> 59.37246491 | BN65: =IF(INDEX('LRMC x Plant ranked'!$M$5:$M$500,MATCH($BK65,'LRMC x Plant ranked'!$Q$5:$Q$500,FALSE),)=BN$6,VLOOKUP($BJ65,'LRMC x Plant ranked'!$P$4:$Q$500,2,TRUE),0) -> 0 | BO65: 0 | BP65: 0 | BQ65: 0 | BS65: =IF(INDEX('LRMC x Plant ranked'!$M$5:$M$500,MATCH($BK65,'LRMC x Plant ranked'!$Q$5:$Q$500,FALSE),)=BS$6,VLOOKUP($BJ65,'LRMC x Plant ranked'!$P$4:$Q$500,2,TRUE),0) -> 0 | BT65: =IF(INDEX('LRMC x Plant ranked'!$M$5:$M$500,MATCH($BK65,'LRMC x Plant ranked'!$Q$5:$Q$500,FALSE),)=BT$6,VLOOKUP($BJ65,'LRMC x Plant ranked'!$P$4:$Q$500,2,TRUE),0) -> 0 | BU65: =IF(INDEX('LRMC x Plant ranked'!$M$5:$M$500,MATCH($BK65,'LRMC x Plant ranked'!$Q$5:$Q$500,FALSE),)=BU$6,VLOOKUP($BJ65,'LRMC x Plant ranked'!$P$4:$Q$500,2,TRUE),0) -> 0 | BV65: =IF(INDEX('LRMC x Plant ranked'!$M$5:$M$500,MATCH($BK65,'LRMC x Plant ranked'!$Q$5:$Q$500,FALSE),)=BV$6,VLOOKUP($BJ65,'LRMC x Plant ranked'!$P$4:$Q$500,2,TRUE),0) -> 0 | BW65: =IF(INDEX('LRMC x Plant ranked'!$M$5:$M$500,MATCH($BK65,'LRMC x Plant ranked'!$Q$5:$Q$500,FALSE),)=BW$6,VLOOKUP($BJ65,'LRMC x Plant ranked'!$P$4:$Q$500,2,TRUE),0) -> 0 | BX65: 81.677403 | BY65: 92.67719164 | BZ65: 117.3776135 | CA65: 173.8216805 | CB65: 69.67136421
AI66: =IF(ISERROR(IF(OR(VLOOKUP(AJ66,'GEM new plant'!$A$4:$P$388,COLUMNS('GEM new plant'!A110:C110),FALSE)="HydRR",VLOOKUP(AJ66,'GEM new plant'!$A$4:$P$388,COLUMNS('GEM new plant'!A110:C110),FALSE)="HydPk"),"Hydro",VLOOKUP(AJ66,'GEM new plant'!$A$4:$P$388,COLUMNS('GEM new plant'!A110:C110),FALSE))),0,IF(OR(VLOOKUP(AJ66,'GEM new plant'!$A$4:$P$388,COLUMNS('GEM new plant'!A110:C110),FALSE)="HydRR",VLOOKUP(AJ66,'GEM new plant'!$A$4:$P$388,COLUMNS('GEM new plant'!A110:C110),FALSE)="HydPk"),"Hydro",VLOOKUP(AJ66,'GEM new plant'!$A$4:$P$388,COLUMNS('GEM new plant'!A110:C110),FALSE))) -> DSR | AJ66: DSRhbay1 | AQ66: =IF(AQ65>MAX('LRMC x Plant ranked'!$F$5:$F$500),"",AQ65+IF($D$32="GWh",100,15)) -> 870 | AR66: =VLOOKUP($AQ66,'LRMC x Plant ranked'!$F$4:$G$500,2,TRUE) -> 59.9474989 | AT66: =IF(INDEX('LRMC x Plant ranked'!$C$5:$C$500,MATCH($AR66,'LRMC x Plant ranked'!$G$5:$G$500,FALSE),)=AT$6,VLOOKUP($AQ66,'LRMC x Plant ranked'!$F$4:$G$500,2,TRUE),0) -> 0 | AU66: =IF(INDEX('LRMC x Plant ranked'!$C$5:$C$500,MATCH($AR66,'LRMC x Plant ranked'!$G$5:$G$500,FALSE),)=AU$6,VLOOKUP($AQ66,'LRMC x Plant ranked'!$F$4:$G$500,2,TRUE),0) -> 0 | AV66: =IF(INDEX('LRMC x Plant ranked'!$C$5:$C$500,MATCH($AR66,'LRMC x Plant ranked'!$G$5:$G$500,FALSE),)=AV$6,VLOOKUP($AQ66,'LRMC x Plant ranked'!$F$4:$G$500,2,TRUE),0) -> 0 | AW66: =IF(INDEX('LRMC x Plant ranked'!$C$5:$C$500,MATCH($AR66,'LRMC x Plant ranked'!$G$5:$G$500,FALSE),)=AW$6,VLOOKUP($AQ66,'LRMC x Plant ranked'!$F$4:$G$500,2,TRUE),0) -> 59.9474989 | AX66: =IF(INDEX('LRMC x Plant ranked'!$C$5:$C$500,MATCH($AR66,'LRMC x Plant ranked'!$G$5:$G$500,FALSE),)=AX$6,VLOOKUP($AQ66,'LRMC x Plant ranked'!$F$4:$G$500,2,TRUE),0) -> 0 | AY66: 0 | AZ66: 0 | BA66: 0 | BC66: =IF(INDEX('LRMC x Plant ranked'!$C$5:$C$500,MATCH($AR66,'LRMC x Plant ranked'!$G$5:$G$500,FALSE),)=BC$6,VLOOKUP($AQ66,'LRMC x Plant ranked'!$F$4:$G$500,2,TRUE),0) -> 0 | BD66: =IF(INDEX('LRMC x Plant ranked'!$C$5:$C$500,MATCH($AR66,'LRMC x Plant ranked'!$G$5:$G$500,FALSE),)=BD$6,VLOOKUP($AQ66,'LRMC x Plant ranked'!$F$4:$G$500,2,TRUE),0) -> 0 | BE66: =IF(INDEX('LRMC x Plant ranked'!$C$5:$C$500,MATCH($AR66,'LRMC x Plant ranked'!$G$5:$G$500,FALSE),)=BE$6,VLOOKUP($AQ66,'LRMC x Plant ranked'!$F$4:$G$500,2,TRUE),0) -> 0 | BF66: =IF(INDEX('LRMC x Plant ranked'!$C$5:$C$500,MATCH($AR66,'LRMC x Plant ranked'!$G$5:$G$500,FALSE),)=BF$6,VLOOKUP($AQ66,'LRMC x Plant ranked'!$F$4:$G$500,2,TRUE),0) -> 0 | BG66: =IF(INDEX('LRMC x Plant ranked'!$C$5:$C$500,MATCH($AR66,'LRMC x Plant ranked'!$G$5:$G$500,FALSE),)=BG$6,VLOOKUP($AQ66,'LRMC x Plant ranked'!$F$4:$G$500,2,TRUE),0) -> 0 | BJ66: =IF(BJ65>MAX('LRMC x Plant ranked'!$P$5:$P$500),"",BJ65+IF($D$32="GWh",100,15)) -> 870 | BK66: =VLOOKUP($BJ66,'LRMC x Plant ranked'!$P$4:$Q$500,2,TRUE) -> 59.9474989 | BM66: =IF(INDEX('LRMC x Plant ranked'!$M$5:$M$500,MATCH($BK66,'LRMC x Plant ranked'!$Q$5:$Q$500,FALSE),)=BM$6,VLOOKUP($BJ66,'LRMC x Plant ranked'!$P$4:$Q$500,2,TRUE),0) -> 59.9474989 | BN66: =IF(INDEX('LRMC x Plant ranked'!$M$5:$M$500,MATCH($BK66,'LRMC x Plant ranked'!$Q$5:$Q$500,FALSE),)=BN$6,VLOOKUP($BJ66,'LRMC x Plant ranked'!$P$4:$Q$500,2,TRUE),0) -> 0 | BO66: 0 | BP66: 0 | BQ66: 0 | BS66: =IF(INDEX('LRMC x Plant ranked'!$M$5:$M$500,MATCH($BK66,'LRMC x Plant ranked'!$Q$5:$Q$500,FALSE),)=BS$6,VLOOKUP($BJ66,'LRMC x Plant ranked'!$P$4:$Q$500,2,TRUE),0) -> 0 | BT66: =IF(INDEX('LRMC x Plant ranked'!$M$5:$M$500,MATCH($BK66,'LRMC x Plant ranked'!$Q$5:$Q$500,FALSE),)=BT$6,VLOOKUP($BJ66,'LRMC x Plant ranked'!$P$4:$Q$500,2,TRUE),0) -> 0 | BU66: =IF(INDEX('LRMC x Plant ranked'!$M$5:$M$500,MATCH($BK66,'LRMC x Plant ranked'!$Q$5:$Q$500,FALSE),)=BU$6,VLOOKUP($BJ66,'LRMC x Plant ranked'!$P$4:$Q$500,2,TRUE),0) -> 0 | BV66: =IF(INDEX('LRMC x Plant ranked'!$M$5:$M$500,MATCH($BK66,'LRMC x Plant ranked'!$Q$5:$Q$500,FALSE),)=BV$6,VLOOKUP($BJ66,'LRMC x Plant ranked'!$P$4:$Q$500,2,TRUE),0) -> 0 | BW66: =IF(INDEX('LRMC x Plant ranked'!$M$5:$M$500,MATCH($BK66,'LRMC x Plant ranked'!$Q$5:$Q$500,FALSE),)=BW$6,VLOOKUP($BJ66,'LRMC x Plant ranked'!$P$4:$Q$500,2,TRUE),0) -> 0 | BX66: 81.677403 | BY66: 92.67719164 | BZ66: 117.3776135 | CA66: 173.8216805 | CB66: 69.67136421
AI67: =IF(ISERROR(IF(OR(VLOOKUP(AJ67,'GEM new plant'!$A$4:$P$388,COLUMNS('GEM new plant'!A111:C111),FALSE)="HydRR",VLOOKUP(AJ67,'GEM new plant'!$A$4:$P$388,COLUMNS('GEM new plant'!A111:C111),FALSE)="HydPk"),"Hydro",VLOOKUP(AJ67,'GEM new plant'!$A$4:$P$388,COLUMNS('GEM new plant'!A111:C111),FALSE))),0,IF(OR(VLOOKUP(AJ67,'GEM new plant'!$A$4:$P$388,COLUMNS('GEM new plant'!A111:C111),FALSE)="HydRR",VLOOKUP(AJ67,'GEM new plant'!$A$4:$P$388,COLUMNS('GEM new plant'!A111:C111),FALSE)="HydPk"),"Hydro",VLOOKUP(AJ67,'GEM new plant'!$A$4:$P$388,COLUMNS('GEM new plant'!A111:C111),FALSE))) -> DSR | AJ67: DSRhbay2 | AQ67: =IF(AQ66>MAX('LRMC x Plant ranked'!$F$5:$F$500),"",AQ66+IF($D$32="GWh",100,15)) -> 885 | AR67: =VLOOKUP($AQ67,'LRMC x Plant ranked'!$F$4:$G$500,2,TRUE) -> 59.9474989 | AT67: =IF(INDEX('LRMC x Plant ranked'!$C$5:$C$500,MATCH($AR67,'LRMC x Plant ranked'!$G$5:$G$500,FALSE),)=AT$6,VLOOKUP($AQ67,'LRMC x Plant ranked'!$F$4:$G$500,2,TRUE),0) -> 0 | AU67: =IF(INDEX('LRMC x Plant ranked'!$C$5:$C$500,MATCH($AR67,'LRMC x Plant ranked'!$G$5:$G$500,FALSE),)=AU$6,VLOOKUP($AQ67,'LRMC x Plant ranked'!$F$4:$G$500,2,TRUE),0) -> 0 | AV67: =IF(INDEX('LRMC x Plant ranked'!$C$5:$C$500,MATCH($AR67,'LRMC x Plant ranked'!$G$5:$G$500,FALSE),)=AV$6,VLOOKUP($AQ67,'LRMC x Plant ranked'!$F$4:$G$500,2,TRUE),0) -> 0 | AW67: =IF(INDEX('LRMC x Plant ranked'!$C$5:$C$500,MATCH($AR67,'LRMC x Plant ranked'!$G$5:$G$500,FALSE),)=AW$6,VLOOKUP($AQ67,'LRMC x Plant ranked'!$F$4:$G$500,2,TRUE),0) -> 59.9474989 | AX67: =IF(INDEX('LRMC x Plant ranked'!$C$5:$C$500,MATCH($AR67,'LRMC x Plant ranked'!$G$5:$G$500,FALSE),)=AX$6,VLOOKUP($AQ67,'LRMC x Plant ranked'!$F$4:$G$500,2,TRUE),0) -> 0 | AY67: 0 | AZ67: 0 | BA67: 0 | BC67: =IF(INDEX('LRMC x Plant ranked'!$C$5:$C$500,MATCH($AR67,'LRMC x Plant ranked'!$G$5:$G$500,FALSE),)=BC$6,VLOOKUP($AQ67,'LRMC x Plant ranked'!$F$4:$G$500,2,TRUE),0) -> 0 | BD67: =IF(INDEX('LRMC x Plant ranked'!$C$5:$C$500,MATCH($AR67,'LRMC x Plant ranked'!$G$5:$G$500,FALSE),)=BD$6,VLOOKUP($AQ67,'LRMC x Plant ranked'!$F$4:$G$500,2,TRUE),0) -> 0 | BE67: =IF(INDEX('LRMC x Plant ranked'!$C$5:$C$500,MATCH($AR67,'LRMC x Plant ranked'!$G$5:$G$500,FALSE),)=BE$6,VLOOKUP($AQ67,'LRMC x Plant ranked'!$F$4:$G$500,2,TRUE),0) -> 0 | BF67: =IF(INDEX('LRMC x Plant ranked'!$C$5:$C$500,MATCH($AR67,'LRMC x Plant ranked'!$G$5:$G$500,FALSE),)=BF$6,VLOOKUP($AQ67,'LRMC x Plant ranked'!$F$4:$G$500,2,TRUE),0) -> 0 | BG67: =IF(INDEX('LRMC x Plant ranked'!$C$5:$C$500,MATCH($AR67,'LRMC x Plant ranked'!$G$5:$G$500,FALSE),)=BG$6,VLOOKUP($AQ67,'LRMC x Plant ranked'!$F$4:$G$500,2,TRUE),0) -> 0 | BJ67: =IF(BJ66>MAX('LRMC x Plant ranked'!$P$5:$P$500),"",BJ66+IF($D$32="GWh",100,15)) -> 885 | BK67: =VLOOKUP($BJ67,'LRMC x Plant ranked'!$P$4:$Q$500,2,TRUE) -> 59.9474989 | BM67: =IF(INDEX('LRMC x Plant ranked'!$M$5:$M$500,MATCH($BK67,'LRMC x Plant ranked'!$Q$5:$Q$500,FALSE),)=BM$6,VLOOKUP($BJ67,'LRMC x Plant ranked'!$P$4:$Q$500,2,TRUE),0) -> 59.9474989 | BN67: =IF(INDEX('LRMC x Plant ranked'!$M$5:$M$500,MATCH($BK67,'LRMC x Plant ranked'!$Q$5:$Q$500,FALSE),)=BN$6,VLOOKUP($BJ67,'LRMC x Plant ranked'!$P$4:$Q$500,2,TRUE),0) -> 0 | BO67: 0 | BP67: 0 | BQ67: 0 | BS67: =IF(INDEX('LRMC x Plant ranked'!$M$5:$M$500,MATCH($BK67,'LRMC x Plant ranked'!$Q$5:$Q$500,FALSE),)=BS$6,VLOOKUP($BJ67,'LRMC x Plant ranked'!$P$4:$Q$500,2,TRUE),0) -> 0 | BT67: =IF(INDEX('LRMC x Plant ranked'!$M$5:$M$500,MATCH($BK67,'LRMC x Plant ranked'!$Q$5:$Q$500,FALSE),)=BT$6,VLOOKUP($BJ67,'LRMC x Plant ranked'!$P$4:$Q$500,2,TRUE),0) -> 0 | BU67: =IF(INDEX('LRMC x Plant ranked'!$M$5:$M$500,MATCH($BK67,'LRMC x Plant ranked'!$Q$5:$Q$500,FALSE),)=BU$6,VLOOKUP($BJ67,'LRMC x Plant ranked'!$P$4:$Q$500,2,TRUE),0) -> 0 | BV67: =IF(INDEX('LRMC x Plant ranked'!$M$5:$M$500,MATCH($BK67,'LRMC x Plant ranked'!$Q$5:$Q$500,FALSE),)=BV$6,VLOOKUP($BJ67,'LRMC x Plant ranked'!$P$4:$Q$500,2,TRUE),0) -> 0 | BW67: =IF(INDEX('LRMC x Plant ranked'!$M$5:$M$500,MATCH($BK67,'LRMC x Plant ranked'!$Q$5:$Q$500,FALSE),)=BW$6,VLOOKUP($BJ67,'LRMC x Plant ranked'!$P$4:$Q$500,2,TRUE),0) -> 0 | BX67: 81.677403 | BY67: 92.67719164 | BZ67: 117.3776135 | CA67: 173.8216805 | CB67: 69.67136421
AI68: =IF(ISERROR(IF(OR(VLOOKUP(AJ68,'GEM new plant'!$A$4:$P$388,COLUMNS('GEM new plant'!A196:C196),FALSE)="HydRR",VLOOKUP(AJ68,'GEM new plant'!$A$4:$P$388,COLUMNS('GEM new plant'!A196:C196),FALSE)="HydPk"),"Hydro",VLOOKUP(AJ68,'GEM new plant'!$A$4:$P$388,COLUMNS('GEM new plant'!A196:C196),FALSE))),0,IF(OR(VLOOKUP(AJ68,'GEM new plant'!$A$4:$P$388,COLUMNS('GEM new plant'!A196:C196),FALSE)="HydRR",VLOOKUP(AJ68,'GEM new plant'!$A$4:$P$388,COLUMNS('GEM new plant'!A196:C196),FALSE)="HydPk"),"Hydro",VLOOKUP(AJ68,'GEM new plant'!$A$4:$P$388,COLUMNS('GEM new plant'!A196:C196),FALSE))) -> DSR | AJ68: DSRnmlb1 | AQ68: =IF(AQ67>MAX('LRMC x Plant ranked'!$F$5:$F$500),"",AQ67+IF($D$32="GWh",100,15)) -> 900 | AR68: =VLOOKUP($AQ68,'LRMC x Plant ranked'!$F$4:$G$500,2,TRUE) -> 59.9474989 | AT68: =IF(INDEX('LRMC x Plant ranked'!$C$5:$C$500,MATCH($AR68,'LRMC x Plant ranked'!$G$5:$G$500,FALSE),)=AT$6,VLOOKUP($AQ68,'LRMC x Plant ranked'!$F$4:$G$500,2,TRUE),0) -> 0 | AU68: =IF(INDEX('LRMC x Plant ranked'!$C$5:$C$500,MATCH($AR68,'LRMC x Plant ranked'!$G$5:$G$500,FALSE),)=AU$6,VLOOKUP($AQ68,'LRMC x Plant ranked'!$F$4:$G$500,2,TRUE),0) -> 0 | AV68: =IF(INDEX('LRMC x Plant ranked'!$C$5:$C$500,MATCH($AR68,'LRMC x Plant ranked'!$G$5:$G$500,FALSE),)=AV$6,VLOOKUP($AQ68,'LRMC x Plant ranked'!$F$4:$G$500,2,TRUE),0) -> 0 | AW68: =IF(INDEX('LRMC x Plant ranked'!$C$5:$C$500,MATCH($AR68,'LRMC x Plant ranked'!$G$5:$G$500,FALSE),)=AW$6,VLOOKUP($AQ68,'LRMC x Plant ranked'!$F$4:$G$500,2,TRUE),0) -> 59.9474989 | AX68: =IF(INDEX('LRMC x Plant ranked'!$C$5:$C$500,MATCH($AR68,'LRMC x Plant ranked'!$G$5:$G$500,FALSE),)=AX$6,VLOOKUP($AQ68,'LRMC x Plant ranked'!$F$4:$G$500,2,TRUE),0) -> 0 | AY68: 0 | AZ68: 0 | BA68: 0 | BC68: =IF(INDEX('LRMC x Plant ranked'!$C$5:$C$500,MATCH($AR68,'LRMC x Plant ranked'!$G$5:$G$500,FALSE),)=BC$6,VLOOKUP($AQ68,'LRMC x Plant ranked'!$F$4:$G$500,2,TRUE),0) -> 0 | BD68: =IF(INDEX('LRMC x Plant ranked'!$C$5:$C$500,MATCH($AR68,'LRMC x Plant ranked'!$G$5:$G$500,FALSE),)=BD$6,VLOOKUP($AQ68,'LRMC x Plant ranked'!$F$4:$G$500,2,TRUE),0) -> 0 | BE68: =IF(INDEX('LRMC x Plant ranked'!$C$5:$C$500,MATCH($AR68,'LRMC x Plant ranked'!$G$5:$G$500,FALSE),)=BE$6,VLOOKUP($AQ68,'LRMC x Plant ranked'!$F$4:$G$500,2,TRUE),0) -> 0 | BF68: =IF(INDEX('LRMC x Plant ranked'!$C$5:$C$500,MATCH($AR68,'LRMC x Plant ranked'!$G$5:$G$500,FALSE),)=BF$6,VLOOKUP($AQ68,'LRMC x Plant ranked'!$F$4:$G$500,2,TRUE),0) -> 0 | BG68: =IF(INDEX('LRMC x Plant ranked'!$C$5:$C$500,MATCH($AR68,'LRMC x Plant ranked'!$G$5:$G$500,FALSE),)=BG$6,VLOOKUP($AQ68,'LRMC x Plant ranked'!$F$4:$G$500,2,TRUE),0) -> 0 | BJ68: =IF(BJ67>MAX('LRMC x Plant ranked'!$P$5:$P$500),"",BJ67+IF($D$32="GWh",100,15)) -> 900 | BK68: =VLOOKUP($BJ68,'LRMC x Plant ranked'!$P$4:$Q$500,2,TRUE) -> 59.9474989 | BM68: =IF(INDEX('LRMC x Plant ranked'!$M$5:$M$500,MATCH($BK68,'LRMC x Plant ranked'!$Q$5:$Q$500,FALSE),)=BM$6,VLOOKUP($BJ68,'LRMC x Plant ranked'!$P$4:$Q$500,2,TRUE),0) -> 59.9474989 | BN68: =IF(INDEX('LRMC x Plant ranked'!$M$5:$M$500,MATCH($BK68,'LRMC x Plant ranked'!$Q$5:$Q$500,FALSE),)=BN$6,VLOOKUP($BJ68,'LRMC x Plant ranked'!$P$4:$Q$500,2,TRUE),0) -> 0 | BO68: 0 | BP68: 0 | BQ68: 0 | BS68: =IF(INDEX('LRMC x Plant ranked'!$M$5:$M$500,MATCH($BK68,'LRMC x Plant ranked'!$Q$5:$Q$500,FALSE),)=BS$6,VLOOKUP($BJ68,'LRMC x Plant ranked'!$P$4:$Q$500,2,TRUE),0) -> 0 | BT68: =IF(INDEX('LRMC x Plant ranked'!$M$5:$M$500,MATCH($BK68,'LRMC x Plant ranked'!$Q$5:$Q$500,FALSE),)=BT$6,VLOOKUP($BJ68,'LRMC x Plant ranked'!$P$4:$Q$500,2,TRUE),0) -> 0 | BU68: =IF(INDEX('LRMC x Plant ranked'!$M$5:$M$500,MATCH($BK68,'LRMC x Plant ranked'!$Q$5:$Q$500,FALSE),)=BU$6,VLOOKUP($BJ68,'LRMC x Plant ranked'!$P$4:$Q$500,2,TRUE),0) -> 0 | BV68: =IF(INDEX('LRMC x Plant ranked'!$M$5:$M$500,MATCH($BK68,'LRMC x Plant ranked'!$Q$5:$Q$500,FALSE),)=BV$6,VLOOKUP($BJ68,'LRMC x Plant ranked'!$P$4:$Q$500,2,TRUE),0) -> 0 | BW68: =IF(INDEX('LRMC x Plant ranked'!$M$5:$M$500,MATCH($BK68,'LRMC x Plant ranked'!$Q$5:$Q$500,FALSE),)=BW$6,VLOOKUP($BJ68,'LRMC x Plant ranked'!$P$4:$Q$500,2,TRUE),0) -> 0 | BX68: 81.677403 | BY68: 92.67719164 | BZ68: 117.3776135 | CA68: 173.8216805 | CB68: 69.67136421
AI69: =IF(ISERROR(IF(OR(VLOOKUP(AJ69,'GEM new plant'!$A$4:$P$388,COLUMNS('GEM new plant'!A118:C118),FALSE)="HydRR",VLOOKUP(AJ69,'GEM new plant'!$A$4:$P$388,COLUMNS('GEM new plant'!A118:C118),FALSE)="HydPk"),"Hydro",VLOOKUP(AJ69,'GEM new plant'!$A$4:$P$388,COLUMNS('GEM new plant'!A118:C118),FALSE))),0,IF(OR(VLOOKUP(AJ69,'GEM new plant'!$A$4:$P$388,COLUMNS('GEM new plant'!A118:C118),FALSE)="HydRR",VLOOKUP(AJ69,'GEM new plant'!$A$4:$P$388,COLUMNS('GEM new plant'!A118:C118),FALSE)="HydPk"),"Hydro",VLOOKUP(AJ69,'GEM new plant'!$A$4:$P$388,COLUMNS('GEM new plant'!A118:C118),FALSE))) -> DSR | AJ69: DSRnmlb2 | AQ69: =IF(AQ68>MAX('LRMC x Plant ranked'!$F$5:$F$500),"",AQ68+IF($D$32="GWh",100,15)) -> 915 | AR69: =VLOOKUP($AQ69,'LRMC x Plant ranked'!$F$4:$G$500,2,TRUE) -> 59.9474989 | AT69: =IF(INDEX('LRMC x Plant ranked'!$C$5:$C$500,MATCH($AR69,'LRMC x Plant ranked'!$G$5:$G$500,FALSE),)=AT$6,VLOOKUP($AQ69,'LRMC x Plant ranked'!$F$4:$G$500,2,TRUE),0) -> 0 | AU69: =IF(INDEX('LRMC x Plant ranked'!$C$5:$C$500,MATCH($AR69,'LRMC x Plant ranked'!$G$5:$G$500,FALSE),)=AU$6,VLOOKUP($AQ69,'LRMC x Plant ranked'!$F$4:$G$500,2,TRUE),0) -> 0 | AV69: =IF(INDEX('LRMC x Plant ranked'!$C$5:$C$500,MATCH($AR69,'LRMC x Plant ranked'!$G$5:$G$500,FALSE),)=AV$6,VLOOKUP($AQ69,'LRMC x Plant ranked'!$F$4:$G$500,2,TRUE),0) -> 0 | AW69: =IF(INDEX('LRMC x Plant ranked'!$C$5:$C$500,MATCH($AR69,'LRMC x Plant ranked'!$G$5:$G$500,FALSE),)=AW$6,VLOOKUP($AQ69,'LRMC x Plant ranked'!$F$4:$G$500,2,TRUE),0) -> 59.9474989 | AX69: =IF(INDEX('LRMC x Plant ranked'!$C$5:$C$500,MATCH($AR69,'LRMC x Plant ranked'!$G$5:$G$500,FALSE),)=AX$6,VLOOKUP($AQ69,'LRMC x Plant ranked'!$F$4:$G$500,2,TRUE),0) -> 0 | AY69: 0 | AZ69: 0 | BA69: 0 | BC69: =IF(INDEX('LRMC x Plant ranked'!$C$5:$C$500,MATCH($AR69,'LRMC x Plant ranked'!$G$5:$G$500,FALSE),)=BC$6,VLOOKUP($AQ69,'LRMC x Plant ranked'!$F$4:$G$500,2,TRUE),0) -> 0 | BD69: =IF(INDEX('LRMC x Plant ranked'!$C$5:$C$500,MATCH($AR69,'LRMC x Plant ranked'!$G$5:$G$500,FALSE),)=BD$6,VLOOKUP($AQ69,'LRMC x Plant ranked'!$F$4:$G$500,2,TRUE),0) -> 0 | BE69: =IF(INDEX('LRMC x Plant ranked'!$C$5:$C$500,MATCH($AR69,'LRMC x Plant ranked'!$G$5:$G$500,FALSE),)=BE$6,VLOOKUP($AQ69,'LRMC x Plant ranked'!$F$4:$G$500,2,TRUE),0) -> 0 | BF69: =IF(INDEX('LRMC x Plant ranked'!$C$5:$C$500,MATCH($AR69,'LRMC x Plant ranked'!$G$5:$G$500,FALSE),)=BF$6,VLOOKUP($AQ69,'LRMC x Plant ranked'!$F$4:$G$500,2,TRUE),0) -> 0 | BG69: =IF(INDEX('LRMC x Plant ranked'!$C$5:$C$500,MATCH($AR69,'LRMC x Plant ranked'!$G$5:$G$500,FALSE),)=BG$6,VLOOKUP($AQ69,'LRMC x Plant ranked'!$F$4:$G$500,2,TRUE),0) -> 0 | BJ69: =IF(BJ68>MAX('LRMC x Plant ranked'!$P$5:$P$500),"",BJ68+IF($D$32="GWh",100,15)) -> 915 | BK69: =VLOOKUP($BJ69,'LRMC x Plant ranked'!$P$4:$Q$500,2,TRUE) -> 59.9474989 | BM69: =IF(INDEX('LRMC x Plant ranked'!$M$5:$M$500,MATCH($BK69,'LRMC x Plant ranked'!$Q$5:$Q$500,FALSE),)=BM$6,VLOOKUP($BJ69,'LRMC x Plant ranked'!$P$4:$Q$500,2,TRUE),0) -> 59.9474989 | BN69: =IF(INDEX('LRMC x Plant ranked'!$M$5:$M$500,MATCH($BK69,'LRMC x Plant ranked'!$Q$5:$Q$500,FALSE),)=BN$6,VLOOKUP($BJ69,'LRMC x Plant ranked'!$P$4:$Q$500,2,TRUE),0) -> 0 | BO69: 0 | BP69: 0 | BQ69: 0 | BS69: =IF(INDEX('LRMC x Plant ranked'!$M$5:$M$500,MATCH($BK69,'LRMC x Plant ranked'!$Q$5:$Q$500,FALSE),)=BS$6,VLOOKUP($BJ69,'LRMC x Plant ranked'!$P$4:$Q$500,2,TRUE),0) -> 0 | BT69: =IF(INDEX('LRMC x Plant ranked'!$M$5:$M$500,MATCH($BK69,'LRMC x Plant ranked'!$Q$5:$Q$500,FALSE),)=BT$6,VLOOKUP($BJ69,'LRMC x Plant ranked'!$P$4:$Q$500,2,TRUE),0) -> 0 | BU69: =IF(INDEX('LRMC x Plant ranked'!$M$5:$M$500,MATCH($BK69,'LRMC x Plant ranked'!$Q$5:$Q$500,FALSE),)=BU$6,VLOOKUP($BJ69,'LRMC x Plant ranked'!$P$4:$Q$500,2,TRUE),0) -> 0 | BV69: =IF(INDEX('LRMC x Plant ranked'!$M$5:$M$500,MATCH($BK69,'LRMC x Plant ranked'!$Q$5:$Q$500,FALSE),)=BV$6,VLOOKUP($BJ69,'LRMC x Plant ranked'!$P$4:$Q$500,2,TRUE),0) -> 0 | BW69: =IF(INDEX('LRMC x Plant ranked'!$M$5:$M$500,MATCH($BK69,'LRMC x Plant ranked'!$Q$5:$Q$500,FALSE),)=BW$6,VLOOKUP($BJ69,'LRMC x Plant ranked'!$P$4:$Q$500,2,TRUE),0) -> 0 | BX69: 81.677403 | BY69: 92.67719164 | BZ69: 117.3776135 | CA69: 173.8216805 | CB69: 69.67136421
AI70: =IF(ISERROR(IF(OR(VLOOKUP(AJ70,'GEM new plant'!$A$4:$P$388,COLUMNS('GEM new plant'!A136:C136),FALSE)="HydRR",VLOOKUP(AJ70,'GEM new plant'!$A$4:$P$388,COLUMNS('GEM new plant'!A136:C136),FALSE)="HydPk"),"Hydro",VLOOKUP(AJ70,'GEM new plant'!$A$4:$P$388,COLUMNS('GEM new plant'!A136:C136),FALSE))),0,IF(OR(VLOOKUP(AJ70,'GEM new plant'!$A$4:$P$388,COLUMNS('GEM new plant'!A136:C136),FALSE)="HydRR",VLOOKUP(AJ70,'GEM new plant'!$A$4:$P$388,COLUMNS('GEM new plant'!A136:C136),FALSE)="HydPk"),"Hydro",VLOOKUP(AJ70,'GEM new plant'!$A$4:$P$388,COLUMNS('GEM new plant'!A136:C136),FALSE))) -> DSR | AJ70: DSRnshr1 | AQ70: =IF(AQ69>MAX('LRMC x Plant ranked'!$F$5:$F$500),"",AQ69+IF($D$32="GWh",100,15)) -> 930 | AR70: =VLOOKUP($AQ70,'LRMC x Plant ranked'!$F$4:$G$500,2,TRUE) -> 59.9474989 | AT70: =IF(INDEX('LRMC x Plant ranked'!$C$5:$C$500,MATCH($AR70,'LRMC x Plant ranked'!$G$5:$G$500,FALSE),)=AT$6,VLOOKUP($AQ70,'LRMC x Plant ranked'!$F$4:$G$500,2,TRUE),0) -> 0 | AU70: =IF(INDEX('LRMC x Plant ranked'!$C$5:$C$500,MATCH($AR70,'LRMC x Plant ranked'!$G$5:$G$500,FALSE),)=AU$6,VLOOKUP($AQ70,'LRMC x Plant ranked'!$F$4:$G$500,2,TRUE),0) -> 0 | AV70: =IF(INDEX('LRMC x Plant ranked'!$C$5:$C$500,MATCH($AR70,'LRMC x Plant ranked'!$G$5:$G$500,FALSE),)=AV$6,VLOOKUP($AQ70,'LRMC x Plant ranked'!$F$4:$G$500,2,TRUE),0) -> 0 | AW70: =IF(INDEX('LRMC x Plant ranked'!$C$5:$C$500,MATCH($AR70,'LRMC x Plant ranked'!$G$5:$G$500,FALSE),)=AW$6,VLOOKUP($AQ70,'LRMC x Plant ranked'!$F$4:$G$500,2,TRUE),0) -> 59.9474989 | AX70: =IF(INDEX('LRMC x Plant ranked'!$C$5:$C$500,MATCH($AR70,'LRMC x Plant ranked'!$G$5:$G$500,FALSE),)=AX$6,VLOOKUP($AQ70,'LRMC x Plant ranked'!$F$4:$G$500,2,TRUE),0) -> 0 | AY70: 0 | AZ70: 0 | BA70: 0 | BC70: =IF(INDEX('LRMC x Plant ranked'!$C$5:$C$500,MATCH($AR70,'LRMC x Plant ranked'!$G$5:$G$500,FALSE),)=BC$6,VLOOKUP($AQ70,'LRMC x Plant ranked'!$F$4:$G$500,2,TRUE),0) -> 0 | BD70: =IF(INDEX('LRMC x Plant ranked'!$C$5:$C$500,MATCH($AR70,'LRMC x Plant ranked'!$G$5:$G$500,FALSE),)=BD$6,VLOOKUP($AQ70,'LRMC x Plant ranked'!$F$4:$G$500,2,TRUE),0) -> 0 | BE70: =IF(INDEX('LRMC x Plant ranked'!$C$5:$C$500,MATCH($AR70,'LRMC x Plant ranked'!$G$5:$G$500,FALSE),)=BE$6,VLOOKUP($AQ70,'LRMC x Plant ranked'!$F$4:$G$500,2,TRUE),0) -> 0 | BF70: =IF(INDEX('LRMC x Plant ranked'!$C$5:$C$500,MATCH($AR70,'LRMC x Plant ranked'!$G$5:$G$500,FALSE),)=BF$6,VLOOKUP($AQ70,'LRMC x Plant ranked'!$F$4:$G$500,2,TRUE),0) -> 0 | BG70: =IF(INDEX('LRMC x Plant ranked'!$C$5:$C$500,MATCH($AR70,'LRMC x Plant ranked'!$G$5:$G$500,FALSE),)=BG$6,VLOOKUP($AQ70,'LRMC x Plant ranked'!$F$4:$G$500,2,TRUE),0) -> 0 | BJ70: =IF(BJ69>MAX('LRMC x Plant ranked'!$P$5:$P$500),"",BJ69+IF($D$32="GWh",100,15)) -> 930 | BK70: =VLOOKUP($BJ70,'LRMC x Plant ranked'!$P$4:$Q$500,2,TRUE) -> 59.9474989 | BM70: =IF(INDEX('LRMC x Plant ranked'!$M$5:$M$500,MATCH($BK70,'LRMC x Plant ranked'!$Q$5:$Q$500,FALSE),)=BM$6,VLOOKUP($BJ70,'LRMC x Plant ranked'!$P$4:$Q$500,2,TRUE),0) -> 59.9474989 | BN70: =IF(INDEX('LRMC x Plant ranked'!$M$5:$M$500,MATCH($BK70,'LRMC x Plant ranked'!$Q$5:$Q$500,FALSE),)=BN$6,VLOOKUP($BJ70,'LRMC x Plant ranked'!$P$4:$Q$500,2,TRUE),0) -> 0 | BO70: 0 | BP70: 0 | BQ70: 0 | BS70: =IF(INDEX('LRMC x Plant ranked'!$M$5:$M$500,MATCH($BK70,'LRMC x Plant ranked'!$Q$5:$Q$500,FALSE),)=BS$6,VLOOKUP($BJ70,'LRMC x Plant ranked'!$P$4:$Q$500,2,TRUE),0) -> 0 | BT70: =IF(INDEX('LRMC x Plant ranked'!$M$5:$M$500,MATCH($BK70,'LRMC x Plant ranked'!$Q$5:$Q$500,FALSE),)=BT$6,VLOOKUP($BJ70,'LRMC x Plant ranked'!$P$4:$Q$500,2,TRUE),0) -> 0 | BU70: =IF(INDEX('LRMC x Plant ranked'!$M$5:$M$500,MATCH($BK70,'LRMC x Plant ranked'!$Q$5:$Q$500,FALSE),)=BU$6,VLOOKUP($BJ70,'LRMC x Plant ranked'!$P$4:$Q$500,2,TRUE),0) -> 0 | BV70: =IF(INDEX('LRMC x Plant ranked'!$M$5:$M$500,MATCH($BK70,'LRMC x Plant ranked'!$Q$5:$Q$500,FALSE),)=BV$6,VLOOKUP($BJ70,'LRMC x Plant ranked'!$P$4:$Q$500,2,TRUE),0) -> 0 | BW70: =IF(INDEX('LRMC x Plant ranked'!$M$5:$M$500,MATCH($BK70,'LRMC x Plant ranked'!$Q$5:$Q$500,FALSE),)=BW$6,VLOOKUP($BJ70,'LRMC x Plant ranked'!$P$4:$Q$500,2,TRUE),0) -> 0 | BX70: 81.677403 | BY70: 92.67719164 | BZ70: 117.3776135 | CA70: 173.8216805 | CB70: 69.67136421
AI71: =IF(ISERROR(IF(OR(VLOOKUP(AJ71,'GEM new plant'!$A$4:$P$388,COLUMNS('GEM new plant'!A180:C180),FALSE)="HydRR",VLOOKUP(AJ71,'GEM new plant'!$A$4:$P$388,COLUMNS('GEM new plant'!A180:C180),FALSE)="HydPk"),"Hydro",VLOOKUP(AJ71,'GEM new plant'!$A$4:$P$388,COLUMNS('GEM new plant'!A180:C180),FALSE))),0,IF(OR(VLOOKUP(AJ71,'GEM new plant'!$A$4:$P$388,COLUMNS('GEM new plant'!A180:C180),FALSE)="HydRR",VLOOKUP(AJ71,'GEM new plant'!$A$4:$P$388,COLUMNS('GEM new plant'!A180:C180),FALSE)="HydPk"),"Hydro",VLOOKUP(AJ71,'GEM new plant'!$A$4:$P$388,COLUMNS('GEM new plant'!A180:C180),FALSE))) -> DSR | AJ71: DSRnshr2 | AQ71: =IF(AQ70>MAX('LRMC x Plant ranked'!$F$5:$F$500),"",AQ70+IF($D$32="GWh",100,15)) -> 945 | AR71: =VLOOKUP($AQ71,'LRMC x Plant ranked'!$F$4:$G$500,2,TRUE) -> 59.9474989 | AT71: =IF(INDEX('LRMC x Plant ranked'!$C$5:$C$500,MATCH($AR71,'LRMC x Plant ranked'!$G$5:$G$500,FALSE),)=AT$6,VLOOKUP($AQ71,'LRMC x Plant ranked'!$F$4:$G$500,2,TRUE),0) -> 0 | AU71: =IF(INDEX('LRMC x Plant ranked'!$C$5:$C$500,MATCH($AR71,'LRMC x Plant ranked'!$G$5:$G$500,FALSE),)=AU$6,VLOOKUP($AQ71,'LRMC x Plant ranked'!$F$4:$G$500,2,TRUE),0) -> 0 | AV71: =IF(INDEX('LRMC x Plant ranked'!$C$5:$C$500,MATCH($AR71,'LRMC x Plant ranked'!$G$5:$G$500,FALSE),)=AV$6,VLOOKUP($AQ71,'LRMC x Plant ranked'!$F$4:$G$500,2,TRUE),0) -> 0 | AW71: =IF(INDEX('LRMC x Plant ranked'!$C$5:$C$500,MATCH($AR71,'LRMC x Plant ranked'!$G$5:$G$500,FALSE),)=AW$6,VLOOKUP($AQ71,'LRMC x Plant ranked'!$F$4:$G$500,2,TRUE),0) -> 59.9474989 | AX71: =IF(INDEX('LRMC x Plant ranked'!$C$5:$C$500,MATCH($AR71,'LRMC x Plant ranked'!$G$5:$G$500,FALSE),)=AX$6,VLOOKUP($AQ71,'LRMC x Plant ranked'!$F$4:$G$500,2,TRUE),0) -> 0 | AY71: 0 | AZ71: 0 | BA71: 0 | BC71: =IF(INDEX('LRMC x Plant ranked'!$C$5:$C$500,MATCH($AR71,'LRMC x Plant ranked'!$G$5:$G$500,FALSE),)=BC$6,VLOOKUP($AQ71,'LRMC x Plant ranked'!$F$4:$G$500,2,TRUE),0) -> 0 | BD71: =IF(INDEX('LRMC x Plant ranked'!$C$5:$C$500,MATCH($AR71,'LRMC x Plant ranked'!$G$5:$G$500,FALSE),)=BD$6,VLOOKUP($AQ71,'LRMC x Plant ranked'!$F$4:$G$500,2,TRUE),0) -> 0 | BE71: =IF(INDEX('LRMC x Plant ranked'!$C$5:$C$500,MATCH($AR71,'LRMC x Plant ranked'!$G$5:$G$500,FALSE),)=BE$6,VLOOKUP($AQ71,'LRMC x Plant ranked'!$F$4:$G$500,2,TRUE),0) -> 0 | BF71: =IF(INDEX('LRMC x Plant ranked'!$C$5:$C$500,MATCH($AR71,'LRMC x Plant ranked'!$G$5:$G$500,FALSE),)=BF$6,VLOOKUP($AQ71,'LRMC x Plant ranked'!$F$4:$G$500,2,TRUE),0) -> 0 | BG71: =IF(INDEX('LRMC x Plant ranked'!$C$5:$C$500,MATCH($AR71,'LRMC x Plant ranked'!$G$5:$G$500,FALSE),)=BG$6,VLOOKUP($AQ71,'LRMC x Plant ranked'!$F$4:$G$500,2,TRUE),0) -> 0 | BJ71: =IF(BJ70>MAX('LRMC x Plant ranked'!$P$5:$P$500),"",BJ70+IF($D$32="GWh",100,15)) -> 945 | BK71: =VLOOKUP($BJ71,'LRMC x Plant ranked'!$P$4:$Q$500,2,TRUE) -> 59.9474989 | BM71: =IF(INDEX('LRMC x Plant ranked'!$M$5:$M$500,MATCH($BK71,'LRMC x Plant ranked'!$Q$5:$Q$500,FALSE),)=BM$6,VLOOKUP($BJ71,'LRMC x Plant ranked'!$P$4:$Q$500,2,TRUE),0) -> 59.9474989 | BN71: =IF(INDEX('LRMC x Plant ranked'!$M$5:$M$500,MATCH($BK71,'LRMC x Plant ranked'!$Q$5:$Q$500,FALSE),)=BN$6,VLOOKUP($BJ71,'LRMC x Plant ranked'!$P$4:$Q$500,2,TRUE),0) -> 0 | BO71: 0 | BP71: 0 | BQ71: 0 | BS71: =IF(INDEX('LRMC x Plant ranked'!$M$5:$M$500,MATCH($BK71,'LRMC x Plant ranked'!$Q$5:$Q$500,FALSE),)=BS$6,VLOOKUP($BJ71,'LRMC x Plant ranked'!$P$4:$Q$500,2,TRUE),0) -> 0 | BT71: =IF(INDEX('LRMC x Plant ranked'!$M$5:$M$500,MATCH($BK71,'LRMC x Plant ranked'!$Q$5:$Q$500,FALSE),)=BT$6,VLOOKUP($BJ71,'LRMC x Plant ranked'!$P$4:$Q$500,2,TRUE),0) -> 0 | BU71: =IF(INDEX('LRMC x Plant ranked'!$M$5:$M$500,MATCH($BK71,'LRMC x Plant ranked'!$Q$5:$Q$500,FALSE),)=BU$6,VLOOKUP($BJ71,'LRMC x Plant ranked'!$P$4:$Q$500,2,TRUE),0) -> 0 | BV71: =IF(INDEX('LRMC x Plant ranked'!$M$5:$M$500,MATCH($BK71,'LRMC x Plant ranked'!$Q$5:$Q$500,FALSE),)=BV$6,VLOOKUP($BJ71,'LRMC x Plant ranked'!$P$4:$Q$500,2,TRUE),0) -> 0 | BW71: =IF(INDEX('LRMC x Plant ranked'!$M$5:$M$500,MATCH($BK71,'LRMC x Plant ranked'!$Q$5:$Q$500,FALSE),)=BW$6,VLOOKUP($BJ71,'LRMC x Plant ranked'!$P$4:$Q$500,2,TRUE),0) -> 0 | BX71: 81.677403 | BY71: 92.67719164 | BZ71: 117.3776135 | CA71: 173.8216805 | CB71: 69.67136421
AI72: =IF(ISERROR(IF(OR(VLOOKUP(AJ72,'GEM new plant'!$A$4:$P$388,COLUMNS('GEM new plant'!A93:C93),FALSE)="HydRR",VLOOKUP(AJ72,'GEM new plant'!$A$4:$P$388,COLUMNS('GEM new plant'!A93:C93),FALSE)="HydPk"),"Hydro",VLOOKUP(AJ72,'GEM new plant'!$A$4:$P$388,COLUMNS('GEM new plant'!A93:C93),FALSE))),0,IF(OR(VLOOKUP(AJ72,'GEM new plant'!$A$4:$P$388,COLUMNS('GEM new plant'!A93:C93),FALSE)="HydRR",VLOOKUP(AJ72,'GEM new plant'!$A$4:$P$388,COLUMNS('GEM new plant'!A93:C93),FALSE)="HydPk"),"Hydro",VLOOKUP(AJ72,'GEM new plant'!$A$4:$P$388,COLUMNS('GEM new plant'!A93:C93),FALSE))) -> DSR | AJ72: DSRnthd1 | AQ72: =IF(AQ71>MAX('LRMC x Plant ranked'!$F$5:$F$500),"",AQ71+IF($D$32="GWh",100,15)) -> 960 | AR72: =VLOOKUP($AQ72,'LRMC x Plant ranked'!$F$4:$G$500,2,TRUE) -> 59.9474989 | AT72: =IF(INDEX('LRMC x Plant ranked'!$C$5:$C$500,MATCH($AR72,'LRMC x Plant ranked'!$G$5:$G$500,FALSE),)=AT$6,VLOOKUP($AQ72,'LRMC x Plant ranked'!$F$4:$G$500,2,TRUE),0) -> 0 | AU72: =IF(INDEX('LRMC x Plant ranked'!$C$5:$C$500,MATCH($AR72,'LRMC x Plant ranked'!$G$5:$G$500,FALSE),)=AU$6,VLOOKUP($AQ72,'LRMC x Plant ranked'!$F$4:$G$500,2,TRUE),0) -> 0 | AV72: =IF(INDEX('LRMC x Plant ranked'!$C$5:$C$500,MATCH($AR72,'LRMC x Plant ranked'!$G$5:$G$500,FALSE),)=AV$6,VLOOKUP($AQ72,'LRMC x Plant ranked'!$F$4:$G$500,2,TRUE),0) -> 0 | AW72: =IF(INDEX('LRMC x Plant ranked'!$C$5:$C$500,MATCH($AR72,'LRMC x Plant ranked'!$G$5:$G$500,FALSE),)=AW$6,VLOOKUP($AQ72,'LRMC x Plant ranked'!$F$4:$G$500,2,TRUE),0) -> 59.9474989 | AX72: =IF(INDEX('LRMC x Plant ranked'!$C$5:$C$500,MATCH($AR72,'LRMC x Plant ranked'!$G$5:$G$500,FALSE),)=AX$6,VLOOKUP($AQ72,'LRMC x Plant ranked'!$F$4:$G$500,2,TRUE),0) -> 0 | AY72: 0 | AZ72: 0 | BA72: =IF(AR72="NA","NA",AR72-SUM(AT72:AZ72)) -> 0 | BC72: =IF(INDEX('LRMC x Plant ranked'!$C$5:$C$500,MATCH($AR72,'LRMC x Plant ranked'!$G$5:$G$500,FALSE),)=BC$6,VLOOKUP($AQ72,'LRMC x Plant ranked'!$F$4:$G$500,2,TRUE),0) -> 0 | BD72: =IF(INDEX('LRMC x Plant ranked'!$C$5:$C$500,MATCH($AR72,'LRMC x Plant ranked'!$G$5:$G$500,FALSE),)=BD$6,VLOOKUP($AQ72,'LRMC x Plant ranked'!$F$4:$G$500,2,TRUE),0) -> 0 | BE72: =IF(INDEX('LRMC x Plant ranked'!$C$5:$C$500,MATCH($AR72,'LRMC x Plant ranked'!$G$5:$G$500,FALSE),)=BE$6,VLOOKUP($AQ72,'LRMC x Plant ranked'!$F$4:$G$500,2,TRUE),0) -> 0 | BF72: =IF(INDEX('LRMC x Plant ranked'!$C$5:$C$500,MATCH($AR72,'LRMC x Plant ranked'!$G$5:$G$500,FALSE),)=BF$6,VLOOKUP($AQ72,'LRMC x Plant ranked'!$F$4:$G$500,2,TRUE),0) -> 0 | BG72: =IF(INDEX('LRMC x Plant ranked'!$C$5:$C$500,MATCH($AR72,'LRMC x Plant ranked'!$G$5:$G$500,FALSE),)=BG$6,VLOOKUP($AQ72,'LRMC x Plant ranked'!$F$4:$G$500,2,TRUE),0) -> 0 | BJ72: =IF(BJ71>MAX('LRMC x Plant ranked'!$P$5:$P$500),"",BJ71+IF($D$32="GWh",100,15)) -> 960 | BK72: =VLOOKUP($BJ72,'LRMC x Plant ranked'!$P$4:$Q$500,2,TRUE) -> 59.9474989 | BM72: =IF(INDEX('LRMC x Plant ranked'!$M$5:$M$500,MATCH($BK72,'LRMC x Plant ranked'!$Q$5:$Q$500,FALSE),)=BM$6,VLOOKUP($BJ72,'LRMC x Plant ranked'!$P$4:$Q$500,2,TRUE),0) -> 59.9474989 | BN72: =IF(INDEX('LRMC x Plant ranked'!$M$5:$M$500,MATCH($BK72,'LRMC x Plant ranked'!$Q$5:$Q$500,FALSE),)=BN$6,VLOOKUP($BJ72,'LRMC x Plant ranked'!$P$4:$Q$500,2,TRUE),0) -> 0 | BO72: 0 | BP72: 0 | BQ72: =IF(BK72="NA","NA",BK72-SUM(BM72:BP72)) -> 0 | BS72: =IF(INDEX('LRMC x Plant ranked'!$M$5:$M$500,MATCH($BK72,'LRMC x Plant ranked'!$Q$5:$Q$500,FALSE),)=BS$6,VLOOKUP($BJ72,'LRMC x Plant ranked'!$P$4:$Q$500,2,TRUE),0) -> 0 | BT72: =IF(INDEX('LRMC x Plant ranked'!$M$5:$M$500,MATCH($BK72,'LRMC x Plant ranked'!$Q$5:$Q$500,FALSE),)=BT$6,VLOOKUP($BJ72,'LRMC x Plant ranked'!$P$4:$Q$500,2,TRUE),0) -> 0 | BU72: =IF(INDEX('LRMC x Plant ranked'!$M$5:$M$500,MATCH($BK72,'LRMC x Plant ranked'!$Q$5:$Q$500,FALSE),)=BU$6,VLOOKUP($BJ72,'LRMC x Plant ranked'!$P$4:$Q$500,2,TRUE),0) -> 0 | BV72: =IF(INDEX('LRMC x Plant ranked'!$M$5:$M$500,MATCH($BK72,'LRMC x Plant ranked'!$Q$5:$Q$500,FALSE),)=BV$6,VLOOKUP($BJ72,'LRMC x Plant ranked'!$P$4:$Q$500,2,TRUE),0) -> 0 | BW72: =IF(INDEX('LRMC x Plant ranked'!$M$5:$M$500,MATCH($BK72,'LRMC x Plant ranked'!$Q$5:$Q$500,FALSE),)=BW$6,VLOOKUP($BJ72,'LRMC x Plant ranked'!$P$4:$Q$500,2,TRUE),0) -> 0 | BX72: 81.677403 | BY72: 92.67719164 | BZ72: 117.3776135 | CA72: 173.8216805 | CB72: 69.67136421
AI73: =IF(ISERROR(IF(OR(VLOOKUP(AJ73,'GEM new plant'!$A$4:$P$388,COLUMNS('GEM new plant'!A202:C202),FALSE)="HydRR",VLOOKUP(AJ73,'GEM new plant'!$A$4:$P$388,COLUMNS('GEM new plant'!A202:C202),FALSE)="HydPk"),"Hydro",VLOOKUP(AJ73,'GEM new plant'!$A$4:$P$388,COLUMNS('GEM new plant'!A202:C202),FALSE))),0,IF(OR(VLOOKUP(AJ73,'GEM new plant'!$A$4:$P$388,COLUMNS('GEM new plant'!A202:C202),FALSE)="HydRR",VLOOKUP(AJ73,'GEM new plant'!$A$4:$P$388,COLUMNS('GEM new plant'!A202:C202),FALSE)="HydPk"),"Hydro",VLOOKUP(AJ73,'GEM new plant'!$A$4:$P$388,COLUMNS('GEM new plant'!A202:C202),FALSE))) -> DSR | AJ73: DSRnthd2 | AQ73: =IF(AQ72>MAX('LRMC x Plant ranked'!$F$5:$F$500),"",AQ72+IF($D$32="GWh",100,15)) -> 975 | AR73: =VLOOKUP($AQ73,'LRMC x Plant ranked'!$F$4:$G$500,2,TRUE) -> 59.9474989 | AT73: =IF(INDEX('LRMC x Plant ranked'!$C$5:$C$500,MATCH($AR73,'LRMC x Plant ranked'!$G$5:$G$500,FALSE),)=AT$6,VLOOKUP($AQ73,'LRMC x Plant ranked'!$F$4:$G$500,2,TRUE),0) -> 0 | AU73: =IF(INDEX('LRMC x Plant ranked'!$C$5:$C$500,MATCH($AR73,'LRMC x Plant ranked'!$G$5:$G$500,FALSE),)=AU$6,VLOOKUP($AQ73,'LRMC x Plant ranked'!$F$4:$G$500,2,TRUE),0) -> 0 | AV73: =IF(INDEX('LRMC x Plant ranked'!$C$5:$C$500,MATCH($AR73,'LRMC x Plant ranked'!$G$5:$G$500,FALSE),)=AV$6,VLOOKUP($AQ73,'LRMC x Plant ranked'!$F$4:$G$500,2,TRUE),0) -> 0 | AW73: =IF(INDEX('LRMC x Plant ranked'!$C$5:$C$500,MATCH($AR73,'LRMC x Plant ranked'!$G$5:$G$500,FALSE),)=AW$6,VLOOKUP($AQ73,'LRMC x Plant ranked'!$F$4:$G$500,2,TRUE),0) -> 59.9474989 | AX73: =IF(INDEX('LRMC x Plant ranked'!$C$5:$C$500,MATCH($AR73,'LRMC x Plant ranked'!$G$5:$G$500,FALSE),)=AX$6,VLOOKUP($AQ73,'LRMC x Plant ranked'!$F$4:$G$500,2,TRUE),0) -> 0 | AY73: =BC73+BD73+BE73 -> 0 | AZ73: =BF73+BG73 -> 0 | BA73: 0 | BC73: =IF(INDEX('LRMC x Plant ranked'!$C$5:$C$500,MATCH($AR73,'LRMC x Plant ranked'!$G$5:$G$500,FALSE),)=BC$6,VLOOKUP($AQ73,'LRMC x Plant ranked'!$F$4:$G$500,2,TRUE),0) -> 0 | BD73: =IF(INDEX('LRMC x Plant ranked'!$C$5:$C$500,MATCH($AR73,'LRMC x Plant ranked'!$G$5:$G$500,FALSE),)=BD$6,VLOOKUP($AQ73,'LRMC x Plant ranked'!$F$4:$G$500,2,TRUE),0) -> 0 | BE73: =IF(INDEX('LRMC x Plant ranked'!$C$5:$C$500,MATCH($AR73,'LRMC x Plant ranked'!$G$5:$G$500,FALSE),)=BE$6,VLOOKUP($AQ73,'LRMC x Plant ranked'!$F$4:$G$500,2,TRUE),0) -> 0 | BF73: =IF(INDEX('LRMC x Plant ranked'!$C$5:$C$500,MATCH($AR73,'LRMC x Plant ranked'!$G$5:$G$500,FALSE),)=BF$6,VLOOKUP($AQ73,'LRMC x Plant ranked'!$F$4:$G$500,2,TRUE),0) -> 0 | BG73: =IF(INDEX('LRMC x Plant ranked'!$C$5:$C$500,MATCH($AR73,'LRMC x Plant ranked'!$G$5:$G$500,FALSE),)=BG$6,VLOOKUP($AQ73,'LRMC x Plant ranked'!$F$4:$G$500,2,TRUE),0) -> 0 | BJ73: =IF(BJ72>MAX('LRMC x Plant ranked'!$P$5:$P$500),"",BJ72+IF($D$32="GWh",100,15)) -> 975 | BK73: =VLOOKUP($BJ73,'LRMC x Plant ranked'!$P$4:$Q$500,2,TRUE) -> 59.9474989 | BM73: =IF(INDEX('LRMC x Plant ranked'!$M$5:$M$500,MATCH($BK73,'LRMC x Plant ranked'!$Q$5:$Q$500,FALSE),)=BM$6,VLOOKUP($BJ73,'LRMC x Plant ranked'!$P$4:$Q$500,2,TRUE),0) -> 59.9474989 | BN73: =IF(INDEX('LRMC x Plant ranked'!$M$5:$M$500,MATCH($BK73,'LRMC x Plant ranked'!$Q$5:$Q$500,FALSE),)=BN$6,VLOOKUP($BJ73,'LRMC x Plant ranked'!$P$4:$Q$500,2,TRUE),0) -> 0 | BO73: =BS73+BT73+BU73 -> 0 | BP73: =BV73+BW73 -> 0 | BQ73: 0 | BS73: =IF(INDEX('LRMC x Plant ranked'!$M$5:$M$500,MATCH($BK73,'LRMC x Plant ranked'!$Q$5:$Q$500,FALSE),)=BS$6,VLOOKUP($BJ73,'LRMC x Plant ranked'!$P$4:$Q$500,2,TRUE),0) -> 0 | BT73: =IF(INDEX('LRMC x Plant ranked'!$M$5:$M$500,MATCH($BK73,'LRMC x Plant ranked'!$Q$5:$Q$500,FALSE),)=BT$6,VLOOKUP($BJ73,'LRMC x Plant ranked'!$P$4:$Q$500,2,TRUE),0) -> 0 | BU73: =IF(INDEX('LRMC x Plant ranked'!$M$5:$M$500,MATCH($BK73,'LRMC x Plant ranked'!$Q$5:$Q$500,FALSE),)=BU$6,VLOOKUP($BJ73,'LRMC x Plant ranked'!$P$4:$Q$500,2,TRUE),0) -> 0 | BV73: =IF(INDEX('LRMC x Plant ranked'!$M$5:$M$500,MATCH($BK73,'LRMC x Plant ranked'!$Q$5:$Q$500,FALSE),)=BV$6,VLOOKUP($BJ73,'LRMC x Plant ranked'!$P$4:$Q$500,2,TRUE),0) -> 0 | BW73: =IF(INDEX('LRMC x Plant ranked'!$M$5:$M$500,MATCH($BK73,'LRMC x Plant ranked'!$Q$5:$Q$500,FALSE),)=BW$6,VLOOKUP($BJ73,'LRMC x Plant ranked'!$P$4:$Q$500,2,TRUE),0) -> 0 | BX73: 81.677403 | BY73: 92.67719164 | BZ73: 117.3776135 | CA73: 173.8216805 | CB73: =GETPIVOTDATA("LRMC",$CC$4,"Fuel","Solar") -> 69.67136421
AI74: =IF(ISERROR(IF(OR(VLOOKUP(AJ74,'GEM new plant'!$A$4:$P$388,COLUMNS('GEM new plant'!A195:C195),FALSE)="HydRR",VLOOKUP(AJ74,'GEM new plant'!$A$4:$P$388,COLUMNS('GEM new plant'!A195:C195),FALSE)="HydPk"),"Hydro",VLOOKUP(AJ74,'GEM new plant'!$A$4:$P$388,COLUMNS('GEM new plant'!A195:C195),FALSE))),0,IF(OR(VLOOKUP(AJ74,'GEM new plant'!$A$4:$P$388,COLUMNS('GEM new plant'!A195:C195),FALSE)="HydRR",VLOOKUP(AJ74,'GEM new plant'!$A$4:$P$388,COLUMNS('GEM new plant'!A195:C195),FALSE)="HydPk"),"Hydro",VLOOKUP(AJ74,'GEM new plant'!$A$4:$P$388,COLUMNS('GEM new plant'!A195:C195),FALSE))) -> DSR | AJ74: DSRotag1 | AQ74: =IF(AQ73>MAX('LRMC x Plant ranked'!$F$5:$F$500),"",AQ73+IF($D$32="GWh",100,15)) -> 990 | AR74: =VLOOKUP($AQ74,'LRMC x Plant ranked'!$F$4:$G$500,2,TRUE) -> 59.9474989 | AT74: =IF(INDEX('LRMC x Plant ranked'!$C$5:$C$500,MATCH($AR74,'LRMC x Plant ranked'!$G$5:$G$500,FALSE),)=AT$6,VLOOKUP($AQ74,'LRMC x Plant ranked'!$F$4:$G$500,2,TRUE),0) -> 0 | AU74: =IF(INDEX('LRMC x Plant ranked'!$C$5:$C$500,MATCH($AR74,'LRMC x Plant ranked'!$G$5:$G$500,FALSE),)=AU$6,VLOOKUP($AQ74,'LRMC x Plant ranked'!$F$4:$G$500,2,TRUE),0) -> 0 | AV74: =IF(INDEX('LRMC x Plant ranked'!$C$5:$C$500,MATCH($AR74,'LRMC x Plant ranked'!$G$5:$G$500,FALSE),)=AV$6,VLOOKUP($AQ74,'LRMC x Plant ranked'!$F$4:$G$500,2,TRUE),0) -> 0 | AW74: =IF(INDEX('LRMC x Plant ranked'!$C$5:$C$500,MATCH($AR74,'LRMC x Plant ranked'!$G$5:$G$500,FALSE),)=AW$6,VLOOKUP($AQ74,'LRMC x Plant ranked'!$F$4:$G$500,2,TRUE),0) -> 59.9474989 | AX74: =IF(INDEX('LRMC x Plant ranked'!$C$5:$C$500,MATCH($AR74,'LRMC x Plant ranked'!$G$5:$G$500,FALSE),)=AX$6,VLOOKUP($AQ74,'LRMC x Plant ranked'!$F$4:$G$500,2,TRUE),0) -> 0 | AY74: 0 | AZ74: 0 | BA74: 0 | BC74: =IF(INDEX('LRMC x Plant ranked'!$C$5:$C$500,MATCH($AR74,'LRMC x Plant ranked'!$G$5:$G$500,FALSE),)=BC$6,VLOOKUP($AQ74,'LRMC x Plant ranked'!$F$4:$G$500,2,TRUE),0) -> 0 | BD74: =IF(INDEX('LRMC x Plant ranked'!$C$5:$C$500,MATCH($AR74,'LRMC x Plant ranked'!$G$5:$G$500,FALSE),)=BD$6,VLOOKUP($AQ74,'LRMC x Plant ranked'!$F$4:$G$500,2,TRUE),0) -> 0 | BE74: =IF(INDEX('LRMC x Plant ranked'!$C$5:$C$500,MATCH($AR74,'LRMC x Plant ranked'!$G$5:$G$500,FALSE),)=BE$6,VLOOKUP($AQ74,'LRMC x Plant ranked'!$F$4:$G$500,2,TRUE),0) -> 0 | BF74: =IF(INDEX('LRMC x Plant ranked'!$C$5:$C$500,MATCH($AR74,'LRMC x Plant ranked'!$G$5:$G$500,FALSE),)=BF$6,VLOOKUP($AQ74,'LRMC x Plant ranked'!$F$4:$G$500,2,TRUE),0) -> 0 | BG74: =IF(INDEX('LRMC x Plant ranked'!$C$5:$C$500,MATCH($AR74,'LRMC x Plant ranked'!$G$5:$G$500,FALSE),)=BG$6,VLOOKUP($AQ74,'LRMC x Plant ranked'!$F$4:$G$500,2,TRUE),0) -> 0 | BJ74: =IF(BJ73>MAX('LRMC x Plant ranked'!$P$5:$P$500),"",BJ73+IF($D$32="GWh",100,15)) -> 990 | BK74: =VLOOKUP($BJ74,'LRMC x Plant ranked'!$P$4:$Q$500,2,TRUE) -> 59.9474989 | BM74: =IF(INDEX('LRMC x Plant ranked'!$M$5:$M$500,MATCH($BK74,'LRMC x Plant ranked'!$Q$5:$Q$500,FALSE),)=BM$6,VLOOKUP($BJ74,'LRMC x Plant ranked'!$P$4:$Q$500,2,TRUE),0) -> 59.9474989 | BN74: =IF(INDEX('LRMC x Plant ranked'!$M$5:$M$500,MATCH($BK74,'LRMC x Plant ranked'!$Q$5:$Q$500,FALSE),)=BN$6,VLOOKUP($BJ74,'LRMC x Plant ranked'!$P$4:$Q$500,2,TRUE),0) -> 0 | BO74: 0 | BP74: 0 | BQ74: 0 | BS74: =IF(INDEX('LRMC x Plant ranked'!$M$5:$M$500,MATCH($BK74,'LRMC x Plant ranked'!$Q$5:$Q$500,FALSE),)=BS$6,VLOOKUP($BJ74,'LRMC x Plant ranked'!$P$4:$Q$500,2,TRUE),0) -> 0 | BT74: =IF(INDEX('LRMC x Plant ranked'!$M$5:$M$500,MATCH($BK74,'LRMC x Plant ranked'!$Q$5:$Q$500,FALSE),)=BT$6,VLOOKUP($BJ74,'LRMC x Plant ranked'!$P$4:$Q$500,2,TRUE),0) -> 0 | BU74: =IF(INDEX('LRMC x Plant ranked'!$M$5:$M$500,MATCH($BK74,'LRMC x Plant ranked'!$Q$5:$Q$500,FALSE),)=BU$6,VLOOKUP($BJ74,'LRMC x Plant ranked'!$P$4:$Q$500,2,TRUE),0) -> 0 | BV74: =IF(INDEX('LRMC x Plant ranked'!$M$5:$M$500,MATCH($BK74,'LRMC x Plant ranked'!$Q$5:$Q$500,FALSE),)=BV$6,VLOOKUP($BJ74,'LRMC x Plant ranked'!$P$4:$Q$500,2,TRUE),0) -> 0 | BW74: =IF(INDEX('LRMC x Plant ranked'!$M$5:$M$500,MATCH($BK74,'LRMC x Plant ranked'!$Q$5:$Q$500,FALSE),)=BW$6,VLOOKUP($BJ74,'LRMC x Plant ranked'!$P$4:$Q$500,2,TRUE),0) -> 0 | BX74: =BX73 -> 81.677403 | BY74: =BY73 -> 92.67719164 | BZ74: =BZ73 -> 117.3776135 | CA74: 173.8216805 | CB74: 69.67136421
AI75: =IF(ISERROR(IF(OR(VLOOKUP(AJ75,'GEM new plant'!$A$4:$P$388,COLUMNS('GEM new plant'!A212:C212),FALSE)="HydRR",VLOOKUP(AJ75,'GEM new plant'!$A$4:$P$388,COLUMNS('GEM new plant'!A212:C212),FALSE)="HydPk"),"Hydro",VLOOKUP(AJ75,'GEM new plant'!$A$4:$P$388,COLUMNS('GEM new plant'!A212:C212),FALSE))),0,IF(OR(VLOOKUP(AJ75,'GEM new plant'!$A$4:$P$388,COLUMNS('GEM new plant'!A212:C212),FALSE)="HydRR",VLOOKUP(AJ75,'GEM new plant'!$A$4:$P$388,COLUMNS('GEM new plant'!A212:C212),FALSE)="HydPk"),"Hydro",VLOOKUP(AJ75,'GEM new plant'!$A$4:$P$388,COLUMNS('GEM new plant'!A212:C212),FALSE))) -> DSR | AJ75: DSRotag2 | AQ75: =IF(AQ74>MAX('LRMC x Plant ranked'!$F$5:$F$500),"",AQ74+IF($D$32="GWh",100,15)) -> 1005 | AR75: =VLOOKUP($AQ75,'LRMC x Plant ranked'!$F$4:$G$500,2,TRUE) -> 59.9474989 | AT75: =IF(INDEX('LRMC x Plant ranked'!$C$5:$C$500,MATCH($AR75,'LRMC x Plant ranked'!$G$5:$G$500,FALSE),)=AT$6,VLOOKUP($AQ75,'LRMC x Plant ranked'!$F$4:$G$500,2,TRUE),0) -> 0 | AU75: =IF(INDEX('LRMC x Plant ranked'!$C$5:$C$500,MATCH($AR75,'LRMC x Plant ranked'!$G$5:$G$500,FALSE),)=AU$6,VLOOKUP($AQ75,'LRMC x Plant ranked'!$F$4:$G$500,2,TRUE),0) -> 0 | AV75: =IF(INDEX('LRMC x Plant ranked'!$C$5:$C$500,MATCH($AR75,'LRMC x Plant ranked'!$G$5:$G$500,FALSE),)=AV$6,VLOOKUP($AQ75,'LRMC x Plant ranked'!$F$4:$G$500,2,TRUE),0) -> 0 | AW75: =IF(INDEX('LRMC x Plant ranked'!$C$5:$C$500,MATCH($AR75,'LRMC x Plant ranked'!$G$5:$G$500,FALSE),)=AW$6,VLOOKUP($AQ75,'LRMC x Plant ranked'!$F$4:$G$500,2,TRUE),0) -> 59.9474989 | AX75: =IF(INDEX('LRMC x Plant ranked'!$C$5:$C$500,MATCH($AR75,'LRMC x Plant ranked'!$G$5:$G$500,FALSE),)=AX$6,VLOOKUP($AQ75,'LRMC x Plant ranked'!$F$4:$G$500,2,TRUE),0) -> 0 | AY75: 0 | AZ75: 0 | BA75: 0 | BC75: =IF(INDEX('LRMC x Plant ranked'!$C$5:$C$500,MATCH($AR75,'LRMC x Plant ranked'!$G$5:$G$500,FALSE),)=BC$6,VLOOKUP($AQ75,'LRMC x Plant ranked'!$F$4:$G$500,2,TRUE),0) -> 0 | BD75: =IF(INDEX('LRMC x Plant ranked'!$C$5:$C$500,MATCH($AR75,'LRMC x Plant ranked'!$G$5:$G$500,FALSE),)=BD$6,VLOOKUP($AQ75,'LRMC x Plant ranked'!$F$4:$G$500,2,TRUE),0) -> 0 | BE75: =IF(INDEX('LRMC x Plant ranked'!$C$5:$C$500,MATCH($AR75,'LRMC x Plant ranked'!$G$5:$G$500,FALSE),)=BE$6,VLOOKUP($AQ75,'LRMC x Plant ranked'!$F$4:$G$500,2,TRUE),0) -> 0 | BF75: =IF(INDEX('LRMC x Plant ranked'!$C$5:$C$500,MATCH($AR75,'LRMC x Plant ranked'!$G$5:$G$500,FALSE),)=BF$6,VLOOKUP($AQ75,'LRMC x Plant ranked'!$F$4:$G$500,2,TRUE),0) -> 0 | BG75: =IF(INDEX('LRMC x Plant ranked'!$C$5:$C$500,MATCH($AR75,'LRMC x Plant ranked'!$G$5:$G$500,FALSE),)=BG$6,VLOOKUP($AQ75,'LRMC x Plant ranked'!$F$4:$G$500,2,TRUE),0) -> 0 | BJ75: =IF(BJ74>MAX('LRMC x Plant ranked'!$P$5:$P$500),"",BJ74+IF($D$32="GWh",100,15)) -> 1005 | BK75: =VLOOKUP($BJ75,'LRMC x Plant ranked'!$P$4:$Q$500,2,TRUE) -> 59.9474989 | BM75: =IF(INDEX('LRMC x Plant ranked'!$M$5:$M$500,MATCH($BK75,'LRMC x Plant ranked'!$Q$5:$Q$500,FALSE),)=BM$6,VLOOKUP($BJ75,'LRMC x Plant ranked'!$P$4:$Q$500,2,TRUE),0) -> 59.9474989 | BN75: =IF(INDEX('LRMC x Plant ranked'!$M$5:$M$500,MATCH($BK75,'LRMC x Plant ranked'!$Q$5:$Q$500,FALSE),)=BN$6,VLOOKUP($BJ75,'LRMC x Plant ranked'!$P$4:$Q$500,2,TRUE),0) -> 0 | BO75: 0 | BP75: 0 | BQ75: 0 | BS75: =IF(INDEX('LRMC x Plant ranked'!$M$5:$M$500,MATCH($BK75,'LRMC x Plant ranked'!$Q$5:$Q$500,FALSE),)=BS$6,VLOOKUP($BJ75,'LRMC x Plant ranked'!$P$4:$Q$500,2,TRUE),0) -> 0 | BT75: =IF(INDEX('LRMC x Plant ranked'!$M$5:$M$500,MATCH($BK75,'LRMC x Plant ranked'!$Q$5:$Q$500,FALSE),)=BT$6,VLOOKUP($BJ75,'LRMC x Plant ranked'!$P$4:$Q$500,2,TRUE),0) -> 0 | BU75: =IF(INDEX('LRMC x Plant ranked'!$M$5:$M$500,MATCH($BK75,'LRMC x Plant ranked'!$Q$5:$Q$500,FALSE),)=BU$6,VLOOKUP($BJ75,'LRMC x Plant ranked'!$P$4:$Q$500,2,TRUE),0) -> 0 | BV75: =IF(INDEX('LRMC x Plant ranked'!$M$5:$M$500,MATCH($BK75,'LRMC x Plant ranked'!$Q$5:$Q$500,FALSE),)=BV$6,VLOOKUP($BJ75,'LRMC x Plant ranked'!$P$4:$Q$500,2,TRUE),0) -> 0 | BW75: =IF(INDEX('LRMC x Plant ranked'!$M$5:$M$500,MATCH($BK75,'LRMC x Plant ranked'!$Q$5:$Q$500,FALSE),)=BW$6,VLOOKUP($BJ75,'LRMC x Plant ranked'!$P$4:$Q$500,2,TRUE),0) -> 0 | BX75: 81.677403 | BY75: 92.67719164 | BZ75: 117.3776135 | CA75: 173.8216805 | CB75: 69.67136421
AI76: =IF(ISERROR(IF(OR(VLOOKUP(AJ76,'GEM new plant'!$A$4:$P$388,COLUMNS('GEM new plant'!A186:C186),FALSE)="HydRR",VLOOKUP(AJ76,'GEM new plant'!$A$4:$P$388,COLUMNS('GEM new plant'!A186:C186),FALSE)="HydPk"),"Hydro",VLOOKUP(AJ76,'GEM new plant'!$A$4:$P$388,COLUMNS('GEM new plant'!A186:C186),FALSE))),0,IF(OR(VLOOKUP(AJ76,'GEM new plant'!$A$4:$P$388,COLUMNS('GEM new plant'!A186:C186),FALSE)="HydRR",VLOOKUP(AJ76,'GEM new plant'!$A$4:$P$388,COLUMNS('GEM new plant'!A186:C186),FALSE)="HydPk"),"Hydro",VLOOKUP(AJ76,'GEM new plant'!$A$4:$P$388,COLUMNS('GEM new plant'!A186:C186),FALSE))) -> DSR | AJ76: DSRslnd1 | AQ76: =IF(AQ75>MAX('LRMC x Plant ranked'!$F$5:$F$500),"",AQ75+IF($D$32="GWh",100,15)) -> 1020 | AR76: =VLOOKUP($AQ76,'LRMC x Plant ranked'!$F$4:$G$500,2,TRUE) -> 59.9474989 | AT76: =IF(INDEX('LRMC x Plant ranked'!$C$5:$C$500,MATCH($AR76,'LRMC x Plant ranked'!$G$5:$G$500,FALSE),)=AT$6,VLOOKUP($AQ76,'LRMC x Plant ranked'!$F$4:$G$500,2,TRUE),0) -> 0 | AU76: =IF(INDEX('LRMC x Plant ranked'!$C$5:$C$500,MATCH($AR76,'LRMC x Plant ranked'!$G$5:$G$500,FALSE),)=AU$6,VLOOKUP($AQ76,'LRMC x Plant ranked'!$F$4:$G$500,2,TRUE),0) -> 0 | AV76: =IF(INDEX('LRMC x Plant ranked'!$C$5:$C$500,MATCH($AR76,'LRMC x Plant ranked'!$G$5:$G$500,FALSE),)=AV$6,VLOOKUP($AQ76,'LRMC x Plant ranked'!$F$4:$G$500,2,TRUE),0) -> 0 | AW76: =IF(INDEX('LRMC x Plant ranked'!$C$5:$C$500,MATCH($AR76,'LRMC x Plant ranked'!$G$5:$G$500,FALSE),)=AW$6,VLOOKUP($AQ76,'LRMC x Plant ranked'!$F$4:$G$500,2,TRUE),0) -> 59.9474989 | AX76: =IF(INDEX('LRMC x Plant ranked'!$C$5:$C$500,MATCH($AR76,'LRMC x Plant ranked'!$G$5:$G$500,FALSE),)=AX$6,VLOOKUP($AQ76,'LRMC x Plant ranked'!$F$4:$G$500,2,TRUE),0) -> 0 | AY76: 0 | AZ76: 0 | BA76: 0 | BC76: =IF(INDEX('LRMC x Plant ranked'!$C$5:$C$500,MATCH($AR76,'LRMC x Plant ranked'!$G$5:$G$500,FALSE),)=BC$6,VLOOKUP($AQ76,'LRMC x Plant ranked'!$F$4:$G$500,2,TRUE),0) -> 0 | BD76: =IF(INDEX('LRMC x Plant ranked'!$C$5:$C$500,MATCH($AR76,'LRMC x Plant ranked'!$G$5:$G$500,FALSE),)=BD$6,VLOOKUP($AQ76,'LRMC x Plant ranked'!$F$4:$G$500,2,TRUE),0) -> 0 | BE76: =IF(INDEX('LRMC x Plant ranked'!$C$5:$C$500,MATCH($AR76,'LRMC x Plant ranked'!$G$5:$G$500,FALSE),)=BE$6,VLOOKUP($AQ76,'LRMC x Plant ranked'!$F$4:$G$500,2,TRUE),0) -> 0 | BF76: =IF(INDEX('LRMC x Plant ranked'!$C$5:$C$500,MATCH($AR76,'LRMC x Plant ranked'!$G$5:$G$500,FALSE),)=BF$6,VLOOKUP($AQ76,'LRMC x Plant ranked'!$F$4:$G$500,2,TRUE),0) -> 0 | BG76: =IF(INDEX('LRMC x Plant ranked'!$C$5:$C$500,MATCH($AR76,'LRMC x Plant ranked'!$G$5:$G$500,FALSE),)=BG$6,VLOOKUP($AQ76,'LRMC x Plant ranked'!$F$4:$G$500,2,TRUE),0) -> 0 | BJ76: =IF(BJ75>MAX('LRMC x Plant ranked'!$P$5:$P$500),"",BJ75+IF($D$32="GWh",100,15)) -> 1020 | BK76: =VLOOKUP($BJ76,'LRMC x Plant ranked'!$P$4:$Q$500,2,TRUE) -> 59.9474989 | BM76: =IF(INDEX('LRMC x Plant ranked'!$M$5:$M$500,MATCH($BK76,'LRMC x Plant ranked'!$Q$5:$Q$500,FALSE),)=BM$6,VLOOKUP($BJ76,'LRMC x Plant ranked'!$P$4:$Q$500,2,TRUE),0) -> 59.9474989 | BN76: =IF(INDEX('LRMC x Plant ranked'!$M$5:$M$500,MATCH($BK76,'LRMC x Plant ranked'!$Q$5:$Q$500,FALSE),)=BN$6,VLOOKUP($BJ76,'LRMC x Plant ranked'!$P$4:$Q$500,2,TRUE),0) -> 0 | BO76: 0 | BP76: 0 | BQ76: 0 | BS76: =IF(INDEX('LRMC x Plant ranked'!$M$5:$M$500,MATCH($BK76,'LRMC x Plant ranked'!$Q$5:$Q$500,FALSE),)=BS$6,VLOOKUP($BJ76,'LRMC x Plant ranked'!$P$4:$Q$500,2,TRUE),0) -> 0 | BT76: =IF(INDEX('LRMC x Plant ranked'!$M$5:$M$500,MATCH($BK76,'LRMC x Plant ranked'!$Q$5:$Q$500,FALSE),)=BT$6,VLOOKUP($BJ76,'LRMC x Plant ranked'!$P$4:$Q$500,2,TRUE),0) -> 0 | BU76: =IF(INDEX('LRMC x Plant ranked'!$M$5:$M$500,MATCH($BK76,'LRMC x Plant ranked'!$Q$5:$Q$500,FALSE),)=BU$6,VLOOKUP($BJ76,'LRMC x Plant ranked'!$P$4:$Q$500,2,TRUE),0) -> 0 | BV76: =IF(INDEX('LRMC x Plant ranked'!$M$5:$M$500,MATCH($BK76,'LRMC x Plant ranked'!$Q$5:$Q$500,FALSE),)=BV$6,VLOOKUP($BJ76,'LRMC x Plant ranked'!$P$4:$Q$500,2,TRUE),0) -> 0 | BW76: =IF(INDEX('LRMC x Plant ranked'!$M$5:$M$500,MATCH($BK76,'LRMC x Plant ranked'!$Q$5:$Q$500,FALSE),)=BW$6,VLOOKUP($BJ76,'LRMC x Plant ranked'!$P$4:$Q$500,2,TRUE),0) -> 0 | BX76: 81.677403 | BY76: 92.67719164 | BZ76: 117.3776135 | CA76: 173.8216805 | CB76: 69.67136421
AI77: =IF(ISERROR(IF(OR(VLOOKUP(AJ77,'GEM new plant'!$A$4:$P$388,COLUMNS('GEM new plant'!A160:C160),FALSE)="HydRR",VLOOKUP(AJ77,'GEM new plant'!$A$4:$P$388,COLUMNS('GEM new plant'!A160:C160),FALSE)="HydPk"),"Hydro",VLOOKUP(AJ77,'GEM new plant'!$A$4:$P$388,COLUMNS('GEM new plant'!A160:C160),FALSE))),0,IF(OR(VLOOKUP(AJ77,'GEM new plant'!$A$4:$P$388,COLUMNS('GEM new plant'!A160:C160),FALSE)="HydRR",VLOOKUP(AJ77,'GEM new plant'!$A$4:$P$388,COLUMNS('GEM new plant'!A160:C160),FALSE)="HydPk"),"Hydro",VLOOKUP(AJ77,'GEM new plant'!$A$4:$P$388,COLUMNS('GEM new plant'!A160:C160),FALSE))) -> DSR | AJ77: DSRslnd2 | AQ77: =IF(AQ76>MAX('LRMC x Plant ranked'!$F$5:$F$500),"",AQ76+IF($D$32="GWh",100,15)) -> 1035 | AR77: =VLOOKUP($AQ77,'LRMC x Plant ranked'!$F$4:$G$500,2,TRUE) -> 59.9474989 | AT77: =IF(INDEX('LRMC x Plant ranked'!$C$5:$C$500,MATCH($AR77,'LRMC x Plant ranked'!$G$5:$G$500,FALSE),)=AT$6,VLOOKUP($AQ77,'LRMC x Plant ranked'!$F$4:$G$500,2,TRUE),0) -> 0 | AU77: =IF(INDEX('LRMC x Plant ranked'!$C$5:$C$500,MATCH($AR77,'LRMC x Plant ranked'!$G$5:$G$500,FALSE),)=AU$6,VLOOKUP($AQ77,'LRMC x Plant ranked'!$F$4:$G$500,2,TRUE),0) -> 0 | AV77: =IF(INDEX('LRMC x Plant ranked'!$C$5:$C$500,MATCH($AR77,'LRMC x Plant ranked'!$G$5:$G$500,FALSE),)=AV$6,VLOOKUP($AQ77,'LRMC x Plant ranked'!$F$4:$G$500,2,TRUE),0) -> 0 | AW77: =IF(INDEX('LRMC x Plant ranked'!$C$5:$C$500,MATCH($AR77,'LRMC x Plant ranked'!$G$5:$G$500,FALSE),)=AW$6,VLOOKUP($AQ77,'LRMC x Plant ranked'!$F$4:$G$500,2,TRUE),0) -> 59.9474989 | AX77: =IF(INDEX('LRMC x Plant ranked'!$C$5:$C$500,MATCH($AR77,'LRMC x Plant ranked'!$G$5:$G$500,FALSE),)=AX$6,VLOOKUP($AQ77,'LRMC x Plant ranked'!$F$4:$G$500,2,TRUE),0) -> 0 | AY77: 0 | AZ77: 0 | BA77: 0 | BC77: =IF(INDEX('LRMC x Plant ranked'!$C$5:$C$500,MATCH($AR77,'LRMC x Plant ranked'!$G$5:$G$500,FALSE),)=BC$6,VLOOKUP($AQ77,'LRMC x Plant ranked'!$F$4:$G$500,2,TRUE),0) -> 0 | BD77: =IF(INDEX('LRMC x Plant ranked'!$C$5:$C$500,MATCH($AR77,'LRMC x Plant ranked'!$G$5:$G$500,FALSE),)=BD$6,VLOOKUP($AQ77,'LRMC x Plant ranked'!$F$4:$G$500,2,TRUE),0) -> 0 | BE77: =IF(INDEX('LRMC x Plant ranked'!$C$5:$C$500,MATCH($AR77,'LRMC x Plant ranked'!$G$5:$G$500,FALSE),)=BE$6,VLOOKUP($AQ77,'LRMC x Plant ranked'!$F$4:$G$500,2,TRUE),0) -> 0 | BF77: =IF(INDEX('LRMC x Plant ranked'!$C$5:$C$500,MATCH($AR77,'LRMC x Plant ranked'!$G$5:$G$500,FALSE),)=BF$6,VLOOKUP($AQ77,'LRMC x Plant ranked'!$F$4:$G$500,2,TRUE),0) -> 0 | BG77: =IF(INDEX('LRMC x Plant ranked'!$C$5:$C$500,MATCH($AR77,'LRMC x Plant ranked'!$G$5:$G$500,FALSE),)=BG$6,VLOOKUP($AQ77,'LRMC x Plant ranked'!$F$4:$G$500,2,TRUE),0) -> 0 | BJ77: =IF(BJ76>MAX('LRMC x Plant ranked'!$P$5:$P$500),"",BJ76+IF($D$32="GWh",100,15)) -> 1035 | BK77: =VLOOKUP($BJ77,'LRMC x Plant ranked'!$P$4:$Q$500,2,TRUE) -> 59.9474989 | BM77: =IF(INDEX('LRMC x Plant ranked'!$M$5:$M$500,MATCH($BK77,'LRMC x Plant ranked'!$Q$5:$Q$500,FALSE),)=BM$6,VLOOKUP($BJ77,'LRMC x Plant ranked'!$P$4:$Q$500,2,TRUE),0) -> 59.9474989 | BN77: =IF(INDEX('LRMC x Plant ranked'!$M$5:$M$500,MATCH($BK77,'LRMC x Plant ranked'!$Q$5:$Q$500,FALSE),)=BN$6,VLOOKUP($BJ77,'LRMC x Plant ranked'!$P$4:$Q$500,2,TRUE),0) -> 0 | BO77: 0 | BP77: 0 | BQ77: 0 | BS77: =IF(INDEX('LRMC x Plant ranked'!$M$5:$M$500,MATCH($BK77,'LRMC x Plant ranked'!$Q$5:$Q$500,FALSE),)=BS$6,VLOOKUP($BJ77,'LRMC x Plant ranked'!$P$4:$Q$500,2,TRUE),0) -> 0 | BT77: =IF(INDEX('LRMC x Plant ranked'!$M$5:$M$500,MATCH($BK77,'LRMC x Plant ranked'!$Q$5:$Q$500,FALSE),)=BT$6,VLOOKUP($BJ77,'LRMC x Plant ranked'!$P$4:$Q$500,2,TRUE),0) -> 0 | BU77: =IF(INDEX('LRMC x Plant ranked'!$M$5:$M$500,MATCH($BK77,'LRMC x Plant ranked'!$Q$5:$Q$500,FALSE),)=BU$6,VLOOKUP($BJ77,'LRMC x Plant ranked'!$P$4:$Q$500,2,TRUE),0) -> 0 | BV77: =IF(INDEX('LRMC x Plant ranked'!$M$5:$M$500,MATCH($BK77,'LRMC x Plant ranked'!$Q$5:$Q$500,FALSE),)=BV$6,VLOOKUP($BJ77,'LRMC x Plant ranked'!$P$4:$Q$500,2,TRUE),0) -> 0 | BW77: =IF(INDEX('LRMC x Plant ranked'!$M$5:$M$500,MATCH($BK77,'LRMC x Plant ranked'!$Q$5:$Q$500,FALSE),)=BW$6,VLOOKUP($BJ77,'LRMC x Plant ranked'!$P$4:$Q$500,2,TRUE),0) -> 0 | BX77: 81.677403 | BY77: 92.67719164 | BZ77: 117.3776135 | CA77: 173.8216805 | CB77: 69.67136421
AI78: =IF(ISERROR(IF(OR(VLOOKUP(AJ78,'GEM new plant'!$A$4:$P$388,COLUMNS('GEM new plant'!A197:C197),FALSE)="HydRR",VLOOKUP(AJ78,'GEM new plant'!$A$4:$P$388,COLUMNS('GEM new plant'!A197:C197),FALSE)="HydPk"),"Hydro",VLOOKUP(AJ78,'GEM new plant'!$A$4:$P$388,COLUMNS('GEM new plant'!A197:C197),FALSE))),0,IF(OR(VLOOKUP(AJ78,'GEM new plant'!$A$4:$P$388,COLUMNS('GEM new plant'!A197:C197),FALSE)="HydRR",VLOOKUP(AJ78,'GEM new plant'!$A$4:$P$388,COLUMNS('GEM new plant'!A197:C197),FALSE)="HydPk"),"Hydro",VLOOKUP(AJ78,'GEM new plant'!$A$4:$P$388,COLUMNS('GEM new plant'!A197:C197),FALSE))) -> DSR | AJ78: DSRtari1 | AQ78: =IF(AQ77>MAX('LRMC x Plant ranked'!$F$5:$F$500),"",AQ77+IF($D$32="GWh",100,15)) -> 1050 | AR78: =VLOOKUP($AQ78,'LRMC x Plant ranked'!$F$4:$G$500,2,TRUE) -> 59.9474989 | AT78: =IF(INDEX('LRMC x Plant ranked'!$C$5:$C$500,MATCH($AR78,'LRMC x Plant ranked'!$G$5:$G$500,FALSE),)=AT$6,VLOOKUP($AQ78,'LRMC x Plant ranked'!$F$4:$G$500,2,TRUE),0) -> 0 | AU78: =IF(INDEX('LRMC x Plant ranked'!$C$5:$C$500,MATCH($AR78,'LRMC x Plant ranked'!$G$5:$G$500,FALSE),)=AU$6,VLOOKUP($AQ78,'LRMC x Plant ranked'!$F$4:$G$500,2,TRUE),0) -> 0 | AV78: =IF(INDEX('LRMC x Plant ranked'!$C$5:$C$500,MATCH($AR78,'LRMC x Plant ranked'!$G$5:$G$500,FALSE),)=AV$6,VLOOKUP($AQ78,'LRMC x Plant ranked'!$F$4:$G$500,2,TRUE),0) -> 0 | AW78: =IF(INDEX('LRMC x Plant ranked'!$C$5:$C$500,MATCH($AR78,'LRMC x Plant ranked'!$G$5:$G$500,FALSE),)=AW$6,VLOOKUP($AQ78,'LRMC x Plant ranked'!$F$4:$G$500,2,TRUE),0) -> 59.9474989 | AX78: =IF(INDEX('LRMC x Plant ranked'!$C$5:$C$500,MATCH($AR78,'LRMC x Plant ranked'!$G$5:$G$500,FALSE),)=AX$6,VLOOKUP($AQ78,'LRMC x Plant ranked'!$F$4:$G$500,2,TRUE),0) -> 0 | AY78: 0 | AZ78: 0 | BA78: 0 | BC78: =IF(INDEX('LRMC x Plant ranked'!$C$5:$C$500,MATCH($AR78,'LRMC x Plant ranked'!$G$5:$G$500,FALSE),)=BC$6,VLOOKUP($AQ78,'LRMC x Plant ranked'!$F$4:$G$500,2,TRUE),0) -> 0 | BD78: =IF(INDEX('LRMC x Plant ranked'!$C$5:$C$500,MATCH($AR78,'LRMC x Plant ranked'!$G$5:$G$500,FALSE),)=BD$6,VLOOKUP($AQ78,'LRMC x Plant ranked'!$F$4:$G$500,2,TRUE),0) -> 0 | BE78: =IF(INDEX('LRMC x Plant ranked'!$C$5:$C$500,MATCH($AR78,'LRMC x Plant ranked'!$G$5:$G$500,FALSE),)=BE$6,VLOOKUP($AQ78,'LRMC x Plant ranked'!$F$4:$G$500,2,TRUE),0) -> 0 | BF78: =IF(INDEX('LRMC x Plant ranked'!$C$5:$C$500,MATCH($AR78,'LRMC x Plant ranked'!$G$5:$G$500,FALSE),)=BF$6,VLOOKUP($AQ78,'LRMC x Plant ranked'!$F$4:$G$500,2,TRUE),0) -> 0 | BG78: =IF(INDEX('LRMC x Plant ranked'!$C$5:$C$500,MATCH($AR78,'LRMC x Plant ranked'!$G$5:$G$500,FALSE),)=BG$6,VLOOKUP($AQ78,'LRMC x Plant ranked'!$F$4:$G$500,2,TRUE),0) -> 0 | BJ78: =IF(BJ77>MAX('LRMC x Plant ranked'!$P$5:$P$500),"",BJ77+IF($D$32="GWh",100,15)) -> 1050 | BK78: =VLOOKUP($BJ78,'LRMC x Plant ranked'!$P$4:$Q$500,2,TRUE) -> 59.9474989 | BM78: =IF(INDEX('LRMC x Plant ranked'!$M$5:$M$500,MATCH($BK78,'LRMC x Plant ranked'!$Q$5:$Q$500,FALSE),)=BM$6,VLOOKUP($BJ78,'LRMC x Plant ranked'!$P$4:$Q$500,2,TRUE),0) -> 59.9474989 | BN78: =IF(INDEX('LRMC x Plant ranked'!$M$5:$M$500,MATCH($BK78,'LRMC x Plant ranked'!$Q$5:$Q$500,FALSE),)=BN$6,VLOOKUP($BJ78,'LRMC x Plant ranked'!$P$4:$Q$500,2,TRUE),0) -> 0 | BO78: 0 | BP78: 0 | BQ78: 0 | BS78: =IF(INDEX('LRMC x Plant ranked'!$M$5:$M$500,MATCH($BK78,'LRMC x Plant ranked'!$Q$5:$Q$500,FALSE),)=BS$6,VLOOKUP($BJ78,'LRMC x Plant ranked'!$P$4:$Q$500,2,TRUE),0) -> 0 | BT78: =IF(INDEX('LRMC x Plant ranked'!$M$5:$M$500,MATCH($BK78,'LRMC x Plant ranked'!$Q$5:$Q$500,FALSE),)=BT$6,VLOOKUP($BJ78,'LRMC x Plant ranked'!$P$4:$Q$500,2,TRUE),0) -> 0 | BU78: =IF(INDEX('LRMC x Plant ranked'!$M$5:$M$500,MATCH($BK78,'LRMC x Plant ranked'!$Q$5:$Q$500,FALSE),)=BU$6,VLOOKUP($BJ78,'LRMC x Plant ranked'!$P$4:$Q$500,2,TRUE),0) -> 0 | BV78: =IF(INDEX('LRMC x Plant ranked'!$M$5:$M$500,MATCH($BK78,'LRMC x Plant ranked'!$Q$5:$Q$500,FALSE),)=BV$6,VLOOKUP($BJ78,'LRMC x Plant ranked'!$P$4:$Q$500,2,TRUE),0) -> 0 | BW78: =IF(INDEX('LRMC x Plant ranked'!$M$5:$M$500,MATCH($BK78,'LRMC x Plant ranked'!$Q$5:$Q$500,FALSE),)=BW$6,VLOOKUP($BJ78,'LRMC x Plant ranked'!$P$4:$Q$500,2,TRUE),0) -> 0 | BX78: 81.677403 | BY78: 92.67719164 | BZ78: 117.3776135 | CA78: 173.8216805 | CB78: 69.67136421
